Workbook

Sheet MindreLägenheter
B10: IntäktKostnad | C10: Faktor | D10: Kategori | E10: Subkategori | F10: Valuta | H10: Titel | AH10: Datum | AJ10: 2021-01-01 | AK10: =EDATE(AJ10,12) -> 2022-01-01 | AL10: =EDATE(AK10,12) -> 2023-01-01 | AM10: 2024-01-01 | AN10: 2025-01-01 | AO10: 2026-01-01 | AP10: 2027-01-01 | AQ10: 2028-01-01 | AR10: 2029-01-01 | AS10: 2030-01-01 | AT10: 2031-01-01 | AU10: 2032-01-01 | AV10: 2033-01-01 | AW10: 2034-01-01 | AX10: 2035-01-01 | AY10: 2036-01-01 | AZ10: 2037-01-01 | BA10: 2038-01-01 | BB10: 2039-01-01
B12: Kvantitet
B13: Kvantitet | C13: Innevånare | D13: Nyfödda | E13: 0 | F13: Antal | H13: Nyfödda_Kvantitet | J13: Ingående | K13: 0 | L13: Minålder | M13: 0 | N13: maxålder | O13: 0 | P13: Nativitet | Q13: 0 | AJ13: =AJ16*$Q$16+AJ17*$Q$17 -> 4.1225 | AK13: =AK16*$Q$16+AK17*$Q$17 -> 3.980125 | AL13: 3.828877063 | AM13: 3.673624828 | AN13: 3.518253138 | AO13: 3.365799605 | AP13: 3.218578313 | AQ13: 3.078291003 | AR13: 2.946126301 | AS13: 2.822847603 | AT13: 2.708870368 | AU13: 2.604329567 | AV13: 2.509138101 | AW13: 2.42303697 | AX13: 2.345638003 | AY13: 2.276459894 | AZ13: 2.214958285 | BA13: 2.160550578 | BB13: 2.112636135
B14: Kvantitet | C14: Innevånare | D14: 0-10År | E14: 5 | F14: Antal | H14: 0-10År_Kvantitet | J14: Ingående | K14: 5 | L14: Minålder | M14: 0 | N14: maxålder | O14: 10 | P14: Nativitet | AI14: =K14 -> 5 | AJ14: =AJ13+AI14*0.9 -> 8.6225 | AK14: =AK13+AJ14*0.9 -> 11.740375 | AL14: 14.39521456 | AM14: 16.62931793 | AN14: 18.48463928 | AO14: 20.00197496 | AP14: 21.22035577 | AQ14: 22.1766112 | AR14: 22.90507638 | AS14: 23.43741634 | AT14: 23.80254508 | AU14: 24.02662014 | AV14: 24.13309622 | AW14: 24.14282357 | AX14: 24.07417922 | AY14: 23.94322119 | AZ14: 23.76385736 | BA14: 23.5480222 | BB14: 23.30585611
B15: Kvantitet | C15: Innevånare | D15: 11-20År | E15: 15 | F15: Antal | H15: 11-20År_Kvantitet | J15: Ingående | K15: 0 | L15: Minålder | M15: 11 | N15: maxålder | O15: 20 | P15: Nativitet | AI15: =K15 -> 0 | AJ15: =AI14*0.1+AI15*0.9 -> 0.5 | AK15: =AJ14*0.1+AJ15*0.9 -> 1.31225 | AL15: =AK14*0.1+AK15*0.9 -> 2.3550625 | AM15: 3.559077706 | AN15: 4.866101729 | AO15: 6.227955484 | AP15: 7.605357431 | AQ15: 8.966857265 | AR15: 10.28783266 | AS15: 11.54955703 | AT15: 12.73834296 | AU15: 13.84476317 | AV15: 14.86294887 | AW15: 15.78996361 | AX15: 16.6252496 | AY15: 17.37014256 | AZ15: 18.02745043 | BA15: 18.60109112 | BB15: =BA14*0.1+BA15*0.9 -> 19.09578423
B16: Kvantitet | C16: Innevånare | D16: 21-30År | E16: 25 | F16: Antal | H16: 21-30År_Kvantitet | J16: Ingående | K16: 70 | L16: Minålder | M16: 21 | N16: maxålder | O16: 30 | P16: Nativitet | Q16: 0.0425 | AI16: 70 | AJ16: 63 | AK16: 56.75 | AL16: 51.206225 | AM16: 46.32110875 | AN16: 42.04490565 | AO16: 38.32702525 | AP16: 35.11711828 | AQ16: 32.36594219 | AR16: 30.0260337 | AS16: 28.0522136 | AT16: 26.40194794 | AU16: 25.03558744 | AV16: 23.91650501 | AW16: 23.0111494 | AX16: 22.28903082 | AY16: 21.7226527 | AZ16: 21.28740169 | BA16: 20.96140656 | BB16: 20.72537502
B17: Kvantitet | C17: Innevånare | D17: 31-40År | E17: 35 | F17: Antal | H17: 31-40År_Kvantitet | J17: Ingående | K17: 30 | L17: Minålder | M17: 31 | N17: maxålder | O17: 40 | P17: Nativitet | Q17: 0.0425 | AI17: 30 | AJ17: 34 | AK17: 36.9 | AL17: 38.885 | AM17: 40.1171225 | AN17: 40.73752113 | AO17: 40.86825958 | AP17: 40.61413614 | AQ17: 40.06443436 | AR17: 39.29458514 | AS17: 38.36773 | AT17: 37.33617836 | AU17: 36.24275532 | AV17: 35.12203853 | AW17: 34.00148518 | AX17: 32.9024516 | AY17: 31.84110952 | AZ17: 30.82926384 | BA17: 29.87507762 | BB17: 28.98371052
B18: Kvantitet | C18: Innevånare | D18: 41-50År | E18: 45 | F18: Antal | H18: 41-50År_Kvantitet | J18: Ingående | K18: 10 | L18: Minålder | M18: 41 | N18: maxålder | O18: 50 | AI18: 10 | AJ18: 12 | AK18: 14.2 | AL18: 16.47 | AM18: 18.7115 | AN18: 20.85206225 | AO18: 22.84060814 | AP18: 24.64337328 | AQ18: 26.24044957 | AR18: 27.62284805 | AS18: 28.79002176 | AT18: 29.74779258 | AU18: 30.50663116 | AV18: 31.08024357 | AW18: 31.48442307 | AX18: 31.73612928 | AY18: 31.85276151 | AZ18: 31.85159631 | BA18: 31.74936307 | BB18: 31.56193452
B19: Kvantitet | C19: Innevånare | D19: 51-60År | E19: 55 | F19: Antal | H19: 51-60År_Kvantitet | J19: Ingående | K19: 0 | L19: Minålder | M19: 51 | N19: maxålder | O19: 60 | P19: Mortalitet | Q19: 0.01219512195 | AI19: 0 | AJ19: =AI18*0.1+AI19*0.9*(1-$Q19) -> 1 | AK19: =AJ18*0.1+AJ19*0.9*(1-$Q19) -> 2.08902439 | AL19: 3.277193635 | AM19: 4.560505073 | AN19: 5.925550242 | AO19: 7.353164915 | AP19: 8.821203769 | AQ19: 10.30660263 | AR19: 11.78686608 | AS19: 13.24109623 | AT19: 14.65065968 | AU19: 15.99957304 | AV19: 17.27467379 | AW19: 18.46563069 | AX19: 19.56483837 | AY19: 20.56723143 | AZ19: 21.47004653 | BA19: =AZ18*0.1+AZ19*0.9*(1-$Q19) -> 22.27255466 | BB19: 22.97578063
B20: Kvantitet | C20: Innevånare | D20: 61-70År | E20: 65 | F20: Antal | H20: 61-70År_Kvantitet | J20: Ingående | K20: 10 | L20: Minålder | M20: 61 | N20: maxålder | O20: 70 | P20: Mortalitet | Q20: 0.02195121951 | AI20: 10 | AJ20: =AI19*0.1+AI20*0.9*(1-$Q20) -> 8.802439024 | AK20: 7.848293278 | AL20: 7.117314741 | AM20: 6.592692266 | AN20: 6.259227675 | AO20: 6.102202019 | AP20: 6.106742611 | AQ20: 6.257543324 | AR20: 6.538824618 | AS20: 6.934447107 | AT20: 7.428114405 | AU20: 8.00361838 | AV20: 8.645093581 | AW20: 9.337258289 | AX20: 10.06562774 | AY20: 10.81669128 | AZ20: 11.57804969 | BA20: 12.33851229 | BB20: 13.08815568
B21: Kvantitet | C21: Innevånare | D21: 71-80År | E21: 75 | F21: Antal | H21: 71-80År_Kvantitet | J21: Ingående | K21: 0 | L21: Minålder | M21: 71 | N21: maxålder | O21: 80 | P21: Mortalitet | Q21: 0.02195121951 | AI21: 0 | AJ21: 1 | AK21: 1.760487805 | AL21: 2.334487983 | AM21: 2.766650287 | AN21: 3.094596272 | AO21: 3.349922266 | AP21: 3.55896885 | AQ21: 3.743434891 | AR21: 3.920890069 | AS21: 4.105222037 | AT21: 4.307041377 | AU21: 4.53405835 | AV21: 4.791439054 | AW21: 5.082144369 | AX21: 5.407252421 | AY21: 5.766263747 | AZ21: 6.157387631 | BA21: 6.577807886 | BB21: 7.023926513
B22: Kvantitet | C22: Innevånare | D22: 81-91År | E22: 85 | F22: Antal | H22: 81-91År_Kvantitet | J22: Ingående | K22: 0 | L22: Minålder | M22: 81 | N22: maxålder | O22: 90 | P22: Mortalitet | Q22: 0.02195121951 | AI22: 0 | AJ22: 0 | AK22: 0.1 | AL22: 0.2640731707 | AM22: 0.4658975967 | AN22: 0.6867685473 | AO22: 0.9139834533 | AP22: 1.139520588 | AQ22: 1.358952935 | AR22: 1.570553523 | AS22: 1.774559169 | AT22: 1.972567092 | AU22: 2.167044293 | AV22: 2.36093336 | AW22: 2.5573411 | AX22: 2.759298346 | AY22: 2.969580786 | AZ22: 3.190581755 | BA22: 3.424228898 | BB22: 3.671937397
B23: Kvantitet | C23: Innevånare | D23: 91-100År | E23: 95 | F23: Antal | H23: 91-100År_Kvantitet | J23: Ingående | K23: 0 | L23: Minålder | M23: 91 | N23: maxålder | O23: 100 | P23: Mortalitet | Q23: 0.02195121951 | AI23: 0 | AJ23: 0 | AK23: 0 | AL23: 0.01 | AM23: 0.0352097561 | AN23: 0.07758293278 | AO23: 0.1369687582 | AP23: 0.2119642596 | AQ23: 0.3005323059 | AR23: 0.4004370232 | AS23: 0.5095376003 | AT23: 0.6259732827 | AU23: 0.7482658744 | AV23: 0.8753609026 | AW23: 1.006624433 | AX23: 1.141809129 | AY23: 1.281000358 | AZ23: 1.424550833 | BA23: 1.57301036 | BB23: 1.727055668
B25: Skatteintäkter
B26: Intäkt | C26: Skatteintäkt | D26: 0-10År | E26: 5 | F26: SkatteIntäkt | H26: 0-10År_Intäkt | J26: Skatteintäkt | L26: Minålder | M26: 0 | N26: maxålder | O26: 10 | AJ26: =AJ$13*$K26 -> 0 | AK26: 0 | AL26: 0 | AM26: 0 | AN26: 0 | AO26: 0 | AP26: 0 | AQ26: 0 | AR26: 0 | AS26: 0 | AT26: 0 | AU26: 0 | AV26: 0 | AW26: 0 | AX26: 0 | AY26: 0 | AZ26: 0 | BA26: 0 | BB26: 0
B27: Intäkt | C27: Skatteintäkt | D27: 11-20År | E27: 15 | F27: SkatteIntäkt | H27: 11-20År_Intäkt | J27: Skatteintäkt | L27: Minålder | M27: 11 | N27: maxålder | O27: 20 | AJ27: =AJ$14*$K27 -> 0 | AK27: 0 | AL27: 0 | AM27: 0 | AN27: 0 | AO27: 0 | AP27: 0 | AQ27: 0 | AR27: 0 | AS27: 0 | AT27: 0 | AU27: 0 | AV27: 0 | AW27: 0 | AX27: 0 | AY27: 0 | AZ27: 0 | BA27: 0 | BB27: 0
B28: Intäkt | C28: Skatteintäkt | D28: 21-30År | E28: 25 | F28: SkatteIntäkt | H28: 21-30År_Intäkt | J28: Skatteintäkt | K28: 60745.176 | L28: Minålder | M28: 21 | N28: maxålder | O28: 30 | AJ28: =AJ$15*$K28 -> 30372.588 | AK28: 79712.85721 | AL28: 143058.6861 | AM28: 216196.8017 | AN28: 295592.206 | AO28: 378318.252 | AP28: 461988.7757 | AQ28: 544693.3228 | AR28: 624936.2055 | AS28: 701579.8746 | AT28: 773792.8852 | AU28: 841002.5757 | AV28: 902852.445 | AW28: 959164.1183 | AX28: 1009903.713 | AY28: 1055152.367 | AZ28: 1095080.649 | BA28: 1129926.554 | BB28: 1159976.774
B29: Intäkt | C29: Skatteintäkt | D29: 31-40År | E29: 35 | F29: SkatteIntäkt | H29: 31-40År_Intäkt | J29: Skatteintäkt | K29: 72092.016 | L29: Minålder | M29: 31 | N29: maxålder | O29: 40 | AJ29: =AJ$16*$K29 -> 4541797.008 | AK29: 4091221.908 | AL29: 3691559.992 | AM29: 3339382.113 | AN29: 3031102.011 | AO29: 2763072.518 | AP29: 2531663.853 | AQ29: 2333326.022 | AR29: 2164637.302 | AS29: 2022340.631 | AT29: 1903369.653 | AU29: 1804865.97 | AV29: 1724189.062 | AW29: 1658920.151 | AX29: 1606861.167 | AY29: 1566029.826 | AZ29: 1534651.703 | BA29: 1511150.057 | BB29: 1494134.067
B30: Intäkt | C30: Skatteintäkt | D30: 41-50År | E30: 45 | F30: SkatteIntäkt | H30: 41-50År_Intäkt | J30: Skatteintäkt | K30: 78372.36 | L30: Minålder | M30: 41 | N30: maxålder | O30: 50 | AJ30: =AJ$17*$K30 -> 2664660.24 | AK30: 2891940.084 | AL30: 3047509.219 | AM30: 3144073.567 | AN30: 3192695.671 | AO30: 3202941.952 | AP30: 3183025.699 | AQ30: 3139944.273 | AR30: 3079609.373 | AS30: 3006969.548 | AT30: 2926124.411 | AU30: 2840430.267 | AV30: 2752597.047 | AW30: 2664776.637 | AX30: 2578642.782 | AY30: 2495462.898 | AZ30: 2416162.164 | BA30: 2341380.339 | BB30: 2271521.795
B31: Intäkt | C31: Skatteintäkt | D31: 51-60År | E31: 55 | F31: SkatteIntäkt | H31: 51-60År_Intäkt | J31: Skatteintäkt | K31: 77765.436 | L31: Minålder | M31: 51 | N31: maxålder | O31: 60 | AJ31: =AJ$18*$K31 -> 933185.232 | AK31: 1104269.191 | AL31: 1280796.731 | AM31: 1455107.956 | AN31: 1621569.712 | AO31: 1776209.85 | AP31: 1916402.668 | AQ31: 2040600.001 | AR31: 2148102.822 | AS31: 2238868.594 | AT31: 2313350.06 | AU31: 2372361.473 | AV31: 2416968.692 | AW31: 2448399.887 | AX31: 2467973.93 | AY31: 2477043.887 | AZ31: 2476953.275 | BA31: 2469003.062 | BB31: 2454427.599
B32: Intäkt | C32: Skatteintäkt | D32: 61-70År | E32: 65 | F32: SkatteIntäkt | H32: 61-70År_Intäkt | J32: Skatteintäkt | K32: 34093.296 | L32: Minålder | M32: 61 | N32: maxålder | O32: 70 | AJ32: =AJ$19*$K32 -> 34093.296 | AK32: 71221.72689 | AL32: 111730.3326 | AM32: 155482.6494 | AN32: 202021.5383 | AO32: 250693.628 | AP32: 300743.9112 | AQ32: 351386.0542 | AR32: 401853.114 | AS32: 451432.6131 | AT32: 499489.277 | AU32: 545478.1797 | AV32: 588950.5667 | AW32: 629554.2128 | AX32: 667029.8257 | AY32: 701204.709 | AZ32: 731984.6515 | BA32: 759344.7986 | BB32: 783320.0898
B33: Intäkt | C33: Skatteintäkt | D33: 71-80År | E33: 75 | F33: SkatteIntäkt | H33: 71-80År_Intäkt | J33: Skatteintäkt | K33: 0 | L33: Minålder | M33: 71 | N33: maxålder | O33: 80 | AJ33: =AJ$20*$K33 -> 0 | AK33: 0 | AL33: 0 | AM33: 0 | AN33: 0 | AO33: 0 | AP33: 0 | AQ33: 0 | AR33: 0 | AS33: 0 | AT33: 0 | AU33: 0 | AV33: 0 | AW33: 0 | AX33: 0 | AY33: 0 | AZ33: 0 | BA33: 0 | BB33: 0
B34: Intäkt | C34: Skatteintäkt | D34: 81-91År | E34: 85 | F34: SkatteIntäkt | H34: 81-91År_Intäkt | J34: Skatteintäkt | K34: 0 | L34: Minålder | M34: 81 | N34: maxålder | O34: 90 | AJ34: =AJ$21*$K34 -> 0 | AK34: 0 | AL34: 0 | AM34: 0 | AN34: 0 | AO34: 0 | AP34: 0 | AQ34: 0 | AR34: 0 | AS34: 0 | AT34: 0 | AU34: 0 | AV34: 0 | AW34: 0 | AX34: 0 | AY34: 0 | AZ34: 0 | BA34: 0 | BB34: 0
B35: Intäkt | C35: Skatteintäkt | D35: 91-100År | E35: 95 | F35: SkatteIntäkt | H35: 91-100År_Intäkt | J35: Skatteintäkt | K35: 0 | L35: Minålder | M35: 91 | N35: maxålder | O35: 100 | AJ35: =AJ$22*$K35 -> 0 | AK35: 0 | AL35: 0 | AM35: 0 | AN35: 0 | AO35: 0 | AP35: 0 | AQ35: 0 | AR35: 0 | AS35: 0 | AT35: 0 | AU35: 0 | AV35: 0 | AW35: 0 | AX35: 0 | AY35: 0 | AZ35: 0 | BA35: 0 | BB35: 0
B37: Skatteutjämning
B38: Intäkt | C38: Skatteintäkt | D38: 0-10År | E38: 5 | F38: Utjämningseffekt | H38: 0-10År_Intäkt | J38: Utjämningseffekt | K38: 10000 | L38: Minålder | M38: 0 | N38: maxålder | O38: 10 | AJ38: =AJ$13*$K38 -> 41225 | AK38: 39801.25 | AL38: 38288.77063 | AM38: 36736.24828 | AN38: 35182.53138 | AO38: 33657.99605 | AP38: 32185.78313 | AQ38: 30782.91003 | AR38: 29461.26301 | AS38: 28228.47603 | AT38: 27088.70368 | AU38: 26043.29567 | AV38: 25091.38101 | AW38: 24230.3697 | AX38: 23456.38003 | AY38: 22764.59894 | AZ38: 22149.58285 | BA38: 21605.50578 | BB38: 21126.36135
B39: Intäkt | C39: Skatteintäkt | D39: 11-20År | E39: 15 | F39: Utjämningseffekt | H39: 11-20År_Intäkt | J39: Utjämningseffekt | K39: 10000 | L39: Minålder | M39: 11 | N39: maxålder | O39: 20 | AJ39: =AJ$14*$K39 -> 86225 | AK39: 117403.75 | AL39: 143952.1456 | AM39: 166293.1793 | AN39: 184846.3928 | AO39: 200019.7496 | AP39: 212203.5577 | AQ39: 221766.112 | AR39: 229050.7638 | AS39: 234374.1634 | AT39: 238025.4508 | AU39: 240266.2014 | AV39: 241330.9622 | AW39: 241428.2357 | AX39: 240741.7922 | AY39: 239432.2119 | AZ39: 237638.5736 | BA39: 235480.222 | BB39: 233058.5611
B40: Intäkt | C40: Skatteintäkt | D40: 21-30År | E40: 25 | F40: Utjämningseffekt | H40: 21-30År_Intäkt | J40: Utjämningseffekt | K40: 0 | L40: Minålder | M40: 21 | N40: maxålder | O40: 30 | AJ40: =AJ$15*$K40 -> 0 | AK40: 0 | AL40: 0 | AM40: 0 | AN40: 0 | AO40: 0 | AP40: 0 | AQ40: 0 | AR40: 0 | AS40: 0 | AT40: 0 | AU40: 0 | AV40: 0 | AW40: 0 | AX40: 0 | AY40: 0 | AZ40: 0 | BA40: 0 | BB40: 0
B41: Kostnad | C41: Skatteintäkt | D41: 31-40År | E41: 35 | F41: Utjämningseffekt | H41: 31-40År_Kostnad | J41: Utjämningseffekt | K41: 10000 | L41: Minålder | M41: 31 | N41: maxålder | O41: 40 | AJ41: =AJ$16*$K41 -> 630000 | AK41: 567500 | AL41: 512062.25 | AM41: 463211.0875 | AN41: 420449.0565 | AO41: 383270.2525 | AP41: 351171.1828 | AQ41: 323659.4219 | AR41: 300260.337 | AS41: 280522.136 | AT41: 264019.4794 | AU41: 250355.8744 | AV41: 239165.0501 | AW41: 230111.494 | AX41: 222890.3082 | AY41: 217226.527 | AZ41: 212874.0169 | BA41: 209614.0656 | BB41: 207253.7502
B42: Kostnad | C42: Skatteintäkt | D42: 41-50År | E42: 45 | F42: Utjämningseffekt | H42: 41-50År_Kostnad | J42: Utjämningseffekt | K42: 15000 | L42: Minålder | M42: 41 | N42: maxålder | O42: 50 | AJ42: =AJ$17*$K42 -> 510000 | AK42: 553500 | AL42: 583275 | AM42: 601756.8375 | AN42: 611062.8169 | AO42: 613023.8937 | AP42: 609212.0422 | AQ42: 600966.5154 | AR42: 589418.7771 | AS42: 575515.95 | AT42: 560042.6754 | AU42: 543641.3297 | AV42: 526830.5779 | AW42: 510022.2776 | AX42: 493536.774 | AY42: 477616.6428 | AZ42: 462438.9576 | BA42: 448126.1644 | BB42: 434755.6578
B43: Kostnad | C43: Skatteintäkt | D43: 51-60År | E43: 55 | F43: Utjämningseffekt | H43: 51-60År_Kostnad | J43: Utjämningseffekt | K43: 15000 | L43: Minålder | M43: 51 | N43: maxålder | O43: 60 | AJ43: =AJ$18*$K43 -> 180000 | AK43: 213000 | AL43: 247050 | AM43: 280672.5 | AN43: 312780.9338 | AO43: 342609.1221 | AP43: 369650.5992 | AQ43: 393606.7435 | AR43: 414342.7207 | AS43: 431850.3263 | AT43: 446216.8887 | AU43: 457599.4674 | AV43: 466203.6536 | AW43: 472266.346 | AX43: 476041.9392 | AY43: 477791.4227 | AZ43: 477773.9447 | BA43: 476240.446 | BB43: 473429.0178
B44: Intäkt | C44: Skatteintäkt | D44: 61-70År | E44: 65 | F44: Utjämningseffekt | H44: 61-70År_Intäkt | J44: Utjämningseffekt | K44: 0 | L44: Minålder | M44: 61 | N44: maxålder | O44: 70 | AJ44: =AJ$19*$K44 -> 0 | AK44: 0 | AL44: 0 | AM44: 0 | AN44: 0 | AO44: 0 | AP44: 0 | AQ44: 0 | AR44: 0 | AS44: 0 | AT44: 0 | AU44: 0 | AV44: 0 | AW44: 0 | AX44: 0 | AY44: 0 | AZ44: 0 | BA44: 0 | BB44: 0
B45: Intäkt | C45: Skatteintäkt | D45: 71-80År | E45: 75 | F45: Utjämningseffekt | H45: 71-80År_Intäkt | J45: Utjämningseffekt | K45: 0 | L45: Minålder | M45: 71 | N45: maxålder | O45: 80 | AJ45: =AJ$20*$K45 -> 0 | AK45: 0 | AL45: 0 | AM45: 0 | AN45: 0 | AO45: 0 | AP45: 0 | AQ45: 0 | AR45: 0 | AS45: 0 | AT45: 0 | AU45: 0 | AV45: 0 | AW45: 0 | AX45: 0 | AY45: 0 | AZ45: 0 | BA45: 0 | BB45: 0
B46: Intäkt | C46: Skatteintäkt | D46: 81-91År | E46: 85 | F46: Utjämningseffekt | H46: 81-91År_Intäkt | J46: Utjämningseffekt | K46: 0 | L46: Minålder | M46: 81 | N46: maxålder | O46: 90 | AJ46: =AJ$21*$K46 -> 0 | AK46: 0 | AL46: 0 | AM46: 0 | AN46: 0 | AO46: 0 | AP46: 0 | AQ46: 0 | AR46: 0 | AS46: 0 | AT46: 0 | AU46: 0 | AV46: 0 | AW46: 0 | AX46: 0 | AY46: 0 | AZ46: 0 | BA46: 0 | BB46: 0
B47: Intäkt | C47: Skatteintäkt | D47: 91-100År | E47: 95 | F47: Utjämningseffekt | H47: 91-100År_Intäkt | J47: Utjämningseffekt | K47: 0 | L47: Minålder | M47: 91 | N47: maxålder | O47: 100 | AJ47: =AJ$22*$K47 -> 0 | AK47: 0 | AL47: 0 | AM47: 0 | AN47: 0 | AO47: 0 | AP47: 0 | AQ47: 0 | AR47: 0 | AS47: 0 | AT47: 0 | AU47: 0 | AV47: 0 | AW47: 0 | AX47: 0 | AY47: 0 | AZ47: 0 | BA47: 0 | BB47: 0
B49: Skolplatser som behövs
B50: Kvantitet | C50: Förskoleplatser | D50: 0-10År | E50: 5 | F50: Platser | H50: 0-10År_Kvantitet | J50: Förskoleplatser | K50: 0.5 | L50: Minålder | M50: 0 | N50: maxålder | O50: 10 | AJ50: =AJ$13*$K50 -> 2.06125 | AK50: =AK$13*$K50 -> 1.9900625 | AL50: =AL$13*$K50 -> 1.914438531 | AM50: 1.836812414 | AN50: 1.759126569 | AO50: 1.682899803 | AP50: 1.609289156 | AQ50: 1.539145502 | AR50: 1.47306315 | AS50: 1.411423801 | AT50: 1.354435184 | AU50: 1.302164784 | AV50: 1.25456905 | AW50: 1.211518485 | AX50: 1.172819001 | AY50: 1.138229947 | AZ50: 1.107479142 | BA50: 1.080275289 | BB50: =BB$13*$K50 -> 1.056318068
B51: Kvantitet | C51: Fritidshem | D51: 0-10År | E51: 5 | F51: Platser | H51: 0-10År_Kvantitet | J51: Fritidshem | K51: 0.3 | L51: Minålder | M51: 0 | N51: maxålder | O51: 10 | AJ51: 1.23675 | AK51: 1.1940375 | AL51: 1.148663119 | AM51: 1.102087448 | AN51: 1.055475941 | AO51: 1.009739882 | AP51: 0.9655734939 | AQ51: 0.923487301 | AR51: 0.8838378902 | AS51: 0.8468542808 | AT51: 0.8126611103 | AU51: 0.7812988701 | AV51: 0.7527414302 | AW51: 0.7269110909 | AX51: 0.7036914009 | AY51: 0.6829379683 | AZ51: 0.6644874854 | BA51: 0.6481651733 | BB51: 0.6337908405
B52: Kvantitet | C52: Grundskoleplatser | D52: 0-10År | E52: 5 | F52: Platser | H52: 0-10År_Kvantitet | J52: Grundkskolaplatser | K52: 0.3 | L52: Minålder | M52: 0 | N52: maxålder | O52: 10 | AJ52: =AJ$13*$K52 -> 1.23675 | AK52: 1.1940375 | AL52: 1.148663119 | AM52: 1.102087448 | AN52: 1.055475941 | AO52: 1.009739882 | AP52: 0.9655734939 | AQ52: 0.923487301 | AR52: 0.8838378902 | AS52: 0.8468542808 | AT52: 0.8126611103 | AU52: 0.7812988701 | AV52: 0.7527414302 | AW52: 0.7269110909 | AX52: 0.7036914009 | AY52: 0.6829379683 | AZ52: 0.6644874854 | BA52: 0.6481651733 | BB52: 0.6337908405
B53: Kvantitet | C53: Grundskoleplatser | D53: 11-20År | E53: 15 | F53: Platser | H53: 11-20År_Kvantitet | J53: Grundkskolaplatser | K53: 0.5 | L53: Minålder | M53: 11 | N53: maxålder | O53: 20 | AJ53: =AJ$14*$K53 -> 4.31125 | AK53: =AK$14*$K53 -> 5.8701875 | AL53: 7.197607281 | AM53: 8.314658967 | AN53: 9.242319639 | AO53: 10.00098748 | AP53: 10.61017789 | AQ53: 11.0883056 | AR53: 11.45253819 | AS53: 11.71870817 | AT53: 11.90127254 | AU53: 12.01331007 | AV53: 12.06654811 | AW53: 12.07141179 | AX53: 12.03708961 | AY53: 11.97161059 | AZ53: 11.88192868 | BA53: 11.7740111 | BB53: 11.65292806
B54: Kvantitet | C54: Gymnasieplatser | D54: 11-20År | E54: 15 | F54: Platser | H54: 11-20År_Kvantitet | J54: Gymnasieplatser | K54: 0.3 | L54: Minålder | M54: 11 | N54: maxålder | O54: 20 | AJ54: =AJ$14*$K54 -> 2.58675 | AK54: 3.5221125 | AL54: 4.318564369 | AM54: 4.98879538 | AN54: 5.545391784 | AO54: 6.000592487 | AP54: 6.366106732 | AQ54: 6.65298336 | AR54: 6.871522914 | AS54: 7.031224903 | AT54: 7.140763523 | AU54: 7.207986041 | AV54: 7.239928867 | AW54: 7.242847071 | AX54: 7.222253765 | AY54: 7.182966357 | AZ54: 7.129157207 | BA54: 7.064406659 | BB54: 6.991756834
B55: Kostnad | C55: Förskoleplatser | D55: 0-10År | E55: 55 | F55: UtbildningsUtgift | H55: 0-10År_Kostnad | J55: Dagisplatser | K55: 108000 | L55: Minålder | M55: 21 | N55: maxålder | O55: 10 | AJ55: =AJ50*$K55 -> 222615 | AK55: 214926.75 | AL55: 206759.3614 | AM55: 198375.7407 | AN55: 189985.6694 | AO55: 181753.1787 | AP55: 173803.2289 | AQ55: 166227.7142 | AR55: 159090.8202 | AS55: 152433.7705 | AT55: 146278.9998 | AU55: 140633.7966 | AV55: 135493.4574 | AW55: 130843.9964 | AX55: 126664.4522 | AY55: 122928.8343 | AZ55: 119607.7474 | BA55: 116669.7312 | BB55: 114082.3513
B56: Kostnad | C56: Förskoleplatser | D56: 0-10År | E56: 65 | F56: UtbildningsUtgift | H56: 0-10År_Kostnad | J56: Förskoleplatser | K56: 132000 | L56: Minålder | M56: 31 | N56: maxålder | O56: 10 | AJ56: 163251 | AK56: 157612.95 | AL56: 151623.5317 | AM56: 145475.5432 | AN56: 139322.8243 | AO56: 133285.6644 | AP56: 127455.7012 | AQ56: 121900.3237 | AR56: 116666.6015 | AS56: 111784.7651 | AT56: 107271.2666 | AU56: 103131.4509 | AV56: 99361.86878 | AW56: 95952.26399 | AX56: 92887.26491 | AY56: 90147.81182 | AZ56: 87712.34808 | BA56: 85557.80288 | BB56: 83660.39095
B57: Kostnad | C57: Grundskoleplatser | D57: 0-10År | E57: 75 | F57: UtbildningsUtgift | H57: 0-10År_Kostnad | J57: Grundkskolaplatser | K57: 156000 | L57: Minålder | M57: 41 | N57: maxålder | O57: 10 | AJ57: 192933 | AK57: 186269.85 | AL57: 179191.4465 | AM57: 171925.642 | AN57: 164654.2468 | AO57: 157519.4215 | AP57: 150629.465 | AQ57: 144064.019 | AR57: 137878.7109 | AS57: 132109.2678 | AT57: 126775.1332 | AU57: 121882.6237 | AV57: 117427.6631 | AW57: 113398.1302 | AX57: 109775.8585 | AY57: 106538.3231 | AZ57: 103660.0477 | BA57: 101113.767 | BB57: 98871.37112
B58: Kostnad | C58: Grundskoleplatser | D58: 11-20År | E58: 85 | F58: UtbildningsUtgift | H58: 11-20År_Kostnad | J58: Grundkskolaplatser | K58: 156000 | L58: Minålder | M58: 51 | N58: maxålder | O58: 20 | AJ58: 672555 | AK58: 915749.25 | AL58: 1122826.736 | AM58: 1297086.799 | AN58: 1441801.864 | AO58: 1560154.047 | AP58: 1655187.75 | AQ58: 1729775.674 | AR58: 1786595.958 | AS58: 1828118.475 | AT58: 1856598.516 | AU58: 1874076.371 | AV58: 1882381.505 | AW58: 1883140.239 | AX58: 1877785.979 | AY58: 1867571.253 | AZ58: 1853580.874 | BA58: 1836745.731 | BB58: 1817856.777
B59: Kostnad | C59: Gymnasieplatser | D59: 11-20År | E59: 95 | F59: UtbildningsUtgift | H59: 11-20År_Kostnad | J59: Gymnasieplatser | K59: 152000 | L59: Minålder | M59: 61 | N59: maxålder | O59: 20 | AJ59: 393186 | AK59: 535361.1 | AL59: 656421.7841 | AM59: 758296.8978 | AN59: 842899.5511 | AO59: 912090.058 | AP59: 967648.2233 | AQ59: 1011253.471 | AR59: 1044471.483 | AS59: 1068746.185 | AT59: 1085396.056 | AU59: 1095613.878 | AV59: 1100469.188 | AW59: 1100912.755 | AX59: 1097782.572 | AY59: 1091810.886 | AZ59: 1083631.895 | BA59: 1073789.812 | BB59: 1062747.039
B61: Kapacitet
B62: Kapacitet | C62: Förskoleplatser | D62: Kapacitet | E62: Personal | F62: Personal | H62: Kapacitet_Kapacitet | J62: Kapacitet | K62: 150 | AJ62: =$K62 -> 150 | AK62: =$K62 -> 150 | AL62: 150 | AM62: 150 | AN62: 150 | AO62: 150 | AP62: 150 | AQ62: 150 | AR62: 150 | AS62: 150 | AT62: 150 | AU62: 150 | AV62: 150 | AW62: 150 | AX62: 150 | AY62: 150 | AZ62: 150 | BA62: =$K62 -> 150 | BB62: 150
B63: Kapacitet | C63: Förskoleplatser | D63: Kapacitet | E63: Lokal | F63: Lokal | H63: Kapacitet_Kapacitet | J63: Kapacitet | K63: 160 | AJ63: =$K63 -> 160 | AK63: 160 | AL63: 160 | AM63: 160 | AN63: 160 | AO63: 160 | AP63: 160 | AQ63: 160 | AR63: 160 | AS63: 160 | AT63: 160 | AU63: 160 | AV63: 160 | AW63: 160 | AX63: 160 | AY63: 160 | AZ63: 160 | BA63: 160 | BB63: 160
B64: Kapacitet | C64: Grundskoleplatser | D64: Kapacitet | E64: Personal | F64: Personal | H64: Kapacitet_Kapacitet | J64: Kapacitet | K64: 250 | AJ64: 250 | AK64: 250 | AL64: 250 | AM64: 250 | AN64: 250 | AO64: 250 | AP64: 250 | AQ64: 250 | AR64: 250 | AS64: 250 | AT64: 250 | AU64: 250 | AV64: 250 | AW64: 250 | AX64: 250 | AY64: 250 | AZ64: 250 | BA64: 250 | BB64: 250
B65: Kapacitet | C65: Grundskoleplatser | D65: Kapacitet | E65: Lokal | F65: Lokal | H65: Kapacitet_Kapacitet | J65: Kapacitet | K65: 260 | AJ65: 260 | AK65: 260 | AL65: 260 | AM65: 260 | AN65: 260 | AO65: 260 | AP65: 260 | AQ65: 260 | AR65: 260 | AS65: 260 | AT65: 260 | AU65: 260 | AV65: 260 | AW65: 260 | AX65: 260 | AY65: 260 | AZ65: 260 | BA65: 260 | BB65: 260
B66: Kapacitet | C66: Gymnasieplatser | D66: Kapacitet | E66: Personal | F66: Personal | H66: Kapacitet_Kapacitet | J66: Kapacitet | K66: 550 | AJ66: 550 | AK66: 550 | AL66: 550 | AM66: 550 | AN66: 550 | AO66: 550 | AP66: 550 | AQ66: 550 | AR66: 550 | AS66: 550 | AT66: 550 | AU66: 550 | AV66: 550 | AW66: 550 | AX66: 550 | AY66: 550 | AZ66: 550 | BA66: 550 | BB66: 550
B67: Kapacitet | C67: Gymnasieplatser | D67: Kapacitet | E67: Lokal | F67: Lokal | H67: Kapacitet_Kapacitet | J67: Kapacitet | K67: 560 | AJ67: 560 | AK67: 560 | AL67: 560 | AM67: 560 | AN67: 560 | AO67: 560 | AP67: 560 | AQ67: 560 | AR67: 560 | AS67: 560 | AT67: 560 | AU67: 560 | AV67: 560 | AW67: 560 | AX67: 560 | AY67: 560 | AZ67: 560 | BA67: 560 | BB67: 560
B69: Nuvarande skolplatser
B70: Kvantitet Befintlig | C70: Förskoleplatser | D70: 0-10År | E70: 5 | F70: Platser | H70: 0-10År_Kvantitet | J70: Förskoleplatser | K70: 155 | AJ70: =$K70 -> 155 | AK70: =$K70 -> 155 | AL70: 155 | AM70: 155 | AN70: 155 | AO70: 155 | AP70: 155 | AQ70: 155 | AR70: 155 | AS70: 155 | AT70: 155 | AU70: 155 | AV70: 155 | AW70: 155 | AX70: 155 | AY70: 155 | AZ70: 155 | BA70: =$K70 -> 155 | BB70: 155
B71: Kvantitet Befintlig | C71: Fritidshem | D71: 0-10År | E71: 5 | F71: Platser | H71: 0-10År_Kvantitet | J71: Fritidshem | K71: 145 | AJ71: =$K71 -> 145 | AK71: 145 | AL71: 145 | AM71: 145 | AN71: 145 | AO71: 145 | AP71: 145 | AQ71: 145 | AR71: 145 | AS71: 145 | AT71: 145 | AU71: 145 | AV71: 145 | AW71: 145 | AX71: 145 | AY71: 145 | AZ71: 145 | BA71: 145 | BB71: 145
B72: Kvantitet Befintlig | C72: Grundskoleplatser | D72: 0-10År | E72: 5 | F72: Platser | H72: 0-10År_Kvantitet | J72: Grundkskolaplatser | K72: 120 | AJ72: 120 | AK72: 120 | AL72: 120 | AM72: 120 | AN72: 120 | AO72: 120 | AP72: 120 | AQ72: 120 | AR72: 120 | AS72: 120 | AT72: 120 | AU72: 120 | AV72: 120 | AW72: 120 | AX72: 120 | AY72: 120 | AZ72: 120 | BA72: 120 | BB72: 120
B73: Kvantitet Befintlig | C73: Grundskoleplatser | D73: 11-20År | E73: 15 | F73: Platser | H73: 11-20År_Kvantitet | J73: Grundkskolaplatser | K73: 120 | AJ73: 120 | AK73: 120 | AL73: 120 | AM73: 120 | AN73: 120 | AO73: 120 | AP73: 120 | AQ73: 120 | AR73: 120 | AS73: 120 | AT73: 120 | AU73: 120 | AV73: 120 | AW73: 120 | AX73: 120 | AY73: 120 | AZ73: 120 | BA73: 120 | BB73: 120
B74: Kvantitet Befintlig | C74: Gymnasieplatser | D74: 11-20År | E74: 15 | F74: Platser | H74: 11-20År_Kvantitet | J74: Gymnasieplatser | K74: 520 | AJ74: 520 | AK74: 520 | AL74: 520 | AM74: 520 | AN74: 520 | AO74: 520 | AP74: 520 | AQ74: 520 | AR74: 520 | AS74: 520 | AT74: 520 | AU74: 520 | AV74: 520 | AW74: 520 | AX74: 520 | AY74: 520 | AZ74: 520 | BA74: 520 | BB74: 520

Sheet FlerUnga
B10: IntäktKostnad | C10: Faktor | D10: Kategori | E10: Subkategori | F10: Valuta | H10: Titel | AH10: Datum | AJ10: 2021-01-01 | AK10: =EDATE(AJ10,12) -> 2022-01-01 | AL10: =EDATE(AK10,12) -> 2023-01-01 | AM10: 2024-01-01 | AN10: 2025-01-01 | AO10: 2026-01-01 | AP10: 2027-01-01 | AQ10: 2028-01-01 | AR10: 2029-01-01 | AS10: 2030-01-01 | AT10: 2031-01-01 | AU10: 2032-01-01 | AV10: 2033-01-01 | AW10: 2034-01-01 | AX10: 2035-01-01 | AY10: 2036-01-01 | AZ10: 2037-01-01 | BA10: 2038-01-01 | BB10: 2039-01-01
B12: Kvantitet
B13: Kvantitet | C13: Innevånare | D13: Nyfödda | E13: 0 | F13: Antal | H13: Nyfödda_Kvantitet | J13: Ingående | L13: Minålder | M13: 0 | N13: maxålder | O13: 0 | P13: Nativitet | Q13: 0 | AJ13: =AJ16*$Q$16+AJ17*$Q$17 -> 4.18625 | AK13: =AK16*$Q$16+AK17*$Q$17 -> 4.11825 | AL13: 4.047779156 | AM13: 3.976316894 | AN13: 3.905072594 | AO13: 3.83501512 | AP13: 3.76690149 | AQ13: 3.701304208 | AR13: 3.638636897 | AS13: 3.57917801 | AT13: 3.523092497 | AU13: 3.470451376 | AV13: 3.421249219 | AW13: 3.375419623 | AX13: 3.33284874 | AY13: 3.293386999 | AZ13: 3.256859147 | BA13: 3.223072745 | BB13: 3.191825273
B14: Kvantitet | C14: Innevånare | D14: 0-10År | E14: 5 | F14: Antal | H14: 0-10År_Kvantitet | J14: Ingående | K14: 25 | L14: Minålder | M14: 0 | N14: maxålder | O14: 10 | P14: Nativitet | AI14: =K14 -> 25 | AJ14: =AJ13+AI14*0.9 -> 26.68625 | AK14: =AK13+AJ14*0.9 -> 28.135875 | AL14: 29.37006666 | AM14: 30.40937688 | AN14: 31.27351179 | AO14: 31.98117573 | AP14: 32.54995965 | AQ14: 32.99626789 | AR14: 33.335278 | AS14: 33.58092821 | AT14: 33.74592789 | AU14: 33.84178647 | AV14: 33.87885705 | AW14: 33.86639096 | AX14: 33.81260061 | AY14: 33.72472755 | AZ14: 33.60911394 | BA14: 33.47127529 | BB14: 33.31597303
B15: Kvantitet | C15: Innevånare | D15: 11-20År | E15: 15 | F15: Antal | H15: 11-20År_Kvantitet | J15: Ingående | K15: 35 | L15: Minålder | M15: 11 | N15: maxålder | O15: 20 | P15: Nativitet | AI15: =K15 -> 35 | AJ15: =AI14*0.1+AI15*0.9 -> 34 | AK15: =AJ14*0.1+AJ15*0.9 -> 33.268625 | AL15: =AK14*0.1+AK15*0.9 -> 32.75535 | AM15: 32.41682167 | AN15: 32.21607719 | AO15: 32.12182065 | AP15: 32.10775616 | AQ15: 32.15197651 | AR15: 32.23640564 | AS15: 32.34629288 | AT15: 32.46975641 | AU15: 32.59737356 | AV15: 32.72181485 | AW15: 32.83751907 | AX15: 32.94040626 | AY15: 33.0276257 | AZ15: 33.09733588 | BA15: 33.14851369 | BB15: =BA14*0.1+BA15*0.9 -> 33.18078985
B16: Kvantitet | C16: Innevånare | D16: 21-30År | E16: 25 | F16: Antal | H16: 21-30År_Kvantitet | J16: Ingående | K16: 50 | L16: Minålder | M16: 21 | N16: maxålder | O16: 30 | P16: Nativitet | Q16: 0.0425 | AI16: 50 | AJ16: 48.5 | AK16: 47.05 | AL16: 45.6718625 | AM16: 44.38021125 | AN16: 43.18387229 | AO16: 42.08709278 | AP16: 41.09056557 | AQ16: 40.19228463 | AR16: 39.38825381 | AS16: 38.673069 | AT16: 38.04039139 | AU16: 37.48332789 | AV16: 36.99473246 | AW16: 36.5674407 | AX16: 36.19444853 | AY16: 35.86904431 | AZ16: 35.58490244 | BA16: 35.33614579 | BB16: 35.11738258
B17: Kvantitet | C17: Innevånare | D17: 31-40År | E17: 35 | F17: Antal | H17: 31-40År_Kvantitet | J17: Ingående | K17: 50 | L17: Minålder | M17: 31 | N17: maxålder | O17: 40 | P17: Nativitet | Q17: 0.0425 | AI17: 50 | AJ17: 50 | AK17: 49.85 | AL17: 49.57 | AM17: 49.18018625 | AN17: 48.70018875 | AO17: 48.1485571 | AP17: 47.54241067 | AQ17: 46.89722616 | AR17: 46.22673201 | AS17: 45.54288419 | AT17: 44.85590267 | AU17: 44.17435154 | AV17: 43.50524918 | AW17: 42.8541975 | AX17: 42.22552182 | AY17: 41.62241449 | AZ17: 41.04707748 | BA17: 40.50085997 | BB17: 39.98438855
B18: Kvantitet | C18: Innevånare | D18: 41-50År | E18: 45 | F18: Antal | H18: 41-50År_Kvantitet | J18: Ingående | K18: 20 | L18: Minålder | M18: 41 | N18: maxålder | O18: 50 | AI18: 20 | AJ18: 23 | AK18: 25.7 | AL18: 28.115 | AM18: 30.2605 | AN18: 32.15246863 | AO18: 33.80724064 | AP18: 35.24137228 | AQ18: 36.47147612 | AR18: 37.51405113 | AS18: 38.38531921 | AT18: 39.10107571 | AU18: 39.67655841 | AV18: 40.12633772 | AW18: 40.46422887 | AX18: 40.70322573 | AY18: 40.85545534 | AZ18: 40.93215126 | BA18: 40.94364388 | BB18: 40.89936549
B19: Kvantitet | C19: Innevånare | D19: 51-60År | E19: 55 | F19: Antal | H19: 51-60År_Kvantitet | J19: Ingående | K19: 10 | L19: Minålder | M19: 51 | N19: maxålder | O19: 60 | P19: Mortalitet | Q19: 0.01219512195 | AI19: 10 | AJ19: =AI18*0.1+AI19*0.9*(1-$Q19) -> 10.8902439 | AK19: =AJ18*0.1+AJ19*0.9*(1-$Q19) -> 11.98169244 | AL19: 13.22201682 | AM19: 14.56619544 | AN19: 15.97575302 | AO19: 17.41808095 | AP19: 18.86582286 | AQ19: 20.29631389 | AR19: 21.69106569 | AS19: 23.03529157 | AT19: 24.31746796 | AU19: 25.5289297 | AV19: 26.663497 | AW19: 27.71713293 | AX19: 28.68763009 | AY19: 29.57432542 | AZ19: 30.37784216 | BA19: =AZ18*0.1+AZ19*0.9*(1-$Q19) -> 31.09985773 | BB19: 31.74289644
B20: Kvantitet | C20: Innevånare | D20: 61-70År | E20: 65 | F20: Antal | H20: 61-70År_Kvantitet | J20: Ingående | K20: 0 | L20: Minålder | M20: 61 | N20: maxålder | O20: 70 | P20: Mortalitet | Q20: 0.02195121951 | AI20: 0 | AJ20: =AI19*0.1+AI20*0.9*(1-$Q20) -> 1 | AK20: 1.969268293 | AL20: 2.931605651 | AM20: 3.902729681 | AN20: 4.891973549 | AO20: 5.903705189 | AP20: 6.93850859 | AQ20: 7.994162164 | AR20: 9.066443889 | AS20: 10.14978852 | AT20: 11.23781861 | AU20: 12.32376811 | AV20: 13.4008147 | AW20: 14.46233513 | AX20: 15.5020956 | AY20: 16.51438814 | AZ20: 17.494122 | BA20: 18.43687844 | BB20: 19.3389356
B21: Kvantitet | C21: Innevånare | D21: 71-80År | E21: 75 | F21: Antal | H21: 71-80År_Kvantitet | J21: Ingående | K21: 0 | L21: Minålder | M21: 71 | N21: maxålder | O21: 80 | P21: Mortalitet | Q21: 0.02195121951 | AI21: 0 | AJ21: 0 | AK21: 0.1 | AL21: 0.2849512195 | AM21: 0.5439871386 | AN21: 0.8691143299 | AO21: 1.254229944 | AP21: 1.69439878 | AQ21: 2.185335053 | AR21: 2.723044072 | AS21: 3.303587329 | AT21: 3.922941454 | AU21: 4.576927156 | AV21: 5.261189032 | AW21: 5.971211035 | AX21: 6.702355616 | AY21: 7.449917224 | AZ21: 8.209183024 | BA21: 8.975495501 | BB21: 9.74431303
B22: Kvantitet | C22: Innevånare | D22: 81-91År | E22: 85 | F22: Antal | H22: 81-91År_Kvantitet | J22: Ingående | K22: 0 | L22: Minålder | M22: 81 | N22: maxålder | O22: 90 | P22: Mortalitet | Q22: 0.02195121951 | AI22: 0 | AJ22: 0 | AK22: 0 | AL22: 0.01 | AM22: 0.03729756098 | AN22: 0.08722966449 | AO22: 0.1636948133 | AP22: 0.2695143557 | AQ22: 0.4066782461 | AR22: 0.5765095517 | AS22: 0.7797734248 | AT22: 1.016749535 | AU22: 1.287281724 | AV22: 1.590814604 | AW22: 1.926423758 | AX22: 2.29284387 | AY22: 2.688497398 | AZ22: 3.111525163 | BA22: 3.559819355 | BB22: 4.031058831
B23: Kvantitet | C23: Innevånare | D23: 91-100År | E23: 95 | F23: Antal | H23: 91-100År_Kvantitet | J23: Ingående | K23: 0 | L23: Minålder | M23: 91 | N23: maxålder | O23: 100 | P23: Mortalitet | Q23: 0.02195121951 | AI23: 0 | AJ23: 0 | AK23: 0 | AL23: 0 | AM23: 0.001 | AN23: 0.00461 | AO23: 0.01278089084 | AP23: 0.02761978255 | AQ23: 0.05126358075 | AR23: 0.08579227898 | AS23: 0.1331690856 | AT23: 0.1951986181 | AU23: 0.2734973469 | AV23: 0.3694725443 | AW23: 0.4843074147 | AX23: 0.6189510245 | AY23: 0.7741122523 | AZ23: 0.9502573296 | BA23: 1.147610736 | BB23: 1.366159289
B25: Skatteintäkter
B26: Intäkt | C26: Skatteintäkt | D26: 0-10År | E26: 5 | F26: SkatteIntäkt | H26: 0-10År_Intäkt | J26: Skatteintäkt | L26: Minålder | M26: 0 | N26: maxålder | O26: 10 | AJ26: =AJ$13*$K26 -> 0 | AK26: 0 | AL26: 0 | AM26: 0 | AN26: 0 | AO26: 0 | AP26: 0 | AQ26: 0 | AR26: 0 | AS26: 0 | AT26: 0 | AU26: 0 | AV26: 0 | AW26: 0 | AX26: 0 | AY26: 0 | AZ26: 0 | BA26: 0 | BB26: 0
B27: Intäkt | C27: Skatteintäkt | D27: 11-20År | E27: 15 | F27: SkatteIntäkt | H27: 11-20År_Intäkt | J27: Skatteintäkt | L27: Minålder | M27: 11 | N27: maxålder | O27: 20 | AJ27: =AJ$14*$K27 -> 0 | AK27: 0 | AL27: 0 | AM27: 0 | AN27: 0 | AO27: 0 | AP27: 0 | AQ27: 0 | AR27: 0 | AS27: 0 | AT27: 0 | AU27: 0 | AV27: 0 | AW27: 0 | AX27: 0 | AY27: 0 | AZ27: 0 | BA27: 0 | BB27: 0
B28: Intäkt | C28: Skatteintäkt | D28: 21-30År | E28: 25 | F28: SkatteIntäkt | H28: 21-30År_Intäkt | J28: Skatteintäkt | K28: 60745.176 | L28: Minålder | M28: 21 | N28: maxålder | O28: 30 | AJ28: =AJ$15*$K28 -> 2065335.984 | AK28: 2020908.481 | AL28: 1989729.501 | AM28: 1969165.537 | AN28: 1956971.279 | AO28: 1951245.649 | AP28: 1950391.299 | AQ28: 1953077.472 | AR28: 1958206.134 | AS28: 1964881.254 | AT28: 1972381.068 | AU28: 1980133.194 | AV28: 1987692.402 | AW28: 1994720.875 | AX28: 2000970.776 | AY28: 2006268.936 | AZ28: 2010503.493 | BA28: 2013612.298 | BB28: 2015572.919
B29: Intäkt | C29: Skatteintäkt | D29: 31-40År | E29: 35 | F29: SkatteIntäkt | H29: 31-40År_Intäkt | J29: Skatteintäkt | K29: 72092.016 | L29: Minålder | M29: 31 | N29: maxålder | O29: 40 | AJ29: =AJ$16*$K29 -> 3496462.776 | AK29: 3391929.353 | AL29: 3292576.642 | AM29: 3199458.9 | AN29: 3113212.412 | AO29: 3034143.366 | AP29: 2962301.71 | AQ29: 2897542.826 | AR29: 2839578.624 | AS29: 2788019.509 | AT29: 2742408.504 | AU29: 2702248.674 | AV29: 2667024.844 | AW29: 2636220.52 | AX29: 2609330.763 | AY29: 2585871.716 | AZ29: 2565387.356 | BA29: 2547453.988 | BB29: 2531682.907
B30: Intäkt | C30: Skatteintäkt | D30: 41-50År | E30: 45 | F30: SkatteIntäkt | H30: 41-50År_Intäkt | J30: Skatteintäkt | K30: 78372.36 | L30: Minålder | M30: 41 | N30: maxålder | O30: 50 | AJ30: =AJ$17*$K30 -> 3918618 | AK30: 3906862.146 | AL30: 3884917.885 | AM30: 3854367.262 | AN30: 3816748.725 | AO30: 3773516.051 | AP30: 3726010.924 | AQ30: 3675446.292 | AR30: 3622898.083 | AS30: 3569303.315 | AT30: 3515462.952 | AU30: 3462048.182 | AV30: 3409609.05 | AW30: 3358584.594 | AX30: 3309313.797 | AY30: 3262046.853 | AZ30: 3216956.333 | BA30: 3174147.978 | BB30: 3133670.894
B31: Intäkt | C31: Skatteintäkt | D31: 51-60År | E31: 55 | F31: SkatteIntäkt | H31: 51-60År_Intäkt | J31: Skatteintäkt | K31: 77765.436 | L31: Minålder | M31: 51 | N31: maxålder | O31: 60 | AJ31: =AJ$18*$K31 -> 1788605.028 | AK31: 1998571.705 | AL31: 2186375.233 | AM31: 2353220.976 | AN31: 2500350.741 | AO31: 2629034.808 | AP31: 2740560.681 | AQ31: 2836220.242 | AR31: 2917296.542 | AS31: 2985051.085 | AT31: 3040712.201 | AU31: 3085464.864 | AV31: 3120442.148 | AW31: 3146718.4 | AX31: 3165304.096 | AY31: 3177142.297 | AZ31: 3183106.589 | BA31: 3184000.318 | BB31: 3180556.989
B32: Intäkt | C32: Skatteintäkt | D32: 61-70År | E32: 65 | F32: SkatteIntäkt | H32: 61-70År_Intäkt | J32: Skatteintäkt | K32: 34093.296 | L32: Minålder | M32: 61 | N32: maxålder | O32: 70 | AJ32: =AJ$19*$K32 -> 371284.3089 | AK32: 408495.3871 | AL32: 450782.1332 | AM32: 496609.6128 | AN32: 544666.0765 | AO32: 593839.7896 | AP32: 643198.083 | AQ32: 691968.2372 | AR32: 739519.9233 | AS32: 785349.0138 | AT32: 829062.6331 | AU32: 870365.3567 | AV32: 909046.4955 | AW32: 944968.4173 | AX32: 978055.8642 | AY32: 1008286.231 | AZ32: 1035680.765 | BA32: 1060296.655 | BB32: 1082219.964
B33: Intäkt | C33: Skatteintäkt | D33: 71-80År | E33: 75 | F33: SkatteIntäkt | H33: 71-80År_Intäkt | J33: Skatteintäkt | K33: 0 | L33: Minålder | M33: 71 | N33: maxålder | O33: 80 | AJ33: =AJ$20*$K33 -> 0 | AK33: 0 | AL33: 0 | AM33: 0 | AN33: 0 | AO33: 0 | AP33: 0 | AQ33: 0 | AR33: 0 | AS33: 0 | AT33: 0 | AU33: 0 | AV33: 0 | AW33: 0 | AX33: 0 | AY33: 0 | AZ33: 0 | BA33: 0 | BB33: 0
B34: Intäkt | C34: Skatteintäkt | D34: 81-91År | E34: 85 | F34: SkatteIntäkt | H34: 81-91År_Intäkt | J34: Skatteintäkt | K34: 0 | L34: Minålder | M34: 81 | N34: maxålder | O34: 90 | AJ34: =AJ$21*$K34 -> 0 | AK34: 0 | AL34: 0 | AM34: 0 | AN34: 0 | AO34: 0 | AP34: 0 | AQ34: 0 | AR34: 0 | AS34: 0 | AT34: 0 | AU34: 0 | AV34: 0 | AW34: 0 | AX34: 0 | AY34: 0 | AZ34: 0 | BA34: 0 | BB34: 0
B35: Intäkt | C35: Skatteintäkt | D35: 91-100År | E35: 95 | F35: SkatteIntäkt | H35: 91-100År_Intäkt | J35: Skatteintäkt | K35: 0 | L35: Minålder | M35: 91 | N35: maxålder | O35: 100 | AJ35: =AJ$22*$K35 -> 0 | AK35: 0 | AL35: 0 | AM35: 0 | AN35: 0 | AO35: 0 | AP35: 0 | AQ35: 0 | AR35: 0 | AS35: 0 | AT35: 0 | AU35: 0 | AV35: 0 | AW35: 0 | AX35: 0 | AY35: 0 | AZ35: 0 | BA35: 0 | BB35: 0
B37: Skatteutjämning
B38: Intäkt | C38: Skatteintäkt | D38: 0-10År | E38: 5 | F38: Utjämningseffekt | H38: 0-10År_Intäkt | J38: Utjämningseffekt | K38: 10000 | L38: Minålder | M38: 0 | N38: maxålder | O38: 10 | AJ38: =AJ$13*$K38 -> 41862.5 | AK38: 41182.5 | AL38: 40477.79156 | AM38: 39763.16894 | AN38: 39050.72594 | AO38: 38350.1512 | AP38: 37669.0149 | AQ38: 37013.04208 | AR38: 36386.36897 | AS38: 35791.7801 | AT38: 35230.92497 | AU38: 34704.51376 | AV38: 34212.49219 | AW38: 33754.19623 | AX38: 33328.4874 | AY38: 32933.86999 | AZ38: 32568.59147 | BA38: 32230.72745 | BB38: 31918.25273
B39: Intäkt | C39: Skatteintäkt | D39: 11-20År | E39: 15 | F39: Utjämningseffekt | H39: 11-20År_Intäkt | J39: Utjämningseffekt | K39: 10000 | L39: Minålder | M39: 11 | N39: maxålder | O39: 20 | AJ39: =AJ$14*$K39 -> 266862.5 | AK39: 281358.75 | AL39: 293700.6666 | AM39: 304093.7688 | AN39: 312735.1179 | AO39: 319811.7573 | AP39: 325499.5965 | AQ39: 329962.6789 | AR39: 333352.78 | AS39: 335809.2821 | AT39: 337459.2789 | AU39: 338417.8647 | AV39: 338788.5705 | AW39: 338663.9096 | AX39: 338126.0061 | AY39: 337247.2755 | AZ39: 336091.1394 | BA39: 334712.7529 | BB39: 333159.7303
B40: Intäkt | C40: Skatteintäkt | D40: 21-30År | E40: 25 | F40: Utjämningseffekt | H40: 21-30År_Intäkt | J40: Utjämningseffekt | K40: 0 | L40: Minålder | M40: 21 | N40: maxålder | O40: 30 | AJ40: =AJ$15*$K40 -> 0 | AK40: 0 | AL40: 0 | AM40: 0 | AN40: 0 | AO40: 0 | AP40: 0 | AQ40: 0 | AR40: 0 | AS40: 0 | AT40: 0 | AU40: 0 | AV40: 0 | AW40: 0 | AX40: 0 | AY40: 0 | AZ40: 0 | BA40: 0 | BB40: 0
B41: Kostnad | C41: Skatteintäkt | D41: 31-40År | E41: 35 | F41: Utjämningseffekt | H41: 31-40År_Kostnad | J41: Utjämningseffekt | K41: 10000 | L41: Minålder | M41: 31 | N41: maxålder | O41: 40 | AJ41: =AJ$16*$K41 -> 485000 | AK41: 470500 | AL41: 456718.625 | AM41: 443802.1125 | AN41: 431838.7229 | AO41: 420870.9278 | AP41: 410905.6557 | AQ41: 401922.8463 | AR41: 393882.5381 | AS41: 386730.69 | AT41: 380403.9139 | AU41: 374833.2789 | AV41: 369947.3246 | AW41: 365674.407 | AX41: 361944.4853 | AY41: 358690.4431 | AZ41: 355849.0244 | BA41: 353361.4579 | BB41: 351173.8258
B42: Kostnad | C42: Skatteintäkt | D42: 41-50År | E42: 45 | F42: Utjämningseffekt | H42: 41-50År_Kostnad | J42: Utjämningseffekt | K42: 15000 | L42: Minålder | M42: 41 | N42: maxålder | O42: 50 | AJ42: =AJ$17*$K42 -> 750000 | AK42: 747750 | AL42: 743550 | AM42: 737702.7937 | AN42: 730502.8312 | AO42: 722228.3566 | AP42: 713136.1601 | AQ42: 703458.3924 | AR42: 693400.9801 | AS42: 683143.2628 | AT42: 672838.54 | AU42: 662615.2731 | AV42: 652578.7376 | AW42: 642812.9626 | AX42: 633382.8273 | AY42: 624336.2174 | AZ42: 615706.1621 | BA42: 607512.8996 | BB42: 599765.8283
B43: Kostnad | C43: Skatteintäkt | D43: 51-60År | E43: 55 | F43: Utjämningseffekt | H43: 51-60År_Kostnad | J43: Utjämningseffekt | K43: 15000 | L43: Minålder | M43: 51 | N43: maxålder | O43: 60 | AJ43: =AJ$18*$K43 -> 345000 | AK43: 385500 | AL43: 421725 | AM43: 453907.5 | AN43: 482287.0294 | AO43: 507108.6096 | AP43: 528620.5843 | AQ43: 547072.1418 | AR43: 562710.7669 | AS43: 575779.7882 | AT43: 586516.1357 | AU43: 595148.3761 | AV43: 601895.0658 | AW43: 606963.433 | AX43: 610548.386 | AY43: 612831.8301 | AZ43: 613982.2688 | BA43: 614154.6582 | BB43: 613490.4823
B44: Intäkt | C44: Skatteintäkt | D44: 61-70År | E44: 65 | F44: Utjämningseffekt | H44: 61-70År_Intäkt | J44: Utjämningseffekt | K44: 0 | L44: Minålder | M44: 61 | N44: maxålder | O44: 70 | AJ44: =AJ$19*$K44 -> 0 | AK44: 0 | AL44: 0 | AM44: 0 | AN44: 0 | AO44: 0 | AP44: 0 | AQ44: 0 | AR44: 0 | AS44: 0 | AT44: 0 | AU44: 0 | AV44: 0 | AW44: 0 | AX44: 0 | AY44: 0 | AZ44: 0 | BA44: 0 | BB44: 0
B45: Intäkt | C45: Skatteintäkt | D45: 71-80År | E45: 75 | F45: Utjämningseffekt | H45: 71-80År_Intäkt | J45: Utjämningseffekt | K45: 0 | L45: Minålder | M45: 71 | N45: maxålder | O45: 80 | AJ45: =AJ$20*$K45 -> 0 | AK45: 0 | AL45: 0 | AM45: 0 | AN45: 0 | AO45: 0 | AP45: 0 | AQ45: 0 | AR45: 0 | AS45: 0 | AT45: 0 | AU45: 0 | AV45: 0 | AW45: 0 | AX45: 0 | AY45: 0 | AZ45: 0 | BA45: 0 | BB45: 0
B46: Intäkt | C46: Skatteintäkt | D46: 81-91År | E46: 85 | F46: Utjämningseffekt | H46: 81-91År_Intäkt | J46: Utjämningseffekt | K46: 0 | L46: Minålder | M46: 81 | N46: maxålder | O46: 90 | AJ46: =AJ$21*$K46 -> 0 | AK46: 0 | AL46: 0 | AM46: 0 | AN46: 0 | AO46: 0 | AP46: 0 | AQ46: 0 | AR46: 0 | AS46: 0 | AT46: 0 | AU46: 0 | AV46: 0 | AW46: 0 | AX46: 0 | AY46: 0 | AZ46: 0 | BA46: 0 | BB46: 0
B47: Intäkt | C47: Skatteintäkt | D47: 91-100År | E47: 95 | F47: Utjämningseffekt | H47: 91-100År_Intäkt | J47: Utjämningseffekt | K47: 0 | L47: Minålder | M47: 91 | N47: maxålder | O47: 100 | AJ47: =AJ$22*$K47 -> 0 | AK47: 0 | AL47: 0 | AM47: 0 | AN47: 0 | AO47: 0 | AP47: 0 | AQ47: 0 | AR47: 0 | AS47: 0 | AT47: 0 | AU47: 0 | AV47: 0 | AW47: 0 | AX47: 0 | AY47: 0 | AZ47: 0 | BA47: 0 | BB47: 0
B49: Skolplatser som behövs
B50: Kvantitet | C50: Förskoleplatser | D50: 0-10År | E50: 5 | F50: Platser | H50: 0-10År_Kvantitet | J50: Förskoleplatser | K50: 0.5 | L50: Minålder | M50: 0 | N50: maxålder | O50: 10 | AJ50: =AJ$13*$K50 -> 2.093125 | AK50: =AK$13*$K50 -> 2.059125 | AL50: =AL$13*$K50 -> 2.023889578 | AM50: 1.988158447 | AN50: 1.952536297 | AO50: 1.91750756 | AP50: 1.883450745 | AQ50: 1.850652104 | AR50: 1.819318449 | AS50: 1.789589005 | AT50: 1.761546249 | AU50: 1.735225688 | AV50: 1.71062461 | AW50: 1.687709812 | AX50: 1.66642437 | AY50: 1.646693499 | AZ50: 1.628429573 | BA50: 1.611536372 | BB50: =BB$13*$K50 -> 1.595912637
B51: Kvantitet | C51: Fritidshem | D51: 0-10År | E51: 5 | F51: Platser | H51: 0-10År_Kvantitet | J51: Fritidshem | K51: 0.3 | L51: Minålder | M51: 0 | N51: maxålder | O51: 10 | AJ51: 1.255875 | AK51: 1.235475 | AL51: 1.214333747 | AM51: 1.192895068 | AN51: 1.171521778 | AO51: 1.150504536 | AP51: 1.130070447 | AQ51: 1.110391263 | AR51: 1.091591069 | AS51: 1.073753403 | AT51: 1.056927749 | AU51: 1.041135413 | AV51: 1.026374766 | AW51: 1.012625887 | AX51: 0.999854622 | AY51: 0.9880160997 | AZ51: 0.977057744 | BA51: 0.9669218234 | BB51: 0.9575475819
B52: Kvantitet | C52: Grundskoleplatser | D52: 0-10År | E52: 5 | F52: Platser | H52: 0-10År_Kvantitet | J52: Grundkskolaplatser | K52: 0.3 | L52: Minålder | M52: 0 | N52: maxålder | O52: 10 | AJ52: =AJ$13*$K52 -> 1.255875 | AK52: 1.235475 | AL52: 1.214333747 | AM52: 1.192895068 | AN52: 1.171521778 | AO52: 1.150504536 | AP52: 1.130070447 | AQ52: 1.110391263 | AR52: 1.091591069 | AS52: 1.073753403 | AT52: 1.056927749 | AU52: 1.041135413 | AV52: 1.026374766 | AW52: 1.012625887 | AX52: 0.999854622 | AY52: 0.9880160997 | AZ52: 0.977057744 | BA52: 0.9669218234 | BB52: 0.9575475819
B53: Kvantitet | C53: Grundskoleplatser | D53: 11-20År | E53: 15 | F53: Platser | H53: 11-20År_Kvantitet | J53: Grundkskolaplatser | K53: 0.5 | L53: Minålder | M53: 11 | N53: maxålder | O53: 20 | AJ53: =AJ$14*$K53 -> 13.343125 | AK53: =AK$14*$K53 -> 14.0679375 | AL53: 14.68503333 | AM53: 15.20468844 | AN53: 15.6367559 | AO53: 15.99058787 | AP53: 16.27497982 | AQ53: 16.49813395 | AR53: 16.667639 | AS53: 16.79046411 | AT53: 16.87296394 | AU53: 16.92089324 | AV53: 16.93942852 | AW53: 16.93319548 | AX53: 16.9063003 | AY53: 16.86236377 | AZ53: 16.80455697 | BA53: 16.73563764 | BB53: 16.65798652
B54: Kvantitet | C54: Gymnasieplatser | D54: 11-20År | E54: 15 | F54: Platser | H54: 11-20År_Kvantitet | J54: Gymnasieplatser | K54: 0.3 | L54: Minålder | M54: 11 | N54: maxålder | O54: 20 | AJ54: =AJ$14*$K54 -> 8.005875 | AK54: 8.4407625 | AL54: 8.811019997 | AM54: 9.122813065 | AN54: 9.382053537 | AO54: 9.594352719 | AP54: 9.764987895 | AQ54: 9.898880368 | AR54: 10.0005834 | AS54: 10.07427846 | AT54: 10.12377837 | AU54: 10.15253594 | AV54: 10.16365711 | AW54: 10.15991729 | AX54: 10.14378018 | AY54: 10.11741826 | AZ54: 10.08273418 | BA54: 10.04138259 | BB54: 9.99479191
B55: Kostnad | C55: Förskoleplatser | D55: 0-10År | E55: 55 | F55: UtbildningsUtgift | H55: 0-10År_Kostnad | J55: Dagisplatser | K55: 108000 | L55: Minålder | M55: 21 | N55: maxålder | O55: 10 | AJ55: =AJ50*$K55 -> 226057.5 | AK55: 222385.5 | AL55: 218580.0744 | AM55: 214721.1123 | AN55: 210873.9201 | AO55: 207090.8165 | AP55: 203412.6805 | AQ55: 199870.4273 | AR55: 196486.3925 | AS55: 193275.6126 | AT55: 190246.9949 | AU55: 187404.3743 | AV55: 184747.4578 | AW55: 182272.6597 | AX55: 179973.832 | AY55: 177842.8979 | AZ55: 175870.3939 | BA55: 174045.9282 | BB55: 172358.5647
B56: Kostnad | C56: Förskoleplatser | D56: 0-10År | E56: 65 | F56: UtbildningsUtgift | H56: 0-10År_Kostnad | J56: Förskoleplatser | K56: 132000 | L56: Minålder | M56: 31 | N56: maxålder | O56: 10 | AJ56: 165775.5 | AK56: 163082.7 | AL56: 160292.0546 | AM56: 157462.149 | AN56: 154640.8747 | AO56: 151866.5988 | AP56: 149169.299 | AQ56: 146571.6467 | AR56: 144090.0211 | AS56: 141735.4492 | AT56: 139514.4629 | AU56: 137429.8745 | AV56: 135481.4691 | AW56: 133666.6171 | AX56: 131980.8101 | AY56: 130418.1252 | AZ56: 128971.6222 | BA56: 127633.6807 | BB56: 126396.2808
B57: Kostnad | C57: Grundskoleplatser | D57: 0-10År | E57: 75 | F57: UtbildningsUtgift | H57: 0-10År_Kostnad | J57: Grundkskolaplatser | K57: 156000 | L57: Minålder | M57: 41 | N57: maxålder | O57: 10 | AJ57: 195916.5 | AK57: 192734.1 | AL57: 189436.0645 | AM57: 186091.6306 | AN57: 182757.3974 | AO57: 179478.7076 | AP57: 176290.9897 | AQ57: 173221.037 | AR57: 170288.2068 | AS57: 167505.5309 | AT57: 164880.7289 | AU57: 162417.1244 | AV57: 160114.4635 | AW57: 157969.6384 | AX57: 155977.321 | AY57: 154130.5116 | AZ57: 152421.0081 | BA57: 150839.8045 | BB57: 149377.4228
B58: Kostnad | C58: Grundskoleplatser | D58: 11-20År | E58: 85 | F58: UtbildningsUtgift | H58: 11-20År_Kostnad | J58: Grundkskolaplatser | K58: 156000 | L58: Minålder | M58: 51 | N58: maxålder | O58: 20 | AJ58: 2081527.5 | AK58: 2194598.25 | AL58: 2290865.199 | AM58: 2371931.397 | AN58: 2439333.92 | AO58: 2494531.707 | AP58: 2538896.853 | AQ58: 2573708.896 | AR58: 2600151.684 | AS58: 2619312.4 | AT58: 2632182.375 | AU58: 2639659.345 | AV58: 2642550.85 | AW58: 2641578.495 | AX58: 2637382.847 | AY58: 2630528.749 | AZ58: 2621510.887 | BA58: 2610759.473 | BB58: 2598645.897
B59: Kostnad | C59: Gymnasieplatser | D59: 11-20År | E59: 95 | F59: UtbildningsUtgift | H59: 11-20År_Kostnad | J59: Gymnasieplatser | K59: 152000 | L59: Minålder | M59: 61 | N59: maxålder | O59: 20 | AJ59: 1216893 | AK59: 1282995.9 | AL59: 1339275.04 | AM59: 1386667.586 | AN59: 1426072.138 | AO59: 1458341.613 | AP59: 1484278.16 | AQ59: 1504629.816 | AR59: 1520088.677 | AS59: 1531290.326 | AT59: 1538814.312 | AU59: 1543185.463 | AV59: 1544875.881 | AW59: 1544307.428 | AX59: 1541854.588 | AY59: 1537847.576 | AZ59: 1532575.596 | BA59: 1526290.153 | BB59: 1519208.37
B61: Kapacitet
B62: Kapacitet | C62: Förskoleplatser | D62: Kapacitet | E62: Personal | F62: Personal | H62: Kapacitet_Kapacitet | J62: Kapacitet | K62: 150 | AJ62: =$K62 -> 150 | AK62: =$K62 -> 150 | AL62: 150 | AM62: 150 | AN62: 150 | AO62: 150 | AP62: 150 | AQ62: 150 | AR62: 150 | AS62: 150 | AT62: 150 | AU62: 150 | AV62: 150 | AW62: 150 | AX62: 150 | AY62: 150 | AZ62: 150 | BA62: =$K62 -> 150 | BB62: 150
B63: Kapacitet | C63: Förskoleplatser | D63: Kapacitet | E63: Lokal | F63: Lokal | H63: Kapacitet_Kapacitet | J63: Kapacitet | K63: 160 | AJ63: =$K63 -> 160 | AK63: 160 | AL63: 160 | AM63: 160 | AN63: 160 | AO63: 160 | AP63: 160 | AQ63: 160 | AR63: 160 | AS63: 160 | AT63: 160 | AU63: 160 | AV63: 160 | AW63: 160 | AX63: 160 | AY63: 160 | AZ63: 160 | BA63: 160 | BB63: 160
B64: Kapacitet | C64: Grundskoleplatser | D64: Kapacitet | E64: Personal | F64: Personal | H64: Kapacitet_Kapacitet | J64: Kapacitet | K64: 250 | AJ64: 250 | AK64: 250 | AL64: 250 | AM64: 250 | AN64: 250 | AO64: 250 | AP64: 250 | AQ64: 250 | AR64: 250 | AS64: 250 | AT64: 250 | AU64: 250 | AV64: 250 | AW64: 250 | AX64: 250 | AY64: 250 | AZ64: 250 | BA64: 250 | BB64: 250
B65: Kapacitet | C65: Grundskoleplatser | D65: Kapacitet | E65: Lokal | F65: Lokal | H65: Kapacitet_Kapacitet | J65: Kapacitet | K65: 260 | AJ65: 260 | AK65: 260 | AL65: 260 | AM65: 260 | AN65: 260 | AO65: 260 | AP65: 260 | AQ65: 260 | AR65: 260 | AS65: 260 | AT65: 260 | AU65: 260 | AV65: 260 | AW65: 260 | AX65: 260 | AY65: 260 | AZ65: 260 | BA65: 260 | BB65: 260
B66: Kapacitet | C66: Gymnasieplatser | D66: Kapacitet | E66: Personal | F66: Personal | H66: Kapacitet_Kapacitet | J66: Kapacitet | K66: 550 | AJ66: 550 | AK66: 550 | AL66: 550 | AM66: 550 | AN66: 550 | AO66: 550 | AP66: 550 | AQ66: 550 | AR66: 550 | AS66: 550 | AT66: 550 | AU66: 550 | AV66: 550 | AW66: 550 | AX66: 550 | AY66: 550 | AZ66: 550 | BA66: 550 | BB66: 550
B67: Kapacitet | C67: Gymnasieplatser | D67: Kapacitet | E67: Lokal | F67: Lokal | H67: Kapacitet_Kapacitet | J67: Kapacitet | K67: 560 | AJ67: 560 | AK67: 560 | AL67: 560 | AM67: 560 | AN67: 560 | AO67: 560 | AP67: 560 | AQ67: 560 | AR67: 560 | AS67: 560 | AT67: 560 | AU67: 560 | AV67: 560 | AW67: 560 | AX67: 560 | AY67: 560 | AZ67: 560 | BA67: 560 | BB67: 560
B69: Nuvarande skolplatser
B70: Kvantitet Befintlig | C70: Förskoleplatser | D70: 0-10År | E70: 5 | F70: Platser | H70: 0-10År_Kvantitet | J70: Förskoleplatser | K70: 155 | AJ70: =$K70 -> 155 | AK70: =$K70 -> 155 | AL70: 155 | AM70: 155 | AN70: 155 | AO70: 155 | AP70: 155 | AQ70: 155 | AR70: 155 | AS70: 155 | AT70: 155 | AU70: 155 | AV70: 155 | AW70: 155 | AX70: 155 | AY70: 155 | AZ70: 155 | BA70: =$K70 -> 155 | BB70: 155
B71: Kvantitet Befintlig | C71: Fritidshem | D71: 0-10År | E71: 5 | F71: Platser | H71: 0-10År_Kvantitet | J71: Fritidshem | K71: 145 | AJ71: =$K71 -> 145 | AK71: 145 | AL71: 145 | AM71: 145 | AN71: 145 | AO71: 145 | AP71: 145 | AQ71: 145 | AR71: 145 | AS71: 145 | AT71: 145 | AU71: 145 | AV71: 145 | AW71: 145 | AX71: 145 | AY71: 145 | AZ71: 145 | BA71: 145 | BB71: 145
B72: Kvantitet Befintlig | C72: Grundskoleplatser | D72: 0-10År | E72: 5 | F72: Platser | H72: 0-10År_Kvantitet | J72: Grundkskolaplatser | K72: 120 | AJ72: 120 | AK72: 120 | AL72: 120 | AM72: 120 | AN72: 120 | AO72: 120 | AP72: 120 | AQ72: 120 | AR72: 120 | AS72: 120 | AT72: 120 | AU72: 120 | AV72: 120 | AW72: 120 | AX72: 120 | AY72: 120 | AZ72: 120 | BA72: 120 | BB72: 120
B73: Kvantitet Befintlig | C73: Grundskoleplatser | D73: 11-20År | E73: 15 | F73: Platser | H73: 11-20År_Kvantitet | J73: Grundkskolaplatser | K73: 120 | AJ73: 120 | AK73: 120 | AL73: 120 | AM73: 120 | AN73: 120 | AO73: 120 | AP73: 120 | AQ73: 120 | AR73: 120 | AS73: 120 | AT73: 120 | AU73: 120 | AV73: 120 | AW73: 120 | AX73: 120 | AY73: 120 | AZ73: 120 | BA73: 120 | BB73: 120
B74: Kvantitet Befintlig | C74: Gymnasieplatser | D74: 11-20År | E74: 15 | F74: Platser | H74: 11-20År_Kvantitet | J74: Gymnasieplatser | K74: 520 | AJ74: 520 | AK74: 520 | AL74: 520 | AM74: 520 | AN74: 520 | AO74: 520 | AP74: 520 | AQ74: 520 | AR74: 520 | AS74: 520 | AT74: 520 | AU74: 520 | AV74: 520 | AW74: 520 | AX74: 520 | AY74: 520 | AZ74: 520 | BA74: 520 | BB74: 520

Sheet FlerÄldre
B10: IntäktKostnad | C10: Faktor | D10: Kategori | E10: Subkategori | F10: Valuta | H10: Titel | AH10: Datum | AJ10: 2021-01-01 | AK10: =EDATE(AJ10,12) -> 2022-01-01 | AL10: =EDATE(AK10,12) -> 2023-01-01 | AM10: 2024-01-01 | AN10: 2025-01-01 | AO10: 2026-01-01 | AP10: 2027-01-01 | AQ10: 2028-01-01 | AR10: 2029-01-01 | AS10: 2030-01-01 | AT10: 2031-01-01 | AU10: 2032-01-01 | AV10: 2033-01-01 | AW10: 2034-01-01 | AX10: 2035-01-01 | AY10: 2036-01-01 | AZ10: 2037-01-01 | BA10: 2038-01-01 | BB10: 2039-01-01
B12: Kvantitet
B13: Kvantitet | C13: Innevånare | D13: Nyfödda | E13: 0 | F13: Antal | H13: Nyfödda_Kvantitet | J13: Ingående | L13: Minålder | M13: 0 | N13: maxålder | O13: 0 | P13: Nativitet | Q13: 0 | AJ13: =AJ16*$Q$16+AJ17*$Q$17 -> 3.76125 | AK13: =AK16*$Q$16+AK17*$Q$17 -> 3.6975 | AL13: 3.634073531 | AM13: 3.571329825 | AN13: 3.509631214 | AO13: 3.44932032 | AP13: 3.390704915 | AQ13: 3.334048752 | AR13: 3.279566911 | AS13: 3.227424548 | AT13: 3.17773809 | AU13: 3.13057815 | AV13: 3.085973568 | AW13: 3.043916126 | AX13: 3.004365579 | AY13: 2.967254747 | AZ13: 2.932494462 | BA13: 2.899978252 | BB13: 2.86958665
B14: Kvantitet | C14: Innevånare | D14: 0-10År | E14: 5 | F14: Antal | H14: 0-10År_Kvantitet | J14: Ingående | K14: 15 | L14: Minålder | M14: 0 | N14: maxålder | O14: 10 | P14: Nativitet | AI14: =K14 -> 15 | AJ14: =AJ13+AI14*0.9 -> 17.26125 | AK14: =AK13+AJ14*0.9 -> 19.232625 | AL14: 20.94343603 | AM14: 22.42042225 | AN14: 23.68801124 | AO14: 24.76853044 | AP14: 25.68238231 | AQ14: 26.44819283 | AR14: 27.08294046 | AS14: 27.60207096 | AT14: 28.01960196 | AU14: 28.34821991 | AV14: 28.59937149 | AW14: 28.78335046 | AX14: 28.909381 | AY14: 28.98569764 | AZ14: 29.01962234 | BA14: 29.01763836 | BB14: 28.98546117
B15: Kvantitet | C15: Innevånare | D15: 11-20År | E15: 15 | F15: Antal | H15: 11-20År_Kvantitet | J15: Ingående | K15: 45 | L15: Minålder | M15: 11 | N15: maxålder | O15: 20 | P15: Nativitet | AI15: =K15 -> 45 | AJ15: =AI14*0.1+AI15*0.9 -> 42 | AK15: =AJ14*0.1+AJ15*0.9 -> 39.526125 | AL15: =AK14*0.1+AK15*0.9 -> 37.496775 | AM15: 35.8414411 | AN15: 34.49933922 | AO15: 33.41820642 | AP15: 32.55323882 | AQ15: 31.86615317 | AR15: 31.32435714 | AS15: 30.90021547 | AT15: 30.57040102 | AU15: 30.31532111 | AV15: 30.11861099 | AW15: 29.96668704 | AX15: 29.84835338 | AY15: 29.75445614 | AZ15: 29.67758029 | BA15: 29.6117845 | BB15: =BA14*0.1+BA15*0.9 -> 29.55236989
B16: Kvantitet | C16: Innevånare | D16: 21-30År | E16: 25 | F16: Antal | H16: 21-30År_Kvantitet | J16: Ingående | K16: 30 | L16: Minålder | M16: 21 | N16: maxålder | O16: 30 | P16: Nativitet | Q16: 0.0425 | AI16: 30 | AJ16: 31.5 | AK16: 32.55 | AL16: 33.2476125 | AM16: 33.67252875 | AN16: 33.88941999 | AO16: 33.95041191 | AP16: 33.89719136 | AQ16: 33.76279611 | AR16: 33.57313181 | AS16: 33.34825434 | AT16: 33.10345046 | AU16: 32.85014551 | AV16: 32.59666307 | AW16: 32.34885787 | AX16: 32.11064078 | AY16: 31.88441204 | AZ16: 31.67141645 | BA16: 31.47203284 | BB16: 31.286008
B17: Kvantitet | C17: Innevånare | D17: 31-40År | E17: 35 | F17: Antal | H17: 31-40År_Kvantitet | J17: Ingående | K17: 60 | L17: Minålder | M17: 31 | N17: maxålder | O17: 40 | P17: Nativitet | Q17: 0.0425 | AI17: 60 | AJ17: 57 | AK17: 54.45 | AL17: 52.26 | AM17: 50.35876125 | AN17: 48.690138 | AO17: 47.2100662 | AP17: 45.88410077 | AQ17: 44.68540983 | AR17: 43.59314846 | AS17: 42.59114679 | AT17: 41.66685755 | AU17: 40.81051684 | AV17: 40.01447971 | AW17: 39.27269804 | AX17: 38.58031402 | AY17: 37.9333467 | AZ17: 37.32845323 | BA17: 36.76274956 | BB17: 36.23367788
B18: Kvantitet | C18: Innevånare | D18: 41-50År | E18: 45 | F18: Antal | H18: 41-50År_Kvantitet | J18: Ingående | K18: 30 | L18: Minålder | M18: 41 | N18: maxålder | O18: 50 | AI18: 30 | AJ18: 33 | AK18: 35.4 | AL18: 37.305 | AM18: 38.8005 | AN18: 39.95632613 | AO18: 40.82970731 | AP18: 41.4677432 | AQ18: 41.90937896 | AR18: 42.18698205 | AS18: 42.32759869 | AT18: 42.3539535 | AU18: 42.2852439 | AV18: 42.1377712 | AW18: 41.92544205 | AX18: 41.66016765 | AY18: 41.35218228 | AZ18: 41.01029873 | BA18: 40.64211418 | BB18: 40.25417771
B19: Kvantitet | C19: Innevånare | D19: 51-60År | E19: 55 | F19: Antal | H19: 51-60År_Kvantitet | J19: Ingående | K19: 10 | L19: Minålder | M19: 51 | N19: maxålder | O19: 60 | P19: Mortalitet | Q19: 0.01219512195 | AI19: 10 | AJ19: =AI18*0.1+AI19*0.9*(1-$Q19) -> 11.8902439 | AK19: =AJ18*0.1+AJ19*0.9*(1-$Q19) -> 13.87071684 | AL19: 15.87140558 | AM19: 17.84056667 | AN19: 19.7407489 | AO19: 21.54563987 | AP19: 23.23757008 | AQ19: 24.80554089 | AR19: 26.24366876 | AS19: 27.54995982 | AT19: 28.7253461 | AU19: 29.77292865 | AV19: 30.69738413 | AW19: 31.50450033 | AX19: 32.2008134 | AY19: 32.79332526 | AZ19: 33.28928422 | BA19: =AZ18*0.1+AZ19*0.9*(1-$Q19) -> 33.69601548 | BB19: 34.02079103
B20: Kvantitet | C20: Innevånare | D20: 61-70År | E20: 65 | F20: Antal | H20: 61-70År_Kvantitet | J20: Ingående | K20: 0 | L20: Minålder | M20: 61 | N20: maxålder | O20: 70 | P20: Mortalitet | Q20: 0.02195121951 | AI20: 0 | AJ20: =AI19*0.1+AI20*0.9*(1-$Q20) -> 1 | AK20: 2.069268293 | AL20: 3.208532481 | AM20: 4.41143171 | AN20: 5.66719253 | AO20: 6.962586558 | AP20: 8.28333835 | AQ20: 9.615115082 | AR20: 10.94420051 | AS20: 12.25793264 | AT20: 13.54496645 | AU20: 14.79540873 | AV20: 16.00086119 | AW20: 17.15439891 | AX20: 18.25050507 | AY20: 19.28497714 | AZ20: 20.25481607 | BA20: 21.15810676 | BB20: 21.99389601
B21: Kvantitet | C21: Innevånare | D21: 71-80År | E21: 75 | F21: Antal | H21: 71-80År_Kvantitet | J21: Ingående | K21: 0 | L21: Minålder | M21: 71 | N21: maxålder | O21: 80 | P21: Mortalitet | Q21: 0.02195121951 | AI21: 0 | AJ21: 0 | AK21: 0.1 | AL21: 0.2949512195 | AM21: 0.5804822606 | AN21: 0.9521091413 | AO21: 1.404807519 | AP21: 1.932831909 | AQ21: 2.529697337 | AR21: 3.188262164 | AS21: 3.90086838 | AT21: 4.65950887 | AU21: 5.456000916 | AV21: 6.282152412 | AW21: 7.129912473 | AX21: 7.99150187 | AY21: 8.8595213 | AZ21: 9.727037317 | BA21: 10.58764689 | BB21: 11.4355223
B22: Kvantitet | C22: Innevånare | D22: 81-91År | E22: 85 | F22: Antal | H22: 81-91År_Kvantitet | J22: Ingående | K22: 0 | L22: Minålder | M22: 81 | N22: maxålder | O22: 90 | P22: Mortalitet | Q22: 0.02195121951 | AI22: 0 | AJ22: 0 | AK22: 0 | AL22: 0.01 | AM22: 0.03829756098 | AN22: 0.09175942058 | AO22: 0.1759815846 | AP22: 0.2953874687 | AQ22: 0.453296209 | AR22: 0.6519809577 | AS22: 0.8927284789 | AT22: 1.175905638 | AU22: 1.501034655 | AV22: 1.866876694 | AW22: 2.271522068 | AX22: 2.712484697 | AY22: 3.186798302 | AZ22: 3.691111903 | BA22: 4.221782478 | BB22: 4.774962973
B23: Kvantitet | C23: Innevånare | D23: 91-100År | E23: 95 | F23: Antal | H23: 91-100År_Kvantitet | J23: Ingående | K23: 0 | L23: Minålder | M23: 91 | N23: maxålder | O23: 100 | P23: Mortalitet | Q23: 0.02195121951 | AI23: 0 | AJ23: 0 | AK23: 0 | AL23: 0 | AM23: 0.001 | AN23: 0.00471 | AO23: 0.01332189084 | AP23: 0.02932467164 | AQ23: 0.05535161027 | AR23: 0.09405253833 | AS23: 0.1479872691 | AT23: 0.2195377392 | AU23: 0.3108373201 | AV23: 0.4237161212 | AW23: 0.5596612014 | AX23: 0.7197905667 | AY23: 0.9048397271 | AZ23: 1.115159483 | BA23: 1.350723525 | BB23: 1.611144395
B25: Skatteintäkter
B26: Intäkt | C26: Skatteintäkt | D26: 0-10År | E26: 5 | F26: SkatteIntäkt | H26: 0-10År_Intäkt | J26: Skatteintäkt | L26: Minålder | M26: 0 | N26: maxålder | O26: 10 | AJ26: =AJ$13*$K26 -> 0 | AK26: 0 | AL26: 0 | AM26: 0 | AN26: 0 | AO26: 0 | AP26: 0 | AQ26: 0 | AR26: 0 | AS26: 0 | AT26: 0 | AU26: 0 | AV26: 0 | AW26: 0 | AX26: 0 | AY26: 0 | AZ26: 0 | BA26: 0 | BB26: 0
B27: Intäkt | C27: Skatteintäkt | D27: 11-20År | E27: 15 | F27: SkatteIntäkt | H27: 11-20År_Intäkt | J27: Skatteintäkt | L27: Minålder | M27: 11 | N27: maxålder | O27: 20 | AJ27: =AJ$14*$K27 -> 0 | AK27: 0 | AL27: 0 | AM27: 0 | AN27: 0 | AO27: 0 | AP27: 0 | AQ27: 0 | AR27: 0 | AS27: 0 | AT27: 0 | AU27: 0 | AV27: 0 | AW27: 0 | AX27: 0 | AY27: 0 | AZ27: 0 | BA27: 0 | BB27: 0
B28: Intäkt | C28: Skatteintäkt | D28: 21-30År | E28: 25 | F28: SkatteIntäkt | H28: 21-30År_Intäkt | J28: Skatteintäkt | K28: 60745.176 | L28: Minålder | M28: 21 | N28: maxålder | O28: 30 | AJ28: =AJ$15*$K28 -> 2551297.392 | AK28: 2401021.42 | AL28: 2277748.197 | AM28: 2177194.648 | AN28: 2095668.433 | AO28: 2029994.831 | AP28: 1977452.222 | AQ28: 1935715.083 | AR28: 1902803.587 | AS28: 1877039.027 | AT28: 1857004.39 | AU28: 1841509.516 | AV28: 1829560.326 | AW28: 1820331.678 | AX28: 1813143.48 | AY28: 1807439.675 | AZ28: 1802769.838 | BA28: 1798773.061 | BB28: 1795163.91
B29: Intäkt | C29: Skatteintäkt | D29: 31-40År | E29: 35 | F29: SkatteIntäkt | H29: 31-40År_Intäkt | J29: Skatteintäkt | K29: 72092.016 | L29: Minålder | M29: 31 | N29: maxålder | O29: 40 | AJ29: =AJ$16*$K29 -> 2270898.504 | AK29: 2346595.121 | AL29: 2396887.412 | AM29: 2427520.481 | AN29: 2443156.608 | AO29: 2447553.639 | AP29: 2443716.862 | AQ29: 2434028.037 | AR29: 2420354.756 | AS29: 2404142.886 | AT29: 2386494.48 | AU29: 2368233.216 | AV29: 2349959.156 | AW29: 2332094.379 | AX29: 2314920.829 | AY29: 2298611.543 | AZ29: 2283256.262 | BA29: 2268882.295 | BB29: 2255471.39
B30: Intäkt | C30: Skatteintäkt | D30: 41-50År | E30: 45 | F30: SkatteIntäkt | H30: 41-50År_Intäkt | J30: Skatteintäkt | K30: 78372.36 | L30: Minålder | M30: 41 | N30: maxålder | O30: 50 | AJ30: =AJ$17*$K30 -> 4467224.52 | AK30: 4267375.002 | AL30: 4095739.534 | AM30: 3946734.966 | AN30: 3815961.024 | AO30: 3699964.304 | AP30: 3596045.264 | AQ30: 3502101.026 | AR30: 3416497.924 | AS30: 3337968.689 | AT30: 3265529.96 | AU30: 3198416.517 | AV30: 3136029.209 | AW30: 3077894.029 | AX30: 3023630.26 | AY30: 2972925.904 | AZ30: 2925518.975 | BA30: 2881183.443 | BB30: 2839718.847
B31: Intäkt | C31: Skatteintäkt | D31: 51-60År | E31: 55 | F31: SkatteIntäkt | H31: 51-60År_Intäkt | J31: Skatteintäkt | K31: 77765.436 | L31: Minålder | M31: 51 | N31: maxålder | O31: 60 | AJ31: =AJ$18*$K31 -> 2566259.388 | AK31: 2752896.434 | AL31: 2901039.59 | AM31: 3017337.8 | AN31: 3107221.122 | AO31: 3175139.991 | AP31: 3224757.13 | AQ31: 3259101.127 | AR31: 3280689.052 | AS31: 3291624.167 | AT31: 3293673.66 | AU31: 3288330.428 | AV31: 3276862.149 | AW31: 3260350.28 | AX31: 3239721.101 | AY31: 3215770.485 | AZ31: 3189183.761 | BA31: 3160551.729 | BB31: 3130383.681
B32: Intäkt | C32: Skatteintäkt | D32: 61-70År | E32: 65 | F32: SkatteIntäkt | H32: 61-70År_Intäkt | J32: Skatteintäkt | K32: 34093.296 | L32: Minålder | M32: 61 | N32: maxålder | O32: 70 | AJ32: =AJ$19*$K32 -> 405377.6049 | AK32: 472898.4548 | AL32: 541108.5283 | AM32: 608243.7201 | AN32: 673027.1955 | AO32: 734561.8775 | AP32: 792245.3549 | AQ32: 845702.6479 | AR32: 894733.1671 | AS32: 939268.9349 | AT32: 979341.7273 | AU32: 1015057.269 | AV32: 1046575.004 | AW32: 1074092.255 | AX32: 1097831.863 | AY32: 1118032.545 | AZ32: 1134941.421 | BA32: 1148808.23 | BB32: 1159880.899
B33: Intäkt | C33: Skatteintäkt | D33: 71-80År | E33: 75 | F33: SkatteIntäkt | H33: 71-80År_Intäkt | J33: Skatteintäkt | K33: 0 | L33: Minålder | M33: 71 | N33: maxålder | O33: 80 | AJ33: =AJ$20*$K33 -> 0 | AK33: 0 | AL33: 0 | AM33: 0 | AN33: 0 | AO33: 0 | AP33: 0 | AQ33: 0 | AR33: 0 | AS33: 0 | AT33: 0 | AU33: 0 | AV33: 0 | AW33: 0 | AX33: 0 | AY33: 0 | AZ33: 0 | BA33: 0 | BB33: 0
B34: Intäkt | C34: Skatteintäkt | D34: 81-91År | E34: 85 | F34: SkatteIntäkt | H34: 81-91År_Intäkt | J34: Skatteintäkt | K34: 0 | L34: Minålder | M34: 81 | N34: maxålder | O34: 90 | AJ34: =AJ$21*$K34 -> 0 | AK34: 0 | AL34: 0 | AM34: 0 | AN34: 0 | AO34: 0 | AP34: 0 | AQ34: 0 | AR34: 0 | AS34: 0 | AT34: 0 | AU34: 0 | AV34: 0 | AW34: 0 | AX34: 0 | AY34: 0 | AZ34: 0 | BA34: 0 | BB34: 0
B35: Intäkt | C35: Skatteintäkt | D35: 91-100År | E35: 95 | F35: SkatteIntäkt | H35: 91-100År_Intäkt | J35: Skatteintäkt | K35: 0 | L35: Minålder | M35: 91 | N35: maxålder | O35: 100 | AJ35: =AJ$22*$K35 -> 0 | AK35: 0 | AL35: 0 | AM35: 0 | AN35: 0 | AO35: 0 | AP35: 0 | AQ35: 0 | AR35: 0 | AS35: 0 | AT35: 0 | AU35: 0 | AV35: 0 | AW35: 0 | AX35: 0 | AY35: 0 | AZ35: 0 | BA35: 0 | BB35: 0
B37: Skatteutjämning
B38: Intäkt | C38: Skatteintäkt | D38: 0-10År | E38: 5 | F38: Utjämningseffekt | H38: 0-10År_Intäkt | J38: Utjämningseffekt | K38: 10000 | L38: Minålder | M38: 0 | N38: maxålder | O38: 10 | AJ38: =AJ$13*$K38 -> 37612.5 | AK38: 36975 | AL38: 36340.73531 | AM38: 35713.29825 | AN38: 35096.31214 | AO38: 34493.2032 | AP38: 33907.04915 | AQ38: 33340.48752 | AR38: 32795.66911 | AS38: 32274.24548 | AT38: 31777.3809 | AU38: 31305.7815 | AV38: 30859.73568 | AW38: 30439.16126 | AX38: 30043.65579 | AY38: 29672.54747 | AZ38: 29324.94462 | BA38: 28999.78252 | BB38: 28695.8665
B39: Intäkt | C39: Skatteintäkt | D39: 11-20År | E39: 15 | F39: Utjämningseffekt | H39: 11-20År_Intäkt | J39: Utjämningseffekt | K39: 10000 | L39: Minålder | M39: 11 | N39: maxålder | O39: 20 | AJ39: =AJ$14*$K39 -> 172612.5 | AK39: 192326.25 | AL39: 209434.3603 | AM39: 224204.2225 | AN39: 236880.1124 | AO39: 247685.3044 | AP39: 256823.8231 | AQ39: 264481.9283 | AR39: 270829.4046 | AS39: 276020.7096 | AT39: 280196.0196 | AU39: 283482.1991 | AV39: 285993.7149 | AW39: 287833.5046 | AX39: 289093.81 | AY39: 289856.9764 | AZ39: 290196.2234 | BA39: 290176.3836 | BB39: 289854.6117
B40: Intäkt | C40: Skatteintäkt | D40: 21-30År | E40: 25 | F40: Utjämningseffekt | H40: 21-30År_Intäkt | J40: Utjämningseffekt | K40: 0 | L40: Minålder | M40: 21 | N40: maxålder | O40: 30 | AJ40: =AJ$15*$K40 -> 0 | AK40: 0 | AL40: 0 | AM40: 0 | AN40: 0 | AO40: 0 | AP40: 0 | AQ40: 0 | AR40: 0 | AS40: 0 | AT40: 0 | AU40: 0 | AV40: 0 | AW40: 0 | AX40: 0 | AY40: 0 | AZ40: 0 | BA40: 0 | BB40: 0
B41: Kostnad | C41: Skatteintäkt | D41: 31-40År | E41: 35 | F41: Utjämningseffekt | H41: 31-40År_Kostnad | J41: Utjämningseffekt | K41: 10000 | L41: Minålder | M41: 31 | N41: maxålder | O41: 40 | AJ41: =AJ$16*$K41 -> 315000 | AK41: 325500 | AL41: 332476.125 | AM41: 336725.2875 | AN41: 338894.1999 | AO41: 339504.1191 | AP41: 338971.9136 | AQ41: 337627.9611 | AR41: 335731.3181 | AS41: 333482.5434 | AT41: 331034.5046 | AU41: 328501.4551 | AV41: 325966.6307 | AW41: 323488.5787 | AX41: 321106.4078 | AY41: 318844.1204 | AZ41: 316714.1645 | BA41: 314720.3284 | BB41: 312860.08
B42: Kostnad | C42: Skatteintäkt | D42: 41-50År | E42: 45 | F42: Utjämningseffekt | H42: 41-50År_Kostnad | J42: Utjämningseffekt | K42: 15000 | L42: Minålder | M42: 41 | N42: maxålder | O42: 50 | AJ42: =AJ$17*$K42 -> 855000 | AK42: 816750 | AL42: 783900 | AM42: 755381.4188 | AN42: 730352.07 | AO42: 708150.993 | AP42: 688261.5115 | AQ42: 670281.1474 | AR42: 653897.2268 | AS42: 638867.2019 | AT42: 625002.8632 | AU42: 612157.7526 | AV42: 600217.1956 | AW42: 589090.4706 | AX42: 578704.7104 | AY42: 569000.2005 | AZ42: 559926.7985 | BA42: 551441.2433 | BB42: 543505.1683
B43: Kostnad | C43: Skatteintäkt | D43: 51-60År | E43: 55 | F43: Utjämningseffekt | H43: 51-60År_Kostnad | J43: Utjämningseffekt | K43: 15000 | L43: Minålder | M43: 51 | N43: maxålder | O43: 60 | AJ43: =AJ$18*$K43 -> 495000 | AK43: 531000 | AL43: 559575 | AM43: 582007.5 | AN43: 599344.8919 | AO43: 612445.6097 | AP43: 622016.148 | AQ43: 628640.6844 | AR43: 632804.7307 | AS43: 634913.9803 | AT43: 635309.3025 | AU43: 634278.6585 | AV43: 632066.5679 | AW43: 628881.6307 | AX43: 624902.5147 | AY43: 620282.7343 | AZ43: 615154.4809 | BA43: 609631.7126 | BB43: 603812.6657
B44: Intäkt | C44: Skatteintäkt | D44: 61-70År | E44: 65 | F44: Utjämningseffekt | H44: 61-70År_Intäkt | J44: Utjämningseffekt | K44: 0 | L44: Minålder | M44: 61 | N44: maxålder | O44: 70 | AJ44: =AJ$19*$K44 -> 0 | AK44: 0 | AL44: 0 | AM44: 0 | AN44: 0 | AO44: 0 | AP44: 0 | AQ44: 0 | AR44: 0 | AS44: 0 | AT44: 0 | AU44: 0 | AV44: 0 | AW44: 0 | AX44: 0 | AY44: 0 | AZ44: 0 | BA44: 0 | BB44: 0
B45: Intäkt | C45: Skatteintäkt | D45: 71-80År | E45: 75 | F45: Utjämningseffekt | H45: 71-80År_Intäkt | J45: Utjämningseffekt | K45: 0 | L45: Minålder | M45: 71 | N45: maxålder | O45: 80 | AJ45: =AJ$20*$K45 -> 0 | AK45: 0 | AL45: 0 | AM45: 0 | AN45: 0 | AO45: 0 | AP45: 0 | AQ45: 0 | AR45: 0 | AS45: 0 | AT45: 0 | AU45: 0 | AV45: 0 | AW45: 0 | AX45: 0 | AY45: 0 | AZ45: 0 | BA45: 0 | BB45: 0
B46: Intäkt | C46: Skatteintäkt | D46: 81-91År | E46: 85 | F46: Utjämningseffekt | H46: 81-91År_Intäkt | J46: Utjämningseffekt | K46: 0 | L46: Minålder | M46: 81 | N46: maxålder | O46: 90 | AJ46: =AJ$21*$K46 -> 0 | AK46: 0 | AL46: 0 | AM46: 0 | AN46: 0 | AO46: 0 | AP46: 0 | AQ46: 0 | AR46: 0 | AS46: 0 | AT46: 0 | AU46: 0 | AV46: 0 | AW46: 0 | AX46: 0 | AY46: 0 | AZ46: 0 | BA46: 0 | BB46: 0
B47: Intäkt | C47: Skatteintäkt | D47: 91-100År | E47: 95 | F47: Utjämningseffekt | H47: 91-100År_Intäkt | J47: Utjämningseffekt | K47: 0 | L47: Minålder | M47: 91 | N47: maxålder | O47: 100 | AJ47: =AJ$22*$K47 -> 0 | AK47: 0 | AL47: 0 | AM47: 0 | AN47: 0 | AO47: 0 | AP47: 0 | AQ47: 0 | AR47: 0 | AS47: 0 | AT47: 0 | AU47: 0 | AV47: 0 | AW47: 0 | AX47: 0 | AY47: 0 | AZ47: 0 | BA47: 0 | BB47: 0
B49: Skolplatser som behövs
B50: Kvantitet | C50: Förskoleplatser | D50: 0-10År | E50: 5 | F50: Platser | H50: 0-10År_Kvantitet | J50: Förskoleplatser | K50: 0.5 | L50: Minålder | M50: 0 | N50: maxålder | O50: 10 | AJ50: =AJ$13*$K50 -> 1.880625 | AK50: =AK$13*$K50 -> 1.84875 | AL50: =AL$13*$K50 -> 1.817036766 | AM50: 1.785664913 | AN50: 1.754815607 | AO50: 1.72466016 | AP50: 1.695352458 | AQ50: 1.667024376 | AR50: 1.639783456 | AS50: 1.613712274 | AT50: 1.588869045 | AU50: 1.565289075 | AV50: 1.542986784 | AW50: 1.521958063 | AX50: 1.50218279 | AY50: 1.483627373 | AZ50: 1.466247231 | BA50: 1.449989126 | BB50: =BB$13*$K50 -> 1.434793325
B51: Kvantitet | C51: Fritidshem | D51: 0-10År | E51: 5 | F51: Platser | H51: 0-10År_Kvantitet | J51: Fritidshem | K51: 0.3 | L51: Minålder | M51: 0 | N51: maxålder | O51: 10 | AJ51: 1.128375 | AK51: 1.10925 | AL51: 1.090222059 | AM51: 1.071398948 | AN51: 1.052889364 | AO51: 1.034796096 | AP51: 1.017211475 | AQ51: 1.000214626 | AR51: 0.9838700734 | AS51: 0.9682273645 | AT51: 0.9533214271 | AU51: 0.939173445 | AV51: 0.9257920704 | AW51: 0.9131748378 | AX51: 0.9013096738 | AY51: 0.890176424 | AZ51: 0.8797483385 | BA51: 0.8699934755 | BB51: 0.8608759951
B52: Kvantitet | C52: Grundskoleplatser | D52: 0-10År | E52: 5 | F52: Platser | H52: 0-10År_Kvantitet | J52: Grundkskolaplatser | K52: 0.3 | L52: Minålder | M52: 0 | N52: maxålder | O52: 10 | AJ52: =AJ$13*$K52 -> 1.128375 | AK52: 1.10925 | AL52: 1.090222059 | AM52: 1.071398948 | AN52: 1.052889364 | AO52: 1.034796096 | AP52: 1.017211475 | AQ52: 1.000214626 | AR52: 0.9838700734 | AS52: 0.9682273645 | AT52: 0.9533214271 | AU52: 0.939173445 | AV52: 0.9257920704 | AW52: 0.9131748378 | AX52: 0.9013096738 | AY52: 0.890176424 | AZ52: 0.8797483385 | BA52: 0.8699934755 | BB52: 0.8608759951
B53: Kvantitet | C53: Grundskoleplatser | D53: 11-20År | E53: 15 | F53: Platser | H53: 11-20År_Kvantitet | J53: Grundkskolaplatser | K53: 0.5 | L53: Minålder | M53: 11 | N53: maxålder | O53: 20 | AJ53: =AJ$14*$K53 -> 8.630625 | AK53: =AK$14*$K53 -> 9.6163125 | AL53: 10.47171802 | AM53: 11.21021113 | AN53: 11.84400562 | AO53: 12.38426522 | AP53: 12.84119115 | AQ53: 13.22409642 | AR53: 13.54147023 | AS53: 13.80103548 | AT53: 14.00980098 | AU53: 14.17410995 | AV53: 14.29968574 | AW53: 14.39167523 | AX53: 14.4546905 | AY53: 14.49284882 | AZ53: 14.50981117 | BA53: 14.50881918 | BB53: 14.49273059
B54: Kvantitet | C54: Gymnasieplatser | D54: 11-20År | E54: 15 | F54: Platser | H54: 11-20År_Kvantitet | J54: Gymnasieplatser | K54: 0.3 | L54: Minålder | M54: 11 | N54: maxålder | O54: 20 | AJ54: =AJ$14*$K54 -> 5.178375 | AK54: 5.7697875 | AL54: 6.283030809 | AM54: 6.726126676 | AN54: 7.106403373 | AO54: 7.430559131 | AP54: 7.704714693 | AQ54: 7.934457849 | AR54: 8.124882138 | AS54: 8.280621288 | AT54: 8.405880587 | AU54: 8.504465973 | AV54: 8.579811446 | AW54: 8.635005139 | AX54: 8.672814299 | AY54: 8.695709293 | AZ54: 8.705886702 | BA54: 8.705291508 | BB54: 8.695638352
B55: Kostnad | C55: Förskoleplatser | D55: 0-10År | E55: 55 | F55: UtbildningsUtgift | H55: 0-10År_Kostnad | J55: Dagisplatser | K55: 108000 | L55: Minålder | M55: 21 | N55: maxålder | O55: 10 | AJ55: =AJ50*$K55 -> 203107.5 | AK55: 199665 | AL55: 196239.9707 | AM55: 192851.8106 | AN55: 189520.0856 | AO55: 186263.2973 | AP55: 183098.0654 | AQ55: 180038.6326 | AR55: 177096.6132 | AS55: 174280.9256 | AT55: 171597.8569 | AU55: 169051.2201 | AV55: 166642.5727 | AW55: 164371.4708 | AX55: 162235.7413 | AY55: 160231.7563 | AZ55: 158354.7009 | BA55: 156598.8256 | BB55: 154957.6791
B56: Kostnad | C56: Förskoleplatser | D56: 0-10År | E56: 65 | F56: UtbildningsUtgift | H56: 0-10År_Kostnad | J56: Förskoleplatser | K56: 132000 | L56: Minålder | M56: 31 | N56: maxålder | O56: 10 | AJ56: 148945.5 | AK56: 146421 | AL56: 143909.3118 | AM56: 141424.6611 | AN56: 138981.3961 | AO56: 136593.0847 | AP56: 134271.9147 | AQ56: 132028.3306 | AR56: 129870.8497 | AS56: 127806.0121 | AT56: 125838.4284 | AU56: 123970.8947 | AV56: 122204.5533 | AW56: 120539.0786 | AX56: 118972.8769 | AY56: 117503.288 | AZ56: 116126.7807 | BA56: 114839.1388 | BB56: 113635.6313
B57: Kostnad | C57: Grundskoleplatser | D57: 0-10År | E57: 75 | F57: UtbildningsUtgift | H57: 0-10År_Kostnad | J57: Grundkskolaplatser | K57: 156000 | L57: Minålder | M57: 41 | N57: maxålder | O57: 10 | AJ57: 176026.5 | AK57: 173043 | AL57: 170074.6413 | AM57: 167138.2358 | AN57: 164250.7408 | AO57: 161428.191 | AP57: 158684.99 | AQ57: 156033.4816 | AR57: 153483.7315 | AS57: 151043.4689 | AT57: 148718.1426 | AU57: 146511.0574 | AV57: 144423.563 | AW57: 142455.2747 | AX57: 140604.3091 | AY57: 138867.5221 | AZ57: 137240.7408 | BA57: 135718.9822 | BB57: 134296.6552
B58: Kostnad | C58: Grundskoleplatser | D58: 11-20År | E58: 85 | F58: UtbildningsUtgift | H58: 11-20År_Kostnad | J58: Grundkskolaplatser | K58: 156000 | L58: Minålder | M58: 51 | N58: maxålder | O58: 20 | AJ58: 1346377.5 | AK58: 1500144.75 | AL58: 1633588.01 | AM58: 1748792.936 | AN58: 1847664.877 | AO58: 1931945.374 | AP58: 2003225.82 | AQ58: 2062959.041 | AR58: 2112469.356 | AS58: 2152961.535 | AT58: 2185528.953 | AU58: 2211161.153 | AV58: 2230750.976 | AW58: 2245101.336 | AX58: 2254931.718 | AY58: 2260884.416 | AZ58: 2263530.543 | BA58: 2263375.792 | BB58: 2260865.972
B59: Kostnad | C59: Gymnasieplatser | D59: 11-20År | E59: 95 | F59: UtbildningsUtgift | H59: 11-20År_Kostnad | J59: Gymnasieplatser | K59: 152000 | L59: Minålder | M59: 61 | N59: maxålder | O59: 20 | AJ59: 787113 | AK59: 877007.7 | AL59: 955020.683 | AM59: 1022371.255 | AN59: 1080173.313 | AO59: 1129444.988 | AP59: 1171116.633 | AQ59: 1206037.593 | AR59: 1234982.085 | AS59: 1258654.436 | AT59: 1277693.849 | AU59: 1292678.828 | AV59: 1304131.34 | AW59: 1312520.781 | AX59: 1318267.773 | AY59: 1321747.813 | AZ59: 1323294.779 | BA59: 1323204.309 | BB59: 1321737.03
B61: Kapacitet
B62: Kapacitet | C62: Förskoleplatser | D62: Kapacitet | E62: Personal | F62: Personal | H62: Kapacitet_Kapacitet | J62: Kapacitet | K62: 150 | AJ62: =$K62 -> 150 | AK62: =$K62 -> 150 | AL62: 150 | AM62: 150 | AN62: 150 | AO62: 150 | AP62: 150 | AQ62: 150 | AR62: 150 | AS62: 150 | AT62: 150 | AU62: 150 | AV62: 150 | AW62: 150 | AX62: 150 | AY62: 150 | AZ62: 150 | BA62: =$K62 -> 150 | BB62: 150
B63: Kapacitet | C63: Förskoleplatser | D63: Kapacitet | E63: Lokal | F63: Lokal | H63: Kapacitet_Kapacitet | J63: Kapacitet | K63: 160 | AJ63: =$K63 -> 160 | AK63: 160 | AL63: 160 | AM63: 160 | AN63: 160 | AO63: 160 | AP63: 160 | AQ63: 160 | AR63: 160 | AS63: 160 | AT63: 160 | AU63: 160 | AV63: 160 | AW63: 160 | AX63: 160 | AY63: 160 | AZ63: 160 | BA63: 160 | BB63: 160
B64: Kapacitet | C64: Grundskoleplatser | D64: Kapacitet | E64: Personal | F64: Personal | H64: Kapacitet_Kapacitet | J64: Kapacitet | K64: 250 | AJ64: 250 | AK64: 250 | AL64: 250 | AM64: 250 | AN64: 250 | AO64: 250 | AP64: 250 | AQ64: 250 | AR64: 250 | AS64: 250 | AT64: 250 | AU64: 250 | AV64: 250 | AW64: 250 | AX64: 250 | AY64: 250 | AZ64: 250 | BA64: 250 | BB64: 250
B65: Kapacitet | C65: Grundskoleplatser | D65: Kapacitet | E65: Lokal | F65: Lokal | H65: Kapacitet_Kapacitet | J65: Kapacitet | K65: 260 | AJ65: 260 | AK65: 260 | AL65: 260 | AM65: 260 | AN65: 260 | AO65: 260 | AP65: 260 | AQ65: 260 | AR65: 260 | AS65: 260 | AT65: 260 | AU65: 260 | AV65: 260 | AW65: 260 | AX65: 260 | AY65: 260 | AZ65: 260 | BA65: 260 | BB65: 260
B66: Kapacitet | C66: Gymnasieplatser | D66: Kapacitet | E66: Personal | F66: Personal | H66: Kapacitet_Kapacitet | J66: Kapacitet | K66: 550 | AJ66: 550 | AK66: 550 | AL66: 550 | AM66: 550 | AN66: 550 | AO66: 550 | AP66: 550 | AQ66: 550 | AR66: 550 | AS66: 550 | AT66: 550 | AU66: 550 | AV66: 550 | AW66: 550 | AX66: 550 | AY66: 550 | AZ66: 550 | BA66: 550 | BB66: 550
B67: Kapacitet | C67: Gymnasieplatser | D67: Kapacitet | E67: Lokal | F67: Lokal | H67: Kapacitet_Kapacitet | J67: Kapacitet | K67: 560 | AJ67: 560 | AK67: 560 | AL67: 560 | AM67: 560 | AN67: 560 | AO67: 560 | AP67: 560 | AQ67: 560 | AR67: 560 | AS67: 560 | AT67: 560 | AU67: 560 | AV67: 560 | AW67: 560 | AX67: 560 | AY67: 560 | AZ67: 560 | BA67: 560 | BB67: 560
B69: Nuvarande skolplatser
B70: Kvantitet Befintlig | C70: Förskoleplatser | D70: 0-10År | E70: 5 | F70: Platser | H70: 0-10År_Kvantitet | J70: Förskoleplatser | K70: 155 | AJ70: =$K70 -> 155 | AK70: =$K70 -> 155 | AL70: 155 | AM70: 155 | AN70: 155 | AO70: 155 | AP70: 155 | AQ70: 155 | AR70: 155 | AS70: 155 | AT70: 155 | AU70: 155 | AV70: 155 | AW70: 155 | AX70: 155 | AY70: 155 | AZ70: 155 | BA70: =$K70 -> 155 | BB70: 155
B71: Kvantitet Befintlig | C71: Fritidshem | D71: 0-10År | E71: 5 | F71: Platser | H71: 0-10År_Kvantitet | J71: Fritidshem | K71: 145 | AJ71: =$K71 -> 145 | AK71: 145 | AL71: 145 | AM71: 145 | AN71: 145 | AO71: 145 | AP71: 145 | AQ71: 145 | AR71: 145 | AS71: 145 | AT71: 145 | AU71: 145 | AV71: 145 | AW71: 145 | AX71: 145 | AY71: 145 | AZ71: 145 | BA71: 145 | BB71: 145
B72: Kvantitet Befintlig | C72: Grundskoleplatser | D72: 0-10År | E72: 5 | F72: Platser | H72: 0-10År_Kvantitet | J72: Grundkskolaplatser | K72: 120 | AJ72: 120 | AK72: 120 | AL72: 120 | AM72: 120 | AN72: 120 | AO72: 120 | AP72: 120 | AQ72: 120 | AR72: 120 | AS72: 120 | AT72: 120 | AU72: 120 | AV72: 120 | AW72: 120 | AX72: 120 | AY72: 120 | AZ72: 120 | BA72: 120 | BB72: 120
B73: Kvantitet Befintlig | C73: Grundskoleplatser | D73: 11-20År | E73: 15 | F73: Platser | H73: 11-20År_Kvantitet | J73: Grundkskolaplatser | K73: 120 | AJ73: 120 | AK73: 120 | AL73: 120 | AM73: 120 | AN73: 120 | AO73: 120 | AP73: 120 | AQ73: 120 | AR73: 120 | AS73: 120 | AT73: 120 | AU73: 120 | AV73: 120 | AW73: 120 | AX73: 120 | AY73: 120 | AZ73: 120 | BA73: 120 | BB73: 120
B74: Kvantitet Befintlig | C74: Gymnasieplatser | D74: 11-20År | E74: 15 | F74: Platser | H74: 11-20År_Kvantitet | J74: Gymnasieplatser | K74: 520 | AJ74: 520 | AK74: 520 | AL74: 520 | AM74: 520 | AN74: 520 | AO74: 520 | AP74: 520 | AQ74: 520 | AR74: 520 | AS74: 520 | AT74: 520 | AU74: 520 | AV74: 520 | AW74: 520 | AX74: 520 | AY74: 520 | AZ74: 520 | BA74: 520 | BB74: 520

Sheet MittMellan
B10: IntäktKostnad | C10: Faktor | D10: Kategori | E10: Subkategori | F10: Valuta | H10: Titel | AH10: Datum | AJ10: 2021-01-01 | AK10: =EDATE(AJ10,12) -> 2022-01-01 | AL10: =EDATE(AK10,12) -> 2023-01-01 | AM10: 2024-01-01 | AN10: 2025-01-01 | AO10: 2026-01-01 | AP10: 2027-01-01 | AQ10: 2028-01-01 | AR10: 2029-01-01 | AS10: 2030-01-01 | AT10: 2031-01-01 | AU10: 2032-01-01 | AV10: 2033-01-01 | AW10: 2034-01-01 | AX10: 2035-01-01 | AY10: 2036-01-01 | AZ10: 2037-01-01 | BA10: 2038-01-01 | BB10: 2039-01-01
B12: Kvantitet
B13: Kvantitet | C13: Innevånare | D13: Nyfödda | E13: 0 | F13: Antal | H13: Nyfödda_Kvantitet | J13: Ingående | L13: Minålder | M13: 0 | N13: maxålder | O13: 0 | P13: Nativitet | Q13: 0 | AJ13: =AJ16*$Q$16+AJ17*$Q$17 -> 4.2075 | AK13: =AK16*$Q$16+AK17*$Q$17 -> 4.1565 | AL13: 4.099638188 | AM13: 4.039088438 | AN13: 3.97661917 | AO13: 3.913647246 | AP13: 3.851286962 | AQ13: 3.790394271 | AR13: 3.731606433 | AS13: 3.675377301 | AT13: 3.622008538 | AU13: 3.57167702 | AV13: 3.524458733 | AW13: 3.480349449 | AX13: 3.43928249 | AY13: 3.401143844 | AZ13: 3.365784934 | BA13: 3.333033277 | BB13: 3.302701295
B14: Kvantitet | C14: Innevånare | D14: 0-10År | E14: 5 | F14: Antal | H14: 0-10År_Kvantitet | J14: Ingående | K14: 30 | L14: Minålder | M14: 0 | N14: maxålder | O14: 10 | P14: Nativitet | AI14: =K14 -> 30 | AJ14: =AJ13+AI14*0.9 -> 31.2075 | AK14: =AK13+AJ14*0.9 -> 32.24325 | AL14: 33.11856319 | AM14: 33.84579531 | AN14: 34.43783495 | AO14: 34.9076987 | AP14: 35.26821579 | AQ14: 35.53178848 | AR14: 35.71021607 | AS14: 35.81457176 | AT14: 35.85512312 | AU14: 35.84128783 | AV14: 35.78161778 | AW14: 35.68380545 | AX14: 35.5547074 | AY14: 35.4003805 | AZ14: 35.22612738 | BA14: 35.03654792 | BB14: 34.83559443
B15: Kvantitet | C15: Innevånare | D15: 11-20År | E15: 15 | F15: Antal | H15: 11-20År_Kvantitet | J15: Ingående | K15: 30 | L15: Minålder | M15: 11 | N15: maxålder | O15: 20 | P15: Nativitet | AI15: =K15 -> 30 | AJ15: =AI14*0.1+AI15*0.9 -> 30 | AK15: =AJ14*0.1+AJ15*0.9 -> 30.12075 | AL15: =AK14*0.1+AK15*0.9 -> 30.333 | AM15: 30.61155632 | AN15: 30.93498022 | AO15: 31.28526569 | AP15: 31.64750899 | AQ15: 32.00957967 | AR15: 32.36180055 | AS15: 32.6966421 | AT15: 33.00843507 | AU15: 33.29310387 | AV15: 33.54792227 | AW15: 33.77129182 | AX15: 33.96254318 | AY15: 34.1217596 | AZ15: 34.24962169 | BA15: 34.34727226 | BB15: =BA14*0.1+BA15*0.9 -> 34.41619983
B16: Kvantitet | C16: Innevånare | D16: 21-30År | E16: 25 | F16: Antal | H16: 21-30År_Kvantitet | J16: Ingående | K16: 60 | L16: Minålder | M16: 21 | N16: maxålder | O16: 30 | P16: Nativitet | Q16: 0.0425 | AI16: 60 | AJ16: 57 | AK16: 54.3 | AL16: 51.882075 | AM16: 49.7271675 | AN16: 47.81560638 | AO16: 46.12754377 | AP16: 44.64331596 | AQ16: 43.34373526 | AR16: 42.2103197 | AS16: 41.22546779 | AT16: 40.37258522 | AU16: 39.6361702 | AV16: 39.00186357 | AW16: 38.45646944 | AX16: 37.98795168 | AY16: 37.58541083 | AZ16: 37.23904571 | BA16: 36.94010331 | BB16: 36.6808202
B17: Kvantitet | C17: Innevånare | D17: 31-40År | E17: 35 | F17: Antal | H17: 31-40År_Kvantitet | J17: Ingående | K17: 40 | L17: Minålder | M17: 31 | N17: maxålder | O17: 40 | P17: Nativitet | Q17: 0.0425 | AI17: 40 | AJ17: 42 | AK17: 43.5 | AL17: 44.58 | AM17: 45.3102075 | AN17: 45.7519035 | AO17: 45.95827379 | AP17: 45.97520079 | AQ17: 45.8420123 | AR17: 45.5921846 | AS17: 45.25399811 | AT17: 44.85114508 | AU17: 44.40328909 | AV17: 43.9265772 | AW17: 43.43410584 | AX17: 42.9363422 | AY17: 42.44150315 | AZ17: 41.95589392 | BA17: 41.48420909 | BB17: 41.02979852
B18: Kvantitet | C18: Innevånare | D18: 41-50År | E18: 45 | F18: Antal | H18: 41-50År_Kvantitet | J18: Ingående | K18: 20 | L18: Minålder | M18: 41 | N18: maxålder | O18: 50 | AI18: 20 | AJ18: 22 | AK18: 24 | AL18: 25.95 | AM18: 27.813 | AN18: 29.56272075 | AO18: 31.18163903 | AP18: 32.6593025 | AQ18: 33.99089233 | AR18: 35.17600433 | AS18: 36.21762235 | AT18: 37.12125993 | AU18: 37.89424844 | AV18: 38.54515251 | AW18: 39.08329498 | AX18: 39.51837606 | AY18: 39.86017268 | AZ18: 40.11830573 | BA18: 40.30206454 | BB18: 40.420279
B19: Kvantitet | C19: Innevånare | D19: 51-60År | E19: 55 | F19: Antal | H19: 51-60År_Kvantitet | J19: Ingående | K19: 10 | L19: Minålder | M19: 51 | N19: maxålder | O19: 60 | P19: Mortalitet | Q19: 0.01219512195 | AI19: 10 | AJ19: =AI18*0.1+AI19*0.9*(1-$Q19) -> 10.8902439 | AK19: =AJ18*0.1+AJ19*0.9*(1-$Q19) -> 11.88169244 | AL19: 12.96311438 | AM19: 14.11952486 | AN19: 15.33390198 | AO19: 16.58848493 | AP19: 17.8657316 | AQ19: 19.14900139 | AR19: 20.42301852 | AS19: 21.67416202 | AT19: 22.89062091 | AU19: 24.06244629 | AV19: 25.18152649 | AW19: 26.24150648 | AX19: 27.2376688 | AY19: 28.1667895 | AZ19: 29.02698013 | BA19: =AZ18*0.1+AZ19*0.9*(1-$Q19) -> 29.81752388 | BB19: 30.53871244
B20: Kvantitet | C20: Innevånare | D20: 61-70År | E20: 65 | F20: Antal | H20: 61-70År_Kvantitet | J20: Ingående | K20: 0 | L20: Minålder | M20: 61 | N20: maxålder | O20: 70 | P20: Mortalitet | Q20: 0.02195121951 | AI20: 0 | AJ20: =AI19*0.1+AI20*0.9*(1-$Q20) -> 1 | AK20: 1.969268293 | AL20: 2.921605651 | AM20: 3.868036998 | AN20: 4.816768468 | AO20: 5.773321271 | AP20: 6.740779339 | AQ20: 7.720103071 | AR20: 8.710473794 | AS20: 9.709643297 | AT20: 10.71427051 | AU20: 11.72023338 | AV20: 12.72290859 | AW20: 13.71741536 | AX20: 14.69882187 | AY20: 15.66231521 | AZ20: 16.60333641 | BA20: 17.51768365 | BB20: 18.4015866
B21: Kvantitet | C21: Innevånare | D21: 71-80År | E21: 75 | F21: Antal | H21: 71-80År_Kvantitet | J21: Ingående | K21: 0 | L21: Minålder | M21: 71 | N21: maxålder | O21: 80 | P21: Mortalitet | Q21: 0.02195121951 | AI21: 0 | AJ21: 0 | AK21: 0.1 | AL21: 0.2849512195 | AM21: 0.5429871386 | AN21: 0.8647648177 | AO21: 1.242880805 | AP21: 1.671370377 | AQ21: 2.145291517 | AR21: 2.660390084 | AS21: 3.212839529 | AT21: 3.799046734 | AU21: 4.415514774 | AV21: 5.058753293 | AW21: 5.7252276 | AX21: 6.411338221 | AY21: 7.113423563 | AZ21: 7.827779237 | BA21: 8.550688584 | BB21: 9.278459853
B22: Kvantitet | C22: Innevånare | D22: 81-91År | E22: 85 | F22: Antal | H22: 81-91År_Kvantitet | J22: Ingående | K22: 0 | L22: Minålder | M22: 81 | N22: maxålder | O22: 90 | P22: Mortalitet | Q22: 0.02195121951 | AI22: 0 | AJ22: 0 | AK22: 0 | AL22: 0.01 | AM22: 0.03729756098 | AN22: 0.08712966449 | AO22: 0.1631718377 | AP22: 0.2679190956 | AQ22: 0.4029711879 | AR22: 0.5692420827 | AS22: 0.7671108807 | AT22: 0.9965286281 | AU22: 1.257092922 | AV22: 1.548099857 | AW22: 1.868580789 | AX22: 2.217329605 | AY22: 2.592924687 | AZ22: 2.993748501 | BA22: 3.418006787 | BB22: 3.863748492
B23: Kvantitet | C23: Innevånare | D23: 91-100År | E23: 95 | F23: Antal | H23: 91-100År_Kvantitet | J23: Ingående | K23: 0 | L23: Minålder | M23: 91 | N23: maxålder | O23: 100 | P23: Mortalitet | Q23: 0.02195121951 | AI23: 0 | AJ23: 0 | AK23: 0 | AL23: 0 | AM23: 0.001 | AN23: 0.00461 | AO23: 0.01277089084 | AP23: 0.02755868255 | AQ23: 0.05105027184 | AR23: 0.0852338093 | AS23: 0.1319507492 | AT23: 0.1928599305 | AU23: 0.2694166406 | AV23: 0.3628616473 | AW23: 0.4742167381 | AX23: 0.604284471 | AY23: 0.7536506815 | AZ23: 0.9226888856 | BA23: 1.111566116 | BB23: 1.320249974
B25: Skatteintäkter
B26: Intäkt | C26: Skatteintäkt | D26: 0-10År | E26: 5 | F26: SkatteIntäkt | H26: 0-10År_Intäkt | J26: Skatteintäkt | L26: Minålder | M26: 0 | N26: maxålder | O26: 10 | AJ26: =AJ$13*$K26 -> 0 | AK26: 0 | AL26: 0 | AM26: 0 | AN26: 0 | AO26: 0 | AP26: 0 | AQ26: 0 | AR26: 0 | AS26: 0 | AT26: 0 | AU26: 0 | AV26: 0 | AW26: 0 | AX26: 0 | AY26: 0 | AZ26: 0 | BA26: 0 | BB26: 0
B27: Intäkt | C27: Skatteintäkt | D27: 11-20År | E27: 15 | F27: SkatteIntäkt | H27: 11-20År_Intäkt | J27: Skatteintäkt | L27: Minålder | M27: 11 | N27: maxålder | O27: 20 | AJ27: =AJ$14*$K27 -> 0 | AK27: 0 | AL27: 0 | AM27: 0 | AN27: 0 | AO27: 0 | AP27: 0 | AQ27: 0 | AR27: 0 | AS27: 0 | AT27: 0 | AU27: 0 | AV27: 0 | AW27: 0 | AX27: 0 | AY27: 0 | AZ27: 0 | BA27: 0 | BB27: 0
B28: Intäkt | C28: Skatteintäkt | D28: 21-30År | E28: 25 | F28: SkatteIntäkt | H28: 21-30År_Intäkt | J28: Skatteintäkt | K28: 60745.176 | L28: Minålder | M28: 21 | N28: maxålder | O28: 30 | AJ28: =AJ$15*$K28 -> 1822355.28 | AK28: 1829690.26 | AL28: 1842583.424 | AM28: 1859504.376 | AN28: 1879150.818 | AO28: 1900428.971 | AP28: 1922433.504 | AQ28: 1944427.551 | AR28: 1965823.27 | AS28: 1986163.279 | AT28: 2005103.198 | AU28: 2022395.454 | AV28: 2037874.443 | AW28: 2051443.065 | AX28: 2063060.663 | AY28: 2072732.293 | AZ28: 2080499.298 | BA28: 2086431.099 | BB28: 2090618.116
B29: Intäkt | C29: Skatteintäkt | D29: 31-40År | E29: 35 | F29: SkatteIntäkt | H29: 31-40År_Intäkt | J29: Skatteintäkt | K29: 72092.016 | L29: Minålder | M29: 31 | N29: maxålder | O29: 40 | AJ29: =AJ$16*$K29 -> 4109244.912 | AK29: 3914596.469 | AL29: 3740283.381 | AM29: 3584931.755 | AN29: 3447123.46 | AO29: 3325427.623 | AP29: 3218426.648 | AQ29: 3124737.256 | AR29: 3043027.043 | AS29: 2972027.083 | AT29: 2910541.06 | AU29: 2857451.417 | AV29: 2811722.973 | AW29: 2772404.41 | AX29: 2738628.02 | AY29: 2709608.039 | AZ29: 2684637.879 | BA29: 2663086.519 | BB29: 2644394.277
B30: Intäkt | C30: Skatteintäkt | D30: 41-50År | E30: 45 | F30: SkatteIntäkt | H30: 41-50År_Intäkt | J30: Skatteintäkt | K30: 78372.36 | L30: Minålder | M30: 41 | N30: maxålder | O30: 50 | AJ30: =AJ$17*$K30 -> 3291639.12 | AK30: 3409197.66 | AL30: 3493839.809 | AM30: 3551067.894 | AN30: 3585684.652 | AO30: 3601858.378 | AP30: 3603184.987 | AQ30: 3592746.691 | AR30: 3573167.105 | AS30: 3546662.631 | AT30: 3515090.088 | AU30: 3479990.558 | AV30: 3442629.522 | AW30: 3404033.379 | AX30: 3365022.468 | AY30: 3326240.764 | AZ30: 3288182.422 | BA30: 3251215.369 | BB30: 3215602.14
B31: Intäkt | C31: Skatteintäkt | D31: 51-60År | E31: 55 | F31: SkatteIntäkt | H31: 51-60År_Intäkt | J31: Skatteintäkt | K31: 77765.436 | L31: Minålder | M31: 51 | N31: maxålder | O31: 60 | AJ31: =AJ$18*$K31 -> 1710839.592 | AK31: 1866370.464 | AL31: 2018013.064 | AM31: 2162890.071 | AN31: 2298957.868 | AO31: 2424853.754 | AP31: 2539764.898 | AQ31: 2643316.562 | AR31: 2735477.313 | AS31: 2816479.193 | AT31: 2886750.963 | AU31: 2946862.752 | AV31: 2997480.591 | AW31: 3039329.474 | AX31: 3073163.745 | AY31: 3099743.707 | AZ31: 3119817.536 | BA31: 3134107.621 | BB31: 3143300.62
B32: Intäkt | C32: Skatteintäkt | D32: 61-70År | E32: 65 | F32: SkatteIntäkt | H32: 61-70År_Intäkt | J32: Skatteintäkt | K32: 34093.296 | L32: Minålder | M32: 61 | N32: maxålder | O32: 70 | AJ32: =AJ$19*$K32 -> 371284.3089 | AK32: 405086.0575 | AL32: 441955.2957 | AM32: 481381.1404 | AN32: 522783.259 | AO32: 565556.1269 | AP32: 609101.6758 | AQ32: 652852.5727 | AR32: 696288.0157 | AS32: 738943.6213 | AT32: 780416.7143 | AU32: 820368.1038 | AV32: 858521.2362 | AW32: 894659.4479 | AX32: 928621.9046 | AY32: 960298.6917 | AZ32: 989625.4255 | BA32: 1016577.668 | BB32: 1041165.363
B33: Intäkt | C33: Skatteintäkt | D33: 71-80År | E33: 75 | F33: SkatteIntäkt | H33: 71-80År_Intäkt | J33: Skatteintäkt | K33: 0 | L33: Minålder | M33: 71 | N33: maxålder | O33: 80 | AJ33: =AJ$20*$K33 -> 0 | AK33: 0 | AL33: 0 | AM33: 0 | AN33: 0 | AO33: 0 | AP33: 0 | AQ33: 0 | AR33: 0 | AS33: 0 | AT33: 0 | AU33: 0 | AV33: 0 | AW33: 0 | AX33: 0 | AY33: 0 | AZ33: 0 | BA33: 0 | BB33: 0
B34: Intäkt | C34: Skatteintäkt | D34: 81-91År | E34: 85 | F34: SkatteIntäkt | H34: 81-91År_Intäkt | J34: Skatteintäkt | K34: 0 | L34: Minålder | M34: 81 | N34: maxålder | O34: 90 | AJ34: =AJ$21*$K34 -> 0 | AK34: 0 | AL34: 0 | AM34: 0 | AN34: 0 | AO34: 0 | AP34: 0 | AQ34: 0 | AR34: 0 | AS34: 0 | AT34: 0 | AU34: 0 | AV34: 0 | AW34: 0 | AX34: 0 | AY34: 0 | AZ34: 0 | BA34: 0 | BB34: 0
B35: Intäkt | C35: Skatteintäkt | D35: 91-100År | E35: 95 | F35: SkatteIntäkt | H35: 91-100År_Intäkt | J35: Skatteintäkt | K35: 0 | L35: Minålder | M35: 91 | N35: maxålder | O35: 100 | AJ35: =AJ$22*$K35 -> 0 | AK35: 0 | AL35: 0 | AM35: 0 | AN35: 0 | AO35: 0 | AP35: 0 | AQ35: 0 | AR35: 0 | AS35: 0 | AT35: 0 | AU35: 0 | AV35: 0 | AW35: 0 | AX35: 0 | AY35: 0 | AZ35: 0 | BA35: 0 | BB35: 0
B37: Skatteutjämning
B38: Intäkt | C38: Skatteintäkt | D38: 0-10År | E38: 5 | F38: Utjämningseffekt | H38: 0-10År_Intäkt | J38: Utjämningseffekt | K38: 10000 | L38: Minålder | M38: 0 | N38: maxålder | O38: 10 | AJ38: =AJ$13*$K38 -> 42075 | AK38: 41565 | AL38: 40996.38187 | AM38: 40390.88438 | AN38: 39766.1917 | AO38: 39136.47246 | AP38: 38512.86962 | AQ38: 37903.94271 | AR38: 37316.06433 | AS38: 36753.77301 | AT38: 36220.08538 | AU38: 35716.7702 | AV38: 35244.58733 | AW38: 34803.49449 | AX38: 34392.8249 | AY38: 34011.43844 | AZ38: 33657.84934 | BA38: 33330.33277 | BB38: 33027.01295
B39: Intäkt | C39: Skatteintäkt | D39: 11-20År | E39: 15 | F39: Utjämningseffekt | H39: 11-20År_Intäkt | J39: Utjämningseffekt | K39: 10000 | L39: Minålder | M39: 11 | N39: maxålder | O39: 20 | AJ39: =AJ$14*$K39 -> 312075 | AK39: 322432.5 | AL39: 331185.6319 | AM39: 338457.9531 | AN39: 344378.3495 | AO39: 349076.987 | AP39: 352682.1579 | AQ39: 355317.8848 | AR39: 357102.1607 | AS39: 358145.7176 | AT39: 358551.2312 | AU39: 358412.8783 | AV39: 357816.1778 | AW39: 356838.0545 | AX39: 355547.074 | AY39: 354003.805 | AZ39: 352261.2738 | BA39: 350365.4792 | BB39: 348355.9443
B40: Intäkt | C40: Skatteintäkt | D40: 21-30År | E40: 25 | F40: Utjämningseffekt | H40: 21-30År_Intäkt | J40: Utjämningseffekt | K40: 0 | L40: Minålder | M40: 21 | N40: maxålder | O40: 30 | AJ40: =AJ$15*$K40 -> 0 | AK40: 0 | AL40: 0 | AM40: 0 | AN40: 0 | AO40: 0 | AP40: 0 | AQ40: 0 | AR40: 0 | AS40: 0 | AT40: 0 | AU40: 0 | AV40: 0 | AW40: 0 | AX40: 0 | AY40: 0 | AZ40: 0 | BA40: 0 | BB40: 0
B41: Kostnad | C41: Skatteintäkt | D41: 31-40År | E41: 35 | F41: Utjämningseffekt | H41: 31-40År_Kostnad | J41: Utjämningseffekt | K41: 10000 | L41: Minålder | M41: 31 | N41: maxålder | O41: 40 | AJ41: =AJ$16*$K41 -> 570000 | AK41: 543000 | AL41: 518820.75 | AM41: 497271.675 | AN41: 478156.0638 | AO41: 461275.4377 | AP41: 446433.1596 | AQ41: 433437.3526 | AR41: 422103.197 | AS41: 412254.6779 | AT41: 403725.8522 | AU41: 396361.702 | AV41: 390018.6357 | AW41: 384564.6944 | AX41: 379879.5168 | AY41: 375854.1083 | AZ41: 372390.4571 | BA41: 369401.0331 | BB41: 366808.202
B42: Kostnad | C42: Skatteintäkt | D42: 41-50År | E42: 45 | F42: Utjämningseffekt | H42: 41-50År_Kostnad | J42: Utjämningseffekt | K42: 15000 | L42: Minålder | M42: 41 | N42: maxålder | O42: 50 | AJ42: =AJ$17*$K42 -> 630000 | AK42: 652500 | AL42: 668700 | AM42: 679653.1125 | AN42: 686278.5525 | AO42: 689374.1068 | AP42: 689628.0118 | AQ42: 687630.1845 | AR42: 683882.769 | AS42: 678809.9716 | AT42: 672767.1762 | AU42: 666049.3364 | AV42: 658898.658 | AW42: 651511.5876 | AX42: 644045.133 | AY42: 636622.5472 | AZ42: 629338.4087 | BA42: 622263.1364 | BB42: 615446.9777
B43: Kostnad | C43: Skatteintäkt | D43: 51-60År | E43: 55 | F43: Utjämningseffekt | H43: 51-60År_Kostnad | J43: Utjämningseffekt | K43: 15000 | L43: Minålder | M43: 51 | N43: maxålder | O43: 60 | AJ43: =AJ$18*$K43 -> 330000 | AK43: 360000 | AL43: 389250 | AM43: 417195 | AN43: 443440.8113 | AO43: 467724.5854 | AP43: 489889.5375 | AQ43: 509863.3849 | AR43: 527640.0649 | AS43: 543264.3353 | AT43: 556818.8989 | AU43: 568413.7267 | AV43: 578177.2876 | AW43: 586249.4247 | AX43: 592775.641 | AY43: 597902.5902 | AZ43: 601774.5859 | BA43: 604530.9682 | BB43: 606304.185
B44: Intäkt | C44: Skatteintäkt | D44: 61-70År | E44: 65 | F44: Utjämningseffekt | H44: 61-70År_Intäkt | J44: Utjämningseffekt | K44: 0 | L44: Minålder | M44: 61 | N44: maxålder | O44: 70 | AJ44: =AJ$19*$K44 -> 0 | AK44: 0 | AL44: 0 | AM44: 0 | AN44: 0 | AO44: 0 | AP44: 0 | AQ44: 0 | AR44: 0 | AS44: 0 | AT44: 0 | AU44: 0 | AV44: 0 | AW44: 0 | AX44: 0 | AY44: 0 | AZ44: 0 | BA44: 0 | BB44: 0
B45: Intäkt | C45: Skatteintäkt | D45: 71-80År | E45: 75 | F45: Utjämningseffekt | H45: 71-80År_Intäkt | J45: Utjämningseffekt | K45: 0 | L45: Minålder | M45: 71 | N45: maxålder | O45: 80 | AJ45: =AJ$20*$K45 -> 0 | AK45: 0 | AL45: 0 | AM45: 0 | AN45: 0 | AO45: 0 | AP45: 0 | AQ45: 0 | AR45: 0 | AS45: 0 | AT45: 0 | AU45: 0 | AV45: 0 | AW45: 0 | AX45: 0 | AY45: 0 | AZ45: 0 | BA45: 0 | BB45: 0
B46: Intäkt | C46: Skatteintäkt | D46: 81-91År | E46: 85 | F46: Utjämningseffekt | H46: 81-91År_Intäkt | J46: Utjämningseffekt | K46: 0 | L46: Minålder | M46: 81 | N46: maxålder | O46: 90 | AJ46: =AJ$21*$K46 -> 0 | AK46: 0 | AL46: 0 | AM46: 0 | AN46: 0 | AO46: 0 | AP46: 0 | AQ46: 0 | AR46: 0 | AS46: 0 | AT46: 0 | AU46: 0 | AV46: 0 | AW46: 0 | AX46: 0 | AY46: 0 | AZ46: 0 | BA46: 0 | BB46: 0
B47: Intäkt | C47: Skatteintäkt | D47: 91-100År | E47: 95 | F47: Utjämningseffekt | H47: 91-100År_Intäkt | J47: Utjämningseffekt | K47: 0 | L47: Minålder | M47: 91 | N47: maxålder | O47: 100 | AJ47: =AJ$22*$K47 -> 0 | AK47: 0 | AL47: 0 | AM47: 0 | AN47: 0 | AO47: 0 | AP47: 0 | AQ47: 0 | AR47: 0 | AS47: 0 | AT47: 0 | AU47: 0 | AV47: 0 | AW47: 0 | AX47: 0 | AY47: 0 | AZ47: 0 | BA47: 0 | BB47: 0
B49: Skolplatser som behövs
B50: Kvantitet | C50: Förskoleplatser | D50: 0-10År | E50: 5 | F50: Platser | H50: 0-10År_Kvantitet | J50: Förskoleplatser | K50: 0.5 | L50: Minålder | M50: 0 | N50: maxålder | O50: 10 | AJ50: =AJ$13*$K50 -> 2.10375 | AK50: =AK$13*$K50 -> 2.07825 | AL50: =AL$13*$K50 -> 2.049819094 | AM50: 2.019544219 | AN50: 1.988309585 | AO50: 1.956823623 | AP50: 1.925643481 | AQ50: 1.895197136 | AR50: 1.865803216 | AS50: 1.83768865 | AT50: 1.811004269 | AU50: 1.78583851 | AV50: 1.762229366 | AW50: 1.740174725 | AX50: 1.719641245 | AY50: 1.700571922 | AZ50: 1.682892467 | BA50: 1.666516639 | BB50: =BB$13*$K50 -> 1.651350648
B51: Kvantitet | C51: Fritidshem | D51: 0-10År | E51: 5 | F51: Platser | H51: 0-10År_Kvantitet | J51: Fritidshem | K51: 0.3 | L51: Minålder | M51: 0 | N51: maxålder | O51: 10 | AJ51: 1.26225 | AK51: 1.24695 | AL51: 1.229891456 | AM51: 1.211726531 | AN51: 1.192985751 | AO51: 1.174094174 | AP51: 1.155386088 | AQ51: 1.137118281 | AR51: 1.11948193 | AS51: 1.10261319 | AT51: 1.086602561 | AU51: 1.071503106 | AV51: 1.05733762 | AW51: 1.044104835 | AX51: 1.031784747 | AY51: 1.020343153 | AZ51: 1.00973548 | BA51: 0.9999099831 | BB51: 0.9908103886
B52: Kvantitet | C52: Grundskoleplatser | D52: 0-10År | E52: 5 | F52: Platser | H52: 0-10År_Kvantitet | J52: Grundkskolaplatser | K52: 0.3 | L52: Minålder | M52: 0 | N52: maxålder | O52: 10 | AJ52: =AJ$13*$K52 -> 1.26225 | AK52: 1.24695 | AL52: 1.229891456 | AM52: 1.211726531 | AN52: 1.192985751 | AO52: 1.174094174 | AP52: 1.155386088 | AQ52: 1.137118281 | AR52: 1.11948193 | AS52: 1.10261319 | AT52: 1.086602561 | AU52: 1.071503106 | AV52: 1.05733762 | AW52: 1.044104835 | AX52: 1.031784747 | AY52: 1.020343153 | AZ52: 1.00973548 | BA52: 0.9999099831 | BB52: 0.9908103886
B53: Kvantitet | C53: Grundskoleplatser | D53: 11-20År | E53: 15 | F53: Platser | H53: 11-20År_Kvantitet | J53: Grundkskolaplatser | K53: 0.5 | L53: Minålder | M53: 11 | N53: maxålder | O53: 20 | AJ53: =AJ$14*$K53 -> 15.60375 | AK53: =AK$14*$K53 -> 16.121625 | AL53: 16.55928159 | AM53: 16.92289765 | AN53: 17.21891747 | AO53: 17.45384935 | AP53: 17.63410789 | AQ53: 17.76589424 | AR53: 17.85510803 | AS53: 17.90728588 | AT53: 17.92756156 | AU53: 17.92064391 | AV53: 17.89080889 | AW53: 17.84190273 | AX53: 17.7773537 | AY53: 17.70019025 | AZ53: 17.61306369 | BA53: 17.51827396 | BB53: 17.41779721
B54: Kvantitet | C54: Gymnasieplatser | D54: 11-20År | E54: 15 | F54: Platser | H54: 11-20År_Kvantitet | J54: Gymnasieplatser | K54: 0.3 | L54: Minålder | M54: 11 | N54: maxålder | O54: 20 | AJ54: =AJ$14*$K54 -> 9.36225 | AK54: 9.672975 | AL54: 9.935568956 | AM54: 10.15373859 | AN54: 10.33135048 | AO54: 10.47230961 | AP54: 10.58046474 | AQ54: 10.65953654 | AR54: 10.71306482 | AS54: 10.74437153 | AT54: 10.75653694 | AU54: 10.75238635 | AV54: 10.73448533 | AW54: 10.70514164 | AX54: 10.66641222 | AY54: 10.62011415 | AZ54: 10.56783822 | BA54: 10.51096438 | BB54: 10.45067833
B55: Kostnad | C55: Förskoleplatser | D55: 0-10År | E55: 55 | F55: UtbildningsUtgift | H55: 0-10År_Kostnad | J55: Dagisplatser | K55: 108000 | L55: Minålder | M55: 21 | N55: maxålder | O55: 10 | AJ55: =AJ50*$K55 -> 227205 | AK55: 224451 | AL55: 221380.4621 | AM55: 218110.7756 | AN55: 214737.4352 | AO55: 211336.9513 | AP55: 207969.4959 | AQ55: 204681.2907 | AR55: 201506.7474 | AS55: 198470.3742 | AT55: 195588.461 | AU55: 192870.5591 | AV55: 190320.7716 | AW55: 187938.8703 | AX55: 185721.2545 | AY55: 183661.7676 | AZ55: 181752.3864 | BA55: 179983.797 | BB55: 178345.87
B56: Kostnad | C56: Förskoleplatser | D56: 0-10År | E56: 65 | F56: UtbildningsUtgift | H56: 0-10År_Kostnad | J56: Förskoleplatser | K56: 132000 | L56: Minålder | M56: 31 | N56: maxålder | O56: 10 | AJ56: 166617 | AK56: 164597.4 | AL56: 162345.6722 | AM56: 159947.9021 | AN56: 157474.1191 | AO56: 154980.4309 | AP56: 152510.9637 | AQ56: 150099.6132 | AR56: 147771.6147 | AS56: 145544.9411 | AT56: 143431.5381 | AU56: 141438.41 | AV56: 139568.5658 | AW56: 137821.8382 | AX56: 136195.5866 | AY56: 134685.2962 | AZ56: 133285.0834 | BA56: 131988.1178 | BB56: 130786.9713
B57: Kostnad | C57: Grundskoleplatser | D57: 0-10År | E57: 75 | F57: UtbildningsUtgift | H57: 0-10År_Kostnad | J57: Grundkskolaplatser | K57: 156000 | L57: Minålder | M57: 41 | N57: maxålder | O57: 10 | AJ57: 196911 | AK57: 194524.2 | AL57: 191863.0672 | AM57: 189029.3389 | AN57: 186105.7772 | AO57: 183158.6911 | AP57: 180240.2298 | AQ57: 177390.4519 | AR57: 174639.1811 | AS57: 172007.6577 | AT57: 169509.9996 | AU57: 167154.4845 | AV57: 164944.6687 | AW57: 162880.3542 | AX57: 160958.4205 | AY57: 159173.5319 | AZ57: 157518.7349 | BA57: 155985.9574 | BB57: 154566.4206
B58: Kostnad | C58: Grundskoleplatser | D58: 11-20År | E58: 85 | F58: UtbildningsUtgift | H58: 11-20År_Kostnad | J58: Grundkskolaplatser | K58: 156000 | L58: Minålder | M58: 51 | N58: maxålder | O58: 20 | AJ58: 2434185 | AK58: 2514973.5 | AL58: 2583247.929 | AM58: 2639972.034 | AN58: 2686151.126 | AO58: 2722800.498 | AP58: 2750920.832 | AQ58: 2771479.502 | AR58: 2785396.853 | AS58: 2793536.597 | AT58: 2796699.603 | AU58: 2795620.451 | AV58: 2790966.187 | AW58: 2783336.825 | AX58: 2773267.177 | AY58: 2761229.679 | AZ58: 2747637.936 | BA58: 2732850.738 | BB58: 2717176.365
B59: Kostnad | C59: Gymnasieplatser | D59: 11-20År | E59: 95 | F59: UtbildningsUtgift | H59: 11-20År_Kostnad | J59: Gymnasieplatser | K59: 152000 | L59: Minålder | M59: 61 | N59: maxålder | O59: 20 | AJ59: 1423062 | AK59: 1470292.2 | AL59: 1510206.481 | AM59: 1543368.266 | AN59: 1570365.274 | AO59: 1591791.061 | AP59: 1608230.64 | AQ59: 1620249.555 | AR59: 1628385.853 | AS59: 1633144.472 | AT59: 1634993.614 | AU59: 1634362.725 | AV59: 1631641.771 | AW59: 1627181.529 | AX59: 1621294.657 | AY59: 1614257.351 | AZ59: 1606311.409 | BA59: 1597666.585 | BB59: 1588503.106
B61: Kapacitet
B62: Kapacitet | C62: Förskoleplatser | D62: Kapacitet | E62: Personal | F62: Personal | H62: Kapacitet_Kapacitet | J62: Kapacitet | K62: 150 | AJ62: =$K62 -> 150 | AK62: =$K62 -> 150 | AL62: 150 | AM62: 150 | AN62: 150 | AO62: 150 | AP62: 150 | AQ62: 150 | AR62: 150 | AS62: 150 | AT62: 150 | AU62: 150 | AV62: 150 | AW62: 150 | AX62: 150 | AY62: 150 | AZ62: 150 | BA62: =$K62 -> 150 | BB62: 150
B63: Kapacitet | C63: Förskoleplatser | D63: Kapacitet | E63: Lokal | F63: Lokal | H63: Kapacitet_Kapacitet | J63: Kapacitet | K63: 160 | AJ63: =$K63 -> 160 | AK63: 160 | AL63: 160 | AM63: 160 | AN63: 160 | AO63: 160 | AP63: 160 | AQ63: 160 | AR63: 160 | AS63: 160 | AT63: 160 | AU63: 160 | AV63: 160 | AW63: 160 | AX63: 160 | AY63: 160 | AZ63: 160 | BA63: 160 | BB63: 160
B64: Kapacitet | C64: Grundskoleplatser | D64: Kapacitet | E64: Personal | F64: Personal | H64: Kapacitet_Kapacitet | J64: Kapacitet | K64: 250 | AJ64: 250 | AK64: 250 | AL64: 250 | AM64: 250 | AN64: 250 | AO64: 250 | AP64: 250 | AQ64: 250 | AR64: 250 | AS64: 250 | AT64: 250 | AU64: 250 | AV64: 250 | AW64: 250 | AX64: 250 | AY64: 250 | AZ64: 250 | BA64: 250 | BB64: 250
B65: Kapacitet | C65: Grundskoleplatser | D65: Kapacitet | E65: Lokal | F65: Lokal | H65: Kapacitet_Kapacitet | J65: Kapacitet | K65: 260 | AJ65: 260 | AK65: 260 | AL65: 260 | AM65: 260 | AN65: 260 | AO65: 260 | AP65: 260 | AQ65: 260 | AR65: 260 | AS65: 260 | AT65: 260 | AU65: 260 | AV65: 260 | AW65: 260 | AX65: 260 | AY65: 260 | AZ65: 260 | BA65: 260 | BB65: 260
B66: Kapacitet | C66: Gymnasieplatser | D66: Kapacitet | E66: Personal | F66: Personal | H66: Kapacitet_Kapacitet | J66: Kapacitet | K66: 550 | AJ66: 550 | AK66: 550 | AL66: 550 | AM66: 550 | AN66: 550 | AO66: 550 | AP66: 550 | AQ66: 550 | AR66: 550 | AS66: 550 | AT66: 550 | AU66: 550 | AV66: 550 | AW66: 550 | AX66: 550 | AY66: 550 | AZ66: 550 | BA66: 550 | BB66: 550
B67: Kapacitet | C67: Gymnasieplatser | D67: Kapacitet | E67: Lokal | F67: Lokal | H67: Kapacitet_Kapacitet | J67: Kapacitet | K67: 560 | AJ67: 560 | AK67: 560 | AL67: 560 | AM67: 560 | AN67: 560 | AO67: 560 | AP67: 560 | AQ67: 560 | AR67: 560 | AS67: 560 | AT67: 560 | AU67: 560 | AV67: 560 | AW67: 560 | AX67: 560 | AY67: 560 | AZ67: 560 | BA67: 560 | BB67: 560
B69: Nuvarande skolplatser
B70: Kvantitet Befintlig | C70: Förskoleplatser | D70: 0-10År | E70: 5 | F70: Platser | H70: 0-10År_Kvantitet | J70: Förskoleplatser | K70: 155 | AJ70: =$K70 -> 155 | AK70: =$K70 -> 155 | AL70: 155 | AM70: 155 | AN70: 155 | AO70: 155 | AP70: 155 | AQ70: 155 | AR70: 155 | AS70: 155 | AT70: 155 | AU70: 155 | AV70: 155 | AW70: 155 | AX70: 155 | AY70: 155 | AZ70: 155 | BA70: =$K70 -> 155 | BB70: 155
B71: Kvantitet Befintlig | C71: Fritidshem | D71: 0-10År | E71: 5 | F71: Platser | H71: 0-10År_Kvantitet | J71: Fritidshem | K71: 145 | AJ71: =$K71 -> 145 | AK71: 145 | AL71: 145 | AM71: 145 | AN71: 145 | AO71: 145 | AP71: 145 | AQ71: 145 | AR71: 145 | AS71: 145 | AT71: 145 | AU71: 145 | AV71: 145 | AW71: 145 | AX71: 145 | AY71: 145 | AZ71: 145 | BA71: 145 | BB71: 145
B72: Kvantitet Befintlig | C72: Grundskoleplatser | D72: 0-10År | E72: 5 | F72: Platser | H72: 0-10År_Kvantitet | J72: Grundkskolaplatser | K72: 120 | AJ72: 120 | AK72: 120 | AL72: 120 | AM72: 120 | AN72: 120 | AO72: 120 | AP72: 120 | AQ72: 120 | AR72: 120 | AS72: 120 | AT72: 120 | AU72: 120 | AV72: 120 | AW72: 120 | AX72: 120 | AY72: 120 | AZ72: 120 | BA72: 120 | BB72: 120
B73: Kvantitet Befintlig | C73: Grundskoleplatser | D73: 11-20År | E73: 15 | F73: Platser | H73: 11-20År_Kvantitet | J73: Grundkskolaplatser | K73: 120 | AJ73: 120 | AK73: 120 | AL73: 120 | AM73: 120 | AN73: 120 | AO73: 120 | AP73: 120 | AQ73: 120 | AR73: 120 | AS73: 120 | AT73: 120 | AU73: 120 | AV73: 120 | AW73: 120 | AX73: 120 | AY73: 120 | AZ73: 120 | BA73: 120 | BB73: 120
B74: Kvantitet Befintlig | C74: Gymnasieplatser | D74: 11-20År | E74: 15 | F74: Platser | H74: 11-20År_Kvantitet | J74: Gymnasieplatser | K74: 520 | AJ74: 520 | AK74: 520 | AL74: 520 | AM74: 520 | AN74: 520 | AO74: 520 | AP74: 520 | AQ74: 520 | AR74: 520 | AS74: 520 | AT74: 520 | AU74: 520 | AV74: 520 | AW74: 520 | AX74: 520 | AY74: 520 | AZ74: 520 | BA74: 520 | BB74: 520

Sheet NyttScenario
B10: IntäktKostnad | C10: Faktor | D10: Kategori | E10: Subkategori | F10: Valuta | H10: Titel | AH10: Datum | AJ10: 2021-01-01 | AK10: =EDATE(AJ10,12) -> 2022-01-01 | AL10: =EDATE(AK10,12) -> 2023-01-01 | AM10: 2024-01-01 | AN10: 2025-01-01 | AO10: 2026-01-01 | AP10: 2027-01-01 | AQ10: 2028-01-01 | AR10: 2029-01-01 | AS10: 2030-01-01 | AT10: 2031-01-01 | AU10: 2032-01-01 | AV10: 2033-01-01 | AW10: 2034-01-01 | AX10: 2035-01-01 | AY10: 2036-01-01 | AZ10: 2037-01-01 | BA10: 2038-01-01 | BB10: 2039-01-01
B12: Kvantitet
B13: Kvantitet | C13: Innevånare | D13: Nyfödda | E13: 0 | F13: Antal | H13: Nyfödda_Kvantitet | J13: Ingående | K13: 0 | L13: Minålder | M13: 0 | N13: maxålder | O13: 0 | P13: Nativitet | Q13: 0 | AJ13: =AJ16*$Q$16+AJ17*$Q$17 -> 0 | AK13: =AK16*$Q$16+AK17*$Q$17 -> 0 | AL13: 0 | AM13: 0 | AN13: 0 | AO13: 0 | AP13: 0 | AQ13: 0 | AR13: 0 | AS13: 0 | AT13: 0 | AU13: 0 | AV13: 0 | AW13: 0 | AX13: 0 | AY13: 0 | AZ13: 0 | BA13: 0 | BB13: 0
B14: Kvantitet | C14: Innevånare | D14: 0-10År | E14: 5 | F14: Antal | H14: 0-10År_Kvantitet | J14: Ingående | K14: 0 | L14: Minålder | M14: 0 | N14: maxålder | O14: 10 | P14: Nativitet | AI14: =K14 -> 0 | AJ14: =AJ13+AI14*0.9 -> 0 | AK14: =AK13+AJ14*0.9 -> 0 | AL14: 0 | AM14: 0 | AN14: 0 | AO14: 0 | AP14: 0 | AQ14: 0 | AR14: 0 | AS14: 0 | AT14: 0 | AU14: 0 | AV14: 0 | AW14: 0 | AX14: 0 | AY14: 0 | AZ14: 0 | BA14: 0 | BB14: 0
B15: Kvantitet | C15: Innevånare | D15: 11-20År | E15: 15 | F15: Antal | H15: 11-20År_Kvantitet | J15: Ingående | K15: 0 | L15: Minålder | M15: 11 | N15: maxålder | O15: 20 | P15: Nativitet | AI15: =K15 -> 0 | AJ15: =AI14*0.1+AI15*0.9 -> 0 | AK15: =AJ14*0.1+AJ15*0.9 -> 0 | AL15: =AK14*0.1+AK15*0.9 -> 0 | AM15: 0 | AN15: 0 | AO15: 0 | AP15: 0 | AQ15: 0 | AR15: 0 | AS15: 0 | AT15: 0 | AU15: 0 | AV15: 0 | AW15: 0 | AX15: 0 | AY15: 0 | AZ15: 0 | BA15: 0 | BB15: =BA14*0.1+BA15*0.9 -> 0
B16: Kvantitet | C16: Innevånare | D16: 21-30År | E16: 25 | F16: Antal | H16: 21-30År_Kvantitet | J16: Ingående | K16: 0 | L16: Minålder | M16: 21 | N16: maxålder | O16: 30 | P16: Nativitet | Q16: 0.0425 | AI16: 0 | AJ16: 0 | AK16: 0 | AL16: 0 | AM16: 0 | AN16: 0 | AO16: 0 | AP16: 0 | AQ16: 0 | AR16: 0 | AS16: 0 | AT16: 0 | AU16: 0 | AV16: 0 | AW16: 0 | AX16: 0 | AY16: 0 | AZ16: 0 | BA16: 0 | BB16: 0
B17: Kvantitet | C17: Innevånare | D17: 31-40År | E17: 35 | F17: Antal | H17: 31-40År_Kvantitet | J17: Ingående | K17: 0 | L17: Minålder | M17: 31 | N17: maxålder | O17: 40 | P17: Nativitet | Q17: 0.0425 | AI17: 0 | AJ17: 0 | AK17: 0 | AL17: 0 | AM17: 0 | AN17: 0 | AO17: 0 | AP17: 0 | AQ17: 0 | AR17: 0 | AS17: 0 | AT17: 0 | AU17: 0 | AV17: 0 | AW17: 0 | AX17: 0 | AY17: 0 | AZ17: 0 | BA17: 0 | BB17: 0
B18: Kvantitet | C18: Innevånare | D18: 41-50År | E18: 45 | F18: Antal | H18: 41-50År_Kvantitet | J18: Ingående | K18: 0 | L18: Minålder | M18: 41 | N18: maxålder | O18: 50 | AI18: 0 | AJ18: 0 | AK18: 0 | AL18: 0 | AM18: 0 | AN18: 0 | AO18: 0 | AP18: 0 | AQ18: 0 | AR18: 0 | AS18: 0 | AT18: 0 | AU18: 0 | AV18: 0 | AW18: 0 | AX18: 0 | AY18: 0 | AZ18: 0 | BA18: 0 | BB18: 0
B19: Kvantitet | C19: Innevånare | D19: 51-60År | E19: 55 | F19: Antal | H19: 51-60År_Kvantitet | J19: Ingående | K19: 0 | L19: Minålder | M19: 51 | N19: maxålder | O19: 60 | P19: Mortalitet | Q19: 0.01219512195 | AI19: 0 | AJ19: =AI18*0.1+AI19*0.9*(1-$Q19) -> 0 | AK19: =AJ18*0.1+AJ19*0.9*(1-$Q19) -> 0 | AL19: 0 | AM19: 0 | AN19: 0 | AO19: 0 | AP19: 0 | AQ19: 0 | AR19: 0 | AS19: 0 | AT19: 0 | AU19: 0 | AV19: 0 | AW19: 0 | AX19: 0 | AY19: 0 | AZ19: 0 | BA19: =AZ18*0.1+AZ19*0.9*(1-$Q19) -> 0 | BB19: 0
B20: Kvantitet | C20: Innevånare | D20: 61-70År | E20: 65 | F20: Antal | H20: 61-70År_Kvantitet | J20: Ingående | K20: 0 | L20: Minålder | M20: 61 | N20: maxålder | O20: 70 | P20: Mortalitet | Q20: 0.02195121951 | AI20: 0 | AJ20: =AI19*0.1+AI20*0.9*(1-$Q20) -> 0 | AK20: 0 | AL20: 0 | AM20: 0 | AN20: 0 | AO20: 0 | AP20: 0 | AQ20: 0 | AR20: 0 | AS20: 0 | AT20: 0 | AU20: 0 | AV20: 0 | AW20: 0 | AX20: 0 | AY20: 0 | AZ20: 0 | BA20: 0 | BB20: 0
B21: Kvantitet | C21: Innevånare | D21: 71-80År | E21: 75 | F21: Antal | H21: 71-80År_Kvantitet | J21: Ingående | K21: 0 | L21: Minålder | M21: 71 | N21: maxålder | O21: 80 | P21: Mortalitet | Q21: 0.02195121951 | AI21: 0 | AJ21: 0 | AK21: 0 | AL21: 0 | AM21: 0 | AN21: 0 | AO21: 0 | AP21: 0 | AQ21: 0 | AR21: 0 | AS21: 0 | AT21: 0 | AU21: 0 | AV21: 0 | AW21: 0 | AX21: 0 | AY21: 0 | AZ21: 0 | BA21: 0 | BB21: 0
B22: Kvantitet | C22: Innevånare | D22: 81-91År | E22: 85 | F22: Antal | H22: 81-91År_Kvantitet | J22: Ingående | K22: 0 | L22: Minålder | M22: 81 | N22: maxålder | O22: 90 | P22: Mortalitet | Q22: 0.02195121951 | AI22: 0 | AJ22: 0 | AK22: 0 | AL22: 0 | AM22: 0 | AN22: 0 | AO22: 0 | AP22: 0 | AQ22: 0 | AR22: 0 | AS22: 0 | AT22: 0 | AU22: 0 | AV22: 0 | AW22: 0 | AX22: 0 | AY22: 0 | AZ22: 0 | BA22: 0 | BB22: 0
B23: Kvantitet | C23: Innevånare | D23: 91-100År | E23: 95 | F23: Antal | H23: 91-100År_Kvantitet | J23: Ingående | K23: 0 | L23: Minålder | M23: 91 | N23: maxålder | O23: 100 | P23: Mortalitet | Q23: 0.02195121951 | AI23: 0 | AJ23: 0 | AK23: 0 | AL23: 0 | AM23: 0 | AN23: 0 | AO23: 0 | AP23: 0 | AQ23: 0 | AR23: 0 | AS23: 0 | AT23: 0 | AU23: 0 | AV23: 0 | AW23: 0 | AX23: 0 | AY23: 0 | AZ23: 0 | BA23: 0 | BB23: 0
B25: Skatteintäkter
B26: Intäkt | C26: Skatteintäkt | D26: 0-10År | E26: 5 | F26: SkatteIntäkt | H26: 0-10År_Intäkt | J26: Skatteintäkt | L26: Minålder | M26: 0 | N26: maxålder | O26: 10 | AJ26: =AJ$13*$K26 -> 0 | AK26: 0 | AL26: 0 | AM26: 0 | AN26: 0 | AO26: 0 | AP26: 0 | AQ26: 0 | AR26: 0 | AS26: 0 | AT26: 0 | AU26: 0 | AV26: 0 | AW26: 0 | AX26: 0 | AY26: 0 | AZ26: 0 | BA26: 0 | BB26: 0
B27: Intäkt | C27: Skatteintäkt | D27: 11-20År | E27: 15 | F27: SkatteIntäkt | H27: 11-20År_Intäkt | J27: Skatteintäkt | L27: Minålder | M27: 11 | N27: maxålder | O27: 20 | AJ27: =AJ$14*$K27 -> 0 | AK27: 0 | AL27: 0 | AM27: 0 | AN27: 0 | AO27: 0 | AP27: 0 | AQ27: 0 | AR27: 0 | AS27: 0 | AT27: 0 | AU27: 0 | AV27: 0 | AW27: 0 | AX27: 0 | AY27: 0 | AZ27: 0 | BA27: 0 | BB27: 0
B28: Intäkt | C28: Skatteintäkt | D28: 21-30År | E28: 25 | F28: SkatteIntäkt | H28: 21-30År_Intäkt | J28: Skatteintäkt | K28: 60745.176 | L28: Minålder | M28: 21 | N28: maxålder | O28: 30 | AJ28: =AJ$15*$K28 -> 0 | AK28: 0 | AL28: 0 | AM28: 0 | AN28: 0 | AO28: 0 | AP28: 0 | AQ28: 0 | AR28: 0 | AS28: 0 | AT28: 0 | AU28: 0 | AV28: 0 | AW28: 0 | AX28: 0 | AY28: 0 | AZ28: 0 | BA28: 0 | BB28: 0
B29: Intäkt | C29: Skatteintäkt | D29: 31-40År | E29: 35 | F29: SkatteIntäkt | H29: 31-40År_Intäkt | J29: Skatteintäkt | K29: 72092.016 | L29: Minålder | M29: 31 | N29: maxålder | O29: 40 | AJ29: =AJ$16*$K29 -> 0 | AK29: 0 | AL29: 0 | AM29: 0 | AN29: 0 | AO29: 0 | AP29: 0 | AQ29: 0 | AR29: 0 | AS29: 0 | AT29: 0 | AU29: 0 | AV29: 0 | AW29: 0 | AX29: 0 | AY29: 0 | AZ29: 0 | BA29: 0 | BB29: 0
B30: Intäkt | C30: Skatteintäkt | D30: 41-50År | E30: 45 | F30: SkatteIntäkt | H30: 41-50År_Intäkt | J30: Skatteintäkt | K30: 78372.36 | L30: Minålder | M30: 41 | N30: maxålder | O30: 50 | AJ30: =AJ$17*$K30 -> 0 | AK30: 0 | AL30: 0 | AM30: 0 | AN30: 0 | AO30: 0 | AP30: 0 | AQ30: 0 | AR30: 0 | AS30: 0 | AT30: 0 | AU30: 0 | AV30: 0 | AW30: 0 | AX30: 0 | AY30: 0 | AZ30: 0 | BA30: 0 | BB30: 0
B31: Intäkt | C31: Skatteintäkt | D31: 51-60År | E31: 55 | F31: SkatteIntäkt | H31: 51-60År_Intäkt | J31: Skatteintäkt | K31: 77765.436 | L31: Minålder | M31: 51 | N31: maxålder | O31: 60 | AJ31: =AJ$18*$K31 -> 0 | AK31: 0 | AL31: 0 | AM31: 0 | AN31: 0 | AO31: 0 | AP31: 0 | AQ31: 0 | AR31: 0 | AS31: 0 | AT31: 0 | AU31: 0 | AV31: 0 | AW31: 0 | AX31: 0 | AY31: 0 | AZ31: 0 | BA31: 0 | BB31: 0
B32: Intäkt | C32: Skatteintäkt | D32: 61-70År | E32: 65 | F32: SkatteIntäkt | H32: 61-70År_Intäkt | J32: Skatteintäkt | K32: 34093.296 | L32: Minålder | M32: 61 | N32: maxålder | O32: 70 | AJ32: =AJ$19*$K32 -> 0 | AK32: 0 | AL32: 0 | AM32: 0 | AN32: 0 | AO32: 0 | AP32: 0 | AQ32: 0 | AR32: 0 | AS32: 0 | AT32: 0 | AU32: 0 | AV32: 0 | AW32: 0 | AX32: 0 | AY32: 0 | AZ32: 0 | BA32: 0 | BB32: 0
B33: Intäkt | C33: Skatteintäkt | D33: 71-80År | E33: 75 | F33: SkatteIntäkt | H33: 71-80År_Intäkt | J33: Skatteintäkt | K33: 0 | L33: Minålder | M33: 71 | N33: maxålder | O33: 80 | AJ33: =AJ$20*$K33 -> 0 | AK33: 0 | AL33: 0 | AM33: 0 | AN33: 0 | AO33: 0 | AP33: 0 | AQ33: 0 | AR33: 0 | AS33: 0 | AT33: 0 | AU33: 0 | AV33: 0 | AW33: 0 | AX33: 0 | AY33: 0 | AZ33: 0 | BA33: 0 | BB33: 0
B34: Intäkt | C34: Skatteintäkt | D34: 81-91År | E34: 85 | F34: SkatteIntäkt | H34: 81-91År_Intäkt | J34: Skatteintäkt | K34: 0 | L34: Minålder | M34: 81 | N34: maxålder | O34: 90 | AJ34: =AJ$21*$K34 -> 0 | AK34: 0 | AL34: 0 | AM34: 0 | AN34: 0 | AO34: 0 | AP34: 0 | AQ34: 0 | AR34: 0 | AS34: 0 | AT34: 0 | AU34: 0 | AV34: 0 | AW34: 0 | AX34: 0 | AY34: 0 | AZ34: 0 | BA34: 0 | BB34: 0
B35: Intäkt | C35: Skatteintäkt | D35: 91-100År | E35: 95 | F35: SkatteIntäkt | H35: 91-100År_Intäkt | J35: Skatteintäkt | K35: 0 | L35: Minålder | M35: 91 | N35: maxålder | O35: 100 | AJ35: =AJ$22*$K35 -> 0 | AK35: 0 | AL35: 0 | AM35: 0 | AN35: 0 | AO35: 0 | AP35: 0 | AQ35: 0 | AR35: 0 | AS35: 0 | AT35: 0 | AU35: 0 | AV35: 0 | AW35: 0 | AX35: 0 | AY35: 0 | AZ35: 0 | BA35: 0 | BB35: 0
B37: Skatteutjämning
B38: Intäkt | C38: Skatteintäkt | D38: 0-10År | E38: 5 | F38: Utjämningseffekt | H38: 0-10År_Intäkt | J38: Utjämningseffekt | K38: 10000 | L38: Minålder | M38: 0 | N38: maxålder | O38: 10 | AJ38: =AJ$13*$K38 -> 0 | AK38: 0 | AL38: 0 | AM38: 0 | AN38: 0 | AO38: 0 | AP38: 0 | AQ38: 0 | AR38: 0 | AS38: 0 | AT38: 0 | AU38: 0 | AV38: 0 | AW38: 0 | AX38: 0 | AY38: 0 | AZ38: 0 | BA38: 0 | BB38: 0
B39: Intäkt | C39: Skatteintäkt | D39: 11-20År | E39: 15 | F39: Utjämningseffekt | H39: 11-20År_Intäkt | J39: Utjämningseffekt | K39: 10000 | L39: Minålder | M39: 11 | N39: maxålder | O39: 20 | AJ39: =AJ$14*$K39 -> 0 | AK39: 0 | AL39: 0 | AM39: 0 | AN39: 0 | AO39: 0 | AP39: 0 | AQ39: 0 | AR39: 0 | AS39: 0 | AT39: 0 | AU39: 0 | AV39: 0 | AW39: 0 | AX39: 0 | AY39: 0 | AZ39: 0 | BA39: 0 | BB39: 0
B40: Intäkt | C40: Skatteintäkt | D40: 21-30År | E40: 25 | F40: Utjämningseffekt | H40: 21-30År_Intäkt | J40: Utjämningseffekt | K40: 0 | L40: Minålder | M40: 21 | N40: maxålder | O40: 30 | AJ40: =AJ$15*$K40 -> 0 | AK40: 0 | AL40: 0 | AM40: 0 | AN40: 0 | AO40: 0 | AP40: 0 | AQ40: 0 | AR40: 0 | AS40: 0 | AT40: 0 | AU40: 0 | AV40: 0 | AW40: 0 | AX40: 0 | AY40: 0 | AZ40: 0 | BA40: 0 | BB40: 0
B41: Kostnad | C41: Skatteintäkt | D41: 31-40År | E41: 35 | F41: Utjämningseffekt | H41: 31-40År_Kostnad | J41: Utjämningseffekt | K41: 10000 | L41: Minålder | M41: 31 | N41: maxålder | O41: 40 | AJ41: =AJ$16*$K41 -> 0 | AK41: 0 | AL41: 0 | AM41: 0 | AN41: 0 | AO41: 0 | AP41: 0 | AQ41: 0 | AR41: 0 | AS41: 0 | AT41: 0 | AU41: 0 | AV41: 0 | AW41: 0 | AX41: 0 | AY41: 0 | AZ41: 0 | BA41: 0 | BB41: 0
B42: Kostnad | C42: Skatteintäkt | D42: 41-50År | E42: 45 | F42: Utjämningseffekt | H42: 41-50År_Kostnad | J42: Utjämningseffekt | K42: 15000 | L42: Minålder | M42: 41 | N42: maxålder | O42: 50 | AJ42: =AJ$17*$K42 -> 0 | AK42: 0 | AL42: 0 | AM42: 0 | AN42: 0 | AO42: 0 | AP42: 0 | AQ42: 0 | AR42: 0 | AS42: 0 | AT42: 0 | AU42: 0 | AV42: 0 | AW42: 0 | AX42: 0 | AY42: 0 | AZ42: 0 | BA42: 0 | BB42: 0
B43: Kostnad | C43: Skatteintäkt | D43: 51-60År | E43: 55 | F43: Utjämningseffekt | H43: 51-60År_Kostnad | J43: Utjämningseffekt | K43: 15000 | L43: Minålder | M43: 51 | N43: maxålder | O43: 60 | AJ43: =AJ$18*$K43 -> 0 | AK43: 0 | AL43: 0 | AM43: 0 | AN43: 0 | AO43: 0 | AP43: 0 | AQ43: 0 | AR43: 0 | AS43: 0 | AT43: 0 | AU43: 0 | AV43: 0 | AW43: 0 | AX43: 0 | AY43: 0 | AZ43: 0 | BA43: 0 | BB43: 0
B44: Intäkt | C44: Skatteintäkt | D44: 61-70År | E44: 65 | F44: Utjämningseffekt | H44: 61-70År_Intäkt | J44: Utjämningseffekt | K44: 0 | L44: Minålder | M44: 61 | N44: maxålder | O44: 70 | AJ44: =AJ$19*$K44 -> 0 | AK44: 0 | AL44: 0 | AM44: 0 | AN44: 0 | AO44: 0 | AP44: 0 | AQ44: 0 | AR44: 0 | AS44: 0 | AT44: 0 | AU44: 0 | AV44: 0 | AW44: 0 | AX44: 0 | AY44: 0 | AZ44: 0 | BA44: 0 | BB44: 0
B45: Intäkt | C45: Skatteintäkt | D45: 71-80År | E45: 75 | F45: Utjämningseffekt | H45: 71-80År_Intäkt | J45: Utjämningseffekt | K45: 0 | L45: Minålder | M45: 71 | N45: maxålder | O45: 80 | AJ45: =AJ$20*$K45 -> 0 | AK45: 0 | AL45: 0 | AM45: 0 | AN45: 0 | AO45: 0 | AP45: 0 | AQ45: 0 | AR45: 0 | AS45: 0 | AT45: 0 | AU45: 0 | AV45: 0 | AW45: 0 | AX45: 0 | AY45: 0 | AZ45: 0 | BA45: 0 | BB45: 0
B46: Intäkt | C46: Skatteintäkt | D46: 81-91År | E46: 85 | F46: Utjämningseffekt | H46: 81-91År_Intäkt | J46: Utjämningseffekt | K46: 0 | L46: Minålder | M46: 81 | N46: maxålder | O46: 90 | AJ46: =AJ$21*$K46 -> 0 | AK46: 0 | AL46: 0 | AM46: 0 | AN46: 0 | AO46: 0 | AP46: 0 | AQ46: 0 | AR46: 0 | AS46: 0 | AT46: 0 | AU46: 0 | AV46: 0 | AW46: 0 | AX46: 0 | AY46: 0 | AZ46: 0 | BA46: 0 | BB46: 0
B47: Intäkt | C47: Skatteintäkt | D47: 91-100År | E47: 95 | F47: Utjämningseffekt | H47: 91-100År_Intäkt | J47: Utjämningseffekt | K47: 0 | L47: Minålder | M47: 91 | N47: maxålder | O47: 100 | AJ47: =AJ$22*$K47 -> 0 | AK47: 0 | AL47: 0 | AM47: 0 | AN47: 0 | AO47: 0 | AP47: 0 | AQ47: 0 | AR47: 0 | AS47: 0 | AT47: 0 | AU47: 0 | AV47: 0 | AW47: 0 | AX47: 0 | AY47: 0 | AZ47: 0 | BA47: 0 | BB47: 0
B49: Skolplatser som behövs
B50: Kvantitet | C50: Förskoleplatser | D50: 0-10År | E50: 5 | F50: Platser | H50: 0-10År_Kvantitet | J50: Förskoleplatser | K50: 0.5 | L50: Minålder | M50: 0 | N50: maxålder | O50: 10 | AJ50: =AJ$13*$K50 -> 0 | AK50: =AK$13*$K50 -> 0 | AL50: =AL$13*$K50 -> 0 | AM50: 0 | AN50: 0 | AO50: 0 | AP50: 0 | AQ50: 0 | AR50: 0 | AS50: 0 | AT50: 0 | AU50: 0 | AV50: 0 | AW50: 0 | AX50: 0 | AY50: 0 | AZ50: 0 | BA50: 0 | BB50: =BB$13*$K50 -> 0
B51: Kvantitet | C51: Fritidshem | D51: 0-10År | E51: 5 | F51: Platser | H51: 0-10År_Kvantitet | J51: Fritidshem | K51: 0.3 | L51: Minålder | M51: 0 | N51: maxålder | O51: 10 | AJ51: 0 | AK51: 0 | AL51: 0 | AM51: 0 | AN51: 0 | AO51: 0 | AP51: 0 | AQ51: 0 | AR51: 0 | AS51: 0 | AT51: 0 | AU51: 0 | AV51: 0 | AW51: 0 | AX51: 0 | AY51: 0 | AZ51: 0 | BA51: 0 | BB51: 0
B52: Kvantitet | C52: Grundskoleplatser | D52: 0-10År | E52: 5 | F52: Platser | H52: 0-10År_Kvantitet | J52: Grundkskolaplatser | K52: 0.3 | L52: Minålder | M52: 0 | N52: maxålder | O52: 10 | AJ52: =AJ$13*$K52 -> 0 | AK52: 0 | AL52: 0 | AM52: 0 | AN52: 0 | AO52: 0 | AP52: 0 | AQ52: 0 | AR52: 0 | AS52: 0 | AT52: 0 | AU52: 0 | AV52: 0 | AW52: 0 | AX52: 0 | AY52: 0 | AZ52: 0 | BA52: 0 | BB52: 0
B53: Kvantitet | C53: Grundskoleplatser | D53: 11-20År | E53: 15 | F53: Platser | H53: 11-20År_Kvantitet | J53: Grundkskolaplatser | K53: 0.5 | L53: Minålder | M53: 11 | N53: maxålder | O53: 20 | AJ53: =AJ$14*$K53 -> 0 | AK53: =AK$14*$K53 -> 0 | AL53: 0 | AM53: 0 | AN53: 0 | AO53: 0 | AP53: 0 | AQ53: 0 | AR53: 0 | AS53: 0 | AT53: 0 | AU53: 0 | AV53: 0 | AW53: 0 | AX53: 0 | AY53: 0 | AZ53: 0 | BA53: 0 | BB53: 0
B54: Kvantitet | C54: Gymnasieplatser | D54: 11-20År | E54: 15 | F54: Platser | H54: 11-20År_Kvantitet | J54: Gymnasieplatser | K54: 0.3 | L54: Minålder | M54: 11 | N54: maxålder | O54: 20 | AJ54: =AJ$14*$K54 -> 0 | AK54: 0 | AL54: 0 | AM54: 0 | AN54: 0 | AO54: 0 | AP54: 0 | AQ54: 0 | AR54: 0 | AS54: 0 | AT54: 0 | AU54: 0 | AV54: 0 | AW54: 0 | AX54: 0 | AY54: 0 | AZ54: 0 | BA54: 0 | BB54: 0
B55: Kostnad | C55: Förskoleplatser | D55: 0-10År | E55: 55 | F55: UtbildningsUtgift | H55: 0-10År_Kostnad | J55: Dagisplatser | K55: 108000 | L55: Minålder | M55: 21 | N55: maxålder | O55: 10 | AJ55: =AJ50*$K55 -> 0 | AK55: 0 | AL55: 0 | AM55: 0 | AN55: 0 | AO55: 0 | AP55: 0 | AQ55: 0 | AR55: 0 | AS55: 0 | AT55: 0 | AU55: 0 | AV55: 0 | AW55: 0 | AX55: 0 | AY55: 0 | AZ55: 0 | BA55: 0 | BB55: 0
B56: Kostnad | C56: Förskoleplatser | D56: 0-10År | E56: 65 | F56: UtbildningsUtgift | H56: 0-10År_Kostnad | J56: Förskoleplatser | K56: 132000 | L56: Minålder | M56: 31 | N56: maxålder | O56: 10 | AJ56: 0 | AK56: 0 | AL56: 0 | AM56: 0 | AN56: 0 | AO56: 0 | AP56: 0 | AQ56: 0 | AR56: 0 | AS56: 0 | AT56: 0 | AU56: 0 | AV56: 0 | AW56: 0 | AX56: 0 | AY56: 0 | AZ56: 0 | BA56: 0 | BB56: 0
B57: Kostnad | C57: Grundskoleplatser | D57: 0-10År | E57: 75 | F57: UtbildningsUtgift | H57: 0-10År_Kostnad | J57: Grundkskolaplatser | K57: 156000 | L57: Minålder | M57: 41 | N57: maxålder | O57: 10 | AJ57: 0 | AK57: 0 | AL57: 0 | AM57: 0 | AN57: 0 | AO57: 0 | AP57: 0 | AQ57: 0 | AR57: 0 | AS57: 0 | AT57: 0 | AU57: 0 | AV57: 0 | AW57: 0 | AX57: 0 | AY57: 0 | AZ57: 0 | BA57: 0 | BB57: 0
B58: Kostnad | C58: Grundskoleplatser | D58: 11-20År | E58: 85 | F58: UtbildningsUtgift | H58: 11-20År_Kostnad | J58: Grundkskolaplatser | K58: 156000 | L58: Minålder | M58: 51 | N58: maxålder | O58: 20 | AJ58: 0 | AK58: 0 | AL58: 0 | AM58: 0 | AN58: 0 | AO58: 0 | AP58: 0 | AQ58: 0 | AR58: 0 | AS58: 0 | AT58: 0 | AU58: 0 | AV58: 0 | AW58: 0 | AX58: 0 | AY58: 0 | AZ58: 0 | BA58: 0 | BB58: 0
B59: Kostnad | C59: Gymnasieplatser | D59: 11-20År | E59: 95 | F59: UtbildningsUtgift | H59: 11-20År_Kostnad | J59: Gymnasieplatser | K59: 152000 | L59: Minålder | M59: 61 | N59: maxålder | O59: 20 | AJ59: 0 | AK59: 0 | AL59: 0 | AM59: 0 | AN59: 0 | AO59: 0 | AP59: 0 | AQ59: 0 | AR59: 0 | AS59: 0 | AT59: 0 | AU59: 0 | AV59: 0 | AW59: 0 | AX59: 0 | AY59: 0 | AZ59: 0 | BA59: 0 | BB59: 0
B61: Kapacitet
B62: Kapacitet | C62: Förskoleplatser | D62: Kapacitet | E62: Personal | F62: Personal | H62: Kapacitet_Kapacitet | J62: Kapacitet | K62: 150 | AJ62: =$K62 -> 150 | AK62: =$K62 -> 150 | AL62: 150 | AM62: 150 | AN62: 150 | AO62: 150 | AP62: 150 | AQ62: 150 | AR62: 150 | AS62: 150 | AT62: 150 | AU62: 150 | AV62: 150 | AW62: 150 | AX62: 150 | AY62: 150 | AZ62: 150 | BA62: =$K62 -> 150 | BB62: 150
B63: Kapacitet | C63: Förskoleplatser | D63: Kapacitet | E63: Lokal | F63: Lokal | H63: Kapacitet_Kapacitet | J63: Kapacitet | K63: 160 | AJ63: =$K63 -> 160 | AK63: 160 | AL63: 160 | AM63: 160 | AN63: 160 | AO63: 160 | AP63: 160 | AQ63: 160 | AR63: 160 | AS63: 160 | AT63: 160 | AU63: 160 | AV63: 160 | AW63: 160 | AX63: 160 | AY63: 160 | AZ63: 160 | BA63: 160 | BB63: 160
B64: Kapacitet | C64: Grundskoleplatser | D64: Kapacitet | E64: Personal | F64: Personal | H64: Kapacitet_Kapacitet | J64: Kapacitet | K64: 250 | AJ64: 250 | AK64: 250 | AL64: 250 | AM64: 250 | AN64: 250 | AO64: 250 | AP64: 250 | AQ64: 250 | AR64: 250 | AS64: 250 | AT64: 250 | AU64: 250 | AV64: 250 | AW64: 250 | AX64: 250 | AY64: 250 | AZ64: 250 | BA64: 250 | BB64: 250
B65: Kapacitet | C65: Grundskoleplatser | D65: Kapacitet | E65: Lokal | F65: Lokal | H65: Kapacitet_Kapacitet | J65: Kapacitet | K65: 260 | AJ65: 260 | AK65: 260 | AL65: 260 | AM65: 260 | AN65: 260 | AO65: 260 | AP65: 260 | AQ65: 260 | AR65: 260 | AS65: 260 | AT65: 260 | AU65: 260 | AV65: 260 | AW65: 260 | AX65: 260 | AY65: 260 | AZ65: 260 | BA65: 260 | BB65: 260
B66: Kapacitet | C66: Gymnasieplatser | D66: Kapacitet | E66: Personal | F66: Personal | H66: Kapacitet_Kapacitet | J66: Kapacitet | K66: 550 | AJ66: 550 | AK66: 550 | AL66: 550 | AM66: 550 | AN66: 550 | AO66: 550 | AP66: 550 | AQ66: 550 | AR66: 550 | AS66: 550 | AT66: 550 | AU66: 550 | AV66: 550 | AW66: 550 | AX66: 550 | AY66: 550 | AZ66: 550 | BA66: 550 | BB66: 550
B67: Kapacitet | C67: Gymnasieplatser | D67: Kapacitet | E67: Lokal | F67: Lokal | H67: Kapacitet_Kapacitet | J67: Kapacitet | K67: 560 | AJ67: 560 | AK67: 560 | AL67: 560 | AM67: 560 | AN67: 560 | AO67: 560 | AP67: 560 | AQ67: 560 | AR67: 560 | AS67: 560 | AT67: 560 | AU67: 560 | AV67: 560 | AW67: 560 | AX67: 560 | AY67: 560 | AZ67: 560 | BA67: 560 | BB67: 560
B69: Nuvarande skolplatser
B70: Kvantitet Befintlig | C70: Förskoleplatser | D70: 0-10År | E70: 5 | F70: Platser | H70: 0-10År_Kvantitet | J70: Förskoleplatser | K70: 155 | AJ70: =$K70 -> 155 | AK70: =$K70 -> 155 | AL70: 155 | AM70: 155 | AN70: 155 | AO70: 155 | AP70: 155 | AQ70: 155 | AR70: 155 | AS70: 155 | AT70: 155 | AU70: 155 | AV70: 155 | AW70: 155 | AX70: 155 | AY70: 155 | AZ70: 155 | BA70: =$K70 -> 155 | BB70: 155
B71: Kvantitet Befintlig | C71: Fritidshem | D71: 0-10År | E71: 5 | F71: Platser | H71: 0-10År_Kvantitet | J71: Fritidshem | K71: 145 | AJ71: =$K71 -> 145 | AK71: 145 | AL71: 145 | AM71: 145 | AN71: 145 | AO71: 145 | AP71: 145 | AQ71: 145 | AR71: 145 | AS71: 145 | AT71: 145 | AU71: 145 | AV71: 145 | AW71: 145 | AX71: 145 | AY71: 145 | AZ71: 145 | BA71: 145 | BB71: 145
B72: Kvantitet Befintlig | C72: Grundskoleplatser | D72: 0-10År | E72: 5 | F72: Platser | H72: 0-10År_Kvantitet | J72: Grundkskolaplatser | K72: 120 | AJ72: 120 | AK72: 120 | AL72: 120 | AM72: 120 | AN72: 120 | AO72: 120 | AP72: 120 | AQ72: 120 | AR72: 120 | AS72: 120 | AT72: 120 | AU72: 120 | AV72: 120 | AW72: 120 | AX72: 120 | AY72: 120 | AZ72: 120 | BA72: 120 | BB72: 120
B73: Kvantitet Befintlig | C73: Grundskoleplatser | D73: 11-20År | E73: 15 | F73: Platser | H73: 11-20År_Kvantitet | J73: Grundkskolaplatser | K73: 120 | AJ73: 120 | AK73: 120 | AL73: 120 | AM73: 120 | AN73: 120 | AO73: 120 | AP73: 120 | AQ73: 120 | AR73: 120 | AS73: 120 | AT73: 120 | AU73: 120 | AV73: 120 | AW73: 120 | AX73: 120 | AY73: 120 | AZ73: 120 | BA73: 120 | BB73: 120
B74: Kvantitet Befintlig | C74: Gymnasieplatser | D74: 11-20År | E74: 15 | F74: Platser | H74: 11-20År_Kvantitet | J74: Gymnasieplatser | K74: 520 | AJ74: 520 | AK74: 520 | AL74: 520 | AM74: 520 | AN74: 520 | AO74: 520 | AP74: 520 | AQ74: 520 | AR74: 520 | AS74: 520 | AT74: 520 | AU74: 520 | AV74: 520 | AW74: 520 | AX74: 520 | AY74: 520 | AZ74: 520 | BA74: 520 | BB74: 520

Sheet FastaInvestering
AF2: =IFERROR(OFFSET($AR$6,0,MATCH(#REF!,$EL$10:$EM$10,0)),"") -> 
AF3: =IFERROR(OFFSET($AR$6,0,MATCH(#REF!,$EL$10:$EM$10,0)),"") -> 
AF4: =IFERROR(OFFSET($AR$6,0,MATCH(#REF!,$EL$10:$EM$10,0)),"") -> 
AI5: AKTIVA FIGURER
AI6: Ja
AH8: Datum | AJ8: 2021-01-01 | AK8: =EDATE(AJ8,12) -> 2022-01-01 | AL8: =EDATE(AK8,12) -> 2023-01-01 | AM8: 2024-01-01 | AN8: 2025-01-01 | AO8: 2026-01-01 | AP8: 2027-01-01 | AQ8: 2028-01-01 | AR8: 2029-01-01 | AS8: 2030-01-01 | AT8: 2031-01-01 | AU8: 2032-01-01 | AV8: 2033-01-01 | AW8: 2034-01-01 | AX8: 2035-01-01 | AY8: 2036-01-01 | AZ8: 2037-01-01 | BA8: 2038-01-01 | BB8: 2039-01-01
B9: IntäktKostnad | C9: Faktor | D9: Kategori | E9: Subkategori | F9: Valuta | H9: Titel | AJ9: =SUMIF($B11:$B24,"Intäkt",AJ11:AJ24)-SUMIF($B11:$B24,"Kostnad",AJ11:AJ24) -> -17924500 | AK9: =SUMIF($B11:$B24,"Intäkt",AK11:AK24)-SUMIF($B11:$B24,"Kostnad",AK11:AK24) -> 0 | AL9: =SUMIF($B11:$B24,"Intäkt",AL11:AL24)-SUMIF($B11:$B24,"Kostnad",AL11:AL24) -> 0 | AM9: =SUMIF($B11:$B24,"Intäkt",AM11:AM24)-SUMIF($B11:$B24,"Kostnad",AM11:AM24) -> 0 | AN9: =SUMIF($B11:$B24,"Intäkt",AN11:AN24)-SUMIF($B11:$B24,"Kostnad",AN11:AN24) -> 0 | AO9: =SUMIF($B11:$B24,"Intäkt",AO11:AO24)-SUMIF($B11:$B24,"Kostnad",AO11:AO24) -> 0 | AP9: =SUMIF($B11:$B24,"Intäkt",AP11:AP24)-SUMIF($B11:$B24,"Kostnad",AP11:AP24) -> 0 | AQ9: =SUMIF($B11:$B24,"Intäkt",AQ11:AQ24)-SUMIF($B11:$B24,"Kostnad",AQ11:AQ24) -> 0 | AR9: =SUMIF($B11:$B24,"Intäkt",AR11:AR24)-SUMIF($B11:$B24,"Kostnad",AR11:AR24) -> 0 | AS9: =SUMIF($B11:$B24,"Intäkt",AS11:AS24)-SUMIF($B11:$B24,"Kostnad",AS11:AS24) -> 0 | AT9: =SUMIF($B11:$B24,"Intäkt",AT11:AT24)-SUMIF($B11:$B24,"Kostnad",AT11:AT24) -> 0 | AU9: =SUMIF($B11:$B24,"Intäkt",AU11:AU24)-SUMIF($B11:$B24,"Kostnad",AU11:AU24) -> 0 | AV9: =SUMIF($B11:$B24,"Intäkt",AV11:AV24)-SUMIF($B11:$B24,"Kostnad",AV11:AV24) -> 0 | AW9: =SUMIF($B11:$B24,"Intäkt",AW11:AW24)-SUMIF($B11:$B24,"Kostnad",AW11:AW24) -> 0 | AX9: =SUMIF($B11:$B24,"Intäkt",AX11:AX24)-SUMIF($B11:$B24,"Kostnad",AX11:AX24) -> 0 | AY9: =SUMIF($B11:$B24,"Intäkt",AY11:AY24)-SUMIF($B11:$B24,"Kostnad",AY11:AY24) -> 0 | AZ9: =SUMIF($B11:$B24,"Intäkt",AZ11:AZ24)-SUMIF($B11:$B24,"Kostnad",AZ11:AZ24) -> 0 | BA9: =SUMIF($B11:$B24,"Intäkt",BA11:BA24)-SUMIF($B11:$B24,"Kostnad",BA11:BA24) -> 0 | BB9: =SUMIF($B11:$B24,"Intäkt",BB11:BB24)-SUMIF($B11:$B24,"Kostnad",BB11:BB24) -> 0
A10: Ref | B10: Likviditet | C10: SE | F10: SEK | H10: Likviditet | AH10: Ingående balans | AJ10: =AJ9+AI10 -> -17924500 | AK10: =AK9+AJ10 -> -17924500 | AL10: -17924500 | AM10: -17924500 | AN10: -17924500 | AO10: -17924500 | AP10: -17924500 | AQ10: -17924500 | AR10: -17924500 | AS10: -17924500 | AT10: -17924500 | AU10: =AU9+AT10 -> -17924500 | AV10: =AV9+AU10 -> -17924500 | AW10: -17924500 | AX10: -17924500 | AY10: -17924500 | AZ10: -17924500 | BA10: -17924500 | BB10: -17924500
B12: Vad
B13: Kostnad | C13: Investering | D13: Slamtorkning | E13: Valuta | F13: SEK | H13: =D13&"_"&B13 -> Slamtorkning_Kostnad | AD13: Kvantitet | AE13: 2020-01-01 | AF13: 2028-12-01 | AG13: =M13 -> 0 | AJ13: 200000
B14: Kostnad | C14: Investering | D14: Läkemedelsrening | E14: Valuta | F14: SEK | H14: =D14&"_"&B14 -> Läkemedelsrening_Kostnad | AD14: Kvantitet | AE14: 2020-01-01 | AF14: 2028-12-01 | AG14: =M14 -> 0 | AJ14: 250000
B15: Kostnad | C15: Investering | D15: Områdesmätare | E15: Valuta | F15: SEK | H15: Områdesmätare_Kostnad | AD15: Kvantitet | AE15: 2020-01-01 | AF15: 2028-12-01 | AG15: =M15 -> 0 | AJ15: 1025000
B16: Kostnad | C16: Investering | D16: Flödesmätare APU | E16: Valuta | F16: SEK | H16: Flödesmätare APU_Kostnad | AD16: Kvantitet | AE16: 2020-01-01 | AF16: 2028-12-01 | AG16: 0 | AJ16: 187500
B17: Kostnad | C17: Investering | D17: Dricksv Ålder/Material | E17: Valuta | F17: SEK | H17: Dricksv Ålder/Material_Kostnad | AD17: Kvantitet | AE17: 2020-01-01 | AF17: 2028-12-01 | AG17: 0 | AJ17: 3930000
B18: Kostnad | C18: Investering | D18: Spillv Ålder/Material | E18: Valuta | F18: SEK | H18: Spillv Ålder/Material_Kostnad | AJ18: 8457000
B19: Kostnad | C19: Investering | D19: Dagv Ålder/Material | E19: Valuta | F19: SEK | H19: Dagv Ålder/Material_Kostnad | AJ19: 2475000
B20: Kostnad | C20: Investering | D20: Slamhantering Fällningsdammar | E20: Valuta | F20: SEK | H20: Slamhantering Fällningsdammar_Kostnad | AJ20: 700000
B21: Kostnad | C21: Investering | D21: Kemikaliebyten | E21: Valuta | F21: SEK | H21: Kemikaliebyten_Kostnad | AJ21: 700000
B22: Kostnad | C22: Investering | E22: Valuta | F22: SEK | H22: _Kostnad | AJ22: 0
B23: Kostnad | C23: Investering | E23: Valuta | F23: SEK | H23: _Kostnad | AJ23: 0

Sheet PVT_PNL
E11: Sum of Värden_KostnaderNegativa
F12: 2021 | G12: 2022 | H12: 2023 | I12: 2024 | J12: 2025 | K12: 2026 | L12: 2027 | M12: 2028 | N12: 2029 | O12: 2030 | P12: 2031 | Q12: 2032 | R12: 2033 | S12: 2034
E13: Förskoleplatser
E14: Kostnad
E15: 0-10År | F15: -385866 | G15: -372539.7 | H15: -358382.8931 | I15: -343851.2839 | J15: -329308.4937 | K15: -315038.8431 | L15: -301258.9301 | M15: -288128.0379 | N15: -275757.4217 | O15: -264218.5356 | P15: -253550.2664 | Q15: -243765.2475 | R15: -234855.3262 | S15: -226796.2603
E16: Kostnad Total | F16: -385866 | G16: -372539.7 | H16: -358382.8931 | I16: -343851.2839 | J16: -329308.4937 | K16: -315038.8431 | L16: -301258.9301 | M16: -288128.0379 | N16: -275757.4217 | O16: -264218.5356 | P16: -253550.2664 | Q16: -243765.2475 | R16: -234855.3262 | S16: -226796.2603
E17: Förskoleplatser Total | F17: -385866 | G17: -372539.7 | H17: -358382.8931 | I17: -343851.2839 | J17: -329308.4937 | K17: -315038.8431 | L17: -301258.9301 | M17: -288128.0379 | N17: -275757.4217 | O17: -264218.5356 | P17: -253550.2664 | Q17: -243765.2475 | R17: -234855.3262 | S17: -226796.2603
E18: Gymnasieplatser
E19: Kostnad
E20: 11-20År | F20: -393186 | G20: -535361.1 | H20: -656421.7841 | I20: -758296.8978 | J20: -842899.5511 | K20: -912090.058 | L20: -967648.2233 | M20: -1011253.471 | N20: -1044471.483 | O20: -1068746.185 | P20: -1085396.056 | Q20: -1095613.878 | R20: -1100469.188 | S20: -1100912.755
E21: Kostnad Total | F21: -393186 | G21: -535361.1 | H21: -656421.7841 | I21: -758296.8978 | J21: -842899.5511 | K21: -912090.058 | L21: -967648.2233 | M21: -1011253.471 | N21: -1044471.483 | O21: -1068746.185 | P21: -1085396.056 | Q21: -1095613.878 | R21: -1100469.188 | S21: -1100912.755
E22: Gymnasieplatser Total | F22: -393186 | G22: -535361.1 | H22: -656421.7841 | I22: -758296.8978 | J22: -842899.5511 | K22: -912090.058 | L22: -967648.2233 | M22: -1011253.471 | N22: -1044471.483 | O22: -1068746.185 | P22: -1085396.056 | Q22: -1095613.878 | R22: -1100469.188 | S22: -1100912.755
E23: Skatteintäkt
E24: Intäkt | F24: 8331558.364 | G24: 8395570.767 | H24: 8456895.876 | I24: 8513272.514 | J24: 8563010.062 | K24: 8604913.946 | L24: 8638214.247 | M24: 8662498.696 | N24: 8677650.843 | O24: 8683793.901 | P24: 8681240.441 | Q24: 8670447.963 | R24: 8651980.157 | S24: 8626473.611
E25: Kostnad
E26: 31-40År | F26: -630000 | G26: -567500 | H26: -512062.25 | I26: -463211.0875 | J26: -420449.0565 | K26: -383270.2525 | L26: -351171.1828 | M26: -323659.4219 | N26: -300260.337 | O26: -280522.136 | P26: -264019.4794 | Q26: -250355.8744 | R26: -239165.0501 | S26: -230111.494
E27: 41-50År | F27: -510000 | G27: -553500 | H27: -583275 | I27: -601756.8375 | J27: -611062.8169 | K27: -613023.8937 | L27: -609212.0422 | M27: -600966.5154 | N27: -589418.7771 | O27: -575515.95 | P27: -560042.6754 | Q27: -543641.3297 | R27: -526830.5779 | S27: -510022.2776
E28: 51-60År | F28: -180000 | G28: -213000 | H28: -247050 | I28: -280672.5 | J28: -312780.9338 | K28: -342609.1221 | L28: -369650.5992 | M28: -393606.7435 | N28: -414342.7207 | O28: -431850.3263 | P28: -446216.8887 | Q28: -457599.4674 | R28: -466203.6536 | S28: -472266.346
E29: Kostnad Total | F29: -1320000 | G29: -1334000 | H29: -1342387.25 | I29: -1345640.425 | J29: -1344292.807 | K29: -1338903.268 | L29: -1330033.824 | M29: -1318232.681 | N29: -1304021.835 | O29: -1287888.412 | P29: -1270279.043 | Q29: -1251596.672 | R29: -1232199.282 | S29: -1212400.118
E30: Skatteintäkt Total | F30: 7011558.364 | G30: 7061570.767 | H30: 7114508.626 | I30: 7167632.089 | J30: 7218717.255 | K30: 7266010.678 | L30: 7308180.423 | M30: 7344266.015 | N30: 7373629.008 | O30: 7395905.488 | P30: 7410961.398 | Q30: 7418851.291 | R30: 7419780.875 | S30: 7414073.494
E31: Grundskoleplatser
E32: Kostnad
E33: 0-10År | F33: -192933 | G33: -186269.85 | H33: -179191.4465 | I33: -171925.642 | J33: -164654.2468 | K33: -157519.4215 | L33: -150629.465 | M33: -144064.019 | N33: -137878.7109 | O33: -132109.2678 | P33: -126775.1332 | Q33: -121882.6237 | R33: -117427.6631 | S33: -113398.1302
E34: 11-20År | F34: -672555 | G34: -915749.25 | H34: -1122826.736 | I34: -1297086.799 | J34: -1441801.864 | K34: -1560154.047 | L34: -1655187.75 | M34: -1729775.674 | N34: -1786595.958 | O34: -1828118.475 | P34: -1856598.516 | Q34: -1874076.371 | R34: -1882381.505 | S34: -1883140.239
E35: Kostnad Total | F35: -865488 | G35: -1102019.1 | H35: -1302018.182 | I35: -1469012.441 | J35: -1606456.111 | K35: -1717673.468 | L35: -1805817.215 | M35: -1873839.693 | N35: -1924474.669 | O35: -1960227.743 | P35: -1983373.649 | Q35: -1995958.994 | R35: -1999809.169 | S35: -1996538.369
E36: Grundskoleplatser Total | F36: -865488 | G36: -1102019.1 | H36: -1302018.182 | I36: -1469012.441 | J36: -1606456.111 | K36: -1717673.468 | L36: -1805817.215 | M36: -1873839.693 | N36: -1924474.669 | O36: -1960227.743 | P36: -1983373.649 | Q36: -1995958.994 | R36: -1999809.169 | S36: -1996538.369
E37: Investering
E38: Kostnad
E39: Slamtorkning | F39: -200000
E40: Läkemedelsrening | F40: -250000
E41: Områdesmätare | F41: -1025000
E42: Flödesmätare APU | F42: -187500
E43: Dricksv Ålder/Material | F43: -3930000
E44: Spillv Ålder/Material | F44: -8457000
E45: Dagv Ålder/Material | F45: -2475000
E46: Slamhantering Fällningsdammar | F46: -700000
E47: Kemikaliebyten | F47: -700000
E48: Kostnad Total | F48: -17924500
E49: Investering Total | F49: -17924500
E50: Resultat | F50: -12557481.64 | G50: 5051650.867 | H50: 4797685.767 | I50: 4596471.467 | J50: 4440053.1 | K50: 4321208.308 | L50: 4233456.054 | M50: 4171044.814 | N50: 4128925.435 | O50: 4102713.025 | P50: 4088641.426 | Q50: 4083513.171 | R50: 4084647.193 | S50: 4089826.11

Sheet PVT_AntalPlatser
E11: Sum of Värden_KostnaderNegativa
F12: 2024 | G12: 2025 | H12: 2026 | I12: 2027 | J12: 2028 | K12: 2029 | L12: 2030 | M12: 2023 | N12: 2022
E13: Förskoleplatser | F13: 7.630179992 | G13: 7.454788058 | H13: 507.2818911 | I13: 507.1137358 | J13: 506.9520191 | K13: 506.7979683 | L13: 506.6524137 | M13: 7.805183969 | N13: 7.9761875
E14: Gymnasieplatser | F14: 480.9914737 | G14: 482.3651992 | H14: 453.4978139 | I14: 454.4162741 | J14: 455.1458581 | K14: 455.7100533 | L14: 456.1304962 | M14: 29.34818413 | N14: 27.4056375
E15: Grundskoleplatser | F15: 806.2305642 | G15: 808.4148715 | H15: 1060.198825 | I15: 1061.628698 | J15: 1062.747642 | K15: 1063.595536 | L15: 1064.208942 | M15: 53.5967506 | N15: 50.461775
E16: Fritidshem
E17: Platser
E18: 0-10År | F18: 4.578107995 | G18: 4.472872835 | H18: 304.3691347 | I18: 304.2682415 | J18: 304.1712115 | K18: 304.078781 | L18: 303.9914482 | M18: 4.683110381 | N18: 4.7857125
E19: Platser Total | F19: 4.578107995 | G19: 4.472872835 | H19: 304.3691347 | I19: 304.2682415 | J19: 304.1712115 | K19: 304.078781 | L19: 303.9914482 | M19: 4.683110381 | N19: 4.7857125
E20: Fritidshem Total | F20: 4.578107995 | G20: 4.472872835 | H20: 304.3691347 | I20: 304.2682415 | J20: 304.1712115 | K20: 304.078781 | L20: 303.9914482 | M20: 4.683110381 | N20: 4.7857125
Q66: 1000000

Sheet PVT_Kapacitet
E11: Sum of Values2
F12: Platser | G12: Personal | H12: Lokal
G13: Kapacitet | H13: Kapacitet
E14: 2024 | F14: 249.4167464 | G14: 250 | H14: 260
E15: 2025 | F15: 250.2977956 | G15: 250 | H15: 260
E16: 2026 | F16: 251.0107274 | G16: 250 | H16: 260
E17: 2027 | F17: 251.5757514 | G17: 250 | H17: 260
E18: 2028 | F18: 252.0117929 | G18: 250 | H18: 260
E19: 2029 | F19: 252.3363761 | G19: 250 | H19: 260
E20: 2030 | F20: 252.5655625 | G20: 250 | H20: 260
E21: 2023 | F21: 248.3462704 | G21: 250 | H21: 260
E22: 2022 | F22: 247.064225 | G22: 250 | H22: 260
Q66: 1000000

Sheet PVT_PNL_Graph
AD1: 3 | AE1: 4 | AF1: 5 | AG1: 6
E10: Segment | F10: (All)
O11: =IF(E13<>"",E13,"") -> Year | P11: =IF(F13<>"",F13,"") -> Kostnad | Q11: =IF(G13<>"",G13,"") -> Grand Total | R11: Resultat | S11: =IF(I13<>"",I13,"") -> 
E12: Sum of Värden_KostnaderNegativa | F12: DataTyp | O12: =IF(O$11<>"",IF(E14<>"",E14,""),"") -> 2024 | P12: -23735 | Q12: -23735 | R12: =IF(R$11<>"",IF(H14<>"",H14,""),"") ->  | S12: =IF(S$11<>"",IF(I14<>"",I14,""),"") ->  | T12: =IF(J13<>"",J13,"") ->  | U12: =IF(K13<>"",K13,"") -> 
E13: Year | F13: Kostnad | G13: Grand Total | O13: 2025 | P13: -21440 | Q13: -21440 | T13: =IF(T$12<>"",IF(J14<>"",J14,""),"") -> 
E14: 2024 | F14: -23735 | G14: -23735 | O14: 2026 | P14: -24590 | Q14: -24590
E15: 2025 | F15: -21440 | G15: -21440 | O15: 2027 | P15: -22590 | Q15: -22590
E16: 2026 | F16: -24590 | G16: -24590 | O16: 2028 | P16: -22590 | Q16: -22590
E17: 2027 | F17: -22590 | G17: -22590 | O17: 2029 | P17: -22575 | Q17: -22575
E18: 2028 | F18: -22590 | G18: -22590 | O18: 2030 | P18: -22825 | Q18: -22825
E19: 2029 | F19: -22575 | G19: -22575 | O19: 2031 | P19: -21825 | Q19: -21825
E20: 2030 | F20: -22825 | G20: -22825 | O20: 2032 | P20: -21825 | Q20: -21825
E21: 2031 | F21: -21825 | G21: -21825
E22: 2032 | F22: -21825 | G22: -21825
E23: 2033 | F23: -21825 | G23: -21825 | O23: =IF(O$11<>"",IF(E23<>"",E23,""),"") -> 2033 | P23: -21825 | Q23: -21825 | T23: =IF(T$12<>"",IF(J22<>"",J22,""),"") -> 
E24: 2034 | F24: -21825 | G24: -21825 | O24: 2034 | P24: -21825 | Q24: -21825
E25: 2035 | F25: -24250 | G25: -24250 | O25: 2035 | P25: -24250 | Q25: -24250
E26: 2021 | F26: -17924500 | G26: -17924500 | O26: 2021 | P26: -17924500 | Q26: -17924500

Sheet PVT_Liquidity_Monthly
E7: Lägsta kassanivå | F7: =IFERROR(MIN(F12:F120),"") -> -3583063989
F8: =IFERROR(INDEX($E$11:$F$213,MATCH(F7,F11:F213,0),1),"") -> 2030_01
E11: YearMonth | F11: Sum of Värden_KostnaderNegativa | CA11: =E11 -> YearMonth | CB11: LikviditetResultat | CC11: År
E12: 2024_01 | F12: -425402971.1 | CA12: 2024_01 | CB12: =F12 -> -425402971.1
E13: 2025_01 | F13: -851145965.1 | CA13: 2025_01 | CB13: -851145965.1 | CC13: =IF(LEFT(CA13,4)=LEFT(CA12,4),"",LEFT(CA13,4)) -> 2025
E14: 2026_01 | F14: -1396203408 | CA14: 2026_01 | CB14: -1396203408 | CC14: =IF(LEFT(CA14,4)=LEFT(CA13,4),"",LEFT(CA14,4)) -> 2026
E15: 2027_01 | F15: -1941468037 | CA15: 2027_01 | CB15: -1941468037 | CC15: 2027
E16: 2028_01 | F16: -2486891512 | CA16: 2028_01 | CB16: -2486891512 | CC16: 2028
E17: 2029_01 | F17: -3032433780 | CA17: 2029_01 | CB17: -3032433780 | CC17: 2029
E18: 2030_01 | F18: -3583063989 | CA18: 2030_01 | CB18: -3583063989 | CC18: 2030
E19: 2023_01 | F19: -3558606006 | CA19: 2023_01 | CB19: -3558606006 | CC19: 2023
E20: 2022_01 | F20: -3533599437 | CA20: 2022_01 | CB20: -3533599437 | CC20: 2022
CA21: 0 | CB21: 0 | CC21: 0
CA22: 0 | CB22: 0
CA23: 0 | CB23: 0
CA24: 0 | CB24: 0
CA25: 0 | CB25: 0
CA26: 0 | CB26: 0
CA27: 0 | CB27: 0
CA28: 0 | CB28: 0
CA29: 0 | CB29: 0
CA30: 0 | CB30: 0
CA31: 0 | CB31: 0
CA32: 0 | CB32: 0
CA33: 0 | CB33: 0
CA34: 0 | CB34: 0
CA35: 0 | CB35: 0
CA36: 0 | CB36: 0
CA37: 0 | CB37: 0
CA38: 0 | CB38: 0
CA39: 0 | CB39: 0
CA40: 0 | CB40: 0
CA41: 0 | CB41: 0
CA42: 0 | CB42: 0
CA43: =E43 -> 0 | CB43: 0
CA44: 0 | CB44: =F44 -> 0
CA45: 0 | CB45: 0
CA46: 0 | CB46: 0
CA47: 0 | CB47: 0
CA48: 0 | CB48: 0
CA49: 0 | CB49: 0
CA50: 0 | CB50: 0
CA51: 0 | CB51: 0
CA52: 0 | CB52: 0
CA53: 0 | CB53: 0
CA54: 0 | CB54: 0
CA55: 0 | CB55: 0
CA56: 0 | CB56: 0
CA57: 0 | CB57: 0
CA58: 0 | CB58: 0
CA59: 0 | CB59: 0
CA60: 0 | CB60: 0
CA61: 0 | CB61: 0
CA62: 0 | CB62: 0
CA63: 0 | CB63: 0
CA64: 0 | CB64: 0
CA65: 0 | CB65: 0
CA66: 0 | CB66: 0
CA67: 0 | CB67: 0
CA68: 0 | CB68: 0
CA69: 0 | CB69: 0
CA70: 0 | CB70: 0
CA71: 0 | CB71: 0
CA72: 0 | CB72: 0
CA73: 0 | CB73: 0
CA74: 0 | CB74: 0
CA75: =E75 -> 0 | CB75: 0
CA76: 0 | CB76: =F76 -> 0
CA77: 0 | CB77: 0
CA78: 0 | CB78: 0 | CC78: =IF(LEFT(CA78,4)=LEFT(CA77,4),"",LEFT(CA78,4)) -> 
CA79: 0 | CB79: 0
CA80: 0 | CB80: 0
CA81: 0 | CB81: 0
CA82: 0 | CB82: 0
CA83: 0 | CB83: 0
CA84: 0 | CB84: 0
CA85: 0 | CB85: 0
CA86: 0 | CB86: 0
CA87: 0 | CB87: 0
CA88: 0 | CB88: 0
CA89: 0 | CB89: 0
CA90: 0 | CB90: 0
CA91: 0 | CB91: 0
CA92: 0 | CB92: 0
CA93: 0 | CB93: 0
CA94: 0 | CB94: 0
CA95: 0 | CB95: 0
CA96: 0 | CB96: 0
CA97: 0 | CB97: 0
CA98: 0 | CB98: 0
CA99: 0 | CB99: 0
CA100: 0 | CB100: 0
CA101: 0 | CB101: 0
CA102: 0 | CB102: 0
CA103: 0 | CB103: 0
CA104: 0 | CB104: 0
CA105: 0 | CB105: 0
CA106: 0 | CB106: 0
CA107: =E107 -> 0 | CB107: 0
CA108: 0 | CB108: =F108 -> 0
CA109: 0 | CB109: 0
CA110: 0 | CB110: 0
CA111: 0 | CB111: 0
CA112: 0 | CB112: 0
CA113: 0 | CB113: 0
CA114: 0 | CB114: 0
CA115: 0 | CB115: 0
CA116: 0 | CB116: 0
CA117: 0 | CB117: 0
CA118: 0 | CB118: 0
CA119: 0 | CB119: 0
CA120: 0 | CB120: 0

Sheet PVT_IncomeCost
E11: Sum of Values2 | F11: Column Labels
E12: Row Labels | F12: 0-10År | G12: 11-20År | H12: 31-40År | I12: 41-50År | J12: 51-60År | K12: Slamtorkning | L12: Läkemedelsrening | M12: Områdesmätare | N12: Flödesmätare APU | O12: Dricksv Ålder/Material | P12: Spillv Ålder/Material | Q12: Dagv Ålder/Material | R12: Slamhantering Fällningsdammar | S12: Kemikaliebyten | T12: Anläggningsavgifter (tkr) | U12: Grand Total
E13: Kostnad | F13: 738111214.7 | G13: 2368551482 | H13: 652308572.8 | I13: 2199314453 | J13: 641947652 | K13: 203800 | L13: 254500 | M13: 1040450 | N13: 190405 | O13: 3986700 | P13: 8587250 | Q13: 2511490 | R13: 710900 | S13: 710900 | T13: 10055 | U13: 6618439824
E114: Customer Acqusition | L114: CAC | M114: 10000 | AF114: 2028-12-01 | AG114: =M114 -> 10000 | AJ114: =IFERROR(IF($AD114="Månatlig",IF(AND(AJ$8<$AF114,AJ$8>=$AE114),$AG114,0),IF($AD114="Kvartalsvis",IF(AND(MONTH(AJ$8)/3=ROUND(MONTH(AJ$8)/3,0),AJ$8<$AF114,AJ$8>=$AE114),$AG114*3,0),IF($AD114="ProcentKostnad",$AG114*AJ$112,IF($AD114="ProduktProcent",AJ$112*$M114/$L114*$AG114,IF($AD114="FaktorKostnad",AJ$112*$AG114,IF(AD114="Kvantitet",ROUND($AG114*AJ$112,0),"")))))),"") ->  | AK114: =IFERROR(IF($AD114="Månatlig",IF(AND(AK$8<$AF114,AK$8>=$AE114),$AG114,0),IF($AD114="Kvartalsvis",IF(AND(MONTH(AK$8)/3=ROUND(MONTH(AK$8)/3,0),AK$8<$AF114,AK$8>=$AE114),$AG114*3,0),IF($AD114="ProcentKostnad",$AG114*AK$112,IF($AD114="ProduktProcent",AK$112*$M114/$L114*$AG114,IF($AD114="FaktorKostnad",AK$112*$AG114,IF(AE114="Kvantitet",ROUND($AG114*AK$112,0),"")))))),"") ->  | AL114: =IFERROR(IF($AD114="Månatlig",IF(AND(AL$8<$AF114,AL$8>=$AE114),$AG114,0),IF($AD114="Kvartalsvis",IF(AND(MONTH(AL$8)/3=ROUND(MONTH(AL$8)/3,0),AL$8<$AF114,AL$8>=$AE114),$AG114*3,0),IF($AD114="ProcentKostnad",$AG114*AL$112,IF($AD114="ProduktProcent",AL$112*$M114/$L114*$AG114,IF($AD114="FaktorKostnad",AL$112*$AG114,IF(AF114="Kvantitet",ROUND($AG114*AL$112,0),"")))))),"") ->  | AM114: =IFERROR(IF($AD114="Månatlig",IF(AND(AM$8<$AF114,AM$8>=$AE114),$AG114,0),IF($AD114="Kvartalsvis",IF(AND(MONTH(AM$8)/3=ROUND(MONTH(AM$8)/3,0),AM$8<$AF114,AM$8>=$AE114),$AG114*3,0),IF($AD114="ProcentKostnad",$AG114*AM$112,IF($AD114="ProduktProcent",AM$112*$M114/$L114*$AG114,IF($AD114="FaktorKostnad",AM$112*$AG114,IF(AG114="Kvantitet",ROUND($AG114*AM$112,0),"")))))),"") ->  | AN114: =IFERROR(IF($AD114="Månatlig",IF(AND(AN$8<$AF114,AN$8>=$AE114),$AG114,0),IF($AD114="Kvartalsvis",IF(AND(MONTH(AN$8)/3=ROUND(MONTH(AN$8)/3,0),AN$8<$AF114,AN$8>=$AE114),$AG114*3,0),IF($AD114="ProcentKostnad",$AG114*AN$112,IF($AD114="ProduktProcent",AN$112*$M114/$L114*$AG114,IF($AD114="FaktorKostnad",AN$112*$AG114,IF(AH114="Kvantitet",ROUND($AG114*AN$112,0),"")))))),"") ->  | AO114: =IFERROR(IF($AD114="Månatlig",IF(AND(AO$8<$AF114,AO$8>=$AE114),$AG114,0),IF($AD114="Kvartalsvis",IF(AND(MONTH(AO$8)/3=ROUND(MONTH(AO$8)/3,0),AO$8<$AF114,AO$8>=$AE114),$AG114*3,0),IF($AD114="ProcentKostnad",$AG114*AO$112,IF($AD114="ProduktProcent",AO$112*$M114/$L114*$AG114,IF($AD114="FaktorKostnad",AO$112*$AG114,IF(AI114="Kvantitet",ROUND($AG114*AO$112,0),"")))))),"") ->  | AP114: =IFERROR(IF($AD114="Månatlig",IF(AND(AP$8<$AF114,AP$8>=$AE114),$AG114,0),IF($AD114="Kvartalsvis",IF(AND(MONTH(AP$8)/3=ROUND(MONTH(AP$8)/3,0),AP$8<$AF114,AP$8>=$AE114),$AG114*3,0),IF($AD114="ProcentKostnad",$AG114*AP$112,IF($AD114="ProduktProcent",AP$112*$M114/$L114*$AG114,IF($AD114="FaktorKostnad",AP$112*$AG114,IF(AJ114="Kvantitet",ROUND($AG114*AP$112,0),"")))))),"") ->  | AQ114: =IFERROR(IF($AD114="Månatlig",IF(AND(AQ$8<$AF114,AQ$8>=$AE114),$AG114,0),IF($AD114="Kvartalsvis",IF(AND(MONTH(AQ$8)/3=ROUND(MONTH(AQ$8)/3,0),AQ$8<$AF114,AQ$8>=$AE114),$AG114*3,0),IF($AD114="ProcentKostnad",$AG114*AQ$112,IF($AD114="ProduktProcent",AQ$112*$M114/$L114*$AG114,IF($AD114="FaktorKostnad",AQ$112*$AG114,IF(AK114="Kvantitet",ROUND($AG114*AQ$112,0),"")))))),"") ->  | AR114: =IFERROR(IF($AD114="Månatlig",IF(AND(AR$8<$AF114,AR$8>=$AE114),$AG114,0),IF($AD114="Kvartalsvis",IF(AND(MONTH(AR$8)/3=ROUND(MONTH(AR$8)/3,0),AR$8<$AF114,AR$8>=$AE114),$AG114*3,0),IF($AD114="ProcentKostnad",$AG114*AR$112,IF($AD114="ProduktProcent",AR$112*$M114/$L114*$AG114,IF($AD114="FaktorKostnad",AR$112*$AG114,IF(AL114="Kvantitet",ROUND($AG114*AR$112,0),"")))))),"") ->  | AS114: =IFERROR(IF($AD114="Månatlig",IF(AND(AS$8<$AF114,AS$8>=$AE114),$AG114,0),IF($AD114="Kvartalsvis",IF(AND(MONTH(AS$8)/3=ROUND(MONTH(AS$8)/3,0),AS$8<$AF114,AS$8>=$AE114),$AG114*3,0),IF($AD114="ProcentKostnad",$AG114*AS$112,IF($AD114="ProduktProcent",AS$112*$M114/$L114*$AG114,IF($AD114="FaktorKostnad",AS$112*$AG114,IF(AM114="Kvantitet",ROUND($AG114*AS$112,0),"")))))),"") ->  | AT114: =IFERROR(IF($AD114="Månatlig",IF(AND(AT$8<$AF114,AT$8>=$AE114),$AG114,0),IF($AD114="Kvartalsvis",IF(AND(MONTH(AT$8)/3=ROUND(MONTH(AT$8)/3,0),AT$8<$AF114,AT$8>=$AE114),$AG114*3,0),IF($AD114="ProcentKostnad",$AG114*AT$112,IF($AD114="ProduktProcent",AT$112*$M114/$L114*$AG114,IF($AD114="FaktorKostnad",AT$112*$AG114,IF(AN114="Kvantitet",ROUND($AG114*AT$112,0),"")))))),"") ->  | AU114: =IFERROR(IF($AD114="Månatlig",IF(AND(AU$8<$AF114,AU$8>=$AE114),$AG114,0),IF($AD114="Kvartalsvis",IF(AND(MONTH(AU$8)/3=ROUND(MONTH(AU$8)/3,0),AU$8<$AF114,AU$8>=$AE114),$AG114*3,0),IF($AD114="ProcentKostnad",$AG114*AU$112,IF($AD114="ProduktProcent",AU$112*$M114/$L114*$AG114,IF($AD114="FaktorKostnad",AU$112*$AG114,IF(AO114="Kvantitet",ROUND($AG114*AU$112,0),"")))))),"") ->  | AV114: =IFERROR(IF($AD114="Månatlig",IF(AND(AV$8<$AF114,AV$8>=$AE114),$AG114,0),IF($AD114="Kvartalsvis",IF(AND(MONTH(AV$8)/3=ROUND(MONTH(AV$8)/3,0),AV$8<$AF114,AV$8>=$AE114),$AG114*3,0),IF($AD114="ProcentKostnad",$AG114*AV$112,IF($AD114="ProduktProcent",AV$112*$M114/$L114*$AG114,IF($AD114="FaktorKostnad",AV$112*$AG114,IF(AP114="Kvantitet",ROUND($AG114*AV$112,0),"")))))),"") ->  | AW114: =IFERROR(IF($AD114="Månatlig",IF(AND(AW$8<$AF114,AW$8>=$AE114),$AG114,0),IF($AD114="Kvartalsvis",IF(AND(MONTH(AW$8)/3=ROUND(MONTH(AW$8)/3,0),AW$8<$AF114,AW$8>=$AE114),$AG114*3,0),IF($AD114="ProcentKostnad",$AG114*AW$112,IF($AD114="ProduktProcent",AW$112*$M114/$L114*$AG114,IF($AD114="FaktorKostnad",AW$112*$AG114,IF(AQ114="Kvantitet",ROUND($AG114*AW$112,0),"")))))),"") ->  | AX114: =IFERROR(IF($AD114="Månatlig",IF(AND(AX$8<$AF114,AX$8>=$AE114),$AG114,0),IF($AD114="Kvartalsvis",IF(AND(MONTH(AX$8)/3=ROUND(MONTH(AX$8)/3,0),AX$8<$AF114,AX$8>=$AE114),$AG114*3,0),IF($AD114="ProcentKostnad",$AG114*AX$112,IF($AD114="ProduktProcent",AX$112*$M114/$L114*$AG114,IF($AD114="FaktorKostnad",AX$112*$AG114,IF(AR114="Kvantitet",ROUND($AG114*AX$112,0),"")))))),"") ->  | AY114: =IFERROR(IF($AD114="Månatlig",IF(AND(AY$8<$AF114,AY$8>=$AE114),$AG114,0),IF($AD114="Kvartalsvis",IF(AND(MONTH(AY$8)/3=ROUND(MONTH(AY$8)/3,0),AY$8<$AF114,AY$8>=$AE114),$AG114*3,0),IF($AD114="ProcentKostnad",$AG114*AY$112,IF($AD114="ProduktProcent",AY$112*$M114/$L114*$AG114,IF($AD114="FaktorKostnad",AY$112*$AG114,IF(AS114="Kvantitet",ROUND($AG114*AY$112,0),"")))))),"") ->  | AZ114: =IFERROR(IF($AD114="Månatlig",IF(AND(AZ$8<$AF114,AZ$8>=$AE114),$AG114,0),IF($AD114="Kvartalsvis",IF(AND(MONTH(AZ$8)/3=ROUND(MONTH(AZ$8)/3,0),AZ$8<$AF114,AZ$8>=$AE114),$AG114*3,0),IF($AD114="ProcentKostnad",$AG114*AZ$112,IF($AD114="ProduktProcent",AZ$112*$M114/$L114*$AG114,IF($AD114="FaktorKostnad",AZ$112*$AG114,IF(AT114="Kvantitet",ROUND($AG114*AZ$112,0),"")))))),"") ->  | BA114: =IFERROR(IF($AD114="Månatlig",IF(AND(BA$8<$AF114,BA$8>=$AE114),$AG114,0),IF($AD114="Kvartalsvis",IF(AND(MONTH(BA$8)/3=ROUND(MONTH(BA$8)/3,0),BA$8<$AF114,BA$8>=$AE114),$AG114*3,0),IF($AD114="ProcentKostnad",$AG114*BA$112,IF($AD114="ProduktProcent",BA$112*$M114/$L114*$AG114,IF($AD114="FaktorKostnad",BA$112*$AG114,IF(AU114="Kvantitet",ROUND($AG114*BA$112,0),"")))))),"") ->  | BB114: =IFERROR(IF($AD114="Månatlig",IF(AND(BB$8<$AF114,BB$8>=$AE114),$AG114,0),IF($AD114="Kvartalsvis",IF(AND(MONTH(BB$8)/3=ROUND(MONTH(BB$8)/3,0),BB$8<$AF114,BB$8>=$AE114),$AG114*3,0),IF($AD114="ProcentKostnad",$AG114*BB$112,IF($AD114="ProduktProcent",BB$112*$M114/$L114*$AG114,IF($AD114="FaktorKostnad",BB$112*$AG114,IF(AV114="Kvantitet",ROUND($AG114*BB$112,0),"")))))),"") ->  | BC114: =IFERROR(IF($AD114="Månatlig",IF(AND(BC$8<$AF114,BC$8>=$AE114),$AG114,0),IF($AD114="Kvartalsvis",IF(AND(MONTH(BC$8)/3=ROUND(MONTH(BC$8)/3,0),BC$8<$AF114,BC$8>=$AE114),$AG114*3,0),IF($AD114="ProcentKostnad",$AG114*BC$112,IF($AD114="ProduktProcent",BC$112*$M114/$L114*$AG114,IF($AD114="FaktorKostnad",BC$112*$AG114,IF(AW114="Kvantitet",ROUND($AG114*BC$112,0),"")))))),"") ->  | BD114: =IFERROR(IF($AD114="Månatlig",IF(AND(BD$8<$AF114,BD$8>=$AE114),$AG114,0),IF($AD114="Kvartalsvis",IF(AND(MONTH(BD$8)/3=ROUND(MONTH(BD$8)/3,0),BD$8<$AF114,BD$8>=$AE114),$AG114*3,0),IF($AD114="ProcentKostnad",$AG114*BD$112,IF($AD114="ProduktProcent",BD$112*$M114/$L114*$AG114,IF($AD114="FaktorKostnad",BD$112*$AG114,IF(AX114="Kvantitet",ROUND($AG114*BD$112,0),"")))))),"") ->  | BE114: =IFERROR(IF($AD114="Månatlig",IF(AND(BE$8<$AF114,BE$8>=$AE114),$AG114,0),IF($AD114="Kvartalsvis",IF(AND(MONTH(BE$8)/3=ROUND(MONTH(BE$8)/3,0),BE$8<$AF114,BE$8>=$AE114),$AG114*3,0),IF($AD114="ProcentKostnad",$AG114*BE$112,IF($AD114="ProduktProcent",BE$112*$M114/$L114*$AG114,IF($AD114="FaktorKostnad",BE$112*$AG114,IF(AY114="Kvantitet",ROUND($AG114*BE$112,0),"")))))),"") ->  | BF114: =IFERROR(IF($AD114="Månatlig",IF(AND(BF$8<$AF114,BF$8>=$AE114),$AG114,0),IF($AD114="Kvartalsvis",IF(AND(MONTH(BF$8)/3=ROUND(MONTH(BF$8)/3,0),BF$8<$AF114,BF$8>=$AE114),$AG114*3,0),IF($AD114="ProcentKostnad",$AG114*BF$112,IF($AD114="ProduktProcent",BF$112*$M114/$L114*$AG114,IF($AD114="FaktorKostnad",BF$112*$AG114,IF(AZ114="Kvantitet",ROUND($AG114*BF$112,0),"")))))),"") ->  | BG114: =IFERROR(IF($AD114="Månatlig",IF(AND(BG$8<$AF114,BG$8>=$AE114),$AG114,0),IF($AD114="Kvartalsvis",IF(AND(MONTH(BG$8)/3=ROUND(MONTH(BG$8)/3,0),BG$8<$AF114,BG$8>=$AE114),$AG114*3,0),IF($AD114="ProcentKostnad",$AG114*BG$112,IF($AD114="ProduktProcent",BG$112*$M114/$L114*$AG114,IF($AD114="FaktorKostnad",BG$112*$AG114,IF(BA114="Kvantitet",ROUND($AG114*BG$112,0),"")))))),"") ->  | BH114: =IFERROR(IF($AD114="Månatlig",IF(AND(BH$8<$AF114,BH$8>=$AE114),$AG114,0),IF($AD114="Kvartalsvis",IF(AND(MONTH(BH$8)/3=ROUND(MONTH(BH$8)/3,0),BH$8<$AF114,BH$8>=$AE114),$AG114*3,0),IF($AD114="ProcentKostnad",$AG114*BH$112,IF($AD114="ProduktProcent",BH$112*$M114/$L114*$AG114,IF($AD114="FaktorKostnad",BH$112*$AG114,IF(BB114="Kvantitet",ROUND($AG114*BH$112,0),"")))))),"") ->  | BI114: =IFERROR(IF($AD114="Månatlig",IF(AND(BI$8<$AF114,BI$8>=$AE114),$AG114,0),IF($AD114="Kvartalsvis",IF(AND(MONTH(BI$8)/3=ROUND(MONTH(BI$8)/3,0),BI$8<$AF114,BI$8>=$AE114),$AG114*3,0),IF($AD114="ProcentKostnad",$AG114*BI$112,IF($AD114="ProduktProcent",BI$112*$M114/$L114*$AG114,IF($AD114="FaktorKostnad",BI$112*$AG114,IF(BC114="Kvantitet",ROUND($AG114*BI$112,0),"")))))),"") ->  | BJ114: =IFERROR(IF($AD114="Månatlig",IF(AND(BJ$8<$AF114,BJ$8>=$AE114),$AG114,0),IF($AD114="Kvartalsvis",IF(AND(MONTH(BJ$8)/3=ROUND(MONTH(BJ$8)/3,0),BJ$8<$AF114,BJ$8>=$AE114),$AG114*3,0),IF($AD114="ProcentKostnad",$AG114*BJ$112,IF($AD114="ProduktProcent",BJ$112*$M114/$L114*$AG114,IF($AD114="FaktorKostnad",BJ$112*$AG114,IF(BD114="Kvantitet",ROUND($AG114*BJ$112,0),"")))))),"") ->  | BK114: =IFERROR(IF($AD114="Månatlig",IF(AND(BK$8<$AF114,BK$8>=$AE114),$AG114,0),IF($AD114="Kvartalsvis",IF(AND(MONTH(BK$8)/3=ROUND(MONTH(BK$8)/3,0),BK$8<$AF114,BK$8>=$AE114),$AG114*3,0),IF($AD114="ProcentKostnad",$AG114*BK$112,IF($AD114="ProduktProcent",BK$112*$M114/$L114*$AG114,IF($AD114="FaktorKostnad",BK$112*$AG114,IF(BE114="Kvantitet",ROUND($AG114*BK$112,0),"")))))),"") ->  | BL114: =IFERROR(IF($AD114="Månatlig",IF(AND(BL$8<$AF114,BL$8>=$AE114),$AG114,0),IF($AD114="Kvartalsvis",IF(AND(MONTH(BL$8)/3=ROUND(MONTH(BL$8)/3,0),BL$8<$AF114,BL$8>=$AE114),$AG114*3,0),IF($AD114="ProcentKostnad",$AG114*BL$112,IF($AD114="ProduktProcent",BL$112*$M114/$L114*$AG114,IF($AD114="FaktorKostnad",BL$112*$AG114,IF(BF114="Kvantitet",ROUND($AG114*BL$112,0),"")))))),"") ->  | BM114: =IFERROR(IF($AD114="Månatlig",IF(AND(BM$8<$AF114,BM$8>=$AE114),$AG114,0),IF($AD114="Kvartalsvis",IF(AND(MONTH(BM$8)/3=ROUND(MONTH(BM$8)/3,0),BM$8<$AF114,BM$8>=$AE114),$AG114*3,0),IF($AD114="ProcentKostnad",$AG114*BM$112,IF($AD114="ProduktProcent",BM$112*$M114/$L114*$AG114,IF($AD114="FaktorKostnad",BM$112*$AG114,IF(BG114="Kvantitet",ROUND($AG114*BM$112,0),"")))))),"") ->  | BN114: =IFERROR(IF($AD114="Månatlig",IF(AND(BN$8<$AF114,BN$8>=$AE114),$AG114,0),IF($AD114="Kvartalsvis",IF(AND(MONTH(BN$8)/3=ROUND(MONTH(BN$8)/3,0),BN$8<$AF114,BN$8>=$AE114),$AG114*3,0),IF($AD114="ProcentKostnad",$AG114*BN$112,IF($AD114="ProduktProcent",BN$112*$M114/$L114*$AG114,IF($AD114="FaktorKostnad",BN$112*$AG114,IF(BH114="Kvantitet",ROUND($AG114*BN$112,0),"")))))),"") ->  | BO114: =IFERROR(IF($AD114="Månatlig",IF(AND(BO$8<$AF114,BO$8>=$AE114),$AG114,0),IF($AD114="Kvartalsvis",IF(AND(MONTH(BO$8)/3=ROUND(MONTH(BO$8)/3,0),BO$8<$AF114,BO$8>=$AE114),$AG114*3,0),IF($AD114="ProcentKostnad",$AG114*BO$112,IF($AD114="ProduktProcent",BO$112*$M114/$L114*$AG114,IF($AD114="FaktorKostnad",BO$112*$AG114,IF(BI114="Kvantitet",ROUND($AG114*BO$112,0),"")))))),"") ->  | BP114: =IFERROR(IF($AD114="Månatlig",IF(AND(BP$8<$AF114,BP$8>=$AE114),$AG114,0),IF($AD114="Kvartalsvis",IF(AND(MONTH(BP$8)/3=ROUND(MONTH(BP$8)/3,0),BP$8<$AF114,BP$8>=$AE114),$AG114*3,0),IF($AD114="ProcentKostnad",$AG114*BP$112,IF($AD114="ProduktProcent",BP$112*$M114/$L114*$AG114,IF($AD114="FaktorKostnad",BP$112*$AG114,IF(BJ114="Kvantitet",ROUND($AG114*BP$112,0),"")))))),"") ->  | BQ114: =IFERROR(IF($AD114="Månatlig",IF(AND(BQ$8<$AF114,BQ$8>=$AE114),$AG114,0),IF($AD114="Kvartalsvis",IF(AND(MONTH(BQ$8)/3=ROUND(MONTH(BQ$8)/3,0),BQ$8<$AF114,BQ$8>=$AE114),$AG114*3,0),IF($AD114="ProcentKostnad",$AG114*BQ$112,IF($AD114="ProduktProcent",BQ$112*$M114/$L114*$AG114,IF($AD114="FaktorKostnad",BQ$112*$AG114,IF(BK114="Kvantitet",ROUND($AG114*BQ$112,0),"")))))),"") ->  | BR114: =IFERROR(IF($AD114="Månatlig",IF(AND(BR$8<$AF114,BR$8>=$AE114),$AG114,0),IF($AD114="Kvartalsvis",IF(AND(MONTH(BR$8)/3=ROUND(MONTH(BR$8)/3,0),BR$8<$AF114,BR$8>=$AE114),$AG114*3,0),IF($AD114="ProcentKostnad",$AG114*BR$112,IF($AD114="ProduktProcent",BR$112*$M114/$L114*$AG114,IF($AD114="FaktorKostnad",BR$112*$AG114,IF(BL114="Kvantitet",ROUND($AG114*BR$112,0),"")))))),"") ->  | BS114: =IFERROR(IF($AD114="Månatlig",IF(AND(BS$8<$AF114,BS$8>=$AE114),$AG114,0),IF($AD114="Kvartalsvis",IF(AND(MONTH(BS$8)/3=ROUND(MONTH(BS$8)/3,0),BS$8<$AF114,BS$8>=$AE114),$AG114*3,0),IF($AD114="ProcentKostnad",$AG114*BS$112,IF($AD114="ProduktProcent",BS$112*$M114/$L114*$AG114,IF($AD114="FaktorKostnad",BS$112*$AG114,IF(BM114="Kvantitet",ROUND($AG114*BS$112,0),"")))))),"") ->  | BT114: =IFERROR(IF($AD114="Månatlig",IF(AND(BT$8<$AF114,BT$8>=$AE114),$AG114,0),IF($AD114="Kvartalsvis",IF(AND(MONTH(BT$8)/3=ROUND(MONTH(BT$8)/3,0),BT$8<$AF114,BT$8>=$AE114),$AG114*3,0),IF($AD114="ProcentKostnad",$AG114*BT$112,IF($AD114="ProduktProcent",BT$112*$M114/$L114*$AG114,IF($AD114="FaktorKostnad",BT$112*$AG114,IF(BN114="Kvantitet",ROUND($AG114*BT$112,0),"")))))),"") ->  | BU114: =IFERROR(IF($AD114="Månatlig",IF(AND(BU$8<$AF114,BU$8>=$AE114),$AG114,0),IF($AD114="Kvartalsvis",IF(AND(MONTH(BU$8)/3=ROUND(MONTH(BU$8)/3,0),BU$8<$AF114,BU$8>=$AE114),$AG114*3,0),IF($AD114="ProcentKostnad",$AG114*BU$112,IF($AD114="ProduktProcent",BU$112*$M114/$L114*$AG114,IF($AD114="FaktorKostnad",BU$112*$AG114,IF(BO114="Kvantitet",ROUND($AG114*BU$112,0),"")))))),"") ->  | BV114: =IFERROR(IF($AD114="Månatlig",IF(AND(BV$8<$AF114,BV$8>=$AE114),$AG114,0),IF($AD114="Kvartalsvis",IF(AND(MONTH(BV$8)/3=ROUND(MONTH(BV$8)/3,0),BV$8<$AF114,BV$8>=$AE114),$AG114*3,0),IF($AD114="ProcentKostnad",$AG114*BV$112,IF($AD114="ProduktProcent",BV$112*$M114/$L114*$AG114,IF($AD114="FaktorKostnad",BV$112*$AG114,IF(BP114="Kvantitet",ROUND($AG114*BV$112,0),"")))))),"") ->  | BW114: =IFERROR(IF($AD114="Månatlig",IF(AND(BW$8<$AF114,BW$8>=$AE114),$AG114,0),IF($AD114="Kvartalsvis",IF(AND(MONTH(BW$8)/3=ROUND(MONTH(BW$8)/3,0),BW$8<$AF114,BW$8>=$AE114),$AG114*3,0),IF($AD114="ProcentKostnad",$AG114*BW$112,IF($AD114="ProduktProcent",BW$112*$M114/$L114*$AG114,IF($AD114="FaktorKostnad",BW$112*$AG114,IF(BQ114="Kvantitet",ROUND($AG114*BW$112,0),"")))))),"") ->  | BX114: =IFERROR(IF($AD114="Månatlig",IF(AND(BX$8<$AF114,BX$8>=$AE114),$AG114,0),IF($AD114="Kvartalsvis",IF(AND(MONTH(BX$8)/3=ROUND(MONTH(BX$8)/3,0),BX$8<$AF114,BX$8>=$AE114),$AG114*3,0),IF($AD114="ProcentKostnad",$AG114*BX$112,IF($AD114="ProduktProcent",BX$112*$M114/$L114*$AG114,IF($AD114="FaktorKostnad",BX$112*$AG114,IF(BR114="Kvantitet",ROUND($AG114*BX$112,0),"")))))),"") ->  | BY114: =IFERROR(IF($AD114="Månatlig",IF(AND(BY$8<$AF114,BY$8>=$AE114),$AG114,0),IF($AD114="Kvartalsvis",IF(AND(MONTH(BY$8)/3=ROUND(MONTH(BY$8)/3,0),BY$8<$AF114,BY$8>=$AE114),$AG114*3,0),IF($AD114="ProcentKostnad",$AG114*BY$112,IF($AD114="ProduktProcent",BY$112*$M114/$L114*$AG114,IF($AD114="FaktorKostnad",BY$112*$AG114,IF(BS114="Kvantitet",ROUND($AG114*BY$112,0),"")))))),"") ->  | BZ114: =IFERROR(IF($AD114="Månatlig",IF(AND(BZ$8<$AF114,BZ$8>=$AE114),$AG114,0),IF($AD114="Kvartalsvis",IF(AND(MONTH(BZ$8)/3=ROUND(MONTH(BZ$8)/3,0),BZ$8<$AF114,BZ$8>=$AE114),$AG114*3,0),IF($AD114="ProcentKostnad",$AG114*BZ$112,IF($AD114="ProduktProcent",BZ$112*$M114/$L114*$AG114,IF($AD114="FaktorKostnad",BZ$112*$AG114,IF(BT114="Kvantitet",ROUND($AG114*BZ$112,0),"")))))),"") ->  | CA114: =IFERROR(IF($AD114="Månatlig",IF(AND(CA$8<$AF114,CA$8>=$AE114),$AG114,0),IF($AD114="Kvartalsvis",IF(AND(MONTH(CA$8)/3=ROUND(MONTH(CA$8)/3,0),CA$8<$AF114,CA$8>=$AE114),$AG114*3,0),IF($AD114="ProcentKostnad",$AG114*CA$112,IF($AD114="ProduktProcent",CA$112*$M114/$L114*$AG114,IF($AD114="FaktorKostnad",CA$112*$AG114,IF(BU114="Kvantitet",ROUND($AG114*CA$112,0),"")))))),"") ->  | CB114: =IFERROR(IF($AD114="Månatlig",IF(AND(CB$8<$AF114,CB$8>=$AE114),$AG114,0),IF($AD114="Kvartalsvis",IF(AND(MONTH(CB$8)/3=ROUND(MONTH(CB$8)/3,0),CB$8<$AF114,CB$8>=$AE114),$AG114*3,0),IF($AD114="ProcentKostnad",$AG114*CB$112,IF($AD114="ProduktProcent",CB$112*$M114/$L114*$AG114,IF($AD114="FaktorKostnad",CB$112*$AG114,IF(BV114="Kvantitet",ROUND($AG114*CB$112,0),"")))))),"") ->  | CC114: =IFERROR(IF($AD114="Månatlig",IF(AND(CC$8<$AF114,CC$8>=$AE114),$AG114,0),IF($AD114="Kvartalsvis",IF(AND(MONTH(CC$8)/3=ROUND(MONTH(CC$8)/3,0),CC$8<$AF114,CC$8>=$AE114),$AG114*3,0),IF($AD114="ProcentKostnad",$AG114*CC$112,IF($AD114="ProduktProcent",CC$112*$M114/$L114*$AG114,IF($AD114="FaktorKostnad",CC$112*$AG114,IF(BW114="Kvantitet",ROUND($AG114*CC$112,0),"")))))),"") ->  | CD114: =IFERROR(IF($AD114="Månatlig",IF(AND(CD$8<$AF114,CD$8>=$AE114),$AG114,0),IF($AD114="Kvartalsvis",IF(AND(MONTH(CD$8)/3=ROUND(MONTH(CD$8)/3,0),CD$8<$AF114,CD$8>=$AE114),$AG114*3,0),IF($AD114="ProcentKostnad",$AG114*CD$112,IF($AD114="ProduktProcent",CD$112*$M114/$L114*$AG114,IF($AD114="FaktorKostnad",CD$112*$AG114,IF(BX114="Kvantitet",ROUND($AG114*CD$112,0),"")))))),"") ->  | CE114: =IFERROR(IF($AD114="Månatlig",IF(AND(CE$8<$AF114,CE$8>=$AE114),$AG114,0),IF($AD114="Kvartalsvis",IF(AND(MONTH(CE$8)/3=ROUND(MONTH(CE$8)/3,0),CE$8<$AF114,CE$8>=$AE114),$AG114*3,0),IF($AD114="ProcentKostnad",$AG114*CE$112,IF($AD114="ProduktProcent",CE$112*$M114/$L114*$AG114,IF($AD114="FaktorKostnad",CE$112*$AG114,IF(BY114="Kvantitet",ROUND($AG114*CE$112,0),"")))))),"") ->  | CF114: =IFERROR(IF($AD114="Månatlig",IF(AND(CF$8<$AF114,CF$8>=$AE114),$AG114,0),IF($AD114="Kvartalsvis",IF(AND(MONTH(CF$8)/3=ROUND(MONTH(CF$8)/3,0),CF$8<$AF114,CF$8>=$AE114),$AG114*3,0),IF($AD114="ProcentKostnad",$AG114*CF$112,IF($AD114="ProduktProcent",CF$112*$M114/$L114*$AG114,IF($AD114="FaktorKostnad",CF$112*$AG114,IF(BZ114="Kvantitet",ROUND($AG114*CF$112,0),"")))))),"") ->  | CG114: =IFERROR(IF($AD114="Månatlig",IF(AND(CG$8<$AF114,CG$8>=$AE114),$AG114,0),IF($AD114="Kvartalsvis",IF(AND(MONTH(CG$8)/3=ROUND(MONTH(CG$8)/3,0),CG$8<$AF114,CG$8>=$AE114),$AG114*3,0),IF($AD114="ProcentKostnad",$AG114*CG$112,IF($AD114="ProduktProcent",CG$112*$M114/$L114*$AG114,IF($AD114="FaktorKostnad",CG$112*$AG114,IF(CA114="Kvantitet",ROUND($AG114*CG$112,0),"")))))),"") ->  | CH114: =IFERROR(IF($AD114="Månatlig",IF(AND(CH$8<$AF114,CH$8>=$AE114),$AG114,0),IF($AD114="Kvartalsvis",IF(AND(MONTH(CH$8)/3=ROUND(MONTH(CH$8)/3,0),CH$8<$AF114,CH$8>=$AE114),$AG114*3,0),IF($AD114="ProcentKostnad",$AG114*CH$112,IF($AD114="ProduktProcent",CH$112*$M114/$L114*$AG114,IF($AD114="FaktorKostnad",CH$112*$AG114,IF(CB114="Kvantitet",ROUND($AG114*CH$112,0),"")))))),"") ->  | CI114: =IFERROR(IF($AD114="Månatlig",IF(AND(CI$8<$AF114,CI$8>=$AE114),$AG114,0),IF($AD114="Kvartalsvis",IF(AND(MONTH(CI$8)/3=ROUND(MONTH(CI$8)/3,0),CI$8<$AF114,CI$8>=$AE114),$AG114*3,0),IF($AD114="ProcentKostnad",$AG114*CI$112,IF($AD114="ProduktProcent",CI$112*$M114/$L114*$AG114,IF($AD114="FaktorKostnad",CI$112*$AG114,IF(CC114="Kvantitet",ROUND($AG114*CI$112,0),"")))))),"") ->  | CJ114: =IFERROR(IF($AD114="Månatlig",IF(AND(CJ$8<$AF114,CJ$8>=$AE114),$AG114,0),IF($AD114="Kvartalsvis",IF(AND(MONTH(CJ$8)/3=ROUND(MONTH(CJ$8)/3,0),CJ$8<$AF114,CJ$8>=$AE114),$AG114*3,0),IF($AD114="ProcentKostnad",$AG114*CJ$112,IF($AD114="ProduktProcent",CJ$112*$M114/$L114*$AG114,IF($AD114="FaktorKostnad",CJ$112*$AG114,IF(CD114="Kvantitet",ROUND($AG114*CJ$112,0),"")))))),"") ->  | CK114: =IFERROR(IF($AD114="Månatlig",IF(AND(CK$8<$AF114,CK$8>=$AE114),$AG114,0),IF($AD114="Kvartalsvis",IF(AND(MONTH(CK$8)/3=ROUND(MONTH(CK$8)/3,0),CK$8<$AF114,CK$8>=$AE114),$AG114*3,0),IF($AD114="ProcentKostnad",$AG114*CK$112,IF($AD114="ProduktProcent",CK$112*$M114/$L114*$AG114,IF($AD114="FaktorKostnad",CK$112*$AG114,IF(CE114="Kvantitet",ROUND($AG114*CK$112,0),"")))))),"") ->  | CL114: =IFERROR(IF($AD114="Månatlig",IF(AND(CL$8<$AF114,CL$8>=$AE114),$AG114,0),IF($AD114="Kvartalsvis",IF(AND(MONTH(CL$8)/3=ROUND(MONTH(CL$8)/3,0),CL$8<$AF114,CL$8>=$AE114),$AG114*3,0),IF($AD114="ProcentKostnad",$AG114*CL$112,IF($AD114="ProduktProcent",CL$112*$M114/$L114*$AG114,IF($AD114="FaktorKostnad",CL$112*$AG114,IF(CF114="Kvantitet",ROUND($AG114*CL$112,0),"")))))),"") ->  | CM114: =IFERROR(IF($AD114="Månatlig",IF(AND(CM$8<$AF114,CM$8>=$AE114),$AG114,0),IF($AD114="Kvartalsvis",IF(AND(MONTH(CM$8)/3=ROUND(MONTH(CM$8)/3,0),CM$8<$AF114,CM$8>=$AE114),$AG114*3,0),IF($AD114="ProcentKostnad",$AG114*CM$112,IF($AD114="ProduktProcent",CM$112*$M114/$L114*$AG114,IF($AD114="FaktorKostnad",CM$112*$AG114,IF(CG114="Kvantitet",ROUND($AG114*CM$112,0),"")))))),"") ->  | CN114: =IFERROR(IF($AD114="Månatlig",IF(AND(CN$8<$AF114,CN$8>=$AE114),$AG114,0),IF($AD114="Kvartalsvis",IF(AND(MONTH(CN$8)/3=ROUND(MONTH(CN$8)/3,0),CN$8<$AF114,CN$8>=$AE114),$AG114*3,0),IF($AD114="ProcentKostnad",$AG114*CN$112,IF($AD114="ProduktProcent",CN$112*$M114/$L114*$AG114,IF($AD114="FaktorKostnad",CN$112*$AG114,IF(CH114="Kvantitet",ROUND($AG114*CN$112,0),"")))))),"") ->  | CO114: =IFERROR(IF($AD114="Månatlig",IF(AND(CO$8<$AF114,CO$8>=$AE114),$AG114,0),IF($AD114="Kvartalsvis",IF(AND(MONTH(CO$8)/3=ROUND(MONTH(CO$8)/3,0),CO$8<$AF114,CO$8>=$AE114),$AG114*3,0),IF($AD114="ProcentKostnad",$AG114*CO$112,IF($AD114="ProduktProcent",CO$112*$M114/$L114*$AG114,IF($AD114="FaktorKostnad",CO$112*$AG114,IF(CI114="Kvantitet",ROUND($AG114*CO$112,0),"")))))),"") ->  | CP114: =IFERROR(IF($AD114="Månatlig",IF(AND(CP$8<$AF114,CP$8>=$AE114),$AG114,0),IF($AD114="Kvartalsvis",IF(AND(MONTH(CP$8)/3=ROUND(MONTH(CP$8)/3,0),CP$8<$AF114,CP$8>=$AE114),$AG114*3,0),IF($AD114="ProcentKostnad",$AG114*CP$112,IF($AD114="ProduktProcent",CP$112*$M114/$L114*$AG114,IF($AD114="FaktorKostnad",CP$112*$AG114,IF(CJ114="Kvantitet",ROUND($AG114*CP$112,0),"")))))),"") ->  | CQ114: =IFERROR(IF($AD114="Månatlig",IF(AND(CQ$8<$AF114,CQ$8>=$AE114),$AG114,0),IF($AD114="Kvartalsvis",IF(AND(MONTH(CQ$8)/3=ROUND(MONTH(CQ$8)/3,0),CQ$8<$AF114,CQ$8>=$AE114),$AG114*3,0),IF($AD114="ProcentKostnad",$AG114*CQ$112,IF($AD114="ProduktProcent",CQ$112*$M114/$L114*$AG114,IF($AD114="FaktorKostnad",CQ$112*$AG114,IF(CK114="Kvantitet",ROUND($AG114*CQ$112,0),"")))))),"") ->  | CR114: =IFERROR(IF($AD114="Månatlig",IF(AND(CR$8<$AF114,CR$8>=$AE114),$AG114,0),IF($AD114="Kvartalsvis",IF(AND(MONTH(CR$8)/3=ROUND(MONTH(CR$8)/3,0),CR$8<$AF114,CR$8>=$AE114),$AG114*3,0),IF($AD114="ProcentKostnad",$AG114*CR$112,IF($AD114="ProduktProcent",CR$112*$M114/$L114*$AG114,IF($AD114="FaktorKostnad",CR$112*$AG114,IF(CL114="Kvantitet",ROUND($AG114*CR$112,0),"")))))),"") ->  | CS114: =IFERROR(IF($AD114="Månatlig",IF(AND(CS$8<$AF114,CS$8>=$AE114),$AG114,0),IF($AD114="Kvartalsvis",IF(AND(MONTH(CS$8)/3=ROUND(MONTH(CS$8)/3,0),CS$8<$AF114,CS$8>=$AE114),$AG114*3,0),IF($AD114="ProcentKostnad",$AG114*CS$112,IF($AD114="ProduktProcent",CS$112*$M114/$L114*$AG114,IF($AD114="FaktorKostnad",CS$112*$AG114,IF(CM114="Kvantitet",ROUND($AG114*CS$112,0),"")))))),"") ->  | CT114: =IFERROR(IF($AD114="Månatlig",IF(AND(CT$8<$AF114,CT$8>=$AE114),$AG114,0),IF($AD114="Kvartalsvis",IF(AND(MONTH(CT$8)/3=ROUND(MONTH(CT$8)/3,0),CT$8<$AF114,CT$8>=$AE114),$AG114*3,0),IF($AD114="ProcentKostnad",$AG114*CT$112,IF($AD114="ProduktProcent",CT$112*$M114/$L114*$AG114,IF($AD114="FaktorKostnad",CT$112*$AG114,IF(CN114="Kvantitet",ROUND($AG114*CT$112,0),"")))))),"") ->  | CU114: =IFERROR(IF($AD114="Månatlig",IF(AND(CU$8<$AF114,CU$8>=$AE114),$AG114,0),IF($AD114="Kvartalsvis",IF(AND(MONTH(CU$8)/3=ROUND(MONTH(CU$8)/3,0),CU$8<$AF114,CU$8>=$AE114),$AG114*3,0),IF($AD114="ProcentKostnad",$AG114*CU$112,IF($AD114="ProduktProcent",CU$112*$M114/$L114*$AG114,IF($AD114="FaktorKostnad",CU$112*$AG114,IF(CO114="Kvantitet",ROUND($AG114*CU$112,0),"")))))),"") ->  | CV114: =IFERROR(IF($AD114="Månatlig",IF(AND(CV$8<$AF114,CV$8>=$AE114),$AG114,0),IF($AD114="Kvartalsvis",IF(AND(MONTH(CV$8)/3=ROUND(MONTH(CV$8)/3,0),CV$8<$AF114,CV$8>=$AE114),$AG114*3,0),IF($AD114="ProcentKostnad",$AG114*CV$112,IF($AD114="ProduktProcent",CV$112*$M114/$L114*$AG114,IF($AD114="FaktorKostnad",CV$112*$AG114,IF(CP114="Kvantitet",ROUND($AG114*CV$112,0),"")))))),"") ->  | CW114: =IFERROR(IF($AD114="Månatlig",IF(AND(CW$8<$AF114,CW$8>=$AE114),$AG114,0),IF($AD114="Kvartalsvis",IF(AND(MONTH(CW$8)/3=ROUND(MONTH(CW$8)/3,0),CW$8<$AF114,CW$8>=$AE114),$AG114*3,0),IF($AD114="ProcentKostnad",$AG114*CW$112,IF($AD114="ProduktProcent",CW$112*$M114/$L114*$AG114,IF($AD114="FaktorKostnad",CW$112*$AG114,IF(CQ114="Kvantitet",ROUND($AG114*CW$112,0),"")))))),"") ->  | CX114: =IFERROR(IF($AD114="Månatlig",IF(AND(CX$8<$AF114,CX$8>=$AE114),$AG114,0),IF($AD114="Kvartalsvis",IF(AND(MONTH(CX$8)/3=ROUND(MONTH(CX$8)/3,0),CX$8<$AF114,CX$8>=$AE114),$AG114*3,0),IF($AD114="ProcentKostnad",$AG114*CX$112,IF($AD114="ProduktProcent",CX$112*$M114/$L114*$AG114,IF($AD114="FaktorKostnad",CX$112*$AG114,IF(CR114="Kvantitet",ROUND($AG114*CX$112,0),"")))))),"") ->  | CY114: =IFERROR(IF($AD114="Månatlig",IF(AND(CY$8<$AF114,CY$8>=$AE114),$AG114,0),IF($AD114="Kvartalsvis",IF(AND(MONTH(CY$8)/3=ROUND(MONTH(CY$8)/3,0),CY$8<$AF114,CY$8>=$AE114),$AG114*3,0),IF($AD114="ProcentKostnad",$AG114*CY$112,IF($AD114="ProduktProcent",CY$112*$M114/$L114*$AG114,IF($AD114="FaktorKostnad",CY$112*$AG114,IF(CS114="Kvantitet",ROUND($AG114*CY$112,0),"")))))),"") ->  | CZ114: =IFERROR(IF($AD114="Månatlig",IF(AND(CZ$8<$AF114,CZ$8>=$AE114),$AG114,0),IF($AD114="Kvartalsvis",IF(AND(MONTH(CZ$8)/3=ROUND(MONTH(CZ$8)/3,0),CZ$8<$AF114,CZ$8>=$AE114),$AG114*3,0),IF($AD114="ProcentKostnad",$AG114*CZ$112,IF($AD114="ProduktProcent",CZ$112*$M114/$L114*$AG114,IF($AD114="FaktorKostnad",CZ$112*$AG114,IF(CT114="Kvantitet",ROUND($AG114*CZ$112,0),"")))))),"") ->  | DA114: =IFERROR(IF($AD114="Månatlig",IF(AND(DA$8<$AF114,DA$8>=$AE114),$AG114,0),IF($AD114="Kvartalsvis",IF(AND(MONTH(DA$8)/3=ROUND(MONTH(DA$8)/3,0),DA$8<$AF114,DA$8>=$AE114),$AG114*3,0),IF($AD114="ProcentKostnad",$AG114*DA$112,IF($AD114="ProduktProcent",DA$112*$M114/$L114*$AG114,IF($AD114="FaktorKostnad",DA$112*$AG114,IF(CU114="Kvantitet",ROUND($AG114*DA$112,0),"")))))),"") ->  | DB114: =IFERROR(IF($AD114="Månatlig",IF(AND(DB$8<$AF114,DB$8>=$AE114),$AG114,0),IF($AD114="Kvartalsvis",IF(AND(MONTH(DB$8)/3=ROUND(MONTH(DB$8)/3,0),DB$8<$AF114,DB$8>=$AE114),$AG114*3,0),IF($AD114="ProcentKostnad",$AG114*DB$112,IF($AD114="ProduktProcent",DB$112*$M114/$L114*$AG114,IF($AD114="FaktorKostnad",DB$112*$AG114,IF(CV114="Kvantitet",ROUND($AG114*DB$112,0),"")))))),"") ->  | DC114: =IFERROR(IF($AD114="Månatlig",IF(AND(DC$8<$AF114,DC$8>=$AE114),$AG114,0),IF($AD114="Kvartalsvis",IF(AND(MONTH(DC$8)/3=ROUND(MONTH(DC$8)/3,0),DC$8<$AF114,DC$8>=$AE114),$AG114*3,0),IF($AD114="ProcentKostnad",$AG114*DC$112,IF($AD114="ProduktProcent",DC$112*$M114/$L114*$AG114,IF($AD114="FaktorKostnad",DC$112*$AG114,IF(CW114="Kvantitet",ROUND($AG114*DC$112,0),"")))))),"") ->  | DD114: =IFERROR(IF($AD114="Månatlig",IF(AND(DD$8<$AF114,DD$8>=$AE114),$AG114,0),IF($AD114="Kvartalsvis",IF(AND(MONTH(DD$8)/3=ROUND(MONTH(DD$8)/3,0),DD$8<$AF114,DD$8>=$AE114),$AG114*3,0),IF($AD114="ProcentKostnad",$AG114*DD$112,IF($AD114="ProduktProcent",DD$112*$M114/$L114*$AG114,IF($AD114="FaktorKostnad",DD$112*$AG114,IF(CX114="Kvantitet",ROUND($AG114*DD$112,0),"")))))),"") ->  | DE114: =IFERROR(IF($AD114="Månatlig",IF(AND(DE$8<$AF114,DE$8>=$AE114),$AG114,0),IF($AD114="Kvartalsvis",IF(AND(MONTH(DE$8)/3=ROUND(MONTH(DE$8)/3,0),DE$8<$AF114,DE$8>=$AE114),$AG114*3,0),IF($AD114="ProcentKostnad",$AG114*DE$112,IF($AD114="ProduktProcent",DE$112*$M114/$L114*$AG114,IF($AD114="FaktorKostnad",DE$112*$AG114,IF(CY114="Kvantitet",ROUND($AG114*DE$112,0),"")))))),"") ->  | DF114: =IFERROR(IF($AD114="Månatlig",IF(AND(DF$8<$AF114,DF$8>=$AE114),$AG114,0),IF($AD114="Kvartalsvis",IF(AND(MONTH(DF$8)/3=ROUND(MONTH(DF$8)/3,0),DF$8<$AF114,DF$8>=$AE114),$AG114*3,0),IF($AD114="ProcentKostnad",$AG114*DF$112,IF($AD114="ProduktProcent",DF$112*$M114/$L114*$AG114,IF($AD114="FaktorKostnad",DF$112*$AG114,IF(CZ114="Kvantitet",ROUND($AG114*DF$112,0),"")))))),"") ->  | DG114: =IFERROR(IF($AD114="Månatlig",IF(AND(DG$8<$AF114,DG$8>=$AE114),$AG114,0),IF($AD114="Kvartalsvis",IF(AND(MONTH(DG$8)/3=ROUND(MONTH(DG$8)/3,0),DG$8<$AF114,DG$8>=$AE114),$AG114*3,0),IF($AD114="ProcentKostnad",$AG114*DG$112,IF($AD114="ProduktProcent",DG$112*$M114/$L114*$AG114,IF($AD114="FaktorKostnad",DG$112*$AG114,IF(DA114="Kvantitet",ROUND($AG114*DG$112,0),"")))))),"") ->  | DH114: =IFERROR(IF($AD114="Månatlig",IF(AND(DH$8<$AF114,DH$8>=$AE114),$AG114,0),IF($AD114="Kvartalsvis",IF(AND(MONTH(DH$8)/3=ROUND(MONTH(DH$8)/3,0),DH$8<$AF114,DH$8>=$AE114),$AG114*3,0),IF($AD114="ProcentKostnad",$AG114*DH$112,IF($AD114="ProduktProcent",DH$112*$M114/$L114*$AG114,IF($AD114="FaktorKostnad",DH$112*$AG114,IF(DB114="Kvantitet",ROUND($AG114*DH$112,0),"")))))),"") ->  | DI114: =IFERROR(IF($AD114="Månatlig",IF(AND(DI$8<$AF114,DI$8>=$AE114),$AG114,0),IF($AD114="Kvartalsvis",IF(AND(MONTH(DI$8)/3=ROUND(MONTH(DI$8)/3,0),DI$8<$AF114,DI$8>=$AE114),$AG114*3,0),IF($AD114="ProcentKostnad",$AG114*DI$112,IF($AD114="ProduktProcent",DI$112*$M114/$L114*$AG114,IF($AD114="FaktorKostnad",DI$112*$AG114,IF(DC114="Kvantitet",ROUND($AG114*DI$112,0),"")))))),"") ->  | DJ114: =IFERROR(IF($AD114="Månatlig",IF(AND(DJ$8<$AF114,DJ$8>=$AE114),$AG114,0),IF($AD114="Kvartalsvis",IF(AND(MONTH(DJ$8)/3=ROUND(MONTH(DJ$8)/3,0),DJ$8<$AF114,DJ$8>=$AE114),$AG114*3,0),IF($AD114="ProcentKostnad",$AG114*DJ$112,IF($AD114="ProduktProcent",DJ$112*$M114/$L114*$AG114,IF($AD114="FaktorKostnad",DJ$112*$AG114,IF(DD114="Kvantitet",ROUND($AG114*DJ$112,0),"")))))),"") ->  | DK114: =IFERROR(IF($AD114="Månatlig",IF(AND(DK$8<$AF114,DK$8>=$AE114),$AG114,0),IF($AD114="Kvartalsvis",IF(AND(MONTH(DK$8)/3=ROUND(MONTH(DK$8)/3,0),DK$8<$AF114,DK$8>=$AE114),$AG114*3,0),IF($AD114="ProcentKostnad",$AG114*DK$112,IF($AD114="ProduktProcent",DK$112*$M114/$L114*$AG114,IF($AD114="FaktorKostnad",DK$112*$AG114,IF(DE114="Kvantitet",ROUND($AG114*DK$112,0),"")))))),"") ->  | DL114: =IFERROR(IF($AD114="Månatlig",IF(AND(DL$8<$AF114,DL$8>=$AE114),$AG114,0),IF($AD114="Kvartalsvis",IF(AND(MONTH(DL$8)/3=ROUND(MONTH(DL$8)/3,0),DL$8<$AF114,DL$8>=$AE114),$AG114*3,0),IF($AD114="ProcentKostnad",$AG114*DL$112,IF($AD114="ProduktProcent",DL$112*$M114/$L114*$AG114,IF($AD114="FaktorKostnad",DL$112*$AG114,IF(DF114="Kvantitet",ROUND($AG114*DL$112,0),"")))))),"") ->  | DM114: =IFERROR(IF($AD114="Månatlig",IF(AND(DM$8<$AF114,DM$8>=$AE114),$AG114,0),IF($AD114="Kvartalsvis",IF(AND(MONTH(DM$8)/3=ROUND(MONTH(DM$8)/3,0),DM$8<$AF114,DM$8>=$AE114),$AG114*3,0),IF($AD114="ProcentKostnad",$AG114*DM$112,IF($AD114="ProduktProcent",DM$112*$M114/$L114*$AG114,IF($AD114="FaktorKostnad",DM$112*$AG114,IF(DG114="Kvantitet",ROUND($AG114*DM$112,0),"")))))),"") ->  | DN114: =IFERROR(IF($AD114="Månatlig",IF(AND(DN$8<$AF114,DN$8>=$AE114),$AG114,0),IF($AD114="Kvartalsvis",IF(AND(MONTH(DN$8)/3=ROUND(MONTH(DN$8)/3,0),DN$8<$AF114,DN$8>=$AE114),$AG114*3,0),IF($AD114="ProcentKostnad",$AG114*DN$112,IF($AD114="ProduktProcent",DN$112*$M114/$L114*$AG114,IF($AD114="FaktorKostnad",DN$112*$AG114,IF(DH114="Kvantitet",ROUND($AG114*DN$112,0),"")))))),"") ->  | DO114: =IFERROR(IF($AD114="Månatlig",IF(AND(DO$8<$AF114,DO$8>=$AE114),$AG114,0),IF($AD114="Kvartalsvis",IF(AND(MONTH(DO$8)/3=ROUND(MONTH(DO$8)/3,0),DO$8<$AF114,DO$8>=$AE114),$AG114*3,0),IF($AD114="ProcentKostnad",$AG114*DO$112,IF($AD114="ProduktProcent",DO$112*$M114/$L114*$AG114,IF($AD114="FaktorKostnad",DO$112*$AG114,IF(DI114="Kvantitet",ROUND($AG114*DO$112,0),"")))))),"") ->  | DP114: =IFERROR(IF($AD114="Månatlig",IF(AND(DP$8<$AF114,DP$8>=$AE114),$AG114,0),IF($AD114="Kvartalsvis",IF(AND(MONTH(DP$8)/3=ROUND(MONTH(DP$8)/3,0),DP$8<$AF114,DP$8>=$AE114),$AG114*3,0),IF($AD114="ProcentKostnad",$AG114*DP$112,IF($AD114="ProduktProcent",DP$112*$M114/$L114*$AG114,IF($AD114="FaktorKostnad",DP$112*$AG114,IF(DJ114="Kvantitet",ROUND($AG114*DP$112,0),"")))))),"") ->  | DQ114: =IFERROR(IF($AD114="Månatlig",IF(AND(DQ$8<$AF114,DQ$8>=$AE114),$AG114,0),IF($AD114="Kvartalsvis",IF(AND(MONTH(DQ$8)/3=ROUND(MONTH(DQ$8)/3,0),DQ$8<$AF114,DQ$8>=$AE114),$AG114*3,0),IF($AD114="ProcentKostnad",$AG114*DQ$112,IF($AD114="ProduktProcent",DQ$112*$M114/$L114*$AG114,IF($AD114="FaktorKostnad",DQ$112*$AG114,IF(DK114="Kvantitet",ROUND($AG114*DQ$112,0),"")))))),"") ->  | DR114: =IFERROR(IF($AD114="Månatlig",IF(AND(DR$8<$AF114,DR$8>=$AE114),$AG114,0),IF($AD114="Kvartalsvis",IF(AND(MONTH(DR$8)/3=ROUND(MONTH(DR$8)/3,0),DR$8<$AF114,DR$8>=$AE114),$AG114*3,0),IF($AD114="ProcentKostnad",$AG114*DR$112,IF($AD114="ProduktProcent",DR$112*$M114/$L114*$AG114,IF($AD114="FaktorKostnad",DR$112*$AG114,IF(DL114="Kvantitet",ROUND($AG114*DR$112,0),"")))))),"") ->  | DS114: =IFERROR(IF($AD114="Månatlig",IF(AND(DS$8<$AF114,DS$8>=$AE114),$AG114,0),IF($AD114="Kvartalsvis",IF(AND(MONTH(DS$8)/3=ROUND(MONTH(DS$8)/3,0),DS$8<$AF114,DS$8>=$AE114),$AG114*3,0),IF($AD114="ProcentKostnad",$AG114*DS$112,IF($AD114="ProduktProcent",DS$112*$M114/$L114*$AG114,IF($AD114="FaktorKostnad",DS$112*$AG114,IF(DM114="Kvantitet",ROUND($AG114*DS$112,0),"")))))),"") ->  | DT114: =IFERROR(IF($AD114="Månatlig",IF(AND(DT$8<$AF114,DT$8>=$AE114),$AG114,0),IF($AD114="Kvartalsvis",IF(AND(MONTH(DT$8)/3=ROUND(MONTH(DT$8)/3,0),DT$8<$AF114,DT$8>=$AE114),$AG114*3,0),IF($AD114="ProcentKostnad",$AG114*DT$112,IF($AD114="ProduktProcent",DT$112*$M114/$L114*$AG114,IF($AD114="FaktorKostnad",DT$112*$AG114,IF(DN114="Kvantitet",ROUND($AG114*DT$112,0),"")))))),"") ->  | DU114: =IFERROR(IF($AD114="Månatlig",IF(AND(DU$8<$AF114,DU$8>=$AE114),$AG114,0),IF($AD114="Kvartalsvis",IF(AND(MONTH(DU$8)/3=ROUND(MONTH(DU$8)/3,0),DU$8<$AF114,DU$8>=$AE114),$AG114*3,0),IF($AD114="ProcentKostnad",$AG114*DU$112,IF($AD114="ProduktProcent",DU$112*$M114/$L114*$AG114,IF($AD114="FaktorKostnad",DU$112*$AG114,IF(DO114="Kvantitet",ROUND($AG114*DU$112,0),"")))))),"") ->  | DV114: =IFERROR(IF($AD114="Månatlig",IF(AND(DV$8<$AF114,DV$8>=$AE114),$AG114,0),IF($AD114="Kvartalsvis",IF(AND(MONTH(DV$8)/3=ROUND(MONTH(DV$8)/3,0),DV$8<$AF114,DV$8>=$AE114),$AG114*3,0),IF($AD114="ProcentKostnad",$AG114*DV$112,IF($AD114="ProduktProcent",DV$112*$M114/$L114*$AG114,IF($AD114="FaktorKostnad",DV$112*$AG114,IF(DP114="Kvantitet",ROUND($AG114*DV$112,0),"")))))),"") ->  | DW114: =IFERROR(IF($AD114="Månatlig",IF(AND(DW$8<$AF114,DW$8>=$AE114),$AG114,0),IF($AD114="Kvartalsvis",IF(AND(MONTH(DW$8)/3=ROUND(MONTH(DW$8)/3,0),DW$8<$AF114,DW$8>=$AE114),$AG114*3,0),IF($AD114="ProcentKostnad",$AG114*DW$112,IF($AD114="ProduktProcent",DW$112*$M114/$L114*$AG114,IF($AD114="FaktorKostnad",DW$112*$AG114,IF(DQ114="Kvantitet",ROUND($AG114*DW$112,0),"")))))),"") ->  | DX114: =IFERROR(IF($AD114="Månatlig",IF(AND(DX$8<$AF114,DX$8>=$AE114),$AG114,0),IF($AD114="Kvartalsvis",IF(AND(MONTH(DX$8)/3=ROUND(MONTH(DX$8)/3,0),DX$8<$AF114,DX$8>=$AE114),$AG114*3,0),IF($AD114="ProcentKostnad",$AG114*DX$112,IF($AD114="ProduktProcent",DX$112*$M114/$L114*$AG114,IF($AD114="FaktorKostnad",DX$112*$AG114,IF(DR114="Kvantitet",ROUND($AG114*DX$112,0),"")))))),"") ->  | DY114: =IFERROR(IF($AD114="Månatlig",IF(AND(DY$8<$AF114,DY$8>=$AE114),$AG114,0),IF($AD114="Kvartalsvis",IF(AND(MONTH(DY$8)/3=ROUND(MONTH(DY$8)/3,0),DY$8<$AF114,DY$8>=$AE114),$AG114*3,0),IF($AD114="ProcentKostnad",$AG114*DY$112,IF($AD114="ProduktProcent",DY$112*$M114/$L114*$AG114,IF($AD114="FaktorKostnad",DY$112*$AG114,IF(DS114="Kvantitet",ROUND($AG114*DY$112,0),"")))))),"") ->  | DZ114: =IFERROR(IF($AD114="Månatlig",IF(AND(DZ$8<$AF114,DZ$8>=$AE114),$AG114,0),IF($AD114="Kvartalsvis",IF(AND(MONTH(DZ$8)/3=ROUND(MONTH(DZ$8)/3,0),DZ$8<$AF114,DZ$8>=$AE114),$AG114*3,0),IF($AD114="ProcentKostnad",$AG114*DZ$112,IF($AD114="ProduktProcent",DZ$112*$M114/$L114*$AG114,IF($AD114="FaktorKostnad",DZ$112*$AG114,IF(DT114="Kvantitet",ROUND($AG114*DZ$112,0),"")))))),"") ->  | EA114: =IFERROR(IF($AD114="Månatlig",IF(AND(EA$8<$AF114,EA$8>=$AE114),$AG114,0),IF($AD114="Kvartalsvis",IF(AND(MONTH(EA$8)/3=ROUND(MONTH(EA$8)/3,0),EA$8<$AF114,EA$8>=$AE114),$AG114*3,0),IF($AD114="ProcentKostnad",$AG114*EA$112,IF($AD114="ProduktProcent",EA$112*$M114/$L114*$AG114,IF($AD114="FaktorKostnad",EA$112*$AG114,IF(DU114="Kvantitet",ROUND($AG114*EA$112,0),"")))))),"") ->  | EB114: =IFERROR(IF($AD114="Månatlig",IF(AND(EB$8<$AF114,EB$8>=$AE114),$AG114,0),IF($AD114="Kvartalsvis",IF(AND(MONTH(EB$8)/3=ROUND(MONTH(EB$8)/3,0),EB$8<$AF114,EB$8>=$AE114),$AG114*3,0),IF($AD114="ProcentKostnad",$AG114*EB$112,IF($AD114="ProduktProcent",EB$112*$M114/$L114*$AG114,IF($AD114="FaktorKostnad",EB$112*$AG114,IF(DV114="Kvantitet",ROUND($AG114*EB$112,0),"")))))),"") ->  | EC114: =IFERROR(IF($AD114="Månatlig",IF(AND(EC$8<$AF114,EC$8>=$AE114),$AG114,0),IF($AD114="Kvartalsvis",IF(AND(MONTH(EC$8)/3=ROUND(MONTH(EC$8)/3,0),EC$8<$AF114,EC$8>=$AE114),$AG114*3,0),IF($AD114="ProcentKostnad",$AG114*EC$112,IF($AD114="ProduktProcent",EC$112*$M114/$L114*$AG114,IF($AD114="FaktorKostnad",EC$112*$AG114,IF(DW114="Kvantitet",ROUND($AG114*EC$112,0),"")))))),"") ->  | ED114: =IFERROR(IF($AD114="Månatlig",IF(AND(ED$8<$AF114,ED$8>=$AE114),$AG114,0),IF($AD114="Kvartalsvis",IF(AND(MONTH(ED$8)/3=ROUND(MONTH(ED$8)/3,0),ED$8<$AF114,ED$8>=$AE114),$AG114*3,0),IF($AD114="ProcentKostnad",$AG114*ED$112,IF($AD114="ProduktProcent",ED$112*$M114/$L114*$AG114,IF($AD114="FaktorKostnad",ED$112*$AG114,IF(DX114="Kvantitet",ROUND($AG114*ED$112,0),"")))))),"") ->  | EE114: =IFERROR(IF($AD114="Månatlig",IF(AND(EE$8<$AF114,EE$8>=$AE114),$AG114,0),IF($AD114="Kvartalsvis",IF(AND(MONTH(EE$8)/3=ROUND(MONTH(EE$8)/3,0),EE$8<$AF114,EE$8>=$AE114),$AG114*3,0),IF($AD114="ProcentKostnad",$AG114*EE$112,IF($AD114="ProduktProcent",EE$112*$M114/$L114*$AG114,IF($AD114="FaktorKostnad",EE$112*$AG114,IF(DY114="Kvantitet",ROUND($AG114*EE$112,0),"")))))),"") ->  | EF114: =IFERROR(IF($AD114="Månatlig",IF(AND(EF$8<$AF114,EF$8>=$AE114),$AG114,0),IF($AD114="Kvartalsvis",IF(AND(MONTH(EF$8)/3=ROUND(MONTH(EF$8)/3,0),EF$8<$AF114,EF$8>=$AE114),$AG114*3,0),IF($AD114="ProcentKostnad",$AG114*EF$112,IF($AD114="ProduktProcent",EF$112*$M114/$L114*$AG114,IF($AD114="FaktorKostnad",EF$112*$AG114,IF(DZ114="Kvantitet",ROUND($AG114*EF$112,0),"")))))),"") ->  | EG114: =IFERROR(IF($AD114="Månatlig",IF(AND(EG$8<$AF114,EG$8>=$AE114),$AG114,0),IF($AD114="Kvartalsvis",IF(AND(MONTH(EG$8)/3=ROUND(MONTH(EG$8)/3,0),EG$8<$AF114,EG$8>=$AE114),$AG114*3,0),IF($AD114="ProcentKostnad",$AG114*EG$112,IF($AD114="ProduktProcent",EG$112*$M114/$L114*$AG114,IF($AD114="FaktorKostnad",EG$112*$AG114,IF(EA114="Kvantitet",ROUND($AG114*EG$112,0),"")))))),"") ->  | EH114: =IFERROR(IF($AD114="Månatlig",IF(AND(EH$8<$AF114,EH$8>=$AE114),$AG114,0),IF($AD114="Kvartalsvis",IF(AND(MONTH(EH$8)/3=ROUND(MONTH(EH$8)/3,0),EH$8<$AF114,EH$8>=$AE114),$AG114*3,0),IF($AD114="ProcentKostnad",$AG114*EH$112,IF($AD114="ProduktProcent",EH$112*$M114/$L114*$AG114,IF($AD114="FaktorKostnad",EH$112*$AG114,IF(EB114="Kvantitet",ROUND($AG114*EH$112,0),"")))))),"") ->  | EI114: =IFERROR(IF($AD114="Månatlig",IF(AND(EI$8<$AF114,EI$8>=$AE114),$AG114,0),IF($AD114="Kvartalsvis",IF(AND(MONTH(EI$8)/3=ROUND(MONTH(EI$8)/3,0),EI$8<$AF114,EI$8>=$AE114),$AG114*3,0),IF($AD114="ProcentKostnad",$AG114*EI$112,IF($AD114="ProduktProcent",EI$112*$M114/$L114*$AG114,IF($AD114="FaktorKostnad",EI$112*$AG114,IF(EC114="Kvantitet",ROUND($AG114*EI$112,0),"")))))),"") ->  | EJ114: =IFERROR(IF($AD114="Månatlig",IF(AND(EJ$8<$AF114,EJ$8>=$AE114),$AG114,0),IF($AD114="Kvartalsvis",IF(AND(MONTH(EJ$8)/3=ROUND(MONTH(EJ$8)/3,0),EJ$8<$AF114,EJ$8>=$AE114),$AG114*3,0),IF($AD114="ProcentKostnad",$AG114*EJ$112,IF($AD114="ProduktProcent",EJ$112*$M114/$L114*$AG114,IF($AD114="FaktorKostnad",EJ$112*$AG114,IF(ED114="Kvantitet",ROUND($AG114*EJ$112,0),"")))))),"") ->  | EK114: =IFERROR(IF($AD114="Månatlig",IF(AND(EK$8<$AF114,EK$8>=$AE114),$AG114,0),IF($AD114="Kvartalsvis",IF(AND(MONTH(EK$8)/3=ROUND(MONTH(EK$8)/3,0),EK$8<$AF114,EK$8>=$AE114),$AG114*3,0),IF($AD114="ProcentKostnad",$AG114*EK$112,IF($AD114="ProduktProcent",EK$112*$M114/$L114*$AG114,IF($AD114="FaktorKostnad",EK$112*$AG114,IF(EE114="Kvantitet",ROUND($AG114*EK$112,0),"")))))),"") ->  | EL114: =IFERROR(IF($AD114="Månatlig",IF(AND(EL$8<$AF114,EL$8>=$AE114),$AG114,0),IF($AD114="Kvartalsvis",IF(AND(MONTH(EL$8)/3=ROUND(MONTH(EL$8)/3,0),EL$8<$AF114,EL$8>=$AE114),$AG114*3,0),IF($AD114="ProcentKostnad",$AG114*EL$112,IF($AD114="ProduktProcent",EL$112*$M114/$L114*$AG114,IF($AD114="FaktorKostnad",EL$112*$AG114,IF(EF114="Kvantitet",ROUND($AG114*EL$112,0),"")))))),"") ->  | EM114: =IFERROR(IF($AD114="Månatlig",IF(AND(EM$8<$AF114,EM$8>=$AE114),$AG114,0),IF($AD114="Kvartalsvis",IF(AND(MONTH(EM$8)/3=ROUND(MONTH(EM$8)/3,0),EM$8<$AF114,EM$8>=$AE114),$AG114*3,0),IF($AD114="ProcentKostnad",$AG114*EM$112,IF($AD114="ProduktProcent",EM$112*$M114/$L114*$AG114,IF($AD114="FaktorKostnad",EM$112*$AG114,IF(EG114="Kvantitet",ROUND($AG114*EM$112,0),"")))))),"") ->  | EN114: =IFERROR(IF($AD114="Månatlig",IF(AND(EN$8<$AF114,EN$8>=$AE114),$AG114,0),IF($AD114="Kvartalsvis",IF(AND(MONTH(EN$8)/3=ROUND(MONTH(EN$8)/3,0),EN$8<$AF114,EN$8>=$AE114),$AG114*3,0),IF($AD114="ProcentKostnad",$AG114*EN$112,IF($AD114="ProduktProcent",EN$112*$M114/$L114*$AG114,IF($AD114="FaktorKostnad",EN$112*$AG114,IF(EH114="Kvantitet",ROUND($AG114*EN$112,0),"")))))),"") ->  | EO114: =IFERROR(IF($AD114="Månatlig",IF(AND(EO$8<$AF114,EO$8>=$AE114),$AG114,0),IF($AD114="Kvartalsvis",IF(AND(MONTH(EO$8)/3=ROUND(MONTH(EO$8)/3,0),EO$8<$AF114,EO$8>=$AE114),$AG114*3,0),IF($AD114="ProcentKostnad",$AG114*EO$112,IF($AD114="ProduktProcent",EO$112*$M114/$L114*$AG114,IF($AD114="FaktorKostnad",EO$112*$AG114,IF(EI114="Kvantitet",ROUND($AG114*EO$112,0),"")))))),"") ->  | EP114: =IFERROR(IF($AD114="Månatlig",IF(AND(EP$8<$AF114,EP$8>=$AE114),$AG114,0),IF($AD114="Kvartalsvis",IF(AND(MONTH(EP$8)/3=ROUND(MONTH(EP$8)/3,0),EP$8<$AF114,EP$8>=$AE114),$AG114*3,0),IF($AD114="ProcentKostnad",$AG114*EP$112,IF($AD114="ProduktProcent",EP$112*$M114/$L114*$AG114,IF($AD114="FaktorKostnad",EP$112*$AG114,IF(EJ114="Kvantitet",ROUND($AG114*EP$112,0),"")))))),"") ->  | EQ114: =IFERROR(IF($AD114="Månatlig",IF(AND(EQ$8<$AF114,EQ$8>=$AE114),$AG114,0),IF($AD114="Kvartalsvis",IF(AND(MONTH(EQ$8)/3=ROUND(MONTH(EQ$8)/3,0),EQ$8<$AF114,EQ$8>=$AE114),$AG114*3,0),IF($AD114="ProcentKostnad",$AG114*EQ$112,IF($AD114="ProduktProcent",EQ$112*$M114/$L114*$AG114,IF($AD114="FaktorKostnad",EQ$112*$AG114,IF(EK114="Kvantitet",ROUND($AG114*EQ$112,0),"")))))),"") -> 
B117: Segment1 | D117: AntalKunder | J117: Ingående | K117: =ROUND(650*0.25,0) -> 163 | M117: 0.25 | AF117: 47088 | AG117: =M117 -> 0.25 | AI117: =K117 -> 163 | AJ117: =IFERROR(IF($AD117="Månatlig",IF(AND(AJ$8<$AF117,AJ$8>=$AE117),$AG117,0),IF($AD117="Kvartalsvis",IF(AND(MONTH(AJ$8)/3=ROUND(MONTH(AJ$8)/3,0),AJ$8<$AF117,AJ$8>=$AE117),$AG117*3,0),IF($AD117="ProcentKostnad",$AG117*AJ$112,IF($AD117="ProduktProcent",AJ$112*$M117/$L117*$AG117,IF($AD117="FaktorKostnad",AJ$112*$AG117,IF(AD117="Kvantitet",ROUND($AG117*AJ$112+$AI117,0),"")))))),"") -> 
B118: Segment2 | D118: AntalKunder | J118: Ingående | K118: =ROUND(650*0.25*2,0) -> 325 | M118: 0.5 | AF118: 47088 | AG118: =M118 -> 0.5 | AI118: =K118 -> 325 | AJ118: =IFERROR(IF($AD118="Månatlig",IF(AND(AJ$8<$AF118,AJ$8>=$AE118),$AG118,0),IF($AD118="Kvartalsvis",IF(AND(MONTH(AJ$8)/3=ROUND(MONTH(AJ$8)/3,0),AJ$8<$AF118,AJ$8>=$AE118),$AG118*3,0),IF($AD118="ProcentKostnad",$AG118*AJ$112,IF($AD118="ProduktProcent",AJ$112*$M118/$L118*$AG118,IF($AD118="FaktorKostnad",AJ$112*$AG118,IF(AD118="Kvantitet",ROUND($AG118*AJ$112+$AI118,0),"")))))),"") -> 
B119: Segment3 | D119: AntalKunder | J119: Ingående | K119: =ROUND(650*0.25,0) -> 163 | M119: 0.25 | AF119: 47088 | AG119: 0.25 | AI119: =K119 -> 163
B120: Segment4 | AJ120: =IFERROR(IF($AD120="Månatlig",IF(AND(AJ$8<$AF120,AJ$8>=$AE120),$AG120,0),IF($AD120="Kvartalsvis",IF(AND(MONTH(AJ$8)/3=ROUND(MONTH(AJ$8)/3,0),AJ$8<$AF120,AJ$8>=$AE120),$AG120*3,0),IF($AD120="ProcentKostnad",$AG120*AJ$112,IF($AD120="ProduktProcent",AJ$112*$M120/$L120*$AG120,IF($AD120="FaktorKostnad",AJ$112*$AG120,IF(AD120="Kvantitet",ROUND($AG120*AJ$112,0),"")))))),"") -> 
B121: Segment5
B122: Segment6
B123: Segment7
B124: Segment8
B125: Segment9
B126: Segment10
AJ175: =IFERROR(IF($AD175="Månatlig",IF(AND(AJ$8<$AF175,AJ$8>=$AE175),$AG175,0),IF($AD175="Kvartalsvis",IF(AND(MONTH(AJ$8)/3=ROUND(MONTH(AJ$8)/3,0),AJ$8<$AF175,AJ$8>=$AE175),$AG175*3,0),IF($AD175="ProcentKostnad",$AG175*AJ$112,IF($AD175="ProduktProcent",AJ$112*$M175/$L175*$AG175,IF($AD175="FaktorKostnad",AJ$112*$AG175,""))))),"") ->  | AZ175: =IFERROR(IF($AD175="Månatlig",IF(AND(AZ$8<$AF175,AZ$8>=$AE175),$AG175,0),IF($AD175="Kvartalsvis",IF(AND(MONTH(AZ$8)/3=ROUND(MONTH(AZ$8)/3,0),AZ$8<$AF175,AZ$8>=$AE175),$AG175*3,0),IF($AD175="ProcentKostnad",$AG175*AZ$112,IF($AD175="ProduktProcent",AZ$112*$M175/$L175*$AG175,IF($AD175="FaktorKostnad",AZ$112*$AG175,""))))),"") ->  | BO175: =IFERROR(IF($AD175="Månatlig",IF(AND(BO$8<$AF175,BO$8>=$AE175),$AG175,0),IF($AD175="Kvartalsvis",IF(AND(MONTH(BO$8)/3=ROUND(MONTH(BO$8)/3,0),BO$8<$AF175,BO$8>=$AE175),$AG175*3,0),IF($AD175="ProcentKostnad",$AG175*BO$112,IF($AD175="ProduktProcent",BO$112*$M175/$L175*$AG175,IF($AD175="FaktorKostnad",BO$112*$AG175,""))))),"") ->  | CE175: =IFERROR(IF($AD175="Månatlig",IF(AND(CE$8<$AF175,CE$8>=$AE175),$AG175,0),IF($AD175="Kvartalsvis",IF(AND(MONTH(CE$8)/3=ROUND(MONTH(CE$8)/3,0),CE$8<$AF175,CE$8>=$AE175),$AG175*3,0),IF($AD175="ProcentKostnad",$AG175*CE$112,IF($AD175="ProduktProcent",CE$112*$M175/$L175*$AG175,IF($AD175="FaktorKostnad",CE$112*$AG175,""))))),"") ->  | CU175: =IFERROR(IF($AD175="Månatlig",IF(AND(CU$8<$AF175,CU$8>=$AE175),$AG175,0),IF($AD175="Kvartalsvis",IF(AND(MONTH(CU$8)/3=ROUND(MONTH(CU$8)/3,0),CU$8<$AF175,CU$8>=$AE175),$AG175*3,0),IF($AD175="ProcentKostnad",$AG175*CU$112,IF($AD175="ProduktProcent",CU$112*$M175/$L175*$AG175,IF($AD175="FaktorKostnad",CU$112*$AG175,""))))),"") ->  | DK175: =IFERROR(IF($AD175="Månatlig",IF(AND(DK$8<$AF175,DK$8>=$AE175),$AG175,0),IF($AD175="Kvartalsvis",IF(AND(MONTH(DK$8)/3=ROUND(MONTH(DK$8)/3,0),DK$8<$AF175,DK$8>=$AE175),$AG175*3,0),IF($AD175="ProcentKostnad",$AG175*DK$112,IF($AD175="ProduktProcent",DK$112*$M175/$L175*$AG175,IF($AD175="FaktorKostnad",DK$112*$AG175,""))))),"") ->  | EA175: =IFERROR(IF($AD175="Månatlig",IF(AND(EA$8<$AF175,EA$8>=$AE175),$AG175,0),IF($AD175="Kvartalsvis",IF(AND(MONTH(EA$8)/3=ROUND(MONTH(EA$8)/3,0),EA$8<$AF175,EA$8>=$AE175),$AG175*3,0),IF($AD175="ProcentKostnad",$AG175*EA$112,IF($AD175="ProduktProcent",EA$112*$M175/$L175*$AG175,IF($AD175="FaktorKostnad",EA$112*$AG175,""))))),"") ->  | EQ175: =IFERROR(IF($AD175="Månatlig",IF(AND(EQ$8<$AF175,EQ$8>=$AE175),$AG175,0),IF($AD175="Kvartalsvis",IF(AND(MONTH(EQ$8)/3=ROUND(MONTH(EQ$8)/3,0),EQ$8<$AF175,EQ$8>=$AE175),$AG175*3,0),IF($AD175="ProcentKostnad",$AG175*EQ$112,IF($AD175="ProduktProcent",EQ$112*$M175/$L175*$AG175,IF($AD175="FaktorKostnad",EQ$112*$AG175,""))))),"") -> 
BP176: =IFERROR(IF($AD176="Månatlig",IF(AND(BP$8<$AF176,BP$8>=$AE176),$AG176,0),IF($AD176="Kvartalsvis",IF(AND(MONTH(BP$8)/3=ROUND(MONTH(BP$8)/3,0),BP$8<$AF176,BP$8>=$AE176),$AG176*3,0),IF($AD176="ProcentKostnad",$AG176*BP$112,IF($AD176="ProduktProcent",BP$112*$M176/$L176*$AG176,IF($AD176="FaktorKostnad",BP$112*$AG176,""))))),"") ->  | CF176: =IFERROR(IF($AD176="Månatlig",IF(AND(CF$8<$AF176,CF$8>=$AE176),$AG176,0),IF($AD176="Kvartalsvis",IF(AND(MONTH(CF$8)/3=ROUND(MONTH(CF$8)/3,0),CF$8<$AF176,CF$8>=$AE176),$AG176*3,0),IF($AD176="ProcentKostnad",$AG176*CF$112,IF($AD176="ProduktProcent",CF$112*$M176/$L176*$AG176,IF($AD176="FaktorKostnad",CF$112*$AG176,""))))),"") ->  | CV176: =IFERROR(IF($AD176="Månatlig",IF(AND(CV$8<$AF176,CV$8>=$AE176),$AG176,0),IF($AD176="Kvartalsvis",IF(AND(MONTH(CV$8)/3=ROUND(MONTH(CV$8)/3,0),CV$8<$AF176,CV$8>=$AE176),$AG176*3,0),IF($AD176="ProcentKostnad",$AG176*CV$112,IF($AD176="ProduktProcent",CV$112*$M176/$L176*$AG176,IF($AD176="FaktorKostnad",CV$112*$AG176,""))))),"") ->  | DL176: =IFERROR(IF($AD176="Månatlig",IF(AND(DL$8<$AF176,DL$8>=$AE176),$AG176,0),IF($AD176="Kvartalsvis",IF(AND(MONTH(DL$8)/3=ROUND(MONTH(DL$8)/3,0),DL$8<$AF176,DL$8>=$AE176),$AG176*3,0),IF($AD176="ProcentKostnad",$AG176*DL$112,IF($AD176="ProduktProcent",DL$112*$M176/$L176*$AG176,IF($AD176="FaktorKostnad",DL$112*$AG176,""))))),"") ->  | EB176: =IFERROR(IF($AD176="Månatlig",IF(AND(EB$8<$AF176,EB$8>=$AE176),$AG176,0),IF($AD176="Kvartalsvis",IF(AND(MONTH(EB$8)/3=ROUND(MONTH(EB$8)/3,0),EB$8<$AF176,EB$8>=$AE176),$AG176*3,0),IF($AD176="ProcentKostnad",$AG176*EB$112,IF($AD176="ProduktProcent",EB$112*$M176/$L176*$AG176,IF($AD176="FaktorKostnad",EB$112*$AG176,""))))),"") -> 
AY178: =IFERROR(IF($AD178="Månatlig",IF(AND(AY$8<$AF178,AY$8>=$AE178),$AG178,0),IF($AD178="Kvartalsvis",IF(AND(MONTH(AY$8)/3=ROUND(MONTH(AY$8)/3,0),AY$8<$AF178,AY$8>=$AE178),$AG178*3,0),IF($AD178="ProcentKostnad",$AG178*AY$112,IF($AD178="ProduktProcent",AY$112*$M178/$L178*$AG178,IF($AD178="FaktorKostnad",AY$112*$AG178,""))))),"") ->  | BO178: =IFERROR(IF($AD178="Månatlig",IF(AND(BO$8<$AF178,BO$8>=$AE178),$AG178,0),IF($AD178="Kvartalsvis",IF(AND(MONTH(BO$8)/3=ROUND(MONTH(BO$8)/3,0),BO$8<$AF178,BO$8>=$AE178),$AG178*3,0),IF($AD178="ProcentKostnad",$AG178*BO$112,IF($AD178="ProduktProcent",BO$112*$M178/$L178*$AG178,IF($AD178="FaktorKostnad",BO$112*$AG178,""))))),"") -> 
AJ179: =IFERROR(IF($AD179="Månatlig",IF(AND(AJ$8<$AF179,AJ$8>=$AE179),$AG179,0),IF($AD179="Kvartalsvis",IF(AND(MONTH(AJ$8)/3=ROUND(MONTH(AJ$8)/3,0),AJ$8<$AF179,AJ$8>=$AE179),$AG179*3,0),IF($AD179="ProcentKostnad",$AG179*AJ$112,IF($AD179="ProduktProcent",AJ$112*$M179/$L179*$AG179,IF($AD179="FaktorKostnad",AJ$112*$AG179,""))))),"") -> 
CE191: =IFERROR(IF($AD191="Månatlig",IF(AND(CE$8<$AF191,CE$8>=$AE191),$AG191,0),IF($AD191="Kvartalsvis",IF(AND(MONTH(CE$8)/3=ROUND(MONTH(CE$8)/3,0),CE$8<$AF191,CE$8>=$AE191),$AG191*3,0),IF($AD191="ProcentKostnad",$AG191*CE$112,IF($AD191="ProduktProcent",CE$112*$M191/$L191*$AG191,IF($AD191="FaktorKostnad",CE$112*$AG191,""))))),"") ->  | CU191: =IFERROR(IF($AD191="Månatlig",IF(AND(CU$8<$AF191,CU$8>=$AE191),$AG191,0),IF($AD191="Kvartalsvis",IF(AND(MONTH(CU$8)/3=ROUND(MONTH(CU$8)/3,0),CU$8<$AF191,CU$8>=$AE191),$AG191*3,0),IF($AD191="ProcentKostnad",$AG191*CU$112,IF($AD191="ProduktProcent",CU$112*$M191/$L191*$AG191,IF($AD191="FaktorKostnad",CU$112*$AG191,""))))),"") ->  | DK191: =IFERROR(IF($AD191="Månatlig",IF(AND(DK$8<$AF191,DK$8>=$AE191),$AG191,0),IF($AD191="Kvartalsvis",IF(AND(MONTH(DK$8)/3=ROUND(MONTH(DK$8)/3,0),DK$8<$AF191,DK$8>=$AE191),$AG191*3,0),IF($AD191="ProcentKostnad",$AG191*DK$112,IF($AD191="ProduktProcent",DK$112*$M191/$L191*$AG191,IF($AD191="FaktorKostnad",DK$112*$AG191,""))))),"") ->  | EA191: =IFERROR(IF($AD191="Månatlig",IF(AND(EA$8<$AF191,EA$8>=$AE191),$AG191,0),IF($AD191="Kvartalsvis",IF(AND(MONTH(EA$8)/3=ROUND(MONTH(EA$8)/3,0),EA$8<$AF191,EA$8>=$AE191),$AG191*3,0),IF($AD191="ProcentKostnad",$AG191*EA$112,IF($AD191="ProduktProcent",EA$112*$M191/$L191*$AG191,IF($AD191="FaktorKostnad",EA$112*$AG191,""))))),"") -> 
BN193: =IFERROR(IF($AD193="Månatlig",IF(AND(BN$8<$AF193,BN$8>=$AE193),$AG193,0),IF($AD193="Kvartalsvis",IF(AND(MONTH(BN$8)/3=ROUND(MONTH(BN$8)/3,0),BN$8<$AF193,BN$8>=$AE193),$AG193*3,0),IF($AD193="ProcentKostnad",$AG193*BN$112,IF($AD193="ProduktProcent",BN$112*$M193/$L193*$AG193,IF($AD193="FaktorKostnad",BN$112*$AG193,""))))),"") -> 
AZ194: =IFERROR(IF($AD194="Månatlig",IF(AND(AZ$8<$AF194,AZ$8>=$AE194),$AG194,0),IF($AD194="Kvartalsvis",IF(AND(MONTH(AZ$8)/3=ROUND(MONTH(AZ$8)/3,0),AZ$8<$AF194,AZ$8>=$AE194),$AG194*3,0),IF($AD194="ProcentKostnad",$AG194*AZ$112,IF($AD194="ProduktProcent",AZ$112*$M194/$L194*$AG194,IF($AD194="FaktorKostnad",AZ$112*$AG194,""))))),"") ->  | CD194: =IFERROR(IF($AD194="Månatlig",IF(AND(CD$8<$AF194,CD$8>=$AE194),$AG194,0),IF($AD194="Kvartalsvis",IF(AND(MONTH(CD$8)/3=ROUND(MONTH(CD$8)/3,0),CD$8<$AF194,CD$8>=$AE194),$AG194*3,0),IF($AD194="ProcentKostnad",$AG194*CD$112,IF($AD194="ProduktProcent",CD$112*$M194/$L194*$AG194,IF($AD194="FaktorKostnad",CD$112*$AG194,""))))),"") -> 
AJ195: =IFERROR(IF($AD195="Månatlig",IF(AND(AJ$8<$AF195,AJ$8>=$AE195),$AG195,0),IF($AD195="Kvartalsvis",IF(AND(MONTH(AJ$8)/3=ROUND(MONTH(AJ$8)/3,0),AJ$8<$AF195,AJ$8>=$AE195),$AG195*3,0),IF($AD195="ProcentKostnad",$AG195*AJ$112,IF($AD195="ProduktProcent",AJ$112*$M195/$L195*$AG195,IF($AD195="FaktorKostnad",AJ$112*$AG195,""))))),"") -> 
CT207: =IFERROR(IF($AD207="Månatlig",IF(AND(CT$8<$AF207,CT$8>=$AE207),$AG207,0),IF($AD207="Kvartalsvis",IF(AND(MONTH(CT$8)/3=ROUND(MONTH(CT$8)/3,0),CT$8<$AF207,CT$8>=$AE207),$AG207*3,0),IF($AD207="ProcentKostnad",$AG207*CT$112,IF($AD207="ProduktProcent",CT$112*$M207/$L207*$AG207,IF($AD207="FaktorKostnad",CT$112*$AG207,""))))),"") ->  | DJ207: =IFERROR(IF($AD207="Månatlig",IF(AND(DJ$8<$AF207,DJ$8>=$AE207),$AG207,0),IF($AD207="Kvartalsvis",IF(AND(MONTH(DJ$8)/3=ROUND(MONTH(DJ$8)/3,0),DJ$8<$AF207,DJ$8>=$AE207),$AG207*3,0),IF($AD207="ProcentKostnad",$AG207*DJ$112,IF($AD207="ProduktProcent",DJ$112*$M207/$L207*$AG207,IF($AD207="FaktorKostnad",DJ$112*$AG207,""))))),"") ->  | DZ207: =IFERROR(IF($AD207="Månatlig",IF(AND(DZ$8<$AF207,DZ$8>=$AE207),$AG207,0),IF($AD207="Kvartalsvis",IF(AND(MONTH(DZ$8)/3=ROUND(MONTH(DZ$8)/3,0),DZ$8<$AF207,DZ$8>=$AE207),$AG207*3,0),IF($AD207="ProcentKostnad",$AG207*DZ$112,IF($AD207="ProduktProcent",DZ$112*$M207/$L207*$AG207,IF($AD207="FaktorKostnad",DZ$112*$AG207,""))))),"") ->  | EP207: =IFERROR(IF($AD207="Månatlig",IF(AND(EP$8<$AF207,EP$8>=$AE207),$AG207,0),IF($AD207="Kvartalsvis",IF(AND(MONTH(EP$8)/3=ROUND(MONTH(EP$8)/3,0),EP$8<$AF207,EP$8>=$AE207),$AG207*3,0),IF($AD207="ProcentKostnad",$AG207*EP$112,IF($AD207="ProduktProcent",EP$112*$M207/$L207*$AG207,IF($AD207="FaktorKostnad",EP$112*$AG207,""))))),"") -> 
BP209: =IFERROR(IF($AD209="Månatlig",IF(AND(BP$8<$AF209,BP$8>=$AE209),$AG209,0),IF($AD209="Kvartalsvis",IF(AND(MONTH(BP$8)/3=ROUND(MONTH(BP$8)/3,0),BP$8<$AF209,BP$8>=$AE209),$AG209*3,0),IF($AD209="ProcentKostnad",$AG209*BP$112,IF($AD209="ProduktProcent",BP$112*$M209/$L209*$AG209,IF($AD209="FaktorKostnad",BP$112*$AG209,""))))),"") -> 
AY210: =IFERROR(IF($AD210="Månatlig",IF(AND(AY$8<$AF210,AY$8>=$AE210),$AG210,0),IF($AD210="Kvartalsvis",IF(AND(MONTH(AY$8)/3=ROUND(MONTH(AY$8)/3,0),AY$8<$AF210,AY$8>=$AE210),$AG210*3,0),IF($AD210="ProcentKostnad",$AG210*AY$112,IF($AD210="ProduktProcent",AY$112*$M210/$L210*$AG210,IF($AD210="FaktorKostnad",AY$112*$AG210,""))))),"") ->  | BO210: =IFERROR(IF($AD210="Månatlig",IF(AND(BO$8<$AF210,BO$8>=$AE210),$AG210,0),IF($AD210="Kvartalsvis",IF(AND(MONTH(BO$8)/3=ROUND(MONTH(BO$8)/3,0),BO$8<$AF210,BO$8>=$AE210),$AG210*3,0),IF($AD210="ProcentKostnad",$AG210*BO$112,IF($AD210="ProduktProcent",BO$112*$M210/$L210*$AG210,IF($AD210="FaktorKostnad",BO$112*$AG210,""))))),"") ->  | CF210: =IFERROR(IF($AD210="Månatlig",IF(AND(CF$8<$AF210,CF$8>=$AE210),$AG210,0),IF($AD210="Kvartalsvis",IF(AND(MONTH(CF$8)/3=ROUND(MONTH(CF$8)/3,0),CF$8<$AF210,CF$8>=$AE210),$AG210*3,0),IF($AD210="ProcentKostnad",$AG210*CF$112,IF($AD210="ProduktProcent",CF$112*$M210/$L210*$AG210,IF($AD210="FaktorKostnad",CF$112*$AG210,""))))),"") -> 
AJ211: =IFERROR(IF($AD211="Månatlig",IF(AND(AJ$8<$AF211,AJ$8>=$AE211),$AG211,0),IF($AD211="Kvartalsvis",IF(AND(MONTH(AJ$8)/3=ROUND(MONTH(AJ$8)/3,0),AJ$8<$AF211,AJ$8>=$AE211),$AG211*3,0),IF($AD211="ProcentKostnad",$AG211*AJ$112,IF($AD211="ProduktProcent",AJ$112*$M211/$L211*$AG211,IF($AD211="FaktorKostnad",AJ$112*$AG211,""))))),"") -> 
DI222: =IFERROR(IF($AD222="Månatlig",IF(AND(DI$8<$AF222,DI$8>=$AE222),$AG222,0),IF($AD222="Kvartalsvis",IF(AND(MONTH(DI$8)/3=ROUND(MONTH(DI$8)/3,0),DI$8<$AF222,DI$8>=$AE222),$AG222*3,0),IF($AD222="ProcentKostnad",$AG222*DI$112,IF($AD222="ProduktProcent",DI$112*$M222/$L222*$AG222,IF($AD222="FaktorKostnad",DI$112*$AG222,""))))),"") ->  | DY222: =IFERROR(IF($AD222="Månatlig",IF(AND(DY$8<$AF222,DY$8>=$AE222),$AG222,0),IF($AD222="Kvartalsvis",IF(AND(MONTH(DY$8)/3=ROUND(MONTH(DY$8)/3,0),DY$8<$AF222,DY$8>=$AE222),$AG222*3,0),IF($AD222="ProcentKostnad",$AG222*DY$112,IF($AD222="ProduktProcent",DY$112*$M222/$L222*$AG222,IF($AD222="FaktorKostnad",DY$112*$AG222,""))))),"") ->  | EO222: =IFERROR(IF($AD222="Månatlig",IF(AND(EO$8<$AF222,EO$8>=$AE222),$AG222,0),IF($AD222="Kvartalsvis",IF(AND(MONTH(EO$8)/3=ROUND(MONTH(EO$8)/3,0),EO$8<$AF222,EO$8>=$AE222),$AG222*3,0),IF($AD222="ProcentKostnad",$AG222*EO$112,IF($AD222="ProduktProcent",EO$112*$M222/$L222*$AG222,IF($AD222="FaktorKostnad",EO$112*$AG222,""))))),"") -> 
CV223: =IFERROR(IF($AD223="Månatlig",IF(AND(CV$8<$AF223,CV$8>=$AE223),$AG223,0),IF($AD223="Kvartalsvis",IF(AND(MONTH(CV$8)/3=ROUND(MONTH(CV$8)/3,0),CV$8<$AF223,CV$8>=$AE223),$AG223*3,0),IF($AD223="ProcentKostnad",$AG223*CV$112,IF($AD223="ProduktProcent",CV$112*$M223/$L223*$AG223,IF($AD223="FaktorKostnad",CV$112*$AG223,""))))),"") -> 
BN225: =IFERROR(IF($AD225="Månatlig",IF(AND(BN$8<$AF225,BN$8>=$AE225),$AG225,0),IF($AD225="Kvartalsvis",IF(AND(MONTH(BN$8)/3=ROUND(MONTH(BN$8)/3,0),BN$8<$AF225,BN$8>=$AE225),$AG225*3,0),IF($AD225="ProcentKostnad",$AG225*BN$112,IF($AD225="ProduktProcent",BN$112*$M225/$L225*$AG225,IF($AD225="FaktorKostnad",BN$112*$AG225,""))))),"") ->  | CE225: =IFERROR(IF($AD225="Månatlig",IF(AND(CE$8<$AF225,CE$8>=$AE225),$AG225,0),IF($AD225="Kvartalsvis",IF(AND(MONTH(CE$8)/3=ROUND(MONTH(CE$8)/3,0),CE$8<$AF225,CE$8>=$AE225),$AG225*3,0),IF($AD225="ProcentKostnad",$AG225*CE$112,IF($AD225="ProduktProcent",CE$112*$M225/$L225*$AG225,IF($AD225="FaktorKostnad",CE$112*$AG225,""))))),"") -> 
AZ226: =IFERROR(IF($AD226="Månatlig",IF(AND(AZ$8<$AF226,AZ$8>=$AE226),$AG226,0),IF($AD226="Kvartalsvis",IF(AND(MONTH(AZ$8)/3=ROUND(MONTH(AZ$8)/3,0),AZ$8<$AF226,AZ$8>=$AE226),$AG226*3,0),IF($AD226="ProcentKostnad",$AG226*AZ$112,IF($AD226="ProduktProcent",AZ$112*$M226/$L226*$AG226,IF($AD226="FaktorKostnad",AZ$112*$AG226,""))))),"") ->  | CD226: =IFERROR(IF($AD226="Månatlig",IF(AND(CD$8<$AF226,CD$8>=$AE226),$AG226,0),IF($AD226="Kvartalsvis",IF(AND(MONTH(CD$8)/3=ROUND(MONTH(CD$8)/3,0),CD$8<$AF226,CD$8>=$AE226),$AG226*3,0),IF($AD226="ProcentKostnad",$AG226*CD$112,IF($AD226="ProduktProcent",CD$112*$M226/$L226*$AG226,IF($AD226="FaktorKostnad",CD$112*$AG226,""))))),"") ->  | CU226: =IFERROR(IF($AD226="Månatlig",IF(AND(CU$8<$AF226,CU$8>=$AE226),$AG226,0),IF($AD226="Kvartalsvis",IF(AND(MONTH(CU$8)/3=ROUND(MONTH(CU$8)/3,0),CU$8<$AF226,CU$8>=$AE226),$AG226*3,0),IF($AD226="ProcentKostnad",$AG226*CU$112,IF($AD226="ProduktProcent",CU$112*$M226/$L226*$AG226,IF($AD226="FaktorKostnad",CU$112*$AG226,""))))),"") -> 
AJ227: =IFERROR(IF($AD227="Månatlig",IF(AND(AJ$8<$AF227,AJ$8>=$AE227),$AG227,0),IF($AD227="Kvartalsvis",IF(AND(MONTH(AJ$8)/3=ROUND(MONTH(AJ$8)/3,0),AJ$8<$AF227,AJ$8>=$AE227),$AG227*3,0),IF($AD227="ProcentKostnad",$AG227*AJ$112,IF($AD227="ProduktProcent",AJ$112*$M227/$L227*$AG227,IF($AD227="FaktorKostnad",AJ$112*$AG227,""))))),"") -> 

Sheet ÅrsData
H1: =9000*12 -> 108000
H2: =11000*12 -> 132000 | L2: https://www.statistikdatabasen.scb.se/pxweb/sv/ssd/START__AM__AM0110__AM0110B/LonYrkeAlder/
H3: =13000*12 -> 156000 | L3: 18-24 år | M3: 22800
H4: =16000*12 -> 192000 | L4: 25-34 år | M4: 27800
L5: 35-44 år | M5: 32400
L6: 45-54 år | M6: 33300
L7: 55-64 år | M7: 32300
M8: =33.47-11.48 -> 21.99
B9: Ålder | C9: Dagisplats | D9: Förskolaplats | E9: Grundskoleplats | F9: Gymansieplats | G9: Skatteintäkt | H9: =C9&"Kostnad" -> DagisplatsKostnad | I9: =D9&"Kostnad" -> FörskolaplatsKostnad | J9: GrundskoleplatsKostnad | K9: GymansieplatsKostnad | L9: Årslön | M9: Skatteintäkt | N9: Nativitet | O9: Mortalitet
B10: 0
B11: 1 | C11: 1 | H11: =9000*12 -> 108000
B12: =B11+1 -> 2 | C12: 1 | H12: =9000*12 -> 108000
B13: =B12+1 -> 3 | C13: 1 | H13: 108000
B14: 4 | D14: 1 | I14: =11000*12 -> 132000
B15: 5 | D15: 1 | I15: =11000*12 -> 132000
B16: 6 | D16: 1 | I16: 132000
B17: 7 | E17: 1 | J17: =13000*12 -> 156000
B18: 8 | E18: 1 | J18: =13000*12 -> 156000
B19: 9 | E19: 1 | J19: 156000
B20: 10 | E20: 1 | J20: 156000
B21: 11 | E21: 1 | J21: 156000
B22: 12 | E22: 1 | J22: 156000
B23: 13 | E23: 1 | J23: 156000
B24: 14 | E24: 1 | J24: 156000
B25: 15 | E25: 1 | J25: 156000
B26: 16 | F26: 1 | K26: =16000*12 -> 192000
B27: 17 | F27: 1 | K27: =16000*12 -> 192000
B28: 18 | F28: 1 | K28: 192000
B29: 19 | L29: 273600 | M29: =L29*($M$8/100) -> 60164.64
B30: 20 | L30: 273600 | M30: =L30*($M$8/100) -> 60164.64
B31: 21 | L31: 273600 | M31: 60164.64
B32: 22 | L32: 273600 | M32: 60164.64
B33: 23 | L33: 273600 | M33: 60164.64
B34: 24 | L34: 273600 | M34: 60164.64
B35: 25 | L35: 333600 | M35: 73358.64 | N35: =(1.7/10)/2 -> 0.085
B36: 26 | L36: 333600 | M36: 73358.64 | N36: =(1.7/10)/2 -> 0.085
B37: 27 | L37: 333600 | M37: 73358.64 | N37: 0.085
B38: 28 | L38: 333600 | M38: 73358.64 | N38: 0.085
B39: 29 | L39: 333600 | M39: 73358.64 | N39: 0.085
B40: 30 | L40: 333600 | M40: 73358.64 | N40: 0.085
B41: 31 | L41: 333600 | M41: 73358.64 | N41: 0.085
B42: 32 | L42: 333600 | M42: 73358.64 | N42: 0.085
B43: 33 | L43: 333600 | M43: 73358.64 | N43: 0.085
B44: 34 | L44: 333600 | M44: 73358.64 | N44: 0.085
B45: 35 | L45: 388800 | M45: 85497.12 | N45: 0.085
B46: 36 | L46: 388800 | M46: 85497.12
B47: 37 | L47: 388800 | M47: 85497.12
B48: 38 | L48: 388800 | M48: 85497.12
B49: 39 | L49: 388800 | M49: 85497.12
B50: 40 | L50: 388800 | M50: 85497.12
B51: 41 | L51: 388800 | M51: 85497.12
B52: 42 | L52: 388800 | M52: 85497.12
B53: 43 | L53: 388800 | M53: 85497.12
B54: 44 | L54: 399600 | M54: 87872.04
B55: 45 | L55: 399600 | M55: 87872.04
B56: 46 | L56: 399600 | M56: 87872.04
B57: 47 | L57: 399600 | M57: 87872.04
B58: 48 | L58: 399600 | M58: 87872.04
B59: 49 | L59: 399600 | M59: 87872.04
B60: 50 | L60: 399600 | M60: 87872.04
B61: 51 | L61: 399600 | M61: 87872.04
B62: 52 | L62: 399600 | M62: 87872.04
B63: 53 | L63: 399600 | M63: 87872.04
B64: 54 | L64: 399600 | M64: 87872.04
B65: 55 | L65: 387600 | M65: 85233.24 | O65: =1/41 -> 0.0243902439
B66: 56 | L66: 387600 | M66: 85233.24 | O66: =1/41 -> 0.0243902439
B67: 57 | L67: 387600 | M67: 85233.24 | O67: 0.0243902439
B68: 58 | L68: 387600 | M68: 85233.24 | O68: 0.0243902439
B69: 59 | L69: 387600 | M69: 85233.24 | O69: =1/41 -> 0.0243902439
B70: 60 | L70: 387600 | M70: 85233.24 | O70: =1/41 -> 0.0243902439
B71: 61 | L71: 387600 | M71: 85233.24 | O71: 0.0243902439
B72: 62 | L72: 387600 | M72: 85233.24 | O72: 0.0243902439
B73: 63 | L73: 387600 | M73: 85233.24 | O73: 0.0243902439
B74: 64 | L74: 387600 | M74: 85233.24 | O74: 0.0243902439
B75: 65 | O75: 0.0243902439
B76: 66 | O76: 0.0243902439
B77: =B76+1 -> 67 | O77: 0.0243902439
B78: 68 | O78: 0.0243902439
B79: 69 | O79: 0.0243902439
B80: 70 | O80: 0.0243902439
B81: 71 | O81: 0.0243902439
B82: 72 | O82: 0.0243902439
B83: 73 | O83: 0.0243902439
B84: 74 | O84: 0.0243902439
B85: 75 | O85: 0.0243902439
B86: 76 | O86: 0.0243902439
B87: 77 | O87: 0.0243902439
B88: 78 | O88: 0.0243902439
B89: 79 | O89: 0.0243902439
B90: 80 | O90: 0.0243902439
B91: 81 | O91: 0.0243902439
B92: 82 | O92: 0.0243902439
B93: 83 | O93: 0.0243902439
B94: 84 | O94: 0.0243902439
B95: 85 | O95: 0.0243902439
B96: 86 | O96: 0.0243902439
B97: 87 | O97: 0.0243902439
B98: 88 | O98: 0.0243902439
B99: 89 | O99: 0.0243902439
B100: 90 | O100: 0.0243902439
B101: 91 | O101: 0.0243902439
B102: 92 | O102: 0.0243902439
B103: 93 | O103: 0.0243902439
B104: 94 | O104: 0.0243902439
B105: 95 | O105: 0.0243902439
B106: 96 | O106: 0.0243902439
B107: 97 | O107: 0.0243902439
B108: 98 | O108: 0.0243902439
B109: 99 | O109: 0.0243902439

Sheet DB
L9: =IFERROR(IF(F9<>"",I9*INDEX(Rates!$G$143:$O$246,MATCH(H9,Rates!$G$143:$G$246,0),MATCH(F9,Rates!$G$143:$O$143,0)),""),"") ->  | M9: =IFERROR(IF(F9<>"",I9*IF(OR(J9="Costs",J9="Kostnad",J9="Kapacitet"),-1,1),""),"") ->  | N9: =IFERROR(DAY(H9),1) -> 0 | O9: =IFERROR(MONTH(H9),1) -> 1 | P9: =IFERROR(YEAR(H9),1) -> 1900 | Q9: =P9&"_"&IF(LEN(O9)=1,"0","")&O9 -> 1900_01 | R9: =IF(AND(D9="Personal",I9>0),1,0) -> 0
A10: Ref | B10: Ref2 | C10: Market | D10: ProduktGrupp | E10: Segment | F10: Typ | G10: Title | H10: Month | I10: Values | J10: DataTyp | K10: Blad | L10: Värden_USD | M10: Värden_KostnaderNegativa | N10: Day | O10: Month | P10: Year | Q10: YearMonth | R10: Calc_Employees
C11: Investering | D11: Slamtorkning | E11: Valuta | F11: SEK | G11: Slamtorkning_Kostnad | H11: 2024-01-01 | I11: 2000 | J11: Kostnad | K11: Exploatering | L11: 204 | M11: -2000 | N11: 1 | O11: 1 | P11: 2024 | Q11: 2024_01 | R11: 0
C12: Investering | D12: Slamtorkning | E12: Valuta | F12: SEK | G12: Slamtorkning_Kostnad | H12: 2026-01-01 | I12: 2000 | J12: Kostnad | K12: Exploatering | L12: 204 | M12: -2000 | N12: 1 | O12: 1 | P12: 2026 | Q12: 2026_01 | R12: 0
C13: Investering | D13: Läkemedelsrening | E13: Valuta | F13: SEK | G13: Läkemedelsrening_Kostnad | H13: 2026-01-01 | I13: 1000 | J13: Kostnad | K13: Exploatering | L13: 102 | M13: -1000 | N13: 1 | O13: 1 | P13: 2026 | Q13: 2026_01 | R13: 0
C14: Investering | D14: Läkemedelsrening | E14: Valuta | F14: SEK | G14: Läkemedelsrening_Kostnad | H14: 2027-01-01 | I14: 1000 | J14: Kostnad | K14: Exploatering | L14: 102 | M14: -1000 | N14: 1 | O14: 1 | P14: 2027 | Q14: 2027_01 | R14: 0
C15: Investering | D15: Läkemedelsrening | E15: Valuta | F15: SEK | G15: Läkemedelsrening_Kostnad | H15: 2028-01-01 | I15: 1000 | J15: Kostnad | K15: Exploatering | L15: 102 | M15: -1000 | N15: 1 | O15: 1 | P15: 2028 | Q15: 2028_01 | R15: 0
C16: Investering | D16: Läkemedelsrening | E16: Valuta | F16: SEK | G16: Läkemedelsrening_Kostnad | H16: 2029-01-01 | I16: 1000 | J16: Kostnad | K16: Exploatering | M16: -1000 | N16: 1 | O16: 1 | P16: 2029 | Q16: 2029_01 | R16: 0
C17: Investering | D17: Läkemedelsrening | E17: Valuta | F17: SEK | G17: Läkemedelsrening_Kostnad | H17: 2030-01-01 | I17: 1000 | J17: Kostnad | K17: Exploatering | M17: -1000 | N17: 1 | O17: 1 | P17: 2030 | Q17: 2030_01 | R17: 0
C18: Investering | D18: Områdesmätare | E18: Valuta | F18: SEK | G18: Områdesmätare_Kostnad | H18: 2024-01-01 | I18: 1500 | J18: Kostnad | K18: Exploatering | L18: 153 | M18: -1500 | N18: 1 | O18: 1 | P18: 2024 | Q18: 2024_01 | R18: 0
C19: Investering | D19: Områdesmätare | E19: Valuta | F19: SEK | G19: Områdesmätare_Kostnad | H19: 2025-01-01 | I19: 1500 | J19: Kostnad | K19: Exploatering | L19: 153 | M19: -1500 | N19: 1 | O19: 1 | P19: 2025 | Q19: 2025_01 | R19: 0
C20: Investering | D20: Områdesmätare | E20: Valuta | F20: SEK | G20: Områdesmätare_Kostnad | H20: 2026-01-01 | I20: 1400 | J20: Kostnad | K20: Exploatering | L20: 142.8 | M20: -1400 | N20: 1 | O20: 1 | P20: 2026 | Q20: 2026_01 | R20: 0
C21: Investering | D21: Områdesmätare | E21: Valuta | F21: SEK | G21: Områdesmätare_Kostnad | H21: 2027-01-01 | I21: 1400 | J21: Kostnad | K21: Exploatering | L21: 142.8 | M21: -1400 | N21: 1 | O21: 1 | P21: 2027 | Q21: 2027_01 | R21: 0
C22: Investering | D22: Områdesmätare | E22: Valuta | F22: SEK | G22: Områdesmätare_Kostnad | H22: 2028-01-01 | I22: 1400 | J22: Kostnad | K22: Exploatering | L22: 142.8 | M22: -1400 | N22: 1 | O22: 1 | P22: 2028 | Q22: 2028_01 | R22: 0
C23: Investering | D23: Områdesmätare | E23: Valuta | F23: SEK | G23: Områdesmätare_Kostnad | H23: 2029-01-01 | I23: 1400 | J23: Kostnad | K23: Exploatering | M23: -1400 | N23: 1 | O23: 1 | P23: 2029 | Q23: 2029_01 | R23: 0
C24: Investering | D24: Områdesmätare | E24: Valuta | F24: SEK | G24: Områdesmätare_Kostnad | H24: 2030-01-01 | I24: 1400 | J24: Kostnad | K24: Exploatering | M24: -1400 | N24: 1 | O24: 1 | P24: 2030 | Q24: 2030_01 | R24: 0
C25: Investering | D25: Områdesmätare | E25: Valuta | F25: SEK | G25: Områdesmätare_Kostnad | H25: 2031-01-01 | I25: 1400 | J25: Kostnad | K25: Exploatering | M25: -1400 | N25: 1 | O25: 1 | P25: 2031 | Q25: 2031_01 | R25: 0
C26: Investering | D26: Områdesmätare | E26: Valuta | F26: SEK | G26: Områdesmätare_Kostnad | H26: 2032-01-01 | I26: 1400 | J26: Kostnad | K26: Exploatering | M26: -1400 | N26: 1 | O26: 1 | P26: 2032 | Q26: 2032_01 | R26: 0
C27: Investering | D27: Områdesmätare | E27: Valuta | F27: SEK | G27: Områdesmätare_Kostnad | H27: 2033-01-01 | I27: 1400 | J27: Kostnad | K27: Exploatering | M27: -1400 | N27: 1 | O27: 1 | P27: 2033 | Q27: 2033_01 | R27: 0
C28: Investering | D28: Områdesmätare | E28: Valuta | F28: SEK | G28: Områdesmätare_Kostnad | H28: 2034-01-01 | I28: 1400 | J28: Kostnad | K28: Exploatering | M28: -1400 | N28: 1 | O28: 1 | P28: 2034 | Q28: 2034_01 | R28: 0
C29: Investering | D29: Områdesmätare | E29: Valuta | F29: SEK | G29: Områdesmätare_Kostnad | H29: 2035-01-01 | I29: 1400 | J29: Kostnad | K29: Exploatering | M29: -1400 | N29: 1 | O29: 1 | P29: 2035 | Q29: 2035_01 | R29: 0
C30: Investering | D30: Flödesmätare APU | E30: Valuta | F30: SEK | G30: Flödesmätare APU_Kostnad | H30: 2024-01-01 | I30: 250 | J30: Kostnad | K30: Exploatering | L30: 25.5 | M30: -250 | N30: 1 | O30: 1 | P30: 2024 | Q30: 2024_01 | R30: 0
C31: Investering | D31: Flödesmätare APU | E31: Valuta | F31: SEK | G31: Flödesmätare APU_Kostnad | H31: 2025-01-01 | I31: 250 | J31: Kostnad | K31: Exploatering | L31: 25.5 | M31: -250 | N31: 1 | O31: 1 | P31: 2025 | Q31: 2025_01 | R31: 0
C32: Investering | D32: Flödesmätare APU | E32: Valuta | F32: SEK | G32: Flödesmätare APU_Kostnad | H32: 2026-01-01 | I32: 300 | J32: Kostnad | K32: Exploatering | L32: 30.6 | M32: -300 | N32: 1 | O32: 1 | P32: 2026 | Q32: 2026_01 | R32: 0
C33: Investering | D33: Flödesmätare APU | E33: Valuta | F33: SEK | G33: Flödesmätare APU_Kostnad | H33: 2027-01-01 | I33: 300 | J33: Kostnad | K33: Exploatering | L33: 30.6 | M33: -300 | N33: 1 | O33: 1 | P33: 2027 | Q33: 2027_01 | R33: 0
C34: Investering | D34: Flödesmätare APU | E34: Valuta | F34: SEK | G34: Flödesmätare APU_Kostnad | H34: 2028-01-01 | I34: 300 | J34: Kostnad | K34: Exploatering | L34: 30.6 | M34: -300 | N34: 1 | O34: 1 | P34: 2028 | Q34: 2028_01 | R34: 0
C35: Investering | D35: Flödesmätare APU | E35: Valuta | F35: SEK | G35: Flödesmätare APU_Kostnad | H35: 2029-01-01 | I35: 300 | J35: Kostnad | K35: Exploatering | M35: -300 | N35: 1 | O35: 1 | P35: 2029 | Q35: 2029_01 | R35: 0
C36: Investering | D36: Flödesmätare APU | E36: Valuta | F36: SEK | G36: Flödesmätare APU_Kostnad | H36: 2030-01-01 | I36: 250 | J36: Kostnad | K36: Exploatering | M36: -250 | N36: 1 | O36: 1 | P36: 2030 | Q36: 2030_01 | R36: 0
C37: Investering | D37: Flödesmätare APU | E37: Valuta | F37: SEK | G37: Flödesmätare APU_Kostnad | H37: 2031-01-01 | I37: 250 | J37: Kostnad | K37: Exploatering | M37: -250 | N37: 1 | O37: 1 | P37: 2031 | Q37: 2031_01 | R37: 0
C38: Investering | D38: Flödesmätare APU | E38: Valuta | F38: SEK | G38: Flödesmätare APU_Kostnad | H38: 2032-01-01 | I38: 250 | J38: Kostnad | K38: Exploatering | M38: -250 | N38: 1 | O38: 1 | P38: 2032 | Q38: 2032_01 | R38: 0
C39: Investering | D39: Flödesmätare APU | E39: Valuta | F39: SEK | G39: Flödesmätare APU_Kostnad | H39: 2033-01-01 | I39: 250 | J39: Kostnad | K39: Exploatering | M39: -250 | N39: 1 | O39: 1 | P39: 2033 | Q39: 2033_01 | R39: 0
C40: Investering | D40: Flödesmätare APU | E40: Valuta | F40: SEK | G40: Flödesmätare APU_Kostnad | H40: 2034-01-01 | I40: 250 | J40: Kostnad | K40: Exploatering | M40: -250 | N40: 1 | O40: 1 | P40: 2034 | Q40: 2034_01 | R40: 0
C41: Investering | D41: Flödesmätare APU | E41: Valuta | F41: SEK | G41: Flödesmätare APU_Kostnad | H41: 2035-01-01 | I41: 250 | J41: Kostnad | K41: Exploatering | M41: -250 | N41: 1 | O41: 1 | P41: 2035 | Q41: 2035_01 | R41: 0
C42: Investering | D42: Dricksv Ålder/Material | E42: Valuta | F42: SEK | G42: Dricksv Ålder/Material_Kostnad | H42: 2024-01-01 | I42: 5400 | J42: Kostnad | K42: Exploatering | L42: 550.8 | M42: -5400 | N42: 1 | O42: 1 | P42: 2024 | Q42: 2024_01 | R42: 0
C43: Investering | D43: Dricksv Ålder/Material | E43: Valuta | F43: SEK | G43: Dricksv Ålder/Material_Kostnad | H43: 2025-01-01 | I43: 5400 | J43: Kostnad | K43: Exploatering | L43: 550.8 | M43: -5400 | N43: 1 | O43: 1 | P43: 2025 | Q43: 2025_01 | R43: 0
C44: Investering | D44: Dricksv Ålder/Material | E44: Valuta | F44: SEK | G44: Dricksv Ålder/Material_Kostnad | H44: 2026-01-01 | I44: 5400 | J44: Kostnad | K44: Exploatering | L44: 550.8 | M44: -5400 | N44: 1 | O44: 1 | P44: 2026 | Q44: 2026_01 | R44: 0
C45: Investering | D45: Dricksv Ålder/Material | E45: Valuta | F45: SEK | G45: Dricksv Ålder/Material_Kostnad | H45: 2027-01-01 | I45: 5400 | J45: Kostnad | K45: Exploatering | L45: 550.8 | M45: -5400 | N45: 1 | O45: 1 | P45: 2027 | Q45: 2027_01 | R45: 0
C46: Investering | D46: Dricksv Ålder/Material | E46: Valuta | F46: SEK | G46: Dricksv Ålder/Material_Kostnad | H46: 2028-01-01 | I46: 5400 | J46: Kostnad | K46: Exploatering | L46: 550.8 | M46: -5400 | N46: 1 | O46: 1 | P46: 2028 | Q46: 2028_01 | R46: 0
C47: Investering | D47: Dricksv Ålder/Material | E47: Valuta | F47: SEK | G47: Dricksv Ålder/Material_Kostnad | H47: 2029-01-01 | I47: 5400 | J47: Kostnad | K47: Exploatering | M47: -5400 | N47: 1 | O47: 1 | P47: 2029 | Q47: 2029_01 | R47: 0
C48: Investering | D48: Dricksv Ålder/Material | E48: Valuta | F48: SEK | G48: Dricksv Ålder/Material_Kostnad | H48: 2030-01-01 | I48: 5000 | J48: Kostnad | K48: Exploatering | M48: -5000 | N48: 1 | O48: 1 | P48: 2030 | Q48: 2030_01 | R48: 0
C49: Investering | D49: Dricksv Ålder/Material | E49: Valuta | F49: SEK | G49: Dricksv Ålder/Material_Kostnad | H49: 2031-01-01 | I49: 5000 | J49: Kostnad | K49: Exploatering | M49: -5000 | N49: 1 | O49: 1 | P49: 2031 | Q49: 2031_01 | R49: 0
C50: Investering | D50: Dricksv Ålder/Material | E50: Valuta | F50: SEK | G50: Dricksv Ålder/Material_Kostnad | H50: 2032-01-01 | I50: 5000 | J50: Kostnad | K50: Exploatering | M50: -5000 | N50: 1 | O50: 1 | P50: 2032 | Q50: 2032_01 | R50: 0
C51: Investering | D51: Dricksv Ålder/Material | E51: Valuta | F51: SEK | G51: Dricksv Ålder/Material_Kostnad | H51: 2033-01-01 | I51: 5000 | J51: Kostnad | K51: Exploatering | M51: -5000 | N51: 1 | O51: 1 | P51: 2033 | Q51: 2033_01 | R51: 0
C52: Investering | D52: Dricksv Ålder/Material | E52: Valuta | F52: SEK | G52: Dricksv Ålder/Material_Kostnad | H52: 2034-01-01 | I52: 5000 | J52: Kostnad | K52: Exploatering | M52: -5000 | N52: 1 | O52: 1 | P52: 2034 | Q52: 2034_01 | R52: 0
C53: Investering | D53: Dricksv Ålder/Material | E53: Valuta | F53: SEK | G53: Dricksv Ålder/Material_Kostnad | H53: 2035-01-01 | I53: 5000 | J53: Kostnad | K53: Exploatering | M53: -5000 | N53: 1 | O53: 1 | P53: 2035 | Q53: 2035_01 | R53: 0
C54: Investering | D54: Spillv Ålder/Material | E54: Valuta | F54: SEK | G54: Spillv Ålder/Material_Kostnad | H54: 2024-01-01 | I54: 11900 | J54: Kostnad | K54: Exploatering | L54: 1213.8 | M54: -11900 | N54: 1 | O54: 1 | P54: 2024 | Q54: 2024_01 | R54: 0
C55: Investering | D55: Spillv Ålder/Material | E55: Valuta | F55: SEK | G55: Spillv Ålder/Material_Kostnad | H55: 2025-01-01 | I55: 11900 | J55: Kostnad | K55: Exploatering | L55: 1213.8 | M55: -11900 | N55: 1 | O55: 1 | P55: 2025 | Q55: 2025_01 | R55: 0
C56: Investering | D56: Spillv Ålder/Material | E56: Valuta | F56: SEK | G56: Spillv Ålder/Material_Kostnad | H56: 2026-01-01 | I56: 11900 | J56: Kostnad | K56: Exploatering | L56: 1213.8 | M56: -11900 | N56: 1 | O56: 1 | P56: 2026 | Q56: 2026_01 | R56: 0
C57: Investering | D57: Spillv Ålder/Material | E57: Valuta | F57: SEK | G57: Spillv Ålder/Material_Kostnad | H57: 2027-01-01 | I57: 11900 | J57: Kostnad | K57: Exploatering | L57: 1213.8 | M57: -11900 | N57: 1 | O57: 1 | P57: 2027 | Q57: 2027_01 | R57: 0
C58: Investering | D58: Spillv Ålder/Material | E58: Valuta | F58: SEK | G58: Spillv Ålder/Material_Kostnad | H58: 2028-01-01 | I58: 11900 | J58: Kostnad | K58: Exploatering | L58: 1213.8 | M58: -11900 | N58: 1 | O58: 1 | P58: 2028 | Q58: 2028_01 | R58: 0
C59: Investering | D59: Spillv Ålder/Material | E59: Valuta | F59: SEK | G59: Spillv Ålder/Material_Kostnad | H59: 2029-01-01 | I59: 11900 | J59: Kostnad | K59: Exploatering | M59: -11900 | N59: 1 | O59: 1 | P59: 2029 | Q59: 2029_01 | R59: 0
C60: Investering | D60: Spillv Ålder/Material | E60: Valuta | F60: SEK | G60: Spillv Ålder/Material_Kostnad | H60: 2030-01-01 | I60: 12000 | J60: Kostnad | K60: Exploatering | M60: -12000 | N60: 1 | O60: 1 | P60: 2030 | Q60: 2030_01 | R60: 0
C61: Investering | D61: Spillv Ålder/Material | E61: Valuta | F61: SEK | G61: Spillv Ålder/Material_Kostnad | H61: 2031-01-01 | I61: 12000 | J61: Kostnad | K61: Exploatering | M61: -12000 | N61: 1 | O61: 1 | P61: 2031 | Q61: 2031_01 | R61: 0
C62: Investering | D62: Spillv Ålder/Material | E62: Valuta | F62: SEK | G62: Spillv Ålder/Material_Kostnad | H62: 2032-01-01 | I62: 12000 | J62: Kostnad | K62: Exploatering | M62: -12000 | N62: 1 | O62: 1 | P62: 2032 | Q62: 2032_01 | R62: 0
C63: Investering | D63: Spillv Ålder/Material | E63: Valuta | F63: SEK | G63: Spillv Ålder/Material_Kostnad | H63: 2033-01-01 | I63: 12000 | J63: Kostnad | K63: Exploatering | M63: -12000 | N63: 1 | O63: 1 | P63: 2033 | Q63: 2033_01 | R63: 0
C64: Investering | D64: Spillv Ålder/Material | E64: Valuta | F64: SEK | G64: Spillv Ålder/Material_Kostnad | H64: 2034-01-01 | I64: 12000 | J64: Kostnad | K64: Exploatering | M64: -12000 | N64: 1 | O64: 1 | P64: 2034 | Q64: 2034_01 | R64: 0
C65: Investering | D65: Spillv Ålder/Material | E65: Valuta | F65: SEK | G65: Spillv Ålder/Material_Kostnad | H65: 2035-01-01 | I65: 12000 | J65: Kostnad | K65: Exploatering | M65: -12000 | N65: 1 | O65: 1 | P65: 2035 | Q65: 2035_01 | R65: 0
C66: Investering | D66: Dagv Ålder/Material | E66: Valuta | F66: SEK | G66: Dagv Ålder/Material_Kostnad | H66: 2024-01-01 | I66: 3100 | J66: Kostnad | K66: Exploatering | L66: 316.2 | M66: -3100 | N66: 1 | O66: 1 | P66: 2024 | Q66: 2024_01 | R66: 0
C67: Investering | D67: Dagv Ålder/Material | E67: Valuta | F67: SEK | G67: Dagv Ålder/Material_Kostnad | H67: 2025-01-01 | I67: 3100 | J67: Kostnad | K67: Exploatering | L67: 316.2 | M67: -3100 | N67: 1 | O67: 1 | P67: 2025 | Q67: 2025_01 | R67: 0
C68: Investering | D68: Dagv Ålder/Material | E68: Valuta | F68: SEK | G68: Dagv Ålder/Material_Kostnad | H68: 2026-01-01 | I68: 3100 | J68: Kostnad | K68: Exploatering | L68: 316.2 | M68: -3100 | N68: 1 | O68: 1 | P68: 2026 | Q68: 2026_01 | R68: 0
C69: Investering | D69: Dagv Ålder/Material | E69: Valuta | F69: SEK | G69: Dagv Ålder/Material_Kostnad | H69: 2027-01-01 | I69: 3100 | J69: Kostnad | K69: Exploatering | L69: 316.2 | M69: -3100 | N69: 1 | O69: 1 | P69: 2027 | Q69: 2027_01 | R69: 0
C70: Investering | D70: Dagv Ålder/Material | E70: Valuta | F70: SEK | G70: Dagv Ålder/Material_Kostnad | H70: 2028-01-01 | I70: 3100 | J70: Kostnad | K70: Exploatering | L70: 316.2 | M70: -3100 | N70: 1 | O70: 1 | P70: 2028 | Q70: 2028_01 | R70: 0
C71: Investering | D71: Dagv Ålder/Material | E71: Valuta | F71: SEK | G71: Dagv Ålder/Material_Kostnad | H71: 2029-01-01 | I71: 3100 | J71: Kostnad | K71: Exploatering | M71: -3100 | N71: 1 | O71: 1 | P71: 2029 | Q71: 2029_01 | R71: 0
C72: Investering | D72: Dagv Ålder/Material | E72: Valuta | F72: SEK | G72: Dagv Ålder/Material_Kostnad | H72: 2030-01-01 | I72: 3600 | J72: Kostnad | K72: Exploatering | M72: -3600 | N72: 1 | O72: 1 | P72: 2030 | Q72: 2030_01 | R72: 0
C73: Investering | D73: Dagv Ålder/Material | E73: Valuta | F73: SEK | G73: Dagv Ålder/Material_Kostnad | H73: 2031-01-01 | I73: 3600 | J73: Kostnad | K73: Exploatering | M73: -3600 | N73: 1 | O73: 1 | P73: 2031 | Q73: 2031_01 | R73: 0
C74: Investering | D74: Dagv Ålder/Material | E74: Valuta | F74: SEK | G74: Dagv Ålder/Material_Kostnad | H74: 2032-01-01 | I74: 3600 | J74: Kostnad | K74: Exploatering | M74: -3600 | N74: 1 | O74: 1 | P74: 2032 | Q74: 2032_01 | R74: 0
C75: Investering | D75: Dagv Ålder/Material | E75: Valuta | F75: SEK | G75: Dagv Ålder/Material_Kostnad | H75: 2033-01-01 | I75: 3600 | J75: Kostnad | K75: Exploatering | M75: -3600 | N75: 1 | O75: 1 | P75: 2033 | Q75: 2033_01 | R75: 0
C76: Investering | D76: Dagv Ålder/Material | E76: Valuta | F76: SEK | G76: Dagv Ålder/Material_Kostnad | H76: 2034-01-01 | I76: 3600 | J76: Kostnad | K76: Exploatering | M76: -3600 | N76: 1 | O76: 1 | P76: 2034 | Q76: 2034_01 | R76: 0
C77: Investering | D77: Dagv Ålder/Material | E77: Valuta | F77: SEK | G77: Dagv Ålder/Material_Kostnad | H77: 2035-01-01 | I77: 3600 | J77: Kostnad | K77: Exploatering | M77: -3600 | N77: 1 | O77: 1 | P77: 2035 | Q77: 2035_01 | R77: 0
C78: Investering | D78: Slamhantering Fällningsdammar | E78: Valuta | F78: SEK | G78: Slamhantering Fällningsdammar_Kostnad | H78: 2024-01-01 | I78: 1000 | J78: Kostnad | K78: Exploatering | L78: 102 | M78: -1000 | N78: 1 | O78: 1 | P78: 2024 | Q78: 2024_01 | R78: 0
C79: Investering | D79: Slamhantering Fällningsdammar | E79: Valuta | F79: SEK | G79: Slamhantering Fällningsdammar_Kostnad | H79: 2025-01-01 | I79: 1000 | J79: Kostnad | K79: Exploatering | L79: 102 | M79: -1000 | N79: 1 | O79: 1 | P79: 2025 | Q79: 2025_01 | R79: 0
C80: Investering | D80: Slamhantering Fällningsdammar | E80: Valuta | F80: SEK | G80: Slamhantering Fällningsdammar_Kostnad | H80: 2026-01-01 | I80: 1000 | J80: Kostnad | K80: Exploatering | L80: 102 | M80: -1000 | N80: 1 | O80: 1 | P80: 2026 | Q80: 2026_01 | R80: 0
C81: Investering | D81: Slamhantering Fällningsdammar | E81: Valuta | F81: SEK | G81: Slamhantering Fällningsdammar_Kostnad | H81: 2027-01-01 | I81: 1000 | J81: Kostnad | K81: Exploatering | L81: 102 | M81: -1000 | N81: 1 | O81: 1 | P81: 2027 | Q81: 2027_01 | R81: 0
C82: Investering | D82: Slamhantering Fällningsdammar | E82: Valuta | F82: SEK | G82: Slamhantering Fällningsdammar_Kostnad | H82: 2028-01-01 | I82: 1000 | J82: Kostnad | K82: Exploatering | L82: 102 | M82: -1000 | N82: 1 | O82: 1 | P82: 2028 | Q82: 2028_01 | R82: 0
C83: Investering | D83: Slamhantering Fällningsdammar | E83: Valuta | F83: SEK | G83: Slamhantering Fällningsdammar_Kostnad | H83: 2029-01-01 | I83: 1000 | J83: Kostnad | K83: Exploatering | M83: -1000 | N83: 1 | O83: 1 | P83: 2029 | Q83: 2029_01 | R83: 0
C84: Investering | D84: Slamhantering Fällningsdammar | E84: Valuta | F84: SEK | G84: Slamhantering Fällningsdammar_Kostnad | H84: 2030-01-01 | I84: 1000 | J84: Kostnad | K84: Exploatering | M84: -1000 | N84: 1 | O84: 1 | P84: 2030 | Q84: 2030_01 | R84: 0
C85: Investering | D85: Slamhantering Fällningsdammar | E85: Valuta | F85: SEK | G85: Slamhantering Fällningsdammar_Kostnad | H85: 2031-01-01 | I85: 1000 | J85: Kostnad | K85: Exploatering | M85: -1000 | N85: 1 | O85: 1 | P85: 2031 | Q85: 2031_01 | R85: 0
C86: Investering | D86: Slamhantering Fällningsdammar | E86: Valuta | F86: SEK | G86: Slamhantering Fällningsdammar_Kostnad | H86: 2032-01-01 | I86: 1000 | J86: Kostnad | K86: Exploatering | M86: -1000 | N86: 1 | O86: 1 | P86: 2032 | Q86: 2032_01 | R86: 0
C87: Investering | D87: Slamhantering Fällningsdammar | E87: Valuta | F87: SEK | G87: Slamhantering Fällningsdammar_Kostnad | H87: 2033-01-01 | I87: 1000 | J87: Kostnad | K87: Exploatering | M87: -1000 | N87: 1 | O87: 1 | P87: 2033 | Q87: 2033_01 | R87: 0
C88: Investering | D88: Slamhantering Fällningsdammar | E88: Valuta | F88: SEK | G88: Slamhantering Fällningsdammar_Kostnad | H88: 2034-01-01 | I88: 1000 | J88: Kostnad | K88: Exploatering | M88: -1000 | N88: 1 | O88: 1 | P88: 2034 | Q88: 2034_01 | R88: 0
C89: Investering | D89: Slamhantering Fällningsdammar | E89: Valuta | F89: SEK | G89: Slamhantering Fällningsdammar_Kostnad | H89: 2035-01-01 | I89: 1000 | J89: Kostnad | K89: Exploatering | M89: -1000 | N89: 1 | O89: 1 | P89: 2035 | Q89: 2035_01 | R89: 0
C90: Investering | D90: Kemikaliebyten | E90: Valuta | F90: SEK | G90: Kemikaliebyten_Kostnad | H90: 2024-01-01 | I90: 1000 | J90: Kostnad | K90: Exploatering | L90: 102 | M90: -1000 | N90: 1 | O90: 1 | P90: 2024 | Q90: 2024_01 | R90: 0
C91: Investering | D91: Kemikaliebyten | E91: Valuta | F91: SEK | G91: Kemikaliebyten_Kostnad | H91: 2025-01-01 | I91: 1000 | J91: Kostnad | K91: Exploatering | L91: 102 | M91: -1000 | N91: 1 | O91: 1 | P91: 2025 | Q91: 2025_01 | R91: 0
C92: Investering | D92: Kemikaliebyten | E92: Valuta | F92: SEK | G92: Kemikaliebyten_Kostnad | H92: 2026-01-01 | I92: 1000 | J92: Kostnad | K92: Exploatering | L92: 102 | M92: -1000 | N92: 1 | O92: 1 | P92: 2026 | Q92: 2026_01 | R92: 0
C93: Investering | D93: Kemikaliebyten | E93: Valuta | F93: SEK | G93: Kemikaliebyten_Kostnad | H93: 2027-01-01 | I93: 1000 | J93: Kostnad | K93: Exploatering | L93: 102 | M93: -1000 | N93: 1 | O93: 1 | P93: 2027 | Q93: 2027_01 | R93: 0
C94: Investering | D94: Kemikaliebyten | E94: Valuta | F94: SEK | G94: Kemikaliebyten_Kostnad | H94: 2028-01-01 | I94: 1000 | J94: Kostnad | K94: Exploatering | L94: 102 | M94: -1000 | N94: 1 | O94: 1 | P94: 2028 | Q94: 2028_01 | R94: 0
C95: Investering | D95: Kemikaliebyten | E95: Valuta | F95: SEK | G95: Kemikaliebyten_Kostnad | H95: 2029-01-01 | I95: 1000 | J95: Kostnad | K95: Exploatering | M95: -1000 | N95: 1 | O95: 1 | P95: 2029 | Q95: 2029_01 | R95: 0
C96: Investering | D96: Kemikaliebyten | E96: Valuta | F96: SEK | G96: Kemikaliebyten_Kostnad | H96: 2030-01-01 | I96: 1000 | J96: Kostnad | K96: Exploatering | M96: -1000 | N96: 1 | O96: 1 | P96: 2030 | Q96: 2030_01 | R96: 0
C97: Investering | D97: Kemikaliebyten | E97: Valuta | F97: SEK | G97: Kemikaliebyten_Kostnad | H97: 2031-01-01 | I97: 1000 | J97: Kostnad | K97: Exploatering | M97: -1000 | N97: 1 | O97: 1 | P97: 2031 | Q97: 2031_01 | R97: 0
C98: Investering | D98: Kemikaliebyten | E98: Valuta | F98: SEK | G98: Kemikaliebyten_Kostnad | H98: 2032-01-01 | I98: 1000 | J98: Kostnad | K98: Exploatering | M98: -1000 | N98: 1 | O98: 1 | P98: 2032 | Q98: 2032_01 | R98: 0
C99: Investering | D99: Kemikaliebyten | E99: Valuta | F99: SEK | G99: Kemikaliebyten_Kostnad | H99: 2033-01-01 | I99: 1000 | J99: Kostnad | K99: Exploatering | M99: -1000 | N99: 1 | O99: 1 | P99: 2033 | Q99: 2033_01 | R99: 0
C100: Investering | D100: Kemikaliebyten | E100: Valuta | F100: SEK | G100: Kemikaliebyten_Kostnad | H100: 2034-01-01 | I100: 1000 | J100: Kostnad | K100: Exploatering | M100: -1000 | N100: 1 | O100: 1 | P100: 2034 | Q100: 2034_01 | R100: 0
C101: Investering | D101: Kemikaliebyten | E101: Valuta | F101: SEK | G101: Kemikaliebyten_Kostnad | H101: 2035-01-01 | I101: 1000 | J101: Kostnad | K101: Exploatering | M101: -1000 | N101: 1 | O101: 1 | P101: 2035 | Q101: 2035_01 | R101: 0
C102: Konsulter | D102: Slamtorkning | E102: Valuta | F102: SEK | G102: Slamtorkning_Kostnad | H102: 2025-01-01 | I102: -200 | J102: Kostnad | K102: Exploatering | L102: -20.4 | M102: 200 | N102: 1 | O102: 1 | P102: 2025 | Q102: 2025_01 | R102: 0
C103: Konsulter | D103: Läkemedelsrening | E103: Valuta | F103: SEK | G103: Läkemedelsrening_Kostnad | H103: 2025-01-01 | I103: -100 | J103: Kostnad | K103: Exploatering | L103: -10.2 | M103: 100 | N103: 1 | O103: 1 | P103: 2025 | Q103: 2025_01 | R103: 0
C104: Konsulter | D104: Läkemedelsrening | E104: Valuta | F104: SEK | G104: Läkemedelsrening_Kostnad | H104: 2026-01-01 | I104: -100 | J104: Kostnad | K104: Exploatering | L104: -10.2 | M104: 100 | N104: 1 | O104: 1 | P104: 2026 | Q104: 2026_01 | R104: 0
C105: Konsulter | D105: Läkemedelsrening | E105: Valuta | F105: SEK | G105: Läkemedelsrening_Kostnad | H105: 2027-01-01 | I105: -100 | J105: Kostnad | K105: Exploatering | L105: -10.2 | M105: 100 | N105: 1 | O105: 1 | P105: 2027 | Q105: 2027_01 | R105: 0
C106: Konsulter | D106: Läkemedelsrening | E106: Valuta | F106: SEK | G106: Läkemedelsrening_Kostnad | H106: 2028-01-01 | I106: -100 | J106: Kostnad | K106: Exploatering | L106: -10.2 | M106: 100 | N106: 1 | O106: 1 | P106: 2028 | Q106: 2028_01 | R106: 0
C107: Konsulter | D107: Läkemedelsrening | E107: Valuta | F107: SEK | G107: Läkemedelsrening_Kostnad | H107: 2029-01-01 | I107: -100 | J107: Kostnad | K107: Exploatering | M107: 100 | N107: 1 | O107: 1 | P107: 2029 | Q107: 2029_01 | R107: 0
C108: Konsulter | D108: Områdesmätare | E108: Valuta | F108: SEK | G108: Områdesmätare_Kostnad | H108: 2024-01-01 | I108: -150 | J108: Kostnad | K108: Exploatering | L108: -15.3 | M108: 150 | N108: 1 | O108: 1 | P108: 2024 | Q108: 2024_01 | R108: 0
C109: Konsulter | D109: Områdesmätare | E109: Valuta | F109: SEK | G109: Områdesmätare_Kostnad | H109: 2025-01-01 | I109: -140 | J109: Kostnad | K109: Exploatering | L109: -14.28 | M109: 140 | N109: 1 | O109: 1 | P109: 2025 | Q109: 2025_01 | R109: 0
C110: Konsulter | D110: Områdesmätare | E110: Valuta | F110: SEK | G110: Områdesmätare_Kostnad | H110: 2026-01-01 | I110: -140 | J110: Kostnad | K110: Exploatering | L110: -14.28 | M110: 140 | N110: 1 | O110: 1 | P110: 2026 | Q110: 2026_01 | R110: 0
C111: Konsulter | D111: Områdesmätare | E111: Valuta | F111: SEK | G111: Områdesmätare_Kostnad | H111: 2027-01-01 | I111: -140 | J111: Kostnad | K111: Exploatering | L111: -14.28 | M111: 140 | N111: 1 | O111: 1 | P111: 2027 | Q111: 2027_01 | R111: 0
C112: Konsulter | D112: Områdesmätare | E112: Valuta | F112: SEK | G112: Områdesmätare_Kostnad | H112: 2028-01-01 | I112: -140 | J112: Kostnad | K112: Exploatering | L112: -14.28 | M112: 140 | N112: 1 | O112: 1 | P112: 2028 | Q112: 2028_01 | R112: 0
C113: Konsulter | D113: Områdesmätare | E113: Valuta | F113: SEK | G113: Områdesmätare_Kostnad | H113: 2029-01-01 | I113: -140 | J113: Kostnad | K113: Exploatering | M113: 140 | N113: 1 | O113: 1 | P113: 2029 | Q113: 2029_01 | R113: 0
C114: Konsulter | D114: Områdesmätare | E114: Valuta | F114: SEK | G114: Områdesmätare_Kostnad | H114: 2030-01-01 | I114: -140 | J114: Kostnad | K114: Exploatering | M114: 140 | N114: 1 | O114: 1 | P114: 2030 | Q114: 2030_01 | R114: 0
C115: Konsulter | D115: Områdesmätare | E115: Valuta | F115: SEK | G115: Områdesmätare_Kostnad | H115: 2031-01-01 | I115: -140 | J115: Kostnad | K115: Exploatering | M115: 140 | N115: 1 | O115: 1 | P115: 2031 | Q115: 2031_01 | R115: 0
C116: Konsulter | D116: Områdesmätare | E116: Valuta | F116: SEK | G116: Områdesmätare_Kostnad | H116: 2032-01-01 | I116: -140 | J116: Kostnad | K116: Exploatering | M116: 140 | N116: 1 | O116: 1 | P116: 2032 | Q116: 2032_01 | R116: 0
C117: Konsulter | D117: Områdesmätare | E117: Valuta | F117: SEK | G117: Områdesmätare_Kostnad | H117: 2033-01-01 | I117: -140 | J117: Kostnad | K117: Exploatering | M117: 140 | N117: 1 | O117: 1 | P117: 2033 | Q117: 2033_01 | R117: 0
C118: Konsulter | D118: Områdesmätare | E118: Valuta | F118: SEK | G118: Områdesmätare_Kostnad | H118: 2034-01-01 | I118: -140 | J118: Kostnad | K118: Exploatering | M118: 140 | N118: 1 | O118: 1 | P118: 2034 | Q118: 2034_01 | R118: 0
C119: Konsulter | D119: Flödesmätare APU | E119: Valuta | F119: SEK | G119: Flödesmätare APU_Kostnad | H119: 2024-01-01 | I119: -25 | J119: Kostnad | K119: Exploatering | L119: -2.55 | M119: 25 | N119: 1 | O119: 1 | P119: 2024 | Q119: 2024_01 | R119: 0
C120: Konsulter | D120: Flödesmätare APU | E120: Valuta | F120: SEK | G120: Flödesmätare APU_Kostnad | H120: 2025-01-01 | I120: -30 | J120: Kostnad | K120: Exploatering | L120: -3.06 | M120: 30 | N120: 1 | O120: 1 | P120: 2025 | Q120: 2025_01 | R120: 0
C121: Konsulter | D121: Flödesmätare APU | E121: Valuta | F121: SEK | G121: Flödesmätare APU_Kostnad | H121: 2026-01-01 | I121: -30 | J121: Kostnad | K121: Exploatering | L121: -3.06 | M121: 30 | N121: 1 | O121: 1 | P121: 2026 | Q121: 2026_01 | R121: 0
C122: Konsulter | D122: Flödesmätare APU | E122: Valuta | F122: SEK | G122: Flödesmätare APU_Kostnad | H122: 2027-01-01 | I122: -30 | J122: Kostnad | K122: Exploatering | L122: -3.06 | M122: 30 | N122: 1 | O122: 1 | P122: 2027 | Q122: 2027_01 | R122: 0
C123: Konsulter | D123: Flödesmätare APU | E123: Valuta | F123: SEK | G123: Flödesmätare APU_Kostnad | H123: 2028-01-01 | I123: -30 | J123: Kostnad | K123: Exploatering | L123: -3.06 | M123: 30 | N123: 1 | O123: 1 | P123: 2028 | Q123: 2028_01 | R123: 0
C124: Konsulter | D124: Flödesmätare APU | E124: Valuta | F124: SEK | G124: Flödesmätare APU_Kostnad | H124: 2029-01-01 | I124: -25 | J124: Kostnad | K124: Exploatering | M124: 25 | N124: 1 | O124: 1 | P124: 2029 | Q124: 2029_01 | R124: 0
C125: Konsulter | D125: Flödesmätare APU | E125: Valuta | F125: SEK | G125: Flödesmätare APU_Kostnad | H125: 2030-01-01 | I125: -25 | J125: Kostnad | K125: Exploatering | M125: 25 | N125: 1 | O125: 1 | P125: 2030 | Q125: 2030_01 | R125: 0
C126: Konsulter | D126: Flödesmätare APU | E126: Valuta | F126: SEK | G126: Flödesmätare APU_Kostnad | H126: 2031-01-01 | I126: -25 | J126: Kostnad | K126: Exploatering | M126: 25 | N126: 1 | O126: 1 | P126: 2031 | Q126: 2031_01 | R126: 0
C127: Konsulter | D127: Flödesmätare APU | E127: Valuta | F127: SEK | G127: Flödesmätare APU_Kostnad | H127: 2032-01-01 | I127: -25 | J127: Kostnad | K127: Exploatering | M127: 25 | N127: 1 | O127: 1 | P127: 2032 | Q127: 2032_01 | R127: 0
C128: Konsulter | D128: Flödesmätare APU | E128: Valuta | F128: SEK | G128: Flödesmätare APU_Kostnad | H128: 2033-01-01 | I128: -25 | J128: Kostnad | K128: Exploatering | M128: 25 | N128: 1 | O128: 1 | P128: 2033 | Q128: 2033_01 | R128: 0
C129: Konsulter | D129: Flödesmätare APU | E129: Valuta | F129: SEK | G129: Flödesmätare APU_Kostnad | H129: 2034-01-01 | I129: -25 | J129: Kostnad | K129: Exploatering | M129: 25 | N129: 1 | O129: 1 | P129: 2034 | Q129: 2034_01 | R129: 0
C130: Konsulter | D130: Dricksv Ålder/Material | E130: Valuta | F130: SEK | G130: Dricksv Ålder/Material_Kostnad | H130: 2024-01-01 | I130: -540 | J130: Kostnad | K130: Exploatering | L130: -55.08 | M130: 540 | N130: 1 | O130: 1 | P130: 2024 | Q130: 2024_01 | R130: 0
C131: Konsulter | D131: Dricksv Ålder/Material | E131: Valuta | F131: SEK | G131: Dricksv Ålder/Material_Kostnad | H131: 2025-01-01 | I131: -540 | J131: Kostnad | K131: Exploatering | L131: -55.08 | M131: 540 | N131: 1 | O131: 1 | P131: 2025 | Q131: 2025_01 | R131: 0
C132: Konsulter | D132: Dricksv Ålder/Material | E132: Valuta | F132: SEK | G132: Dricksv Ålder/Material_Kostnad | H132: 2026-01-01 | I132: -540 | J132: Kostnad | K132: Exploatering | L132: -55.08 | M132: 540 | N132: 1 | O132: 1 | P132: 2026 | Q132: 2026_01 | R132: 0
C133: Konsulter | D133: Dricksv Ålder/Material | E133: Valuta | F133: SEK | G133: Dricksv Ålder/Material_Kostnad | H133: 2027-01-01 | I133: -540 | J133: Kostnad | K133: Exploatering | L133: -55.08 | M133: 540 | N133: 1 | O133: 1 | P133: 2027 | Q133: 2027_01 | R133: 0
C134: Konsulter | D134: Dricksv Ålder/Material | E134: Valuta | F134: SEK | G134: Dricksv Ålder/Material_Kostnad | H134: 2028-01-01 | I134: -540 | J134: Kostnad | K134: Exploatering | L134: -55.08 | M134: 540 | N134: 1 | O134: 1 | P134: 2028 | Q134: 2028_01 | R134: 0
C135: Konsulter | D135: Dricksv Ålder/Material | E135: Valuta | F135: SEK | G135: Dricksv Ålder/Material_Kostnad | H135: 2029-01-01 | I135: -500 | J135: Kostnad | K135: Exploatering | M135: 500 | N135: 1 | O135: 1 | P135: 2029 | Q135: 2029_01 | R135: 0
C136: Konsulter | D136: Dricksv Ålder/Material | E136: Valuta | F136: SEK | G136: Dricksv Ålder/Material_Kostnad | H136: 2030-01-01 | I136: -500 | J136: Kostnad | K136: Exploatering | M136: 500 | N136: 1 | O136: 1 | P136: 2030 | Q136: 2030_01 | R136: 0
C137: Konsulter | D137: Dricksv Ålder/Material | E137: Valuta | F137: SEK | G137: Dricksv Ålder/Material_Kostnad | H137: 2031-01-01 | I137: -500 | J137: Kostnad | K137: Exploatering | M137: 500 | N137: 1 | O137: 1 | P137: 2031 | Q137: 2031_01 | R137: 0
C138: Konsulter | D138: Dricksv Ålder/Material | E138: Valuta | F138: SEK | G138: Dricksv Ålder/Material_Kostnad | H138: 2032-01-01 | I138: -500 | J138: Kostnad | K138: Exploatering | M138: 500 | N138: 1 | O138: 1 | P138: 2032 | Q138: 2032_01 | R138: 0
C139: Konsulter | D139: Dricksv Ålder/Material | E139: Valuta | F139: SEK | G139: Dricksv Ålder/Material_Kostnad | H139: 2033-01-01 | I139: -500 | J139: Kostnad | K139: Exploatering | M139: 500 | N139: 1 | O139: 1 | P139: 2033 | Q139: 2033_01 | R139: 0
C140: Konsulter | D140: Dricksv Ålder/Material | E140: Valuta | F140: SEK | G140: Dricksv Ålder/Material_Kostnad | H140: 2034-01-01 | I140: -500 | J140: Kostnad | K140: Exploatering | M140: 500 | N140: 1 | O140: 1 | P140: 2034 | Q140: 2034_01 | R140: 0
C141: Konsulter | D141: Spillv Ålder/Material | E141: Valuta | F141: SEK | G141: Spillv Ålder/Material_Kostnad | H141: 2024-01-01 | I141: -1190 | J141: Kostnad | K141: Exploatering | L141: -121.38 | M141: 1190 | N141: 1 | O141: 1 | P141: 2024 | Q141: 2024_01 | R141: 0
C142: Konsulter | D142: Spillv Ålder/Material | E142: Valuta | F142: SEK | G142: Spillv Ålder/Material_Kostnad | H142: 2025-01-01 | I142: -1190 | J142: Kostnad | K142: Exploatering | L142: -121.38 | M142: 1190 | N142: 1 | O142: 1 | P142: 2025 | Q142: 2025_01 | R142: 0
C143: Konsulter | D143: Spillv Ålder/Material | E143: Valuta | F143: SEK | G143: Spillv Ålder/Material_Kostnad | H143: 2026-01-01 | I143: -1190 | J143: Kostnad | K143: Exploatering | L143: -121.38 | M143: 1190 | N143: 1 | O143: 1 | P143: 2026 | Q143: 2026_01 | R143: 0
C144: Konsulter | D144: Spillv Ålder/Material | E144: Valuta | F144: SEK | G144: Spillv Ålder/Material_Kostnad | H144: 2027-01-01 | I144: -1190 | J144: Kostnad | K144: Exploatering | L144: -121.38 | M144: 1190 | N144: 1 | O144: 1 | P144: 2027 | Q144: 2027_01 | R144: 0
C145: Konsulter | D145: Spillv Ålder/Material | E145: Valuta | F145: SEK | G145: Spillv Ålder/Material_Kostnad | H145: 2028-01-01 | I145: -1190 | J145: Kostnad | K145: Exploatering | L145: -121.38 | M145: 1190 | N145: 1 | O145: 1 | P145: 2028 | Q145: 2028_01 | R145: 0
C146: Konsulter | D146: Spillv Ålder/Material | E146: Valuta | F146: SEK | G146: Spillv Ålder/Material_Kostnad | H146: 2029-01-01 | I146: -1200 | J146: Kostnad | K146: Exploatering | M146: 1200 | N146: 1 | O146: 1 | P146: 2029 | Q146: 2029_01 | R146: 0
C147: Konsulter | D147: Spillv Ålder/Material | E147: Valuta | F147: SEK | G147: Spillv Ålder/Material_Kostnad | H147: 2030-01-01 | I147: -1200 | J147: Kostnad | K147: Exploatering | M147: 1200 | N147: 1 | O147: 1 | P147: 2030 | Q147: 2030_01 | R147: 0
C148: Konsulter | D148: Spillv Ålder/Material | E148: Valuta | F148: SEK | G148: Spillv Ålder/Material_Kostnad | H148: 2031-01-01 | I148: -1200 | J148: Kostnad | K148: Exploatering | M148: 1200 | N148: 1 | O148: 1 | P148: 2031 | Q148: 2031_01 | R148: 0
C149: Konsulter | D149: Spillv Ålder/Material | E149: Valuta | F149: SEK | G149: Spillv Ålder/Material_Kostnad | H149: 2032-01-01 | I149: -1200 | J149: Kostnad | K149: Exploatering | M149: 1200 | N149: 1 | O149: 1 | P149: 2032 | Q149: 2032_01 | R149: 0
C150: Konsulter | D150: Spillv Ålder/Material | E150: Valuta | F150: SEK | G150: Spillv Ålder/Material_Kostnad | H150: 2033-01-01 | I150: -1200 | J150: Kostnad | K150: Exploatering | M150: 1200 | N150: 1 | O150: 1 | P150: 2033 | Q150: 2033_01 | R150: 0
C151: Konsulter | D151: Spillv Ålder/Material | E151: Valuta | F151: SEK | G151: Spillv Ålder/Material_Kostnad | H151: 2034-01-01 | I151: -1200 | J151: Kostnad | K151: Exploatering | M151: 1200 | N151: 1 | O151: 1 | P151: 2034 | Q151: 2034_01 | R151: 0
C152: Konsulter | D152: Dagv Ålder/Material | E152: Valuta | F152: SEK | G152: Dagv Ålder/Material_Kostnad | H152: 2024-01-01 | I152: -310 | J152: Kostnad | K152: Exploatering | L152: -31.62 | M152: 310 | N152: 1 | O152: 1 | P152: 2024 | Q152: 2024_01 | R152: 0
C153: Konsulter | D153: Dagv Ålder/Material | E153: Valuta | F153: SEK | G153: Dagv Ålder/Material_Kostnad | H153: 2025-01-01 | I153: -310 | J153: Kostnad | K153: Exploatering | L153: -31.62 | M153: 310 | N153: 1 | O153: 1 | P153: 2025 | Q153: 2025_01 | R153: 0
C154: Konsulter | D154: Dagv Ålder/Material | E154: Valuta | F154: SEK | G154: Dagv Ålder/Material_Kostnad | H154: 2026-01-01 | I154: -310 | J154: Kostnad | K154: Exploatering | L154: -31.62 | M154: 310 | N154: 1 | O154: 1 | P154: 2026 | Q154: 2026_01 | R154: 0
C155: Konsulter | D155: Dagv Ålder/Material | E155: Valuta | F155: SEK | G155: Dagv Ålder/Material_Kostnad | H155: 2027-01-01 | I155: -310 | J155: Kostnad | K155: Exploatering | L155: -31.62 | M155: 310 | N155: 1 | O155: 1 | P155: 2027 | Q155: 2027_01 | R155: 0
C156: Konsulter | D156: Dagv Ålder/Material | E156: Valuta | F156: SEK | G156: Dagv Ålder/Material_Kostnad | H156: 2028-01-01 | I156: -310 | J156: Kostnad | K156: Exploatering | L156: -31.62 | M156: 310 | N156: 1 | O156: 1 | P156: 2028 | Q156: 2028_01 | R156: 0
C157: Konsulter | D157: Dagv Ålder/Material | E157: Valuta | F157: SEK | G157: Dagv Ålder/Material_Kostnad | H157: 2029-01-01 | I157: -360 | J157: Kostnad | K157: Exploatering | M157: 360 | N157: 1 | O157: 1 | P157: 2029 | Q157: 2029_01 | R157: 0
C158: Konsulter | D158: Dagv Ålder/Material | E158: Valuta | F158: SEK | G158: Dagv Ålder/Material_Kostnad | H158: 2030-01-01 | I158: -360 | J158: Kostnad | K158: Exploatering | M158: 360 | N158: 1 | O158: 1 | P158: 2030 | Q158: 2030_01 | R158: 0
C159: Konsulter | D159: Dagv Ålder/Material | E159: Valuta | F159: SEK | G159: Dagv Ålder/Material_Kostnad | H159: 2031-01-01 | I159: -360 | J159: Kostnad | K159: Exploatering | M159: 360 | N159: 1 | O159: 1 | P159: 2031 | Q159: 2031_01 | R159: 0
C160: Konsulter | D160: Dagv Ålder/Material | E160: Valuta | F160: SEK | G160: Dagv Ålder/Material_Kostnad | H160: 2032-01-01 | I160: -360 | J160: Kostnad | K160: Exploatering | M160: 360 | N160: 1 | O160: 1 | P160: 2032 | Q160: 2032_01 | R160: 0
C161: Konsulter | D161: Dagv Ålder/Material | E161: Valuta | F161: SEK | G161: Dagv Ålder/Material_Kostnad | H161: 2033-01-01 | I161: -360 | J161: Kostnad | K161: Exploatering | M161: 360 | N161: 1 | O161: 1 | P161: 2033 | Q161: 2033_01 | R161: 0
C162: Konsulter | D162: Dagv Ålder/Material | E162: Valuta | F162: SEK | G162: Dagv Ålder/Material_Kostnad | H162: 2034-01-01 | I162: -360 | J162: Kostnad | K162: Exploatering | M162: 360 | N162: 1 | O162: 1 | P162: 2034 | Q162: 2034_01 | R162: 0
C163: Konsulter | D163: Slamhantering Fällningsdammar | E163: Valuta | F163: SEK | G163: Slamhantering Fällningsdammar_Kostnad | H163: 2024-01-01 | I163: -100 | J163: Kostnad | K163: Exploatering | L163: -10.2 | M163: 100 | N163: 1 | O163: 1 | P163: 2024 | Q163: 2024_01 | R163: 0
C164: Konsulter | D164: Slamhantering Fällningsdammar | E164: Valuta | F164: SEK | G164: Slamhantering Fällningsdammar_Kostnad | H164: 2025-01-01 | I164: -100 | J164: Kostnad | K164: Exploatering | L164: -10.2 | M164: 100 | N164: 1 | O164: 1 | P164: 2025 | Q164: 2025_01 | R164: 0
C165: Konsulter | D165: Slamhantering Fällningsdammar | E165: Valuta | F165: SEK | G165: Slamhantering Fällningsdammar_Kostnad | H165: 2026-01-01 | I165: -100 | J165: Kostnad | K165: Exploatering | L165: -10.2 | M165: 100 | N165: 1 | O165: 1 | P165: 2026 | Q165: 2026_01 | R165: 0
C166: Konsulter | D166: Slamhantering Fällningsdammar | E166: Valuta | F166: SEK | G166: Slamhantering Fällningsdammar_Kostnad | H166: 2027-01-01 | I166: -100 | J166: Kostnad | K166: Exploatering | L166: -10.2 | M166: 100 | N166: 1 | O166: 1 | P166: 2027 | Q166: 2027_01 | R166: 0
C167: Konsulter | D167: Slamhantering Fällningsdammar | E167: Valuta | F167: SEK | G167: Slamhantering Fällningsdammar_Kostnad | H167: 2028-01-01 | I167: -100 | J167: Kostnad | K167: Exploatering | L167: -10.2 | M167: 100 | N167: 1 | O167: 1 | P167: 2028 | Q167: 2028_01 | R167: 0
C168: Konsulter | D168: Slamhantering Fällningsdammar | E168: Valuta | F168: SEK | G168: Slamhantering Fällningsdammar_Kostnad | H168: 2029-01-01 | I168: -100 | J168: Kostnad | K168: Exploatering | M168: 100 | N168: 1 | O168: 1 | P168: 2029 | Q168: 2029_01 | R168: 0
C169: Konsulter | D169: Slamhantering Fällningsdammar | E169: Valuta | F169: SEK | G169: Slamhantering Fällningsdammar_Kostnad | H169: 2030-01-01 | I169: -100 | J169: Kostnad | K169: Exploatering | M169: 100 | N169: 1 | O169: 1 | P169: 2030 | Q169: 2030_01 | R169: 0
C170: Konsulter | D170: Slamhantering Fällningsdammar | E170: Valuta | F170: SEK | G170: Slamhantering Fällningsdammar_Kostnad | H170: 2031-01-01 | I170: -100 | J170: Kostnad | K170: Exploatering | M170: 100 | N170: 1 | O170: 1 | P170: 2031 | Q170: 2031_01 | R170: 0
C171: Konsulter | D171: Slamhantering Fällningsdammar | E171: Valuta | F171: SEK | G171: Slamhantering Fällningsdammar_Kostnad | H171: 2032-01-01 | I171: -100 | J171: Kostnad | K171: Exploatering | M171: 100 | N171: 1 | O171: 1 | P171: 2032 | Q171: 2032_01 | R171: 0
C172: Konsulter | D172: Slamhantering Fällningsdammar | E172: Valuta | F172: SEK | G172: Slamhantering Fällningsdammar_Kostnad | H172: 2033-01-01 | I172: -100 | J172: Kostnad | K172: Exploatering | M172: 100 | N172: 1 | O172: 1 | P172: 2033 | Q172: 2033_01 | R172: 0
C173: Konsulter | D173: Slamhantering Fällningsdammar | E173: Valuta | F173: SEK | G173: Slamhantering Fällningsdammar_Kostnad | H173: 2034-01-01 | I173: -100 | J173: Kostnad | K173: Exploatering | M173: 100 | N173: 1 | O173: 1 | P173: 2034 | Q173: 2034_01 | R173: 0
C174: Konsulter | D174: Kemikaliebyten | E174: Valuta | F174: SEK | G174: Kemikaliebyten_Kostnad | H174: 2024-01-01 | I174: -100 | J174: Kostnad | K174: Exploatering | L174: -10.2 | M174: 100 | N174: 1 | O174: 1 | P174: 2024 | Q174: 2024_01 | R174: 0
C175: Konsulter | D175: Kemikaliebyten | E175: Valuta | F175: SEK | G175: Kemikaliebyten_Kostnad | H175: 2025-01-01 | I175: -100 | J175: Kostnad | K175: Exploatering | L175: -10.2 | M175: 100 | N175: 1 | O175: 1 | P175: 2025 | Q175: 2025_01 | R175: 0
C176: Konsulter | D176: Kemikaliebyten | E176: Valuta | F176: SEK | G176: Kemikaliebyten_Kostnad | H176: 2026-01-01 | I176: -100 | J176: Kostnad | K176: Exploatering | L176: -10.2 | M176: 100 | N176: 1 | O176: 1 | P176: 2026 | Q176: 2026_01 | R176: 0
C177: Konsulter | D177: Kemikaliebyten | E177: Valuta | F177: SEK | G177: Kemikaliebyten_Kostnad | H177: 2027-01-01 | I177: -100 | J177: Kostnad | K177: Exploatering | L177: -10.2 | M177: 100 | N177: 1 | O177: 1 | P177: 2027 | Q177: 2027_01 | R177: 0
C178: Konsulter | D178: Kemikaliebyten | E178: Valuta | F178: SEK | G178: Kemikaliebyten_Kostnad | H178: 2028-01-01 | I178: -100 | J178: Kostnad | K178: Exploatering | L178: -10.2 | M178: 100 | N178: 1 | O178: 1 | P178: 2028 | Q178: 2028_01 | R178: 0
C179: Konsulter | D179: Kemikaliebyten | E179: Valuta | F179: SEK | G179: Kemikaliebyten_Kostnad | H179: 2029-01-01 | I179: -100 | J179: Kostnad | K179: Exploatering | M179: 100 | N179: 1 | O179: 1 | P179: 2029 | Q179: 2029_01 | R179: 0
C180: Konsulter | D180: Kemikaliebyten | E180: Valuta | F180: SEK | G180: Kemikaliebyten_Kostnad | H180: 2030-01-01 | I180: -100 | J180: Kostnad | K180: Exploatering | M180: 100 | N180: 1 | O180: 1 | P180: 2030 | Q180: 2030_01 | R180: 0
C181: Konsulter | D181: Kemikaliebyten | E181: Valuta | F181: SEK | G181: Kemikaliebyten_Kostnad | H181: 2031-01-01 | I181: -100 | J181: Kostnad | K181: Exploatering | M181: 100 | N181: 1 | O181: 1 | P181: 2031 | Q181: 2031_01 | R181: 0
C182: Konsulter | D182: Kemikaliebyten | E182: Valuta | F182: SEK | G182: Kemikaliebyten_Kostnad | H182: 2032-01-01 | I182: -100 | J182: Kostnad | K182: Exploatering | M182: 100 | N182: 1 | O182: 1 | P182: 2032 | Q182: 2032_01 | R182: 0
C183: Konsulter | D183: Kemikaliebyten | E183: Valuta | F183: SEK | G183: Kemikaliebyten_Kostnad | H183: 2033-01-01 | I183: -100 | J183: Kostnad | K183: Exploatering | M183: 100 | N183: 1 | O183: 1 | P183: 2033 | Q183: 2033_01 | R183: 0
C184: Konsulter | D184: Kemikaliebyten | E184: Valuta | F184: SEK | G184: Kemikaliebyten_Kostnad | H184: 2034-01-01 | I184: -100 | J184: Kostnad | K184: Exploatering | M184: 100 | N184: 1 | O184: 1 | P184: 2034 | Q184: 2034_01 | R184: 0
C185: Skatteintäkt | D185: 0-10År | E185: 5 | F185: Utjämningseffekt | G185: 0-10År_Intäkt | H185: 2026-01-01 | I185: 10000000 | J185: Intäkt | K185: Exploatering | M185: 10000000 | N185: 1 | O185: 1 | P185: 2026 | Q185: 2026_01 | R185: 0
C186: Skatteintäkt | D186: 0-10År | E186: 5 | F186: Utjämningseffekt | G186: 0-10År_Intäkt | H186: 2027-01-01 | I186: 10000000 | J186: Intäkt | K186: Exploatering | M186: 10000000 | N186: 1 | O186: 1 | P186: 2027 | Q186: 2027_01 | R186: 0
C187: Skatteintäkt | D187: 0-10År | E187: 5 | F187: Utjämningseffekt | G187: 0-10År_Intäkt | H187: 2028-01-01 | I187: 10000000 | J187: Intäkt | K187: Exploatering | M187: 10000000 | N187: 1 | O187: 1 | P187: 2028 | Q187: 2028_01 | R187: 0
C188: Skatteintäkt | D188: 0-10År | E188: 5 | F188: Utjämningseffekt | G188: 0-10År_Intäkt | H188: 2029-01-01 | I188: 10000000 | J188: Intäkt | K188: Exploatering | M188: 10000000 | N188: 1 | O188: 1 | P188: 2029 | Q188: 2029_01 | R188: 0
C189: Skatteintäkt | D189: 0-10År | E189: 5 | F189: Utjämningseffekt | G189: 0-10År_Intäkt | H189: 2030-01-01 | I189: 10000000 | J189: Intäkt | K189: Exploatering | M189: 10000000 | N189: 1 | O189: 1 | P189: 2030 | Q189: 2030_01 | R189: 0
C190: Skatteintäkt | D190: 11-20År | E190: 15 | F190: Utjämningseffekt | G190: 11-20År_Intäkt | H190: 2024-01-01 | I190: 15000000 | J190: Intäkt | K190: Exploatering | M190: 15000000 | N190: 1 | O190: 1 | P190: 2024 | Q190: 2024_01 | R190: 0
C191: Skatteintäkt | D191: 11-20År | E191: 15 | F191: Utjämningseffekt | G191: 11-20År_Intäkt | H191: 2025-01-01 | I191: 15000000 | J191: Intäkt | K191: Exploatering | M191: 15000000 | N191: 1 | O191: 1 | P191: 2025 | Q191: 2025_01 | R191: 0
C192: Skatteintäkt | D192: 11-20År | E192: 15 | F192: Utjämningseffekt | G192: 11-20År_Intäkt | H192: 2026-01-01 | I192: 14000000 | J192: Intäkt | K192: Exploatering | M192: 14000000 | N192: 1 | O192: 1 | P192: 2026 | Q192: 2026_01 | R192: 0
C193: Skatteintäkt | D193: 11-20År | E193: 15 | F193: Utjämningseffekt | G193: 11-20År_Intäkt | H193: 2027-01-01 | I193: 14000000 | J193: Intäkt | K193: Exploatering | M193: 14000000 | N193: 1 | O193: 1 | P193: 2027 | Q193: 2027_01 | R193: 0
C194: Skatteintäkt | D194: 11-20År | E194: 15 | F194: Utjämningseffekt | G194: 11-20År_Intäkt | H194: 2028-01-01 | I194: 14000000 | J194: Intäkt | K194: Exploatering | M194: 14000000 | N194: 1 | O194: 1 | P194: 2028 | Q194: 2028_01 | R194: 0
C195: Skatteintäkt | D195: 11-20År | E195: 15 | F195: Utjämningseffekt | G195: 11-20År_Intäkt | H195: 2029-01-01 | I195: 14000000 | J195: Intäkt | K195: Exploatering | M195: 14000000 | N195: 1 | O195: 1 | P195: 2029 | Q195: 2029_01 | R195: 0
C196: Skatteintäkt | D196: 11-20År | E196: 15 | F196: Utjämningseffekt | G196: 11-20År_Intäkt | H196: 2030-01-01 | I196: 14000000 | J196: Intäkt | K196: Exploatering | M196: 14000000 | N196: 1 | O196: 1 | P196: 2030 | Q196: 2030_01 | R196: 0
C197: Skatteintäkt | D197: 11-20År | E197: 15 | F197: Utjämningseffekt | G197: 11-20År_Intäkt | H197: 2031-01-01 | I197: 14000000 | J197: Intäkt | K197: Exploatering | M197: 14000000 | N197: 1 | O197: 1 | P197: 2031 | Q197: 2031_01 | R197: 0
C198: Skatteintäkt | D198: 11-20År | E198: 15 | F198: Utjämningseffekt | G198: 11-20År_Intäkt | H198: 2032-01-01 | I198: 14000000 | J198: Intäkt | K198: Exploatering | M198: 14000000 | N198: 1 | O198: 1 | P198: 2032 | Q198: 2032_01 | R198: 0
C199: Skatteintäkt | D199: 11-20År | E199: 15 | F199: Utjämningseffekt | G199: 11-20År_Intäkt | H199: 2033-01-01 | I199: 14000000 | J199: Intäkt | K199: Exploatering | M199: 14000000 | N199: 1 | O199: 1 | P199: 2033 | Q199: 2033_01 | R199: 0
C200: Skatteintäkt | D200: 11-20År | E200: 15 | F200: Utjämningseffekt | G200: 11-20År_Intäkt | H200: 2034-01-01 | I200: 14000000 | J200: Intäkt | K200: Exploatering | M200: 14000000 | N200: 1 | O200: 1 | P200: 2034 | Q200: 2034_01 | R200: 0
C201: Skatteintäkt | D201: 11-20År | E201: 15 | F201: Utjämningseffekt | G201: 11-20År_Intäkt | H201: 2035-01-01 | I201: 14000000 | J201: Intäkt | K201: Exploatering | M201: 14000000 | N201: 1 | O201: 1 | P201: 2035 | Q201: 2035_01 | R201: 0
C202: Skatteintäkt | D202: 31-40År | E202: 35 | F202: Utjämningseffekt | G202: 31-40År_Kostnad | H202: 2024-01-01 | I202: 54000000 | J202: Kostnad | K202: Exploatering | M202: -54000000 | N202: 1 | O202: 1 | P202: 2024 | Q202: 2024_01 | R202: 0
C203: Skatteintäkt | D203: 31-40År | E203: 35 | F203: Utjämningseffekt | G203: 31-40År_Kostnad | H203: 2025-01-01 | I203: 54000000 | J203: Kostnad | K203: Exploatering | M203: -54000000 | N203: 1 | O203: 1 | P203: 2025 | Q203: 2025_01 | R203: 0
C204: Skatteintäkt | D204: 31-40År | E204: 35 | F204: Utjämningseffekt | G204: 31-40År_Kostnad | H204: 2026-01-01 | I204: 54000000 | J204: Kostnad | K204: Exploatering | M204: -54000000 | N204: 1 | O204: 1 | P204: 2026 | Q204: 2026_01 | R204: 0
C205: Skatteintäkt | D205: 31-40År | E205: 35 | F205: Utjämningseffekt | G205: 31-40År_Kostnad | H205: 2027-01-01 | I205: 54000000 | J205: Kostnad | K205: Exploatering | M205: -54000000 | N205: 1 | O205: 1 | P205: 2027 | Q205: 2027_01 | R205: 0
C206: Skatteintäkt | D206: 31-40År | E206: 35 | F206: Utjämningseffekt | G206: 31-40År_Kostnad | H206: 2028-01-01 | I206: 54000000 | J206: Kostnad | K206: Exploatering | M206: -54000000 | N206: 1 | O206: 1 | P206: 2028 | Q206: 2028_01 | R206: 0
C207: Skatteintäkt | D207: 31-40År | E207: 35 | F207: Utjämningseffekt | G207: 31-40År_Kostnad | H207: 2029-01-01 | I207: 54000000 | J207: Kostnad | K207: Exploatering | M207: -54000000 | N207: 1 | O207: 1 | P207: 2029 | Q207: 2029_01 | R207: 0
C208: Skatteintäkt | D208: 31-40År | E208: 35 | F208: Utjämningseffekt | G208: 31-40År_Kostnad | H208: 2030-01-01 | I208: 50000000 | J208: Kostnad | K208: Exploatering | M208: -50000000 | N208: 1 | O208: 1 | P208: 2030 | Q208: 2030_01 | R208: 0
... 3371 more rows

Sheet Admin
H1: Settings | K1: ConnectedCells | O1: DatabaseLocation | Q1: Scrambler | V1: Costs for standard Package | Z1: 26 | AA1: 27 | AG1: Change Color | AH1: From | AI1: To/Before | AM1: Översättning | AN1: från | AO1: till | AQ1: Månad | AU1: Månad | AV1: Privat | AW1: Offentlig | AX1: Nederländerna
C2: DataColor | D2: Values | F2: ClickColor | H2: Search Rows | I2: Yes | K2: FromR | L2: FromC | M2: Column | O2: C:\Users\lukas\OneDrive\Dokument\TSDatabas\XLD_Master_Working9.accdb | Q2: Key | R2: ABC | T2: 0 | Z2: GrafTitel | AA2: Färglista XLD | AF2: FaktorKostnad | AI2: 0 | AN2: IntäktKostnad | AO2: IncomeCost | AQ2: 2020-01-01 | AU2: 1 | AV2: 1.036873348 | AW2: 0.9527757147 | AX2: 1
C3: _Key | D3: Ref | H3: Search Columns | I3: Yes | K3: 10 | L3: 8 | M3: 3 | O3: C:\Users\lukas\OneDrive\Dokument\TSDatabas\XLD_Master_Working9.accdb | Q3: Color | R3: 0 | X3: x | Y3: x | Z3: Personal | AF3: Manuella Värden | AN3: Marknad | AO3: Market | AQ3: =EDATE(AQ2,1) -> 2020-02-01 | AU3: 2 | AV3: 0.7324261075 | AW3: 0.8709280667 | AX3: 1
C4: Title1 | D4: Market | H4: Search for Ref | I4: No | K4: 10 | L4: 7 | M4: 2 | O4: C:\Users\Belal\OneDrive\Dokument\TSDatabas\XLD_Master_Working9.accdb | Q4: MinFactor | R4: 0.5 | X4: x | Z4: Intäkt | AF4: Månatlig | AN4: Kategori | AO4: Category | AQ4: =EDATE(AQ3,1) -> 2020-03-01 | AU4: 3 | AV4: 0.9861606265 | AW4: 0.8145541921 | AX4: 1
D5: ProduktGrupp | F5: WriteRow | H5: WriteToLocalDB | I5: Yes | Q5: MaxFactor | R5: 1.5 | X5: x | Z5: Kostnad | AF5: Kvartalsvis | AN5: Subkategori | AO5: Sub category | AQ5: 2020-04-01 | AU5: 4 | AV5: 1.037524354 | AW5: 1.054319603 | AX5: 1
D6: Segment | F6: 111 | H6: ClearDataBase | I6: No | X6: x | Z6: Liquidity | AF6: ProcentKostnad | AN6: Valuta | AO6: Currency | AQ6: 2020-05-01 | AU6: 5 | AV6: 0.8956964231 | AW6: 1.166329645 | AX6: 1
D7: Typ | H7: AddNewTitles | I7: Yes | X7: x | Z7: Kvantitet | AF7: ProduktProcent | AN7: Titel | AO7: Title | AQ7: 2020-06-01 | AU7: 6 | AV7: 0.5831094228 | AW7: 0.8724049329 | AX7: 1
D8: Title | F8: MinColumn | H8: Titles row in DB-sheet | I8: 10 | X8: x | Z8: Sälj | AF8: Kvantitet | AN8: Likviditet | AO8: Liquidity | AQ8: 2020-07-01 | AU8: 7 | AV8: 1.087619015 | AW8: 1.113481601 | AX8: 1
D9: Month | F9: 31 | H9: CheckPrevious | I9: No | Z9: Personalkategori | AF9: Produktförsäljning | AN9: Total | AO9: Total | AQ9: 2020-08-01 | AU9: 8 | AV9: 1.123906892 | AW9: 0.8566390588 | AX9: 1
D10: DataTyp | H10: UploadToAccess | I10: No | Z10: Ledning | AI10: Costs | AN10: Datum | AO10: Date | AQ10: 2020-09-01 | AU10: 9 | AV10: 1.359799739 | AW10: 0.8584953441 | AX10: 1
F11: MaxColumn | H11: AddGeneralData | I11: No | Z11: IT | AN11: Likviditet nu | AO11: Liquidity now | AQ11: 2020-10-01 | AU11: 10 | AV11: 1.083530523 | AW11: 1.065585665 | AX11: 1
F12: 32 | H12: OnlyAddVisible | I12: Yes | Z12: Fast kostnad | AN12: Kostnader | AO12: Costs | AQ12: 2020-11-01 | AU12: 11 | AV12: 1.063547627 | AW12: 1.290947569 | AX12: 1
H13: Titles from Admin | I13: Yes | Y13: x | Z13: Försäljning | AN13: Personalkostnader | AO13: Staff cost | AQ13: 2020-12-01 | AU13: 12 | AV13: 1.117391219 | AW13: 1.209210057 | AX13: 1
H14: Match Titles From Admin | I14: Yes | Z14: Kontorskostnad | AN14: FastaKostnader | AO14: Fixed costs | AQ14: 2021-01-01
F15: TabColorToCollectData | H15: ImportAllSheets | I15: Yes | Z15: Produktkostnad | AN15: SocialaAvgifter | AO15: Social fees | AQ15: 2021-02-01
Z16: Säljkostnad | AN16: Löner | AO16: Wages | AQ16: 2021-03-01
H17: Same columns | I17: Yes | Z17: Total | AN17: Kontor | AO17: Office | AQ17: 2021-04-01
Y18: x | Z18: Grand Total | AN18: FaktorKostnad | AO18: Cost factor | AQ18: 2021-05-01
Z19: Resultat | AN19: Manuella Värden | AO19: Manual values | AQ19: 2021-06-01
Z20: LikviditetResultat | AN20: Månatlig | AO20: Monthly | AQ20: 2021-07-01
K21: Client Colors | Z21: Successful | AN21: Per Kvartal | AO21: Quarterly | AQ21: 2021-08-01
Z22: Aktiva | AN22: ProcentKostnad | AO22: Cost percentage | AQ22: 2021-09-01
K23: Primary color | Z23: Passiva | AN23: ProduktProcent | AO23: Product percentage | AQ23: 2021-10-01
AN24: RENSA DATA | AO24: CLEAR DATA | AQ24: 2021-11-01
K25: 18A2FB | L25: 059CFF | M25: 007AC9 | N25: 005B96 | O25: 4775 | AN25: SPARA SCENARIO | AO25: SAVE SCENARIO | AQ25: 2021-12-01
K26: RGB: 24–162–251 | L26: RGB: 5–156–255 | M26: RGB: 0–122–201 | N26: RGB: 0–91–150 | O26: RGB: 0–71–117 | AN26: NYTT BLAD | AO26: NEW SHEET | AQ26: 2022-01-01
K27: RGB [%]: 9.4–63.5–98.4 | L27: RGB [%]: 2–61.2–100 | M27: RGB [%]: 0–47.8–78.8 | N27: RGB [%]: 0–35.7–58.8 | O27: RGB [%]: 0–27.8–45.9 | AN27: Försäljning | AO27: Sales | AQ27: 2022-02-01
K28: Secondary color #1 | AN28: Försäljningskostnader | AO28: Sales costs | AQ28: 2022-03-01
AN29: Materialkostnader | AO29: Material costs | AQ29: 2022-04-01
K30: FFBF0A | L30: FFBC00 | M30: FFBC00 | N30: EAAD00 | O30: B88800 | AN30: Transportkostnader | AO30: Transportation costs | AQ30: 2022-05-01
K31: RGB: 255–191–10 | L31: RGB: 255–188–0 | M31: RGB: 255–188–0 | N31: RGB: 234–173–0 | O31: RGB: 184–136–0 | AN31: Löpande | AO31: Current | AQ31: 2022-06-01
K32: RGB [%]: 100–74.9–3.9 | L32: RGB [%]: 100–73.7–0 | M32: RGB [%]: 100–73.7–0 | N32: RGB [%]: 91.8–67.8–0 | O32: RGB [%]: 72.2–53.3–0 | AN32: Projekt | AO32: Project | AQ32: 2022-07-01
K33: Secondary color #2 | AN33: Intäkter | AO33: Income | AQ33: 2022-08-01
AN34: Försäljning Projekt | AO34: Sales project | AQ34: 2022-09-01
K35: FF480A | L35: FF4100 | M35: FF4100 | N35: EA3C00 | O35: B82F00 | AN35: Fasta intäkter | AO35: Fixed income | AQ35: 2022-10-01
K36: RGB: 255–72–10 | L36: RGB: 255–65–0 | M36: RGB: 255–65–0 | N36: RGB: 234–60–0 | O36: RGB: 184–47–0 | AQ36: 2022-11-01
K37: RGB [%]: 100–28.2–3.9 | L37: RGB [%]: 100–25.5–0 | M37: RGB [%]: 100–25.5–0 | N37: RGB [%]: 91.8–23.5–0 | O37: RGB [%]: 72.2–18.4–0 | AQ37: 2022-12-01

Sheet Rates (hidden)
B1: Currency | C1: USD rate | E1: Ja
B2: SEK | C2: 0.099
B3: CNY | C3: 0.14
B4: THB | C4: 0.031
B5: NOK | C5: 0.094
B6: USD | C6: 1
B7: ISK | C7: 0.0068
B8: DKK | C8: 0.14
B9: EUR | C9: 1.08
G10: Date | H10: 2020-01-01 | I10: =EDATE(H10,1) -> 2020-02-01 | J10: =EDATE(I10,1) -> 2020-03-01 | K10: 2020-04-01 | L10: 2020-05-01 | M10: 2020-06-01 | N10: 2020-07-01 | O10: 2020-08-01 | P10: 2020-09-01 | Q10: 2020-10-01 | R10: 2020-11-01 | S10: 2020-12-01 | T10: 2021-01-01 | U10: 2021-02-01 | V10: 2021-03-01 | W10: 2021-04-01 | X10: 2021-05-01 | Y10: 2021-06-01 | Z10: 2021-07-01 | AA10: 2021-08-01 | AB10: 2021-09-01 | AC10: 2021-10-01 | AD10: 2021-11-01 | AE10: 2021-12-01 | AF10: 2022-01-01 | AG10: 2022-02-01 | AH10: 2022-03-01 | AI10: 2022-04-01 | AJ10: 2022-05-01 | AK10: 2022-06-01 | AL10: 2022-07-01 | AM10: 2022-08-01 | AN10: 2022-09-01 | AO10: =EDATE(AN10,1) -> 2022-10-01 | AP10: 2022-11-01 | AQ10: 2022-12-01 | AR10: 2023-01-01 | AS10: 2023-02-01 | AT10: =EDATE(AS10,1) -> 2023-03-01 | AU10: 2023-04-01 | AV10: 2023-05-01 | AW10: 2023-06-01 | AX10: 2023-07-01 | AY10: 2023-08-01 | AZ10: 2023-09-01 | BA10: 2023-10-01 | BB10: 2023-11-01 | BC10: 2023-12-01 | BD10: 2024-01-01 | BE10: 2024-02-01 | BF10: 2024-03-01 | BG10: 2024-04-01 | BH10: 2024-05-01 | BI10: 2024-06-01 | BJ10: 2024-07-01 | BK10: 2024-08-01 | BL10: 2024-09-01 | BM10: 2024-10-01 | BN10: 2024-11-01 | BO10: 2024-12-01 | BP10: 2025-01-01 | BQ10: 2025-02-01 | BR10: 2025-03-01 | BS10: 2025-04-01 | BT10: 2025-05-01 | BU10: 2025-06-01 | BV10: 2025-07-01 | BW10: 2025-08-01 | BX10: 2025-09-01 | BY10: 2025-10-01 | BZ10: 2025-11-01 | CA10: 2025-12-01 | CB10: 2026-01-01 | CC10: 2026-02-01 | CD10: 2026-03-01 | CE10: 2026-04-01 | CF10: 2026-05-01 | CG10: 2026-06-01 | CH10: 2026-07-01 | CI10: 2026-08-01 | CJ10: 2026-09-01 | CK10: 2026-10-01 | CL10: 2026-11-01 | CM10: 2026-12-01 | CN10: 2027-01-01 | CO10: 2027-02-01 | CP10: 2027-03-01 | CQ10: 2027-04-01 | CR10: 2027-05-01 | CS10: 2027-06-01 | CT10: 2027-07-01 | CU10: 2027-08-01 | CV10: 2027-09-01 | CW10: 2027-10-01 | CX10: 2027-11-01 | CY10: 2027-12-01 | CZ10: 2028-01-01 | DA10: 2028-02-01 | DB10: 2028-03-01 | DC10: 2028-04-01 | DD10: 2028-05-01 | DE10: 2028-06-01 | DF10: =EDATE(DE10,1) -> 2028-07-01
A11: 2
A12: 3
A13: 4
A14: 5
A15: 6
A16: 7
A17: 8
A18: 9
A19: 10
A20: 11
A21: 12
A22: 13
A23: 14
A24: 15
A25: 16
A26: 17
A27: 18
A28: 19
A29: 20
A30: 21
A31: 22
A32: 23
A33: 24
A34: 25
A35: 26
A36: 27
A37: 28
A38: 29
A39: 30
A40: 31
A41: 32
A42: 33
A43: 34
A44: 35
A45: 36
A46: 37
A47: 38
A48: 39
A49: 40
A50: 41
A51: 42
A52: 43
A53: 44
A54: 45
A55: 46
A56: 47
A57: 48
A58: 49
A59: 50
A60: 51
A61: 52
A62: 53
A63: 54
A64: 55
A65: 56
A66: 57
A67: 58
A68: 59
A69: 60
A70: 61
A71: 62
A72: 63
A73: 64
A74: 65
A75: 66
A76: 67
A77: 68
A78: 69
A79: 70
A80: 71
A81: 72
A82: 73
A83: 74
A84: 75
A85: 76
A86: 77
A87: 78
A88: 79
A89: 80
A90: 81
A91: 82
A92: 83
A93: 84
A94: 85
A95: 86
A96: 87
A97: 88
A98: 89
A99: 90
A100: 91
A101: 92
A102: 93
A103: 94
A104: 95
A105: 96
A106: 97
A107: 98
A108: 99
A109: 100
B111: SEK | D111: Max | E111: =INDEX($B$143:$E$150,MATCH($B$111,$B$143:$B$150,0),MATCH($D111,$B$143:$E$143,0)) -> 0.149 | G111: Currencykurs mot USD | H111: 0.1 | I111: 0.1 | J111: 0.101 | K111: 0.101 | L111: 0.1 | M111: 0.1 | N111: 0.1 | O111: 0.101 | P111: 0.102 | Q111: 0.104 | R111: 0.102 | S111: 0.101 | T111: 0.102 | U111: 0.103 | V111: 0.103 | W111: 0.103 | X111: 0.103 | Y111: 0.103 | Z111: 0.103 | AA111: 0.106 | AB111: 0.105 | AC111: 0.106 | AD111: 0.105 | AE111: 0.104 | AF111: 0.102 | AG111: 0.102 | AH111: 0.102 | AI111: 0.101 | AJ111: 0.103 | AK111: 0.102 | AL111: 0.104 | AM111: 0.102 | AN111: 0.102 | AO111: 0.145 | AP111: 0.145 | AQ111: 0.145 | AR111: 0.145 | AS111: 0.145 | AT111: 0.145 | AU111: 0.145 | AV111: 0.145 | AW111: 0.145 | AX111: 0.145 | AY111: 0.145 | AZ111: 0.145 | BA111: 0.145 | BB111: 0.145 | BC111: 0.145 | BD111: 0.145 | BE111: 0.145 | BF111: 0.145 | BG111: 0.145 | BH111: 0.145 | BI111: 0.145 | BJ111: 0.145 | BK111: 0.145 | BL111: 0.145 | BM111: 0.145 | BN111: 0.145 | BO111: 0.145 | BP111: 0.145 | BQ111: 0.145 | BR111: 0.145 | BS111: 0.145 | BT111: 0.145 | BU111: 0.145 | BV111: 0.145 | BW111: 0.145 | BX111: 0.145 | BY111: 0.145 | BZ111: 0.145 | CA111: 0.145 | CB111: 0.145 | CC111: 0.145 | CD111: 0.145 | CE111: 0.145 | CF111: 0.145 | CG111: 0.145 | CH111: 0.145 | CI111: 0.145 | CJ111: 0.145 | CK111: 0.145 | CL111: 0.145 | CM111: 0.145 | CN111: 0.145 | CO111: 0.145 | CP111: 0.145 | CQ111: 0.145 | CR111: 0.145 | CS111: 0.145 | CT111: 0.145 | CU111: 0.145 | CV111: 0.145 | CW111: 0.145 | CX111: 0.145 | CY111: 0.145 | CZ111: 0.145 | DA111: 0.145 | DB111: 0.145 | DC111: 0.145 | DD111: 0.145 | DE111: 0.145 | DF111: 0.145
D112: Min | E112: =INDEX($B$143:$E$150,MATCH($B$111,$B$143:$B$150,0),MATCH($D112,$B$143:$E$143,0)) -> 0.049
H113: =1/H111 -> 10 | I113: =1/I111 -> 10 | J113: 9.900990099 | K113: 9.900990099 | L113: 10 | M113: 10 | N113: 10 | O113: 9.900990099 | P113: 9.803921569 | Q113: 9.615384615 | R113: 9.803921569 | S113: 9.900990099 | T113: 9.803921569 | U113: 9.708737864 | V113: 9.708737864 | W113: 9.708737864 | X113: 9.708737864 | Y113: 9.708737864 | Z113: 9.708737864 | AA113: 9.433962264 | AB113: 9.523809524 | AC113: 9.433962264 | AD113: 9.523809524 | AE113: 9.615384615 | AF113: 9.803921569
H142: =IFERROR(INDEX($H$111:$AN$111,,MATCH($G142,$H$10:$AN$10,0)),"") ->  | I142: =IFERROR(INDEX($H$111:$AN$111,,MATCH($G142,$H$10:$AN$10,0)),"") ->  | J142: =IFERROR(INDEX($H$111:$AN$111,,MATCH($G142,$H$10:$AN$10,0)),"") ->  | K142: =IFERROR(INDEX($H$111:$AN$111,,MATCH($G142,$H$10:$AN$10,0)),"") ->  | L142: =IFERROR(INDEX($H$111:$AN$111,,MATCH($G142,$H$10:$AN$10,0)),"") ->  | M142: =IFERROR(INDEX($H$111:$AN$111,,MATCH($G142,$H$10:$AN$10,0)),"") ->  | N142: =IFERROR(INDEX($H$111:$AN$111,,MATCH($G142,$H$10:$AN$10,0)),"") -> 
C143: Min | D143: Max | H143: SEK | I143: CNY | J143: THB | K143: NOK | L143: ISK | M143: DKK | N143: EUR | O143: USD
B144: SEK | C144: 0.049 | D144: 0.149 | G144: =H10 -> 2020-01-01 | H144: 0.1 | I144: 0.145 | J144: 0.0322 | K144: 0.1122 | L144: 0.0093 | M144: 0.145 | N144: 1.06 | O144: 1
B145: CNY | C145: 0.09 | D145: 0.19 | G145: =EDATE(G144,1) -> 2020-02-01 | H145: 0.1 | I145: 0.145 | J145: 0.033 | K145: 0.081 | L145: 0.0097 | M145: 0.132 | N145: 1.06 | O145: 1
B146: THB | C146: 0.026 | D146: 0.036 | G146: =EDATE(G145,1) -> 2020-03-01 | H146: 0.101 | I146: 0.145 | J146: 0.0334 | K146: 0.085 | L146: 0.0094 | M146: 0.126 | N146: 1.07 | O146: 1
B147: NOK | C147: 0.044 | D147: 0.144 | G147: 2020-04-01 | H147: 0.101 | I147: 0.145 | J147: 0.0335 | K147: 0.089 | L147: 0.0097 | M147: 0.123 | N147: 1.08 | O147: 1
B148: ISK | C148: 0.0018 | D148: 0.0118 | G148: 2020-05-01 | H148: 0.1 | I148: 0.145 | J148: 0.0344 | K148: 0.094 | L148: 0.0094 | M148: 0.118 | N148: 1.09 | O148: 1
B149: DKK | C149: 0.09 | D149: 0.19 | G149: 2020-06-01 | H149: 0.1 | I149: 0.145 | J149: 0.0355 | K149: 0.096 | L149: 0.0094 | M149: 0.115 | N149: 1.1 | O149: 1
B150: EUR | C150: 0.58 | D150: 1.58 | G150: 2020-07-01 | H150: 0.1 | I150: 0.145 | J150: 0.0351 | K150: 0.097 | L150: 0.0095 | M150: 0.112 | N150: 1.1 | O150: 1
B151: USD | C151: 0.58 | D151: 1.58 | G151: 2020-08-01 | H151: 0.101 | I151: 0.145 | J151: 0.0351 | K151: 0.092 | L151: 0.0095 | M151: 0.108 | N151: 1.11 | O151: 1
G152: 2020-09-01 | H152: 0.102 | I152: 0.145 | J152: 0.035 | K152: 0.086 | L152: 0.0096 | M152: 0.105 | N152: 1.1 | O152: 1
G153: 2020-10-01 | H153: 0.104 | I153: 0.145 | J153: 0.0351 | K153: 0.083 | L153: 0.0095 | M153: 0.101 | N153: 1.1 | O153: 1
G154: 2020-11-01 | H154: 0.102 | I154: 0.145 | J154: 0.0353 | K154: 0.081 | L154: 0.0094 | M154: 0.103 | N154: 1.09 | O154: 1
G155: 2020-12-01 | H155: 0.101 | I155: 0.145 | J155: 0.0353 | K155: 0.077 | L155: 0.0093 | M155: 0.104 | N155: 1.08 | O155: 1
G156: 2021-01-01 | H156: 0.102 | I156: 0.145 | J156: 0.0353 | K156: 0.115 | L156: 0.0093 | M156: 0.105 | N156: 1.09 | O156: 1
G157: 2021-02-01 | H157: 0.103 | I157: 0.145 | J157: 0.0354 | K157: 0.1164 | L157: 0.0093 | M157: 0.11 | N157: 1.1 | O157: 1
G158: 2021-03-01 | H158: 0.103 | I158: 0.145 | J158: 0.0354 | K158: 0.1164 | L158: 0.0095 | M158: 0.114 | N158: 1.11 | O158: 1
G159: 2021-04-01 | H159: 0.103 | I159: 0.145 | J159: 0.0354 | K159: 0.1157 | L159: 0.0096 | M159: 0.118 | N159: 1.12 | O159: 1
G160: 2021-05-01 | H160: 0.103 | I160: 0.145 | J160: 0.0356 | K160: 0.1143 | L160: 0.0096 | M160: 0.122 | N160: 1.13 | O160: 1
G161: 2021-06-01 | H161: 0.103 | I161: 0.145 | J161: 0.0353 | K161: 0.115 | L161: 0.0096 | M161: 0.127 | N161: 1.12 | O161: 1
G162: 2021-07-01 | H162: 0.103 | I162: 0.145 | J162: 0.0352 | K162: 0.1157 | L162: 0.0096 | M162: 0.132 | N162: 1.14 | O162: 1
G163: 2021-08-01 | H163: 0.106 | I163: 0.145 | J163: 0.0352 | K163: 0.1164 | L163: 0.0095 | M163: 0.137 | N163: 1.16 | O163: 1
G164: 2021-09-01 | H164: 0.105 | I164: 0.145 | J164: 0.0352 | K164: 0.1178 | L164: 0.0094 | M164: 0.138 | N164: 1.15 | O164: 1
G165: 2021-10-01 | H165: 0.106 | I165: 0.145 | J165: 0.0353 | K165: 0.1171 | L165: 0.0093 | M165: 0.135 | N165: 1.14 | O165: 1
G166: 2021-11-01 | H166: 0.105 | I166: 0.145 | J166: 0.0349 | K166: 0.1164 | L166: 0.0094 | M166: 0.131 | N166: 1.13 | O166: 1
G167: 2021-12-01 | H167: 0.104 | I167: 0.145 | J167: 0.0349 | K167: 0.1171 | L167: 0.0095 | M167: 0.1548 | N167: 1.12 | O167: 1
G168: 2022-01-01 | H168: 0.102 | I168: 0.145 | J168: 0.0345 | K168: 0.1178 | L168: 0.0095 | M168: 0.1536 | N168: 1.11 | O168: 1
G169: 2022-02-01 | H169: 0.102 | I169: 0.145 | J169: 0.0339 | K169: 0.1185 | L169: 0.0097 | M169: 0.1524 | N169: 1.12 | O169: 1
G170: 2022-03-01 | H170: 0.102 | I170: 0.145 | J170: 0.0336 | K170: 0.1178 | L170: 0.0096 | M170: 0.1548 | N170: 1.09 | O170: 1
G171: 2022-04-01 | H171: 0.101 | I171: 0.145 | J171: 0.0333 | K171: 0.1178 | L171: 0.0095 | M171: 0.126 | N171: 1.08 | O171: 1
G172: 2022-05-01 | H172: 0.103 | I172: 0.145 | J172: 0.0325 | K172: 0.1185 | L172: 0.0097 | M172: 0.1548 | N172: 1.09 | O172: 1
G173: 2022-06-01 | H173: 0.102 | I173: 0.145 | J173: 0.0368 | K173: 0.1199 | L173: 0.0098 | M173: 0.1548 | N173: 1.1 | O173: 1
G174: 2022-07-01 | H174: 0.104 | I174: 0.145 | J174: 0.0372 | K174: 0.1192 | L174: 0.0098 | M174: 0.1584 | N174: 1.11 | O174: 1
G175: 2022-08-01 | H175: 0.102 | I175: 0.145 | J175: 0.0376 | K175: 0.1185 | L175: 0.0099 | M175: 0.1572 | N175: 1.11 | O175: 1
G176: 2022-09-01 | H176: 0.102 | I176: 0.145 | J176: 0.0372 | K176: 0.1178 | L176: 0.0098 | M176: 0.156 | N176: 1.12 | O176: 1
G177: =EDATE(G176,1) -> 2022-10-01 | H177: 0.102 | I177: 0.145 | J177: 0.0372 | K177: 0.1178 | L177: 0.0098 | M177: 0.156 | N177: 1.12 | O177: 1
G178: 2022-11-01 | H178: 0.102 | I178: 0.145 | J178: 0.0372 | K178: 0.1178 | L178: 0.0098 | M178: 0.156 | N178: 1.12 | O178: 1
G179: 2022-12-01 | H179: 0.102 | I179: 0.145 | J179: 0.0372 | K179: 0.1178 | L179: 0.0098 | M179: 0.156 | N179: 1.12 | O179: 1
G180: 2023-01-01 | H180: 0.102 | I180: 0.145 | J180: 0.0372 | K180: 0.1178 | L180: 0.0098 | M180: 0.156 | N180: 1.12 | O180: 1
G181: 2023-02-01 | H181: 0.102 | I181: 0.145 | J181: 0.0372 | K181: 0.1178 | L181: 0.0098 | M181: 0.156 | N181: 1.12 | O181: 1
G182: 2023-03-01 | H182: 0.102 | I182: 0.145 | J182: 0.0372 | K182: 0.1178 | L182: 0.0098 | M182: 0.156 | N182: 1.12 | O182: 1
G183: 2023-04-01 | H183: 0.102 | I183: 0.145 | J183: 0.0372 | K183: 0.1178 | L183: 0.0098 | M183: 0.156 | N183: 1.12 | O183: 1
G184: 2023-05-01 | H184: 0.102 | I184: 0.145 | J184: 0.0372 | K184: 0.1178 | L184: 0.0098 | M184: 0.156 | N184: 1.12 | O184: 1
G185: 2023-06-01 | H185: 0.102 | I185: 0.145 | J185: 0.0372 | K185: 0.1178 | L185: 0.0098 | M185: 0.156 | N185: 1.12 | O185: 1
G186: 2023-07-01 | H186: 0.102 | I186: 0.145 | J186: 0.0372 | K186: 0.1178 | L186: 0.0098 | M186: 0.156 | N186: 1.12 | O186: 1
G187: 2023-08-01 | H187: 0.102 | I187: 0.145 | J187: 0.0372 | K187: 0.1178 | L187: 0.0098 | M187: 0.156 | N187: 1.12 | O187: 1
G188: 2023-09-01 | H188: 0.102 | I188: 0.145 | J188: 0.0372 | K188: 0.1178 | L188: 0.0098 | M188: 0.156 | N188: 1.12 | O188: 1
G189: 2023-10-01 | H189: 0.102 | I189: 0.145 | J189: 0.0372 | K189: 0.1178 | L189: 0.0098 | M189: 0.156 | N189: 1.12 | O189: 1
G190: 2023-11-01 | H190: 0.102 | I190: 0.145 | J190: 0.0372 | K190: 0.1178 | L190: 0.0098 | M190: 0.156 | N190: 1.12 | O190: 1
G191: 2023-12-01 | H191: 0.102 | I191: 0.145 | J191: 0.0372 | K191: 0.1178 | L191: 0.0098 | M191: 0.156 | N191: 1.12 | O191: 1
G192: 2024-01-01 | H192: 0.102 | I192: 0.145 | J192: 0.0372 | K192: 0.1178 | L192: 0.0098 | M192: 0.156 | N192: 1.12 | O192: 1
G193: 2024-02-01 | H193: 0.102 | I193: 0.145 | J193: 0.0372 | K193: 0.1178 | L193: 0.0098 | M193: 0.156 | N193: 1.12 | O193: 1
G194: 2024-03-01 | H194: 0.102 | I194: 0.145 | J194: 0.0372 | K194: 0.1178 | L194: 0.0098 | M194: 0.156 | N194: 1.12 | O194: 1
G195: 2024-04-01 | H195: 0.102 | I195: 0.145 | J195: 0.0372 | K195: 0.1178 | L195: 0.0098 | M195: 0.156 | N195: 1.12 | O195: 1
G196: 2024-05-01 | H196: 0.102 | I196: 0.145 | J196: 0.0372 | K196: 0.1178 | L196: 0.0098 | M196: 0.156 | N196: 1.12 | O196: 1
G197: 2024-06-01 | H197: 0.102 | I197: 0.145 | J197: 0.0372 | K197: 0.1178 | L197: 0.0098 | M197: 0.156 | N197: 1.12 | O197: 1
G198: 2024-07-01 | H198: 0.102 | I198: 0.145 | J198: 0.0372 | K198: 0.1178 | L198: 0.0098 | M198: 0.156 | N198: 1.12 | O198: 1
G199: 2024-08-01 | H199: 0.102 | I199: 0.145 | J199: 0.0372 | K199: 0.1178 | L199: 0.0098 | M199: 0.156 | N199: 1.12 | O199: 1
G200: 2024-09-01 | H200: 0.102 | I200: 0.145 | J200: 0.0372 | K200: 0.1178 | L200: 0.0098 | M200: 0.156 | N200: 1.12 | O200: 1
G201: 2024-10-01 | H201: 0.102 | I201: 0.145 | J201: 0.0372 | K201: 0.1178 | L201: 0.0098 | M201: 0.156 | N201: 1.12 | O201: 1
G202: 2024-11-01 | H202: 0.102 | I202: 0.145 | J202: 0.0372 | K202: 0.1178 | L202: 0.0098 | M202: 0.156 | N202: 1.12 | O202: 1
G203: 2024-12-01 | H203: 0.102 | I203: 0.145 | J203: 0.0372 | K203: 0.1178 | L203: 0.0098 | M203: 0.156 | N203: 1.12 | O203: 1
G204: 2025-01-01 | H204: 0.102 | I204: 0.145 | J204: 0.0372 | K204: 0.1178 | L204: 0.0098 | M204: 0.156 | N204: 1.12 | O204: 1
G205: 2025-02-01 | H205: 0.102 | I205: 0.145 | J205: 0.0372 | K205: 0.1178 | L205: 0.0098 | M205: 0.156 | N205: 1.12 | O205: 1
G206: 2025-03-01 | H206: 0.102 | I206: 0.145 | J206: 0.0372 | K206: 0.1178 | L206: 0.0098 | M206: 0.156 | N206: 1.12 | O206: 1
G207: 2025-04-01 | H207: 0.102 | I207: 0.145 | J207: 0.0372 | K207: 0.1178 | L207: 0.0098 | M207: 0.156 | N207: 1.12 | O207: 1
G208: 2025-05-01 | H208: 0.102 | I208: 0.145 | J208: 0.0372 | K208: 0.1178 | L208: 0.0098 | M208: 0.156 | N208: 1.12 | O208: 1
G209: 2025-06-01 | H209: 0.102 | I209: 0.145 | J209: 0.0372 | K209: 0.1178 | L209: 0.0098 | M209: 0.156 | N209: 1.12 | O209: 1
G210: =EDATE(G209,1) -> 2025-07-01 | H210: 0.102 | I210: 0.145 | J210: 0.0372 | K210: 0.1178 | L210: 0.0098 | M210: 0.156 | N210: 1.12 | O210: 1
G211: 2025-08-01 | H211: 0.102 | I211: 0.145 | J211: 0.0372 | K211: 0.1178 | L211: 0.0098 | M211: 0.156 | N211: 1.12 | O211: 1
G212: 2025-09-01 | H212: 0.102 | I212: 0.145 | J212: 0.0372 | K212: 0.1178 | L212: 0.0098 | M212: 0.156 | N212: 1.12 | O212: 1
G213: 2025-10-01 | H213: 0.102 | I213: 0.145 | J213: 0.0372 | K213: 0.1178 | L213: 0.0098 | M213: 0.156 | N213: 1.12 | O213: 1
G214: 2025-11-01 | H214: 0.102 | I214: 0.145 | J214: 0.0372 | K214: 0.1178 | L214: 0.0098 | M214: 0.156 | N214: 1.12 | O214: 1
G215: 2025-12-01 | H215: 0.102 | I215: 0.145 | J215: 0.0372 | K215: 0.1178 | L215: 0.0098 | M215: 0.156 | N215: 1.12 | O215: 1
G216: 2026-01-01 | H216: 0.102 | I216: 0.145 | J216: 0.0372 | K216: 0.1178 | L216: 0.0098 | M216: 0.156 | N216: 1.12 | O216: 1
G217: 2026-02-01 | H217: 0.102 | I217: 0.145 | J217: 0.0372 | K217: 0.1178 | L217: 0.0098 | M217: 0.156 | N217: 1.12 | O217: 1
G218: 2026-03-01 | H218: 0.102 | I218: 0.145 | J218: 0.0372 | K218: 0.1178 | L218: 0.0098 | M218: 0.156 | N218: 1.12 | O218: 1
G219: 2026-04-01 | H219: 0.102 | I219: 0.145 | J219: 0.0372 | K219: 0.1178 | L219: 0.0098 | M219: 0.156 | N219: 1.12 | O219: 1
G220: 2026-05-01 | H220: 0.102 | I220: 0.145 | J220: 0.0372 | K220: 0.1178 | L220: 0.0098 | M220: 0.156 | N220: 1.12 | O220: 1
G221: 2026-06-01 | H221: 0.102 | I221: 0.145 | J221: 0.0372 | K221: 0.1178 | L221: 0.0098 | M221: 0.156 | N221: 1.12 | O221: 1
G222: 2026-07-01 | H222: 0.102 | I222: 0.145 | J222: 0.0372 | K222: 0.1178 | L222: 0.0098 | M222: 0.156 | N222: 1.12 | O222: 1
G223: 2026-08-01 | H223: 0.102 | I223: 0.145 | J223: 0.0372 | K223: 0.1178 | L223: 0.0098 | M223: 0.156 | N223: 1.12 | O223: 1
G224: 2026-09-01 | H224: 0.102 | I224: 0.145 | J224: 0.0372 | K224: 0.1178 | L224: 0.0098 | M224: 0.156 | N224: 1.12 | O224: 1
G225: 2026-10-01 | H225: 0.102 | I225: 0.145 | J225: 0.0372 | K225: 0.1178 | L225: 0.0098 | M225: 0.156 | N225: 1.12 | O225: 1
G226: 2026-11-01 | H226: 0.102 | I226: 0.145 | J226: 0.0372 | K226: 0.1178 | L226: 0.0098 | M226: 0.156 | N226: 1.12 | O226: 1
G227: 2026-12-01 | H227: 0.102 | I227: 0.145 | J227: 0.0372 | K227: 0.1178 | L227: 0.0098 | M227: 0.156 | N227: 1.12 | O227: 1
G228: 2027-01-01 | H228: 0.102 | I228: 0.145 | J228: 0.0372 | K228: 0.1178 | L228: 0.0098 | M228: 0.156 | N228: 1.12 | O228: 1
G229: 2027-02-01 | H229: 0.102 | I229: 0.145 | J229: 0.0372 | K229: 0.1178 | L229: 0.0098 | M229: 0.156 | N229: 1.12 | O229: 1
... 17 more rows
